Workbook

Sheet START

Sheet Instructions
D2: 2020
X4: Yes
X5: No
W7: Type of Entities Range:
X8: Parent Municipality
X9: Consolidated Information
W17: MTREF Range: | X17: 2008
X18: 2009
X19: 2010
X20: 2011
X21: 2012
X22: 2013
X23: 2014
X24: 2015
X25: 2016
X26: 2017
X27: 2018
X28: 2019
X29: 2020
X30: 2021
X31: 2022
W33: MTREF Linked: | X33: 13
W34: MTREF: | X34: =INDEX(X17:X31,X33,1) -> 2020
W36: Fin Year: | X36: =MTREF&"/"&RIGHT(MTREF,2)+1 -> 2020/21

Sheet Template names (hidden)
A1: Common sheet headings
A2: Head1 | B2: =HLOOKUP(MTREF,Headings,2) -> 2018/19 | C2: Prior year -1
A3: Head1A | B3: =HLOOKUP(MTREF,Headings,3) -> 2017/18 | C3: Prior year -2
A4: Head1B | B4: =HLOOKUP(MTREF,Headings,4) -> 2016/17 | C4: Prior year -3
A5: Head2 | B5: =HLOOKUP(MTREF,Headings,5) -> Current Year 2019/20 | C5: Year in which budget is being prepared
A6: Head2A | B6: =HLOOKUP(MTREF,Headings,6) -> 2019/20 | C6: Year in which budget is being prepared
A7: Head3 | B7: =HLOOKUP(MTREF,Headings,7) -> 2020/21 Medium Term Revenue & Expenditure Framework | C7: MTREF name
A8: Head4 | B8: LTFS | C8: Long term financial strategy
A9: Head5 | B9: Audited Outcome
A10: Head5A | B10: Outcome
A11: Head5B | B11: Pre-audit outcome
A12: Head6 | B12: Original Budget
A13: Head7 | B13: Adjusted Budget
A14: Head8 | B14: Full Year Forecast
A15: Head9 | B15: =HLOOKUP(MTREF,Headings,8) -> Budget Year 2020/21 | C15: 1st year of MTREF | D15: Year1
A16: Head10 | B16: =HLOOKUP(MTREF,Headings,9) -> Budget Year +1 2021/22 | C16: 2nd year of MTREF | D16: Year2
A17: Head11 | B17: =HLOOKUP(MTREF,Headings,10) -> Budget Year +2 2022/23 | C17: 3rd year of MTREF | D17: Year3
A18: Head12 | B18: =HLOOKUP(MTREF,Headings,11) -> Forecast 2023/24 | C18: 1st yr of long term forecast | D18: Year4
A19: Head13 | B19: =HLOOKUP(MTREF,Headings,12) -> Forecast 2024/25 | C19: Next yr of long term forecast | D19: Year5
A20: Head14 | B20: =HLOOKUP(MTREF,Headings,13) -> Forecast 2025/26 | C20: Next yr of long term forecast | D20: Year6
A21: Head15 | B21: =HLOOKUP(MTREF,Headings,14) -> Forecast 2026/27 | C21: Next yr of long term forecast | D21: Year7
A22: Head16 | B22: =HLOOKUP(MTREF,Headings,15) -> Forecast 2027/28 | C22: Next yr of long term forecast | D22: Year8
A23: Head17 | B23: =HLOOKUP(MTREF,Headings,16) -> Forecast 2028/29 | C23: Next yr of long term forecast | D23: Year9
A24: Head18 | B24: =HLOOKUP(MTREF,Headings,17) -> Forecast 2029/30 | C24: Next yr of long term forecast | D24: Year10
A25: Head19 | B25: =HLOOKUP(MTREF,Headings,18) -> Forecast 2030/31 | C25: Next yr of long term forecast | D25: Year11
A26: Head20 | B26: =HLOOKUP(MTREF,Headings,19) -> Forecast 2031/32 | C26: Next yr of long term forecast | D26: Year12
A27: Head21 | B27: =HLOOKUP(MTREF,Headings,20) -> Forecast 2032/33 | C27: Next yr of long term forecast | D27: Year13
A28: Head22 | B28: =HLOOKUP(MTREF,Headings,21) -> Forecast 2033/34 | C28: Next yr of long term forecast | D28: Year14
A29: Head23 | B29: =HLOOKUP(MTREF,Headings,22) -> Forecast 2034/35 | C29: Next yr of long term forecast | D29: Year15
A30: Head24 | B30: Description
A31: Head25
A32: Head26 | B32: Vote Description
A33: Head27 | B33: Ref
A34: Head27a | B34: References
A35: Head28 | B35: Surplus/(Deficit) for the year | D35: Result
A36: Head29 | B36: =HLOOKUP(MTREF,Headings,23) -> Annual target 2020/21
A37: Head30 | B37: =HLOOKUP(MTREF,Headings,24) -> Revised target 2020/21
A38: Head31 | B38: Quarter ended 30 September
A39: Head32 | B39: Quarter ended 31 December
A40: Head33 | B40: Quarter ended 31 March
A41: Head34 | B41: Quarter ended 30 June
A42: Head35 | B42: Variance explanation
A43: Head36 | B43: YTD Actual 31 Dec
A44: Head37 | B44: YTD Budget 31 Dec
A45: Head38 | B45: Monthly actual
A46: Head39 | B46: YTD actual
A47: Head40 | B47: YTD budget
A48: Head41 | B48: YTD variance
A49: Head42 | B49: Surplus/ (Deficit) for the yr/period
A50: Head43 | B50: =Head3&" Summary" -> 2020/21 Medium Term Revenue & Expenditure Framework Summary
A51: Head44 | B51: 2001 Census
A52: Head45 | B52: 2011 Census
A53: Head46 | B53: - Adjustments Budget - January 2007
A54: Head47 | B54: Previous target year to complete
A55: Head48 | B55: Present value
A56: Head49
A57: Head50 | B57: Other Adjusts.
A58: Head51 | B58: Accum. Funds
A59: Head52 | B59: Multi-year capital
A60: Head53 | B60: Unfore. Unavoid.
A61: Head54 | B61: Prior Adjusted
A62: Head55 | B62: Nat. or Prov. Govt
A63: Head56 | B63: Total Adjusts.
A64: SFPerf1 | B64: Budgeted Financial Performance
A65: SFPerf2 | B65: Forecast Financial Performance
A66: SFPos1 | B66: Budgeted Financial Position
A67: SFPos2 | B67: Forecast Financial Position
A68: Cash1 | B68: Budget Cash Flow
A69: Cash2 | B69: Forecast Cash Flow
A70: RandM | B70: Expenditure includes repairs & maintenance of R'000
A71: Depart1 | B71: Department 1 - | D71: DEP1
A72: Depart2 | B72: Department 2 - | D72: DEP2
A73: Depart3 | B73: Department 3 - | D73: DEP3
A74: Depart4 | B74: Department 4 - | D74: DEP4
A75: Depart5 | B75: Department 5 - | D75: DEP5
A76: Depart6 | B76: Department 6 - | D76: DEP6
A77: Depart7 | B77: Department 7 - | D77: DEP7
A78: Depart8 | B78: Department 8 - | D78: DEP8
A79: Depart9 | B79: Department 9 - | D79: DEP9
A80: Depart10 | B80: Department 10 - | D80: DEP10
A81: Depart11 | B81: Department 11 - | D81: DEP11
A82: Depart12 | B82: Department 12 - | D82: DEP12
A83: Depart13 | B83: Department 13 - | D83: DEP13
A84: Depart14 | B84: Department 14 - | D84: DEP14
A87: Base year of forecast column selection names
A88: Choose | B88: ACT
B89: APP
B90: ADJ
A92: Standard nomenclature
A93: Muni | B93: ='Lookup and lists'!B28 -> DC42 Sedibeng
A94: Municipal Entities | B94: 2 | C94: Type of report: | D94: 1
A95: =IF((MuniEntities=1)*(MuniType=2),"YES","NO") -> NO | B95: Does this municipality have entities (consolidated budget and entity budgets required)? YES/NO
A96: Entity 1 | B96: (Pty) Ltd Example 1 - Municipal entity - | D96: Ent1
A97: Entity 2 | B97: (Pty) Ltd Example 2 - Municipal entity - | D97: Ent2
A98: Entity 3 | B98: Municipal Entity Example 3 | D98: Ent3
A99: Budget approval tables | C99: Chart x-ref | D99: Sch/Tab/Ch | E99: Alternative for municipalities without entities | F99: Alternative for municipalities without entities
B100: =IF(Consolques="YES",E100,F100) -> Table A1 Budget Summary | D100: Table A1 | E100: =D100&"Consolidated Budget Summary" -> Table A1 Consolidated Budget Summary | F100: =D100&"Budget Summary" -> Table A1 Budget Summary
B101: Table A2 Budgeted Financial Performance (revenue and expenditure by functional classification) | C101: Charts 5, 6 | D101: Table A2 | E101: =D101&"Consolidated Budgeted Financial Performance (revenue and expenditure by functional classification)" -> Table A2 Consolidated Budgeted Financial Performance (revenue and expenditure by functional classification) | F101: =D101&"Budgeted Financial Performance (revenue and expenditure by functional classification)" -> Table A2 Budgeted Financial Performance (revenue and expenditure by functional classification)
B102: Table A3 Budgeted Financial Performance (revenue and expenditure by municipal vote) | D102: Table A3 | E102: =D102&"Consolidated Budgeted Financial Performance (revenue and expenditure by municipal vote)" -> Table A3 Consolidated Budgeted Financial Performance (revenue and expenditure by municipal vote) | F102: =D102&"Budgeted Financial Performance (revenue and expenditure by municipal vote)" -> Table A3 Budgeted Financial Performance (revenue and expenditure by municipal vote)
B103: Table A4 Budgeted Financial Performance (revenue and expenditure) | C103: Charts 1, 2, 3, 4 | D103: Table A4 | E103: =D103&"Consolidated Budgeted Financial Performance (revenue and expenditure)" -> Table A4 Consolidated Budgeted Financial Performance (revenue and expenditure) | F103: =D103&"Budgeted Financial Performance (revenue and expenditure)" -> Table A4 Budgeted Financial Performance (revenue and expenditure)
B104: Table A5 Budgeted Capital Expenditure by vote, functional classification and funding | C104: Charts 7, 8, 9, 10, 20 | D104: Table A5 | E104: =D104&"Consolidated Budgeted Capital Expenditure by vote, functional classification and funding" -> Table A5 Consolidated Budgeted Capital Expenditure by vote, functional classification and funding | F104: =D104&"Budgeted Capital Expenditure by vote, functional classification and funding" -> Table A5 Budgeted Capital Expenditure by vote, functional classification and funding
B105: Table A6 Budgeted Financial Position | D105: Table A6 | E105: =D105&"Consolidated Budgeted Financial Position" -> Table A6 Consolidated Budgeted Financial Position | F105: =D105&"Budgeted Financial Position" -> Table A6 Budgeted Financial Position
B106: Table A7 Budgeted Cash Flows | D106: Table A7 | E106: =D106&"Consolidated Budgeted Cash Flows" -> Table A7 Consolidated Budgeted Cash Flows | F106: =D106&"Budgeted Cash Flows" -> Table A7 Budgeted Cash Flows
B107: Table A8 Cash backed reserves/accumulated surplus reconciliation | D107: Table A8 | E107: =D107&"Consolidated Cash backed reserves/accumulated surplus reconciliation" -> Table A8 Consolidated Cash backed reserves/accumulated surplus reconciliation | F107: =D107&"Cash backed reserves/accumulated surplus reconciliation" -> Table A8 Cash backed reserves/accumulated surplus reconciliation
B108: Table A9 Asset Management | D108: Table A9 | E108: =D108&"Consolidated Asset Management" -> Table A9 Consolidated Asset Management | F108: =D108&"Asset Management" -> Table A9 Asset Management
B109: Table A10 Basic service delivery measurement | D109: Table A10 | E109: =D109&"Consolidated basic service delivery measurement" -> Table A10 Consolidated basic service delivery measurement | F109: =D109&"Basic service delivery measurement" -> Table A10 Basic service delivery measurement
A110: Supportinging Tables to the Budget Approval Tables | C110: =$C$99 -> Chart x-ref | D110: =$D$99 -> Sch/Tab/Ch
A111: Supporting Table SA1 | B111: =A111&" Supportinging detail to 'Budgeted Financial Performance'" -> Supporting Table SA1 Supportinging detail to 'Budgeted Financial Performance'
A112: Supporting Table SA2 | B112: =IF(Consolques="YES",E112,F112) -> Supporting Table SA2 Matrix Financial Performance Budget (revenue source/expenditure type and dept.) | E112: =A112&"Consolidated Matrix Financial Performance Budget (revenue source/expenditure type & dept.)" -> Supporting Table SA2 Consolidated Matrix Financial Performance Budget (revenue source/expenditure type & dept.) | F112: =A112&"Matrix Financial Performance Budget (revenue source/expenditure type and dept.)" -> Supporting Table SA2 Matrix Financial Performance Budget (revenue source/expenditure type and dept.)
A113: Supporting Table SA3 | B113: =A113&"Supportinging detail to 'Budgeted Financial Position'" -> Supporting Table SA3 Supportinging detail to 'Budgeted Financial Position'
A114: Supporting Table SA4 | B114: =A114&"Reconciliation of IDP strategic objectives and budget (revenue)" -> Supporting Table SA4 Reconciliation of IDP strategic objectives and budget (revenue) | C114: Chart 11
A115: Supporting Table SA5 | B115: =A115&"Reconciliation of IDP strategic objectives and budget (operating expenditure)" -> Supporting Table SA5 Reconciliation of IDP strategic objectives and budget (operating expenditure) | C115: Chart 12
A116: Supporting Table SA6 | B116: =A116&"Reconciliation of IDP strategic objectives and budget (capital expenditure)" -> Supporting Table SA6 Reconciliation of IDP strategic objectives and budget (capital expenditure) | C116: Chart 13
A117: Supporting Table SA7 | B117: =A117&" Measureable performance objectives" -> Supporting Table SA7 Measureable performance objectives
A118: Supporting Table SA8 | B118: =A118&" Performance indicators and benchmarks" -> Supporting Table SA8 Performance indicators and benchmarks | C118: Chts 15-19
A119: Supporting Table SA9 | B119: =A119&" Social, economic and demographic statistics and assumptions" -> Supporting Table SA9 Social, economic and demographic statistics and assumptions
A120: Supporting Table SA10 | B120: =A120&" Funding measurement" -> Supporting Table SA10 Funding measurement | C120: Chart 14
A121: Supporting Table SA11 | B121: =A121&" Property rates summary" -> Supporting Table SA11 Property rates summary
A122: Supporting Table SA12a | B122: =A122&" Property rates by category (current year)" -> Supporting Table SA12a Property rates by category (current year)
A123: Supporting Table SA12b | B123: =A123&" Property rates by category (budget year)" -> Supporting Table SA12b Property rates by category (budget year)
A124: Supporting Table SA13a | B124: =A124&" Service Tariffs by category" -> Supporting Table SA13a Service Tariffs by category
A125: Supporting Table SA13b | B125: =A125&" Service Tariffs by category - explanatory" -> Supporting Table SA13b Service Tariffs by category - explanatory
A126: Supporting Table SA14 | B126: =A126&" Household bills" -> Supporting Table SA14 Household bills
A127: Supporting Table SA15 | B127: =A127&" Investment particulars by type" -> Supporting Table SA15 Investment particulars by type
A128: Supporting Table SA16 | B128: =A128&" Investment particulars by maturity" -> Supporting Table SA16 Investment particulars by maturity
A129: Supporting Table SA17 | B129: =A129&" Borrowing" -> Supporting Table SA17 Borrowing
A130: Supporting Table SA18 | B130: =A130&" Transfers and grant receipts" -> Supporting Table SA18 Transfers and grant receipts
A131: Supporting Table SA19 | B131: =A131&" Expenditure on transfers and grant programme" -> Supporting Table SA19 Expenditure on transfers and grant programme
A132: Supporting Table SA20 | B132: =A132&" Reconciliation of transfers, grant receipts and unspent funds" -> Supporting Table SA20 Reconciliation of transfers, grant receipts and unspent funds
A133: Supporting Table SA21 | B133: =A133&" Transfers and grants made by the municipality" -> Supporting Table SA21 Transfers and grants made by the municipality
A134: Supporting Table SA22 | B134: =A134&" Summary councillor and staff benefits" -> Supporting Table SA22 Summary councillor and staff benefits
A135: Supporting Table SA23 | B135: =A135&" Salaries, allowances & benefits (political office bearers/councillors/senior managers)" -> Supporting Table SA23 Salaries, allowances & benefits (political office bearers/councillors/senior managers)
A136: Supporting Table SA24 | B136: =A136&" Summary of personnel numbers" -> Supporting Table SA24 Summary of personnel numbers
A137: Supporting Table SA25 | B137: =IF(Consolques="YES",E137,F137) -> Supporting Table SA25 Budgeted monthly revenue and expenditure | E137: =A137&" Consolidated budgeted monthly revenue and expenditure" -> Supporting Table SA25 Consolidated budgeted monthly revenue and expenditure | F137: =A137&" Budgeted monthly revenue and expenditure" -> Supporting Table SA25 Budgeted monthly revenue and expenditure
A138: Supporting Table SA26 | B138: Supporting Table SA26 Budgeted monthly revenue and expenditure (municipal vote) | E138: =A138&" Consolidated budgeted monthly revenue and expenditure (municipal vote)" -> Supporting Table SA26 Consolidated budgeted monthly revenue and expenditure (municipal vote) | F138: =A138&" Budgeted monthly revenue and expenditure (municipal vote)" -> Supporting Table SA26 Budgeted monthly revenue and expenditure (municipal vote)
A139: Supporting Table SA27 | B139: Supporting Table SA27 Budgeted monthly revenue and expenditure (functional classification) | E139: =A139&" Consolidated budgeted monthly revenue and expenditure (functional classification)" -> Supporting Table SA27 Consolidated budgeted monthly revenue and expenditure (functional classification) | F139: =A139&" Budgeted monthly revenue and expenditure (functional classification)" -> Supporting Table SA27 Budgeted monthly revenue and expenditure (functional classification)
A140: Supporting Table SA28 | B140: Supporting Table SA28 Budgeted monthly capital expenditure (municipal vote) | E140: =A140&" Consolidated budgeted monthly capital expenditure (municipal vote)" -> Supporting Table SA28 Consolidated budgeted monthly capital expenditure (municipal vote) | F140: =A140&" Budgeted monthly capital expenditure (municipal vote)" -> Supporting Table SA28 Budgeted monthly capital expenditure (municipal vote)
A141: Supporting Table SA29 | B141: Supporting Table SA29 Budgeted monthly capital expenditure (functional classification) | E141: =A141&" Consolidated budgeted monthly capital expenditure (functional classification)" -> Supporting Table SA29 Consolidated budgeted monthly capital expenditure (functional classification) | F141: =A141&" Budgeted monthly capital expenditure (functional classification)" -> Supporting Table SA29 Budgeted monthly capital expenditure (functional classification)
A142: Supporting Table SA30 | B142: Supporting Table SA30 Budgeted monthly cash flow | E142: =A142&" Consolidated budgeted monthly cash flow" -> Supporting Table SA30 Consolidated budgeted monthly cash flow | F142: =A142&" Budgeted monthly cash flow" -> Supporting Table SA30 Budgeted monthly cash flow
A143: Supporting Table SA31 | B143: NOT REQUIRED - municipality does not have entities | E143: =A143&" Aggregated entity budget" -> Supporting Table SA31 Aggregated entity budget | F143: NOT REQUIRED - municipality does not have entities
A144: Supporting Table SA32 | B144: =A144&" List of external mechanisms" -> Supporting Table SA32 List of external mechanisms
A145: Supporting Table SA33 | B145: =A145&" Contracts having future budgetary implications" -> Supporting Table SA33 Contracts having future budgetary implications
A146: Supporting Table SA34a | B146: =IF(Consolques="YES",E146,F146) -> Supporting Table SA34a Capital expenditure on new assets by asset class | E146: =A146&" Consolidated capital expenditure on new assets by asset class" -> Supporting Table SA34a Consolidated capital expenditure on new assets by asset class | F146: =A146&" Capital expenditure on new assets by asset class" -> Supporting Table SA34a Capital expenditure on new assets by asset class
A147: Supporting Table SA34b | B147: Supporting Table SA34b Capital expenditure on the renewal of existing assets by asset class | E147: =A147&" Consolidated capital expenditure on the renewal of existing assets by asset class" -> Supporting Table SA34b Consolidated capital expenditure on the renewal of existing assets by asset class | F147: =A147&" Capital expenditure on the renewal of existing assets by asset class" -> Supporting Table SA34b Capital expenditure on the renewal of existing assets by asset class
A148: Supporting Table SA34c | B148: Supporting Table SA34c Repairs and maintenance expenditure by asset class | E148: =A148&" Consolidated repairs and maintenance by asset class" -> Supporting Table SA34c Consolidated repairs and maintenance by asset class | F148: =A148&" Repairs and maintenance expenditure by asset class" -> Supporting Table SA34c Repairs and maintenance expenditure by asset class
A149: Supporting Table SA34d | B149: =IF(Consolques="YES",E149,F149) -> Supporting Table SA34d Depreciation by asset class | E149: =A149&" Consolidated Depreciation by asset class" -> Supporting Table SA34d Consolidated Depreciation by asset class | F149: =A149&" Depreciation by asset class" -> Supporting Table SA34d Depreciation by asset class
A150: Supporting Table SA34e | B150: =IF(Consolques="YES",E150,F150) -> Supporting Table SA34e Capital expenditure on the upgrading of existing assets by asset class | E150: =A150&" Consolidated capital expenditure on the upgrading of existing assets by asset class" -> Supporting Table SA34e Consolidated capital expenditure on the upgrading of existing assets by asset class | F150: =A150&" Capital expenditure on the upgrading of existing assets by asset class" -> Supporting Table SA34e Capital expenditure on the upgrading of existing assets by asset class
A151: Supporting Table SA35 | B151: Supporting Table SA35 Future financial implications of the capital budget | E151: =A151&" Consolidated future financial implications of the capital budget" -> Supporting Table SA35 Consolidated future financial implications of the capital budget | F151: =A151& " Future financial implications of the capital budget" -> Supporting Table SA35 Future financial implications of the capital budget
A152: Supporting Table SA36 | B152: Supporting Table SA36 Detailed capital budget | E152: =A152&" Consolidated detailed capital budget" -> Supporting Table SA36 Consolidated detailed capital budget | F152: =A152& " Detailed capital budget" -> Supporting Table SA36 Detailed capital budget
A153: Supporting Table SA37 | B153: Supporting Table SA37 Projects delayed from previous financial year/s | E153: =A153&" Consolidated projects delayed from previous financial year/s" -> Supporting Table SA37 Consolidated projects delayed from previous financial year/s | F153: =A153& " Projects delayed from previous financial year/s" -> Supporting Table SA37 Projects delayed from previous financial year/s
A154: Supporting Table SA38 | B154: =IF(Consolques="YES",E154,F154) -> Supporting Table SA38 Detailed operational projects | E154: =A154&" Consolidated detailed operational projects" -> Supporting Table SA38 Consolidated detailed operational projects | F154: =A154& " Detailed operational projects" -> Supporting Table SA38 Detailed operational projects
A156: Budget Charts | B156: Charts | C156: Cross reference
A157: Chart A1 | B157: =A157&"Revenue by Municipal Vote" -> Chart A1 Revenue by Municipal Vote
A158: Chart A2 | B158: =A158&"Expenditure by Municipal Vote" -> Chart A2 Expenditure by Municipal Vote
A159: Chart A3 | B159: =A159&"Revenue by Standard Classification" -> Chart A3 Revenue by Standard Classification | C159: A2
A160: Chart A4 | B160: =A160&"Expenditure by Standard Classification" -> Chart A4 Expenditure by Standard Classification | C160: A2
A161: Chart A5 | B161: =A161&"Revenue by Major Source (refer 'Minor' source for 'Other Revenue' allocation" -> Chart A5 Revenue by Major Source (refer 'Minor' source for 'Other Revenue' allocation | C161: A3
A162: Chart A6 | B162: =A162&"Revenue by Minor Source (Other)" -> Chart A6 Revenue by Minor Source (Other) | C162: A3
A163: Chart A7 | B163: =A163&"Expenditure by Major Type" -> Chart A7 Expenditure by Major Type | C163: A3
A164: Chart A8 | B164: =A164&"Expenditure by Minor Type (Other)" -> Chart A8 Expenditure by Minor Type (Other) | C164: A3
A165: Chart A9 | B165: =A165&"Capital Expenditure by Municipal Vote/Appropriation (Major)" -> Chart A9 Capital Expenditure by Municipal Vote/Appropriation (Major) | C165: A5
A166: Chart A10 | B166: =A166&"Capital Expenditure by Municipal Vote/Appropriation (Minor)" -> Chart A10 Capital Expenditure by Municipal Vote/Appropriation (Minor) | C166: A5
A167: Chart A11 | B167: =A166&"Capital Expenditure by Standard Classification" -> Chart A10 Capital Expenditure by Standard Classification | C167: A5
A168: Chart A12 | B168: =A168&"Capital expenditure performance trend" -> Chart A12 Capital expenditure performance trend | C168: A5
A169: Chart A13 | B169: =A169&"Capital funding by Source" -> Chart A13 Capital funding by Source | C169: A5
A170: Chart A14 | B170: =A170&"Cash flow trend" -> Chart A14 Cash flow trend | C170: A7
A171: Chart A15 | B171: =A171&"IDP Strategic Objective - Revenue" -> Chart A15 IDP Strategic Objective - Revenue | C171: Table A4
A172: Chart A16 | B172: =A172&"IDP Strategic Objective - Expenditure" -> Chart A16 IDP Strategic Objective - Expenditure | C172: Table A5
A173: Chart A17 | B173: =A173&"IDP Strategic Objective - Capital Expenditure" -> Chart A17 IDP Strategic Objective - Capital Expenditure | C173: Table A6
A174: Chart A18 | B174: =A174&"Debt (borrowing to Total Revenue)" -> Chart A18 Debt (borrowing to Total Revenue) | C174: Table A8
A175: Chart A19 | B175: =A175&"Debtors' trend analysis" -> Chart A19 Debtors' trend analysis | C175: Table A8
A176: Chart A20 | B176: =A176&"Distribution losses" -> Chart A20 Distribution losses | C176: Table A8
A177: Chart A21 | B177: =A177&"Borrowed funding of capital expenditure" -> Chart A21 Borrowed funding of capital expenditure | C177: Table A8
A178: Chart A22 | B178: =A178&"Expenditure analysis (% of Revenue)" -> Chart A22 Expenditure analysis (% of Revenue) | C178: Table A8
A179: Chart A23 | B179: =A179&"Increases in service charges" -> Chart A23 Increases in service charges | C179: Table A10

Sheet Lookup and lists (hidden)
A1: Description | B1: 2007 | C1: 2008 | D1: 2009 | E1: 2010 | F1: 2011 | G1: 2012 | H1: 2013 | I1: 2014 | J1: 2015 | K1: 2016 | L1: 2017 | M1: 2018 | N1: 2019 | O1: 2020 | Q1: Lists | Y1: Grants: | Z1: National - opex | AA1: Provincial - opex | AB1: National - capex | AC1: Provincial - capex
A2: ='Template names'!C2 -> Prior year -1 | B2: 2005/06 | C2: 2006/07 | D2: 2007/08 | E2: =E1-2&"/"&RIGHT(E1,2)-1 -> 2008/9 | F2: 2009/10 | G2: 2010/11 | H2: 2011/12 | I2: 2012/13 | J2: 2013/14 | K2: 2014/15 | L2: 2015/16 | M2: 2016/17 | N2: 2017/18 | O2: 2018/19 | Q2: Yes | R2: <1 | S2: <4 | T2: Market | U2: Land & impr. | V2: Yes | W2: Uniform | X2: Yrs | Z2: Local Government Equitable Share | AA2: Health subsidy | AB2: Municipal Infrastructure Grant (MIG) | AC2: Agriculture
A3: ='Template names'!C3 -> Prior year -2 | B3: 2004/05 | C3: 2005/06 | D3: 2006/07 | E3: =E1-3&"/"&RIGHT(E1,2)-2 -> 2007/8 | F3: 2008/9 | G3: 2009/10 | H3: 2010/11 | I3: 2011/12 | J3: 2012/13 | K3: 2013/14 | L3: 2014/15 | M3: 2015/16 | N3: 2016/17 | O3: 2017/18 | Q3: No | R3: 1 | S3: 4 | T3: Dep.Replace | U3: Land only | V3: No | W3: Variable | X3: Mths | Z3: RSC Levy Replacement | AA3: Ambulance subsidy | AB3: Public Transport and Systems | AC3: Education
A4: ='Template names'!C4 -> Prior year -3 | B4: 2003/04 | C4: 2004/05 | D4: 2005/06 | E4: =E1-4&"/"&RIGHT(E1,2)-3 -> 2006/7 | F4: 2007/8 | G4: 2008/9 | H4: 2009/10 | I4: 2010/11 | J4: 2011/12 | K4: 2012/13 | L4: 2013/14 | M4: 2014/15 | N4: 2015/16 | O4: 2016/17 | R4: 2 | S4: 5 | T4: Other | U4: Other | Z4: Finance Management | AA4: Housing | AB4: Rural Transport Services and Infrastructure | AC4: Health
A5: ='Template names'!C5 -> Year in which budget is being prepared | B5: Current Year 2006/07 | C5: Current Year 2007/08 | D5: Current Year 2008/09 | E5: ="Current Year "& E1-1&"/"&RIGHT(E1,2) -> Current Year 2009/10 | F5: Current Year 2010/11 | G5: Current Year 2011/12 | H5: Current Year 2012/13 | I5: Current Year 2013/14 | J5: Current Year 2014/15 | K5: Current Year 2015/16 | L5: Current Year 2016/17 | M5: Current Year 2017/18 | N5: Current Year 2018/19 | O5: Current Year 2019/20 | R5: 3 | S5: 6 | Z5: Municipal Systems Improvement | AA5: Sport and Recreation | AB5: Regional Bulk Infrastructure | AC5: Housing and Local Government
A6: ='Template names'!C6 -> Year in which budget is being prepared | B6: 2006/07 | C6: 2007/08 | D6: 2008/09 | E6: =E1-1&"/"&RIGHT(E1,2) -> 2009/10 | F6: 2010/11 | G6: 2011/12 | H6: 2012/13 | I6: 2013/14 | J6: 2014/15 | K6: 2015/16 | L6: 2016/17 | M6: 2017/18 | N6: 2018/19 | O6: 2019/20 | R6: 4 | S6: 6-10 | Z6: Water Services Operating Subsidy | AB6: Rural Households Infrastructure | AC6: Other Departments
A7: ='Template names'!C7 -> MTREF name | B7: 2007/08 Medium Term Revenue & Expenditure Framework | C7: 2008/09 Medium Term Revenue & Expenditure Framework | D7: 2009/10 Medium Term Revenue & Expenditure Framework | E7: =E1&"/"&RIGHT(E1,2)+1&" Medium Term Revenue & Expenditure Framework" -> 2010/11 Medium Term Revenue & Expenditure Framework | F7: 2011/12 Medium Term Revenue & Expenditure Framework | G7: 2012/13 Medium Term Revenue & Expenditure Framework | H7: 2013/14 Medium Term Revenue & Expenditure Framework | I7: 2014/15 Medium Term Revenue & Expenditure Framework | J7: 2015/16 Medium Term Revenue & Expenditure Framework | K7: 2016/17 Medium Term Revenue & Expenditure Framework | L7: 2017/18 Medium Term Revenue & Expenditure Framework | M7: 2018/19 Medium Term Revenue & Expenditure Framework | N7: 2019/20 Medium Term Revenue & Expenditure Framework | O7: 2020/21 Medium Term Revenue & Expenditure Framework | R7: 5 | S7: >10 | Z7: Energy Efficiency and Demand Management | AB7: Neighbourhood Development Partnership | AC7: Public Works, Roads, Transport
A8: ='Template names'!C15 -> 1st year of MTREF | B8: Budget Year 2007/08 | C8: Budget Year 2008/09 | D8: Budget Year 2009/10 | E8: ="Budget Year "&E1&"/"&RIGHT(E1,2)+1 -> Budget Year 2010/11 | F8: Budget Year 2011/12 | G8: Budget Year 2012/13 | H8: Budget Year 2013/14 | I8: Budget Year 2014/15 | J8: Budget Year 2015/16 | K8: Budget Year 2016/17 | L8: Budget Year 2017/18 | M8: Budget Year 2018/19 | N8: Budget Year 2019/20 | O8: Budget Year 2020/21 | R8: >5 | Z8: Integrated National Electrification Programme | AB8: 2010 FIFA World Cup Stadiums Development | AC8: Sport and Recreation
A9: ='Template names'!C16 -> 2nd year of MTREF | B9: Budget Year +1 2008/09 | C9: Budget Year +1 2009/10 | D9: Budget Year +1 2010/11 | E9: ="Budget Year +1 "&E1+1&"/"&RIGHT(E1,2)+2 -> Budget Year +1 2011/12 | F9: Budget Year +1 2012/13 | G9: Budget Year +1 2013/14 | H9: Budget Year +1 2014/15 | I9: Budget Year +1 2015/16 | J9: Budget Year +1 2016/17 | K9: Budget Year +1 2017/18 | L9: Budget Year +1 2018/19 | M9: Budget Year +1 2019/20 | N9: Budget Year +1 2020/21 | O9: Budget Year +1 2021/22 | Z9: Municipal Drought Relief
A10: ='Template names'!C17 -> 3rd year of MTREF | B10: Budget Year +2 2009/10 | C10: Budget Year +2 2010/11 | D10: Budget Year +2 2011/12 | E10: ="Budget Year +2 "&E1+2&"/"&RIGHT(E1,2)+3 -> Budget Year +2 2012/13 | F10: Budget Year +2 2013/14 | G10: Budget Year +2 2014/15 | H10: Budget Year +2 2015/16 | I10: Budget Year +2 2016/17 | J10: Budget Year +2 2017/18 | K10: Budget Year +2 2018/19 | L10: Budget Year +2 2019/20 | M10: Budget Year +2 2020/21 | N10: Budget Year +2 2021/22 | O10: Budget Year +2 2022/23 | Z10: 2010 FIFA World Cup Operating
A11: ='Template names'!C18 -> 1st yr of long term forecast | B11: Forecast 2010/11 | C11: Forecast 2011/12 | D11: Forecast 2012/13 | E11: ="Forecast "&E1+3&"/"&RIGHT(E1,2)+4 -> Forecast 2013/14 | F11: Forecast 2014/15 | G11: Forecast 2015/16 | H11: Forecast 2016/17 | I11: Forecast 2017/18 | J11: Forecast 2018/19 | K11: Forecast 2019/20 | L11: Forecast 2020/21 | M11: Forecast 2021/22 | N11: Forecast 2022/23 | O11: Forecast 2023/24 | Z11: Electricity Demand Side Management
A12: ='Template names'!C19 -> Next yr of long term forecast | B12: Forecast 2011/12 | C12: Forecast 2012/13 | D12: Forecast 2013/14 | E12: ="Forecast "&E1+4&"/"&RIGHT(E1,2)+5 -> Forecast 2014/15 | F12: Forecast 2015/16 | G12: Forecast 2016/17 | H12: Forecast 2017/18 | I12: Forecast 2018/19 | J12: Forecast 2019/20 | K12: Forecast 2020/21 | L12: Forecast 2021/22 | M12: Forecast 2022/23 | N12: Forecast 2023/24 | O12: Forecast 2024/25 | Z12: EPWP Incentive
A13: ='Template names'!C20 -> Next yr of long term forecast | B13: Forecast 2012/13 | C13: Forecast 2013/14 | D13: Forecast 2014/15 | E13: ="Forecast "&E1+5&"/"&RIGHT(E1,2)+6 -> Forecast 2015/16 | F13: Forecast 2016/17 | G13: Forecast 2017/18 | H13: Forecast 2018/19 | I13: Forecast 2019/20 | J13: Forecast 2020/21 | K13: Forecast 2021/22 | L13: Forecast 2022/23 | M13: Forecast 2023/24 | N13: Forecast 2024/25 | O13: Forecast 2025/26
A14: ='Template names'!C21 -> Next yr of long term forecast | B14: Forecast 2013/14 | C14: Forecast 2014/15 | D14: Forecast 2015/16 | E14: ="Forecast "&E1+6&"/"&RIGHT(E1,2)+7 -> Forecast 2016/17 | F14: Forecast 2017/18 | G14: Forecast 2018/19 | H14: Forecast 2019/20 | I14: Forecast 2020/21 | J14: Forecast 2021/22 | K14: Forecast 2022/23 | L14: Forecast 2023/24 | M14: Forecast 2024/25 | N14: Forecast 2025/26 | O14: Forecast 2026/27 | Z14: Asset Class | AA14: Asset sub-class old | AB14: Asset sub-class | AC14: IUDF | AD14: MTSF
A15: ='Template names'!C22 -> Next yr of long term forecast | B15: Forecast 2014/15 | C15: Forecast 2015/16 | D15: Forecast 2016/17 | E15: ="Forecast "&E1+7&"/"&RIGHT(E1,2)+8 -> Forecast 2017/18 | F15: Forecast 2018/19 | G15: Forecast 2019/20 | H15: Forecast 2020/21 | I15: Forecast 2021/22 | J15: Forecast 2022/23 | K15: Forecast 2023/24 | L15: Forecast 2024/25 | M15: Forecast 2025/26 | N15: Forecast 2026/27 | O15: Forecast 2027/28
A16: ='Template names'!C23 -> Next yr of long term forecast | B16: Forecast 2015/16 | C16: Forecast 2016/17 | D16: Forecast 2017/18 | E16: ="Forecast "&E1+8&"/"&RIGHT(E1,2)+9 -> Forecast 2018/19 | F16: Forecast 2019/20 | G16: Forecast 2020/21 | H16: Forecast 2021/22 | I16: Forecast 2022/23 | J16: Forecast 2023/24 | K16: Forecast 2024/25 | L16: Forecast 2025/26 | M16: Forecast 2026/27 | N16: Forecast 2027/28 | O16: Forecast 2028/29 | Z16: Roads Infrastructure | AA16: Roads, Pavements & Bridges | AB16: Roads | AC16: Spatial integration | AD16: Quality basic education
A17: ='Template names'!C24 -> Next yr of long term forecast | B17: Forecast 2016/17 | C17: Forecast 2017/18 | D17: Forecast 2018/19 | E17: ="Forecast "&E1+9&"/"&RIGHT(E1,2)+10 -> Forecast 2019/20 | F17: Forecast 2020/21 | G17: Forecast 2021/22 | H17: Forecast 2022/23 | I17: Forecast 2023/24 | J17: Forecast 2024/25 | K17: Forecast 2025/26 | L17: Forecast 2026/27 | M17: Forecast 2027/28 | N17: Forecast 2028/29 | O17: Forecast 2029/30 | Z17: Storm water Infrastructure | AA17: Storm water | AB17: Road Structures | AC17: Inclusion and access | AD17: A long and healthy life for all South Africans
A18: ='Template names'!C25 -> Next yr of long term forecast | B18: Forecast 2017/18 | C18: Forecast 2018/19 | D18: Forecast 2019/20 | E18: ="Forecast "&E1+10&"/"&RIGHT(E1,2)+11 -> Forecast 2020/21 | F18: Forecast 2021/22 | G18: Forecast 2022/23 | H18: Forecast 2023/24 | I18: Forecast 2024/25 | J18: Forecast 2025/26 | K18: Forecast 2026/27 | L18: Forecast 2027/28 | M18: Forecast 2028/29 | N18: Forecast 2029/30 | O18: Forecast 2030/31 | Z18: Electrical Infrastructure | AA18: Generation | AB18: Road Furniture | AC18: Growth | AD18: All people in South Africa are and feel safe
A19: ='Template names'!C26 -> Next yr of long term forecast | B19: Forecast 2018/19 | C19: Forecast 2019/20 | D19: Forecast 2020/21 | E19: ="Forecast "&E1+11&"/"&RIGHT(E1,2)+12 -> Forecast 2021/22 | F19: Forecast 2022/23 | G19: Forecast 2023/24 | H19: Forecast 2024/25 | I19: Forecast 2025/26 | J19: Forecast 2026/27 | K19: Forecast 2027/28 | L19: Forecast 2028/29 | M19: Forecast 2029/30 | N19: Forecast 2030/31 | O19: Forecast 2031/32 | Z19: Water Supply Infrastructure | AA19: Transmission & Reticulation | AB19: Capital Spares | AC19: Governance | AD19: Decent employment through inclusive growth
A20: ='Template names'!C27 -> Next yr of long term forecast | B20: Forecast 2019/20 | C20: Forecast 2020/21 | D20: Forecast 2021/22 | E20: ="Forecast "&E1+12&"/"&RIGHT(E1,2)+13 -> Forecast 2022/23 | F20: Forecast 2023/24 | G20: Forecast 2024/25 | H20: Forecast 2025/26 | I20: Forecast 2026/27 | J20: Forecast 2027/28 | K20: Forecast 2028/29 | L20: Forecast 2029/30 | M20: Forecast 2030/31 | N20: Forecast 2031/32 | O20: Forecast 2032/33 | Z20: Sanitation Infrastructure | AA20: Street Lighting | AB20: Drainage Collection | AD20: A skilled and capable workforce to support an inclusive growth path
A21: ='Template names'!C28 -> Next yr of long term forecast | B21: Forecast 2020/21 | C21: Forecast 2021/22 | D21: Forecast 2022/23 | E21: ="Forecast "&E1+13&"/"&RIGHT(E1,2)+14 -> Forecast 2023/24 | F21: Forecast 2024/25 | G21: Forecast 2025/26 | H21: Forecast 2026/27 | I21: Forecast 2027/28 | J21: Forecast 2028/29 | K21: Forecast 2029/30 | L21: Forecast 2030/31 | M21: Forecast 2031/32 | N21: Forecast 2032/33 | O21: Forecast 2033/34 | Z21: Solid Waste Infrastructure | AA21: Dams & Reservoirs | AB21: Storm water Conveyance | AD21: An efficient, competitive and responsive economic infrastructure network
A22: ='Template names'!C29 -> Next yr of long term forecast | B22: Forecast 2021/22 | C22: Forecast 2022/23 | D22: Forecast 2023/24 | E22: ="Forecast "&E1+14&"/"&RIGHT(E1,2)+15 -> Forecast 2024/25 | F22: Forecast 2025/26 | G22: Forecast 2026/27 | H22: Forecast 2027/28 | I22: Forecast 2028/29 | J22: Forecast 2029/30 | K22: Forecast 2030/31 | L22: Forecast 2031/32 | M22: Forecast 2032/33 | N22: Forecast 2033/34 | O22: Forecast 2034/35 | Z22: Rail Infrastructure | AA22: Water purification | AB22: Attenuation | AD22: Vibrant, equitable, sustainable rural communities contributing towards food security for all
A23: Adjustments Budget | B23: Annual target 2007/08 | C23: Annual target 2008/09 | D23: Annual target 2009/10 | E23: ="Annual target " & E1&"/"&RIGHT(E1,2)+1 -> Annual target 2010/11 | F23: Annual target 2011/12 | G23: Annual target 2012/13 | H23: Annual target 2013/14 | I23: Annual target 2014/15 | J23: Annual target 2015/16 | K23: Annual target 2016/17 | L23: Annual target 2017/18 | M23: Annual target 2018/19 | N23: Annual target 2019/20 | O23: Annual target 2020/21 | Z23: Coastal Infrastructure | AA23: Reticulation | AB23: Power Plants | AD23: Sustainable human settlements and improved quality of household life
A24: =A23 -> Adjustments Budget | B24: Revised target 2007/08 | C24: Revised target 2008/09 | D24: Revised target 2009/10 | E24: ="Revised target "& E1&"/"&RIGHT(E1,2)+1 -> Revised target 2010/11 | F24: Revised target 2011/12 | G24: Revised target 2012/13 | H24: Revised target 2013/14 | I24: Revised target 2014/15 | J24: Revised target 2015/16 | K24: Revised target 2016/17 | L24: Revised target 2017/18 | M24: Revised target 2018/19 | N24: Revised target 2019/20 | O24: Revised target 2020/21 | Z24: Information and Communication Infrastructure | AA24: Sewerage purification | AB24: HV Substations | AD24: Responsive, accountable, effective and efficient local government
A25: NOTE: This sheet should not be directly amended - select headings from sheet 'S' | Z25: Community Facilities | AA25: Waste Management | AB25: HV Switching Station | AD25: Protect and enhance our environmental assets and natural resources
Z26: Sport and Recreation Facilities | AA26: Transportation | AB26: HV Transmission Conductors | AD26: Create a better South Africa and contribute to a better Africa and a better world
A27: Name link | B27: 70 | Z27: Heritage assets | AA27: Gas | AB27: MV Substations | AD27: An efficient, effective and development-oriented public service
A28: Name of Muni | B28: =INDEX(B29:B307,B27,1) -> DC42 Sedibeng | Z28: Revenue Generating | AA28: Parks & gardens | AB28: MV Switching Stations | AD28: A comprehensive, responsive and sustainable social protection system
B29: Choose name from list | C29: Set name on 'Instructions' sheet | Z29: Non-revenue Generating | AA29: Sportsfields & stadia | AB29: MV Networks | AD29: A diverse, socially cohesive society with a common national identity
B30: BUF Buffalo City | C30: EC EASTERN CAPE | Z30: Operational Buildings | AA30: Swimming pools | AB30: LV Networks
B31: NMA Nelson Mandela Bay | C31: EC EASTERN CAPE | Z31: Housing | AA31: Community halls | AB31: Capital Spares
B32: EC101 Dr Beyers Naude | C32: EC EASTERN CAPE | Z32: Biological or Cultivated Assets | AA32: Libraries | AB32: Dams and Weirs
B33: EC102 Blue Crane Route | C33: EC EASTERN CAPE | Z33: Servitudes | AA33: Recreational facilities | AB33: Boreholes
B34: EC104 Makana | C34: EC EASTERN CAPE | Z34: Licences and Rights | AA34: Fire, safety & emergency | AB34: Reservoirs
B35: EC105 Ndlambe | C35: EC EASTERN CAPE | Z35: Computer Equipment | AA35: Security and policing | AB35: Pump Stations
B36: EC106 Sundays River Valley | C36: EC EASTERN CAPE | Z36: Furniture and Office Equipment | AA36: Buses | AB36: Water Treatment Works
B37: EC108 Kouga | C37: EC EASTERN CAPE | Z37: Machinery and Equipment | AA37: Clinics | AB37: Bulk Mains
B38: EC109 Kou-Kamma | C38: EC EASTERN CAPE | Z38: Transport Assets | AA38: Museums & Art Galleries | AB38: Distribution
B39: DC10 Sarah Baartman | C39: EC EASTERN CAPE | Z39: Land | AA39: Cemeteries | AB39: Distribution Points
B40: EC121 Mbhashe | C40: EC EASTERN CAPE | Z40: Zoo's, Marine and Non-biological Animals | AA40: Social rental housing | AB40: PRV Stations
B41: EC122 Mnquma | C41: EC EASTERN CAPE | AA41: Buildings | AB41: Capital Spares
B42: EC123 Great Kei | C42: EC EASTERN CAPE | AA42: Housing development | AB42: Pump Station
B43: EC124 Amahlathi | C43: EC EASTERN CAPE | AA43: General vehicles | AB43: Reticulation
B44: EC126 Ngqushwa | C44: EC EASTERN CAPE | AA44: Specialised vehicles - Refuse | AB44: Waste Water Treatment Works
B45: EC129 Raymond Mhlaba | C45: EC EASTERN CAPE | AA45: Specialised vehicles - Fire | AB45: Outfall Sewers
B46: DC12 Amathole | C46: EC EASTERN CAPE | AA46: Specialised vehicles - Conservancy | AB46: Toilet Facilities
B47: EC131 Inxuba Yethemba | C47: EC EASTERN CAPE | AA47: Specialised vehicles - Ambulances | AB47: Capital Spares
B48: EC135 Intsika Yethu | C48: EC EASTERN CAPE | AA48: Plant & equipment | AB48: Landfill Sites
B49: EC136 Emalahleni (Ec) | C49: EC EASTERN CAPE | AA49: Computers - hardware/equipment | AB49: Waste Transfer Stations
B50: EC137 Engcobo | C50: EC EASTERN CAPE | AA50: Furniture and other office equipment | AB50: Waste Processing Facilities
B51: EC138 Sakhisizwe | C51: EC EASTERN CAPE | AA51: Abattoirs | AB51: Waste Drop-off Points
B52: EC139 Enoch Mgijima | C52: EC EASTERN CAPE | AA52: Markets | AB52: Waste Separation Facilities
B53: DC13 Chris Hani | C53: EC EASTERN CAPE | AA53: Civic Land and Buildings | AB53: Electricity Generation Facilities
B54: EC141 Elundini | C54: EC EASTERN CAPE | AA54: Other Buildings | AB54: Capital Spares
B55: EC142 Senqu | C55: EC EASTERN CAPE | AA55: Other Land | AB55: Rail Lines
B56: EC145 Walter Sisulu | C56: EC EASTERN CAPE | AA56: Surplus Assets - (Investment or Inventory) | AB56: Rail Structures
B57: DC14 Joe Gqabi | C57: EC EASTERN CAPE | AA57: Computers - software & programming | AB57: Rail Furniture
B58: EC153 Ngquza Hills | C58: EC EASTERN CAPE | AA58: Other | AB58: Drainage Collection
B59: EC154 Port St Johns | C59: EC EASTERN CAPE | AB59: Storm water Conveyance
B60: EC155 Nyandeni | C60: EC EASTERN CAPE | Z60: SA16 - Investments | AB60: Attenuation
B61: EC156 Mhlontlo | C61: EC EASTERN CAPE | Z61: Security | AA61: Interest rate | AB61: MV Substations
B62: EC157 King Sabata Dalindyebo | C62: EC EASTERN CAPE | Z62: Yes | AA62: Fixed | AB62: LV Networks
B63: DC15 O .R. Tambo | C63: EC EASTERN CAPE | Z63: No | AA63: Variable | AB63: Capital Spares
B64: EC441 Matatiele | C64: EC EASTERN CAPE | AB64: Sand Pumps
B65: EC442 Umzimvubu | C65: EC EASTERN CAPE | AB65: Piers
B66: EC443 Mbizana | C66: EC EASTERN CAPE | Z66: SA36, SA37 - Capital projects | AB66: Revetments
B67: EC444 Ntabankulu | C67: EC EASTERN CAPE | Z67: Yes | AB67: Promenades
B68: DC44 Alfred Nzo | C68: EC EASTERN CAPE | Z68: No | AB68: Capital Spares
B69: MAN Mangaung | C69: FS FREE STATE | AB69: Data Centres
B70: FS161 Letsemeng | C70: FS FREE STATE | AB70: Core Layers
B71: FS162 Kopanong | C71: FS FREE STATE | AB71: Distribution Layers
B72: FS163 Mohokare | C72: FS FREE STATE | AB72: Capital Spares
B73: DC16 Xhariep | C73: FS FREE STATE | AB73: Halls
B74: FS181 Masilonyana | C74: FS FREE STATE | AB74: Centres
B75: FS182 Tokologo | C75: FS FREE STATE | AB75: Crèches
B76: FS183 Tswelopele | C76: FS FREE STATE | AB76: Clinics/Care Centres
B77: FS184 Matjhabeng | C77: FS FREE STATE | AB77: Fire/Ambulance Stations
B78: FS185 Nala | C78: FS FREE STATE | AB78: Testing Stations
B79: DC18 Lejweleputswa | C79: FS FREE STATE | AB79: Museums
B80: FS191 Setsoto | C80: FS FREE STATE | AB80: Galleries
B81: FS192 Dihlabeng | C81: FS FREE STATE | AB81: Theatres
B82: FS193 Nketoana | C82: FS FREE STATE | AB82: Libraries
B83: FS194 Maluti-a-Phofung | C83: FS FREE STATE | AB83: Cemeteries/Crematoria
B84: FS195 Phumelela | C84: FS FREE STATE | AB84: Police
B85: FS196 Mantsopa | C85: FS FREE STATE | AB85: Purls
B86: DC19 Thabo Mofutsanyana | C86: FS FREE STATE | AB86: Public Open Space
B87: FS201 Moqhaka | C87: FS FREE STATE | AB87: Nature Reserves
B88: FS203 Ngwathe | C88: FS FREE STATE | AB88: Public Ablution Facilities
B89: FS204 Metsimaholo | C89: FS FREE STATE | AB89: Markets
B90: FS205 Mafube | C90: FS FREE STATE | AB90: Stalls
B91: DC20 Fezile Dabi | C91: FS FREE STATE | AB91: Abattoirs
B92: EKU City of Ekurhuleni | C92: GT GAUTENG | AB92: Airports
B93: JHB City Of Johannesburg | C93: GT GAUTENG | AB93: Taxi Ranks/Bus Terminals
B94: TSH City Of Tshwane | C94: GT GAUTENG | AB94: Capital Spares
B95: GT421 Emfuleni | C95: GT GAUTENG | AB95: Indoor Facilities
B96: GT422 Midvaal | C96: GT GAUTENG | AB96: Outdoor Facilities
B97: GT423 Lesedi | C97: GT GAUTENG | AB97: Capital Spares
B98: DC42 Sedibeng | C98: GT GAUTENG | AB98: Monuments
B99: GT481 Mogale City | C99: GT GAUTENG | AB99: Historic Buildings
B100: GT484 Merafong City | C100: GT GAUTENG | AB100: Works of Art
B101: GT485 Rand West City | C101: GT GAUTENG | AB101: Conservation Areas
B102: DC48 West Rand | C102: GT GAUTENG | AB102: Other Heritage
B103: ETH eThekwini | C103: KZN KWAZULU-NATAL | AB103: Improved Property
B104: KZN212 Umdoni | C104: KZN KWAZULU-NATAL | AB104: Unimproved Property
B105: KZN213 Umzumbe | C105: KZN KWAZULU-NATAL | AB105: Municipal Offices
B106: KZN214 uMuziwabantu | C106: KZN KWAZULU-NATAL | AB106: Pay/Enquiry Points
B107: KZN216 Ray Nkonyeni | C107: KZN KWAZULU-NATAL | AB107: Building Plan Offices
B108: DC21 Ugu | C108: KZN KWAZULU-NATAL | AB108: Workshops
B109: KZN221 uMshwathi | C109: KZN KWAZULU-NATAL | AB109: Yards
B110: KZN222 uMngeni | C110: KZN KWAZULU-NATAL | AB110: Stores
B111: KZN223 Mpofana | C111: KZN KWAZULU-NATAL | AB111: Laboratories
B112: KZN224 Impendle | C112: KZN KWAZULU-NATAL | AB112: Training Centres
B113: KZN225 Msunduzi | C113: KZN KWAZULU-NATAL | AB113: Manufacturing Plant
B114: KZN226 Mkhambathini | C114: KZN KWAZULU-NATAL | AB114: Depots
B115: KZN227 Richmond | C115: KZN KWAZULU-NATAL | AB115: Capital Spares
B116: DC22 uMgungundlovu | C116: KZN KWAZULU-NATAL | AB116: Staff Housing
B117: KZN235 Okhahlamba | C117: KZN KWAZULU-NATAL | AB117: Social Housing
B118: KZN237 Inkosi Langalibalele | C118: KZN KWAZULU-NATAL | AB118: Capital Spares
B119: KZN238 Alfred Duma | C119: KZN KWAZULU-NATAL | AB119: Water Rights
B120: DC23 Uthukela | C120: KZN KWAZULU-NATAL | AB120: Effluent Licenses
B121: KZN241 Endumeni | C121: KZN KWAZULU-NATAL | AB121: Solid Waste Licenses
B122: KZN242 Nquthu | C122: KZN KWAZULU-NATAL | AB122: Computer Software and Applications
B123: KZN244 Msinga | C123: KZN KWAZULU-NATAL | AB123: Load Settlement Software Applications
B124: KZN245 Umvoti | C124: KZN KWAZULU-NATAL | AB124: Unspecified
B125: DC24 Umzinyathi | C125: KZN KWAZULU-NATAL
B126: KZN252 Newcastle | C126: KZN KWAZULU-NATAL
B127: KZN253 Emadlangeni | C127: KZN KWAZULU-NATAL
B128: KZN254 Dannhauser | C128: KZN KWAZULU-NATAL
B129: DC25 Amajuba | C129: KZN KWAZULU-NATAL
B130: KZN261 eDumbe | C130: KZN KWAZULU-NATAL
B131: KZN262 uPhongolo | C131: KZN KWAZULU-NATAL
B132: KZN263 Abaqulusi | C132: KZN KWAZULU-NATAL
B133: KZN265 Nongoma | C133: KZN KWAZULU-NATAL
B134: KZN266 Ulundi | C134: KZN KWAZULU-NATAL
B135: DC26 Zululand | C135: KZN KWAZULU-NATAL
B136: KZN271 Umhlabuyalingana | C136: KZN KWAZULU-NATAL
B137: KZN272 Jozini | C137: KZN KWAZULU-NATAL
B138: KZN275 Mtubatuba | C138: KZN KWAZULU-NATAL
B139: KZN276 Hlabisa Big Five | C139: KZN KWAZULU-NATAL
B140: DC27 Umkhanyakude | C140: KZN KWAZULU-NATAL
B141: KZN281 Mfolozi | C141: KZN KWAZULU-NATAL
B142: KZN282 uMhlathuze | C142: KZN KWAZULU-NATAL
B143: KZN284 uMlalazi | C143: KZN KWAZULU-NATAL
B144: KZN285 Mthonjaneni | C144: KZN KWAZULU-NATAL
B145: KZN286 Nkandla | C145: KZN KWAZULU-NATAL
B146: DC28 King Cetshwayo | C146: KZN KWAZULU-NATAL
B147: KZN291 Mandeni | C147: KZN KWAZULU-NATAL
B148: KZN292 KwaDukuza | C148: KZN KWAZULU-NATAL
B149: KZN293 Ndwedwe | C149: KZN KWAZULU-NATAL
B150: KZN294 Maphumulo | C150: KZN KWAZULU-NATAL
B151: DC29 iLembe | C151: KZN KWAZULU-NATAL
B152: KZN433 Greater Kokstad | C152: KZN KWAZULU-NATAL
B153: KZN434 Ubuhlebezwe | C153: KZN KWAZULU-NATAL
B154: KZN435 Umzimkhulu | C154: KZN KWAZULU-NATAL
B155: KZN436 Dr Nkosazana Dlamini Zuma | C155: KZN KWAZULU-NATAL
B156: DC43 Harry Gwala | C156: KZN KWAZULU-NATAL
B157: LIM331 Greater Giyani | C157: LIM LIMPOPO
B158: LIM332 Greater Letaba | C158: LIM LIMPOPO
B159: LIM333 Greater Tzaneen | C159: LIM LIMPOPO
B160: LIM334 Ba-Phalaborwa | C160: LIM LIMPOPO
B161: LIM335 Maruleng | C161: LIM LIMPOPO
B162: DC33 Mopani | C162: LIM LIMPOPO
B163: LIM341 Musina | C163: LIM LIMPOPO
B164: LIM343 Thulamela | C164: LIM LIMPOPO
B165: LIM344 Makhado | C165: LIM LIMPOPO
B166: LIM345 Collins Chabane | C166: LIM LIMPOPO
B167: DC34 Vhembe | C167: LIM LIMPOPO
B168: LIM351 Blouberg | C168: LIM LIMPOPO
B169: LIM353 Molemole | C169: LIM LIMPOPO
B170: LIM354 Polokwane | C170: LIM LIMPOPO
B171: LIM355 Lepelle-Nkumpi | C171: LIM LIMPOPO
B172: DC35 Capricorn | C172: LIM LIMPOPO
B173: LIM361 Thabazimbi | C173: LIM LIMPOPO
B174: LIM362 Lephalale | C174: LIM LIMPOPO
B175: LIM366 Bela Bela | C175: LIM LIMPOPO
B176: LIM367 Mogalakwena | C176: LIM LIMPOPO
B177: LIM368 Modimolle-Mookgopong | C177: LIM LIMPOPO
B178: DC36 Waterberg | C178: LIM LIMPOPO
B179: LIM471 Ephraim Mogale | C179: LIM LIMPOPO
B180: LIM472 Elias Motsoaledi | C180: LIM LIMPOPO
B181: LIM473 Makhuduthamaga | C181: LIM LIMPOPO
B182: LIM476 Tubatse Fetakgomo | C182: LIM LIMPOPO
B183: DC47 Sekhukhune | C183: LIM LIMPOPO
B184: MP301 Albert Luthuli | C184: MP MPUMALANGA
B185: MP302 Msukaligwa | C185: MP MPUMALANGA
B186: MP303 Mkhondo | C186: MP MPUMALANGA
B187: MP304 Pixley Ka Seme (MP) | C187: MP MPUMALANGA
B188: MP305 Lekwa | C188: MP MPUMALANGA
B189: MP306 Dipaleseng | C189: MP MPUMALANGA
B190: MP307 Govan Mbeki | C190: MP MPUMALANGA
B191: DC30 Gert Sibande | C191: MP MPUMALANGA
B192: MP311 Victor Khanye | C192: MP MPUMALANGA
B193: MP312 Emalahleni (Mp) | C193: MP MPUMALANGA
B194: MP313 Steve Tshwete | C194: MP MPUMALANGA
B195: MP314 Emakhazeni | C195: MP MPUMALANGA
B196: MP315 Thembisile Hani | C196: MP MPUMALANGA
B197: MP316 Dr J.S. Moroka | C197: MP MPUMALANGA
B198: DC31 Nkangala | C198: MP MPUMALANGA
B199: MP321 Thaba Chweu | C199: MP MPUMALANGA
B200: MP324 Nkomazi | C200: MP MPUMALANGA
... 87 more rows

Sheet Org structure
A1: Organisational Structure Votes | C1: Organisational Structure Sub-Votes | E1: Display Sub-Votes
A2: =B2&" - "&C2 -> Vote 01 - Executive & Council | B2: Vote 01 | C2: Executive & Council
A3: =B20&" - "&C20 -> Vote 02 - Budget & Treasury Office | B3: 01.1 | C3: Mayor Administration | D3: =CONCATENATE(B3, " - ", C3) -> 01.1 - Mayor Administration | E3: 01.1 - Mayor Administration
A4: =B24&" - "&C24 -> Vote 03 - Corporate Services | B4: 01.2 | C4: Speaker Administration | D4: 01.2 - Speaker Administration | E4: 01.2 - Speaker Administration
A5: =B40&" - "&C40 -> Vote 04 - Roads And Transport | B5: 01.3 | C5: Speaker Projects | D5: 01.3 - Speaker Projects | E5: 01.3 - Speaker Projects
A6: =B55&" - "&C55 -> Vote 05 - Planning & Development | B6: 01.4 | C6: Mpac Office | D6: 01.4 - Mpac Office | E6: 01.4 - Mpac Office
A7: =B64&" - "&C64 -> Vote 06 - Community & Social Services | B7: 01.5 | C7: Mmc For Finance & Administration | D7: 01.5 - Mmc For Finance & Administration | E7: 01.5 - Mmc For Finance & Administration
A8: =B84&" - "&C84 -> Vote 07 - | B8: 01.6 | C8: Mmc For Srac & Heritage | D8: 01.6 - Mmc For Srac & Heritage | E8: 01.6 - Mmc For Srac & Heritage
A9: Vote 08 - | B9: 01.7 | C9: Mmc For Infrastructure & Transport | D9: 01.7 - Mmc For Infrastructure & Transport | E9: 01.7 - Mmc For Infrastructure & Transport
A10: Vote 09 - | B10: 01.8 | C10: Mmc For Human Settlements | D10: 01.8 - Mmc For Human Settlements | E10: 01.8 - Mmc For Human Settlements
A11: Vote 10 - | B11: 01.9 | C11: Mmc For Health & Public Safety | D11: 01.9 - Mmc For Health & Public Safety | E11: 01.9 - Mmc For Health & Public Safety
A12: Vote 11 - | B12: 01.10 | C12: Mmc For Corporate Services | D12: 01.10 - Mmc For Corporate Services | E12: 01.10 - Mmc For Corporate Services
A13: Vote 12 - | B13: 01.11 | C13: Mmc For Environment | D13: 01.11 - Mmc For Environment | E13: 01.11 - Mmc For Environment
A14: Vote 13 - | B14: 01.12 | C14: Mmc For Strat Planning & Econ. Devel. | D14: 01.12 - Mmc For Strat Planning & Econ. Devel. | E14: 01.12 - Mmc For Strat Planning & Econ. Devel.
A15: Vote 14 - | B15: 01.13 | C15: Other Councilors | D15: 01.13 - Other Councilors | E15: 01.13 - Other Councilors
A16: Vote 15 - Other | B16: 01.14 | C16: Office Of The Chief Whip Administration | D16: 01.14 - Office Of The Chief Whip Administration | E16: 01.14 - Office Of The Chief Whip Administration
B17: 01.15 | C17: Chief Whip Projects | D17: 01.15 - Chief Whip Projects | E17: 01.15 - Chief Whip Projects
B18: 01.16 | C18: Municipal Manager Administration | D18: 01.16 - Municipal Manager Administration | E18: 01.16 - Municipal Manager Administration
B19: 01.17 | C19: External Communication | D19: 01.17 - External Communication | E19: 01.17 - External Communication
B20: Vote 02 | C20: Budget & Treasury Office
B21: 02.1 | C21: Financial Services Admin | D21: =CONCATENATE(B21, " - ", C21) -> 02.1 - Financial Services Admin | E21: 02.1 - Financial Services Admin
B22: 02.2 | C22: Financial Management | D22: =CONCATENATE(B22, " - ", C22) -> 02.2 - Financial Management | E22: 02.2 - Financial Management
B23: 02.3 | C23: Supply Chain Management | D23: =CONCATENATE(B23, " - ", C23) -> 02.3 - Supply Chain Management | E23: 02.3 - Supply Chain Management
B24: Vote 03 | C24: Corporate Services
B25: 03.1 | C25: Corporate Services - Admin | D25: =CONCATENATE(B25, " - ", C25) -> 03.1 - Corporate Services - Admin | E25: 03.1 - Corporate Services - Admin
B26: 03.2 | C26: Human Resources Administration | D26: 03.2 - Human Resources Administration | E26: 03.2 - Human Resources Administration
B27: 03.3 | C27: Corporate And Legal Administartion | D27: 03.3 - Corporate And Legal Administartion | E27: 03.3 - Corporate And Legal Administartion
B28: 03.4 | C28: Legal | D28: 03.4 - Legal | E28: 03.4 - Legal
B29: 03.5 | C29: Corporate | D29: 03.5 - Corporate | E29: 03.5 - Corporate
B30: 03.6 | C30: Facility Management Admin | D30: 03.6 - Facility Management Admin | E30: 03.6 - Facility Management Admin
B31: 03.7 | C31: Fleet Management | D31: 03.7 - Fleet Management | E31: 03.7 - Fleet Management
B32: 03.8 | C32: Maintenance & Cleaning | D32: 03.8 - Maintenance & Cleaning | E32: 03.8 - Maintenance & Cleaning
B33: 03.9 | C33: Town Hall | D33: 03.9 - Town Hall | E33: 03.9 - Town Hall
B34: 03.10 | C34: Internal Security | D34: 03.10 - Internal Security | E34: 03.10 - Internal Security
B35: 03.11 | C35: It Emfuleni | D35: 03.11 - It Emfuleni | E35: 03.11 - It Emfuleni
B36: 03.12 | C36: It Sedibeng | D36: 03.12 - It Sedibeng | E36: 03.12 - It Sedibeng
B37: 03.13 | C37: It Midvaal | D37: 03.13 - It Midvaal | E37: 03.13 - It Midvaal
B38: 03.14 | C38: Idp Function | D38: 03.14 - Idp Function | E38: 03.14 - Idp Function
B39: 03.15 | C39: Fresh Produce Market | D39: 03.15 - Fresh Produce Market | E39: 03.15 - Fresh Produce Market
B40: Vote 04 | C40: Roads And Transport
B41: 04.1 | C41: Emfuleni Taxi Rank | D41: =CONCATENATE(B41, " - ", C41) -> 04.1 - Emfuleni Taxi Rank | E41: 04.1 - Emfuleni Taxi Rank
B42: 04.2 | C42: Midvaal Taxi Rank | D42: 04.2 - Midvaal Taxi Rank | E42: 04.2 - Midvaal Taxi Rank
B43: 04.3 | C43: Lesedi Taxi Rank | D43: 04.3 - Lesedi Taxi Rank | E43: 04.3 - Lesedi Taxi Rank
B44: 04.4 | C44: Basic Services | D44: 04.4 - Basic Services | E44: 04.4 - Basic Services
B45: 04.5 | C45: Transport;Infrastructure & Environment | D45: 04.5 - Transport;Infrastructure & Environment | E45: 04.5 - Transport;Infrastructure & Environment
B46: 04.6 | C46: Air Quality Management | D46: 04.6 - Air Quality Management | E46: 04.6 - Air Quality Management
B47: 04.7 | C47: Environmental Planning And Coordination | D47: 04.7 - Environmental Planning And Coordination | E47: 04.7 - Environmental Planning And Coordination
B48: 04.8 | C48: Municipal Health Services | D48: 04.8 - Municipal Health Services | E48: 04.8 - Municipal Health Services
B49: 04.9 | C49: Environment | D49: 04.9 - Environment | E49: 04.9 - Environment
B50: 04.10 | C50: License Service Centre | D50: 04.10 - License Service Centre | E50: 04.10 - License Service Centre
B51: 04.11 | C51: License Service Centre - Vereeniging | D51: 04.11 - License Service Centre - Vereeniging | E51: 04.11 - License Service Centre - Vereeniging
B52: 04.12 | C52: License Service Centre - Vanderbijl Park | D52: 04.12 - License Service Centre - Vanderbijl Park | E52: 04.12 - License Service Centre - Vanderbijl Park
B53: 04.13 | C53: License Service Centre - Meyerton | D53: 04.13 - License Service Centre - Meyerton | E53: 04.13 - License Service Centre - Meyerton
B54: 04.14 | C54: License Service Centre - Heidelberg | D54: 04.14 - License Service Centre - Heidelberg | E54: 04.14 - License Service Centre - Heidelberg
B55: Vote 05 | C55: Planning & Development
B56: 05.1 | C56: Idp Function | D56: =CONCATENATE(B56, " - ", C56) -> 05.1 - Idp Function | E56: 05.1 - Idp Function
B57: 05.2 | C57: Sped Admin | D57: 05.2 - Sped Admin | E57: 05.2 - Sped Admin
B58: 05.3 | C58: Development Planning - Spec. Proj. | D58: 05.3 - Development Planning - Spec. Proj. | E58: 05.3 - Development Planning - Spec. Proj.
B59: 05.4 | C59: Development Planning Land Use Management | D59: 05.4 - Development Planning Land Use Management | E59: 05.4 - Development Planning Land Use Management
B60: 05.5 | C60: Tourism | D60: 05.5 - Tourism | E60: 05.5 - Tourism
B61: 05.6 | C61: Housing | D61: 05.6 - Housing | E61: 05.6 - Housing
B62: 05.7 | C62: Led & Sgds | D62: 05.7 - Led & Sgds | E62: 05.7 - Led & Sgds
B63: 05.8 | C63: Ndpg Unit | D63: 05.8 - Ndpg Unit | E63: 05.8 - Ndpg Unit
B64: Vote 06 | C64: Community & Social Services
B65: 06.1 | C65: Vereeniging Airport | D65: =CONCATENATE(B65, " - ", C65) -> 06.1 - Vereeniging Airport | E65: 06.1 - Vereeniging Airport
B66: 06.2 | C66: Vanderbijl Airport | D66: 06.2 - Vanderbijl Airport | E66: 06.2 - Vanderbijl Airport
B67: 06.3 | C67: Emfuleni Taxi Rank | D67: 06.3 - Emfuleni Taxi Rank | E67: 06.3 - Emfuleni Taxi Rank
B68: 06.4 | C68: Midvaal Taxi Rank | D68: 06.4 - Midvaal Taxi Rank | E68: 06.4 - Midvaal Taxi Rank
B69: 06.5 | C69: Lesedi Taxi Rank | D69: 06.5 - Lesedi Taxi Rank | E69: 06.5 - Lesedi Taxi Rank
B70: 06.6 | C70: Community Services Admin | D70: 06.6 - Community Services Admin | E70: 06.6 - Community Services Admin
B71: 06.7 | C71: Public Safety | D71: 06.7 - Public Safety | E71: 06.7 - Public Safety
B72: 06.8 | C72: Vereeniging Theatre | D72: 06.8 - Vereeniging Theatre | E72: 06.8 - Vereeniging Theatre
B73: 06.9 | C73: Mphatlalatsane Theatre | D73: 06.9 - Mphatlalatsane Theatre | E73: 06.9 - Mphatlalatsane Theatre
B74: 06.10 | C74: Sports & Recreation | D74: 06.10 - Sports & Recreation | E74: 06.10 - Sports & Recreation
B75: 06.11 | C75: Heritage | D75: 06.11 - Heritage | E75: 06.11 - Heritage
B76: 06.12 | C76: Srach Admin | D76: 06.12 - Srach Admin | E76: 06.12 - Srach Admin
B77: 06.13 | C77: Hiv & Aids | D77: 06.13 - Hiv & Aids | E77: 06.13 - Hiv & Aids
B78: 06.14 | C78: Primary Health Care Services | D78: 06.14 - Primary Health Care Services | E78: 06.14 - Primary Health Care Services
B79: 06.15 | C79: Youth Centre | D79: 06.15 - Youth Centre | E79: 06.15 - Youth Centre
B80: 06.16 | C80: Social Development | D80: 06.16 - Social Development | E80: 06.16 - Social Development
B81: 06.17 | C81: Fire & Rescue Services | D81: 06.17 - Fire & Rescue Services | E81: 06.17 - Fire & Rescue Services
B82: 06.18 | C82: Disaster Man - Operation & Co-Ord | D82: 06.18 - Disaster Man - Operation & Co-Ord | E82: 06.18 - Disaster Man - Operation & Co-Ord
B83: 06.19 | C83: Cimm - Co-Ordination Centre | D83: 06.19 - Cimm - Co-Ordination Centre | E83: 06.19 - Cimm - Co-Ordination Centre
B84: Vote 07
B85: Vote 08
B86: Vote 09
B87: Vote 10
B88: Vote 11
B89: Vote 12
B90: Vote 13
B91: Vote 14
B92: Vote 15 | C92: Other
B93: 15.1 | C93: Coo's Office | D93: =CONCATENATE(B93, " - ", C93) -> 15.1 - Coo's Office | E93: 15.1 - Coo's Office
B94: 15.2 | C94: Igr Unit Administration | D94: 15.2 - Igr Unit Administration | E94: 15.2 - Igr Unit Administration
B95: 15.3 | C95: Audit Function | D95: 15.3 - Audit Function | E95: 15.3 - Audit Function
B96: 15.4 | C96: Risk Function | D96: 15.4 - Risk Function | E96: 15.4 - Risk Function
B97: 15.5 | C97: Performance Function | D97: 15.5 - Performance Function | E97: 15.5 - Performance Function
B98: 15.6 | C98: Utilities Admin | D98: 15.6 - Utilities Admin | E98: 15.6 - Utilities Admin
B99: 15.7 | C99: Fresh Produce Market | D99: 15.7 - Fresh Produce Market | E99: 15.7 - Fresh Produce Market
B100: 15.8 | C100: Vereeniging Airport | D100: 15.8 - Vereeniging Airport | E100: 15.8 - Vereeniging Airport
B101: 15.9 | C101: Vanderbijl Airport | D101: 15.9 - Vanderbijl Airport | E101: 15.9 - Vanderbijl Airport
B102: 15.10 | C102: Heidelberg Airport | D102: 15.10 - Heidelberg Airport | E102: 15.10 - Heidelberg Airport
B103: 15.11 | C103: Special Projects | D103: 15.11 - Special Projects | E103: 15.11 - Special Projects
B104: 15.12 | C104: Heidelberg Airport | D104: 15.12 - Heidelberg Airport | E104: 15.12 - Heidelberg Airport

Sheet Contacts
A1: =muni&" - "&" Contact Information" -> DC42 Sedibeng - Contact Information
A3: A. GENERAL INFORMATION
A4: Municipality | B4: =muni -> DC42 Sedibeng | C4: =IF(B4="Choose name from List","Set name on 'Instructions' sheet", "") -> 
A6: Grade | B6: Grade 5 | C6: 1 Grade in terms of the Remuneration of Public Office Bearers Act.
A8: Province | B8: =IF(B4>" ",VLOOKUP(B4,'Lookup and lists'!B29:C307,2, FALSE)," ") -> GT GAUTENG
A10: Web Address | B10: sedibeng.gov.za
A12: e-mail Address | B12: charless@sedibeng.gov.za
A14: B. CONTACT INFORMATION
A15: Postal address:
A16: P.O. Box | B16: 471
A17: City / Town | B17: Vereeniging
A18: Postal Code | B18: 1930
A20: Street address
A21: Building | B21: Municipal Building
A22: Street No. & Name | B22: cnr Beaconsfield and Leslie
A23: City / Town | B23: Vereeniging
A24: Postal Code | B24: 1939
A26: General Contacts
A27: Telephone number | B27: 0164503074
A28: Fax number
A30: C. POLITICAL LEADERSHIP
A31: Speaker: | C31: Secretary/PA to the Speaker:
A32: ID Number | C32: ID Number
A33: Title | C33: Title
A34: Name | C34: Name
A35: Telephone number | C35: Telephone number
A36: Cell number | C36: Cell number
A37: Fax number | C37: Fax number
A38: E-mail address | C38: E-mail address
A40: Mayor/Executive Mayor: | C40: Secretary/PA to the Mayor/Executive Mayor:
A41: ID Number | C41: ID Number
A42: Title | C42: Title
A43: Name | C43: Name
A44: Telephone number | C44: Telephone number
A45: Cell number | C45: Cell number
A46: Fax number | C46: Fax number
A47: E-mail address | C47: E-mail address
A49: Deputy Mayor/Executive Mayor: | C49: Secretary/PA to the Deputy Mayor/Executive Mayor:
A50: ID Number | C50: ID Number
A51: Title | C51: Title
A52: Name | C52: Name
A53: Telephone number | C53: Telephone number
A54: Cell number | C54: Cell number
A55: Fax number | C55: Fax number
A56: E-mail address | C56: E-mail address
A58: D. MANAGEMENT LEADERSHIP
A59: Municipal Manager: | C59: Secretary/PA to the Municipal Manager:
A60: ID Number | C60: ID Number
A61: Title | C61: Title
A62: Name | C62: Name
A63: Telephone number | C63: Telephone number
A64: Cell number | C64: Cell number
A65: Fax number | C65: Fax number
A66: E-mail address | C66: E-mail address
A68: Chief Financial Officer | C68: Secretary/PA to the Chief Financial Officer
A69: ID Number | C69: ID Number
A70: Title | C70: Title
A71: Name | C71: Name
A72: Telephone number | C72: Telephone number
A73: Cell number | C73: Cell number
A74: Fax number | C74: Fax number
A75: E-mail address | C75: E-mail address
A77: Official responsible for submitting financial information | C77: Official responsible for submitting financial information
A78: ID Number | B78: 6505105044087 | C78: ID Number
A79: Title | B79: Director Financial Management & budgets | C79: Title
A80: Name | B80: Charles Steyn | C80: Name
A81: Telephone number | B81: 016 450 3073 | C81: Telephone number
A82: Cell number | B82: 082 902 0626 | C82: Cell number
A83: Fax number | C83: Fax number
A84: E-mail address | B84: charless@sedibeng.gov.za | C84: E-mail address
A85: Official responsible for submitting financial information | C85: Official responsible for submitting financial information
A86: ID Number | C86: ID Number
A87: Title | C87: Title
A88: Name | C88: Name
A89: Telephone number | C89: Telephone number
A90: Cell number | C90: Cell number
A91: Fax number | C91: Fax number
A92: E-mail address | C92: E-mail address
A93: Official responsible for submitting financial information | C93: Official responsible for submitting financial information
A94: ID Number | C94: ID Number
A95: Title | C95: Title
A96: Name | C96: Name
A97: Telephone number | C97: Telephone number
A98: Cell number | C98: Cell number
A99: Fax number | C99: Fax number
A100: E-mail address | C100: E-mail address
A101: Official responsible for submitting financial information | C101: Official responsible for submitting financial information
A102: ID Number | C102: ID Number
A103: Title | C103: Title
A104: Name | C104: Name
A105: Telephone number | C105: Telephone number
A106: Cell number | C106: Cell number
A107: Fax number | C107: Fax number
A108: E-mail address | C108: E-mail address
A109: Official responsible for submitting financial information | C109: Official responsible for submitting financial information
A110: ID Number | C110: ID Number
A111: Title | C111: Title
A112: Name | C112: Name
A113: Telephone number | C113: Telephone number
A114: Cell number | C114: Cell number
A115: Fax number | C115: Fax number
A116: E-mail address | C116: E-mail address
A117: Official responsible for submitting financial information | C117: Official responsible for submitting financial information
A118: ID Number | C118: ID Number
A119: Title | C119: Title
A120: Name | C120: Name
A121: Telephone number | C121: Telephone number
A122: Cell number | C122: Cell number
A123: Fax number | C123: Fax number
A124: E-mail address | C124: E-mail address
A125: Official responsible for submitting financial information | C125: Official responsible for submitting financial information
A126: ID Number | C126: ID Number
A127: Title | C127: Title
A128: Name | C128: Name
A129: Telephone number | C129: Telephone number
A130: Cell number | C130: Cell number
A131: Fax number | C131: Fax number
A132: E-mail address | C132: E-mail address
A133: Official responsible for submitting financial information
A134: ID Number
A135: Title
A136: Name
A137: Telephone number
A138: Cell number
A139: Fax number
A140: E-mail address

Sheet A1-Sum
A1: =muni&" - "&Approve1 -> DC42 Sedibeng - Table A1 Budget Summary
A2: =desc -> Description | B2: =head1b -> 2016/17 | C2: =head1A -> 2017/18 | D2: =Head1 -> 2018/19 | E2: =Head2 -> Current Year 2019/20 | I2: =Head3 -> 2020/21 Medium Term Revenue & Expenditure Framework
A3: R thousands | B3: =Head5 -> Audited Outcome | C3: =Head5 -> Audited Outcome | D3: =Head5 -> Audited Outcome | E3: =Head6 -> Original Budget | F3: =Head7 -> Adjusted Budget | G3: =Head8 -> Full Year Forecast | H3: =Head5b -> Pre-audit outcome | I3: =Head9 -> Budget Year 2020/21 | J3: =Head10 -> Budget Year +1 2021/22 | K3: =Head11 -> Budget Year +2 2022/23
A4: Financial Performance
A5: Property rates | B5: ='A4-FinPerf RE'!C5 -> 0 | C5: ='A4-FinPerf RE'!D5 -> 0 | D5: ='A4-FinPerf RE'!E5 -> 0 | E5: ='A4-FinPerf RE'!F5 -> 0 | F5: ='A4-FinPerf RE'!G5 -> 0 | G5: ='A4-FinPerf RE'!H5 -> 0 | H5: ='A4-FinPerf RE'!I5 -> 0 | I5: ='A4-FinPerf RE'!J5 -> 0 | J5: ='A4-FinPerf RE'!K5 -> 0 | K5: ='A4-FinPerf RE'!L5 -> 0
A6: Service charges | B6: =SUM('A4-FinPerf RE'!C6:C9) -> 0 | C6: =SUM('A4-FinPerf RE'!D6:D9) -> 0 | D6: =SUM('A4-FinPerf RE'!E6:E9) -> 0 | E6: =SUM('A4-FinPerf RE'!F6:F9) -> 0 | F6: =SUM('A4-FinPerf RE'!G6:G9) -> 0 | G6: =SUM('A4-FinPerf RE'!H6:H9) -> 0 | H6: =SUM('A4-FinPerf RE'!I6:I9) -> 0 | I6: =SUM('A4-FinPerf RE'!J6:J9) -> 0 | J6: =SUM('A4-FinPerf RE'!K6:K9) -> 0 | K6: =SUM('A4-FinPerf RE'!L6:L9) -> 0
A7: Investment revenue | B7: ='A4-FinPerf RE'!C12 -> 0 | C7: ='A4-FinPerf RE'!D12 -> 2835809.34 | D7: ='A4-FinPerf RE'!E12 -> 2944161.96 | E7: ='A4-FinPerf RE'!F12 -> 1995000 | F7: ='A4-FinPerf RE'!G12 -> 2615234 | G7: ='A4-FinPerf RE'!H12 -> 2615234 | H7: ='A4-FinPerf RE'!I12 -> 3115610.04 | I7: ='A4-FinPerf RE'!J12 -> 2700000 | J7: ='A4-FinPerf RE'!K12 -> 2821500 | K7: ='A4-FinPerf RE'!L12 -> 2948468
A8: Transfers recognised - operational | B8: ='A4-FinPerf RE'!C18 -> 0 | C8: ='A4-FinPerf RE'!D18 -> 263244374.1 | D8: ='A4-FinPerf RE'!E18 -> 277892098.9 | E8: ='A4-FinPerf RE'!F18 -> 301540826 | F8: ='A4-FinPerf RE'!G18 -> 285870876 | G8: ='A4-FinPerf RE'!H18 -> 285870876 | H8: ='A4-FinPerf RE'!I18 -> 283790202 | I8: ='A4-FinPerf RE'!J18 -> 313062190 | J8: ='A4-FinPerf RE'!K18 -> 306032974 | K8: ='A4-FinPerf RE'!L18 -> 315056798
A9: Other own revenue | B9: ='A4-FinPerf RE'!C11+'A4-FinPerf RE'!C13+'A4-FinPerf RE'!C14+'A4-FinPerf RE'!C15+'A4-FinPerf RE'!C16+'A4-FinPerf RE'!C17+'A4-FinPerf RE'!C19+'A4-FinPerf RE'!C20 -> 0 | C9: ='A4-FinPerf RE'!D11+'A4-FinPerf RE'!D13+'A4-FinPerf RE'!D14+'A4-FinPerf RE'!D15+'A4-FinPerf RE'!D16+'A4-FinPerf RE'!D17+'A4-FinPerf RE'!D19+'A4-FinPerf RE'!D20 -> 85916253.64 | D9: ='A4-FinPerf RE'!E11+'A4-FinPerf RE'!E13+'A4-FinPerf RE'!E14+'A4-FinPerf RE'!E15+'A4-FinPerf RE'!E16+'A4-FinPerf RE'!E17+'A4-FinPerf RE'!E19+'A4-FinPerf RE'!E20 -> 90701584.81 | E9: ='A4-FinPerf RE'!F11+'A4-FinPerf RE'!F13+'A4-FinPerf RE'!F14+'A4-FinPerf RE'!F15+'A4-FinPerf RE'!F16+'A4-FinPerf RE'!F17+'A4-FinPerf RE'!F19+'A4-FinPerf RE'!F20 -> 102275355 | F9: ='A4-FinPerf RE'!G11+'A4-FinPerf RE'!G13+'A4-FinPerf RE'!G14+'A4-FinPerf RE'!G15+'A4-FinPerf RE'!G16+'A4-FinPerf RE'!G17+'A4-FinPerf RE'!G19+'A4-FinPerf RE'!G20 -> 102228612 | G9: ='A4-FinPerf RE'!H11+'A4-FinPerf RE'!H13+'A4-FinPerf RE'!H14+'A4-FinPerf RE'!H15+'A4-FinPerf RE'!H16+'A4-FinPerf RE'!H17+'A4-FinPerf RE'!H19+'A4-FinPerf RE'!H20 -> 102228612 | H9: ='A4-FinPerf RE'!I11+'A4-FinPerf RE'!I13+'A4-FinPerf RE'!I14+'A4-FinPerf RE'!I15+'A4-FinPerf RE'!I16+'A4-FinPerf RE'!I17+'A4-FinPerf RE'!I19+'A4-FinPerf RE'!I20 -> 69960219.95 | I9: ='A4-FinPerf RE'!J11+'A4-FinPerf RE'!J13+'A4-FinPerf RE'!J14+'A4-FinPerf RE'!J15+'A4-FinPerf RE'!J16+'A4-FinPerf RE'!J17+'A4-FinPerf RE'!J19+'A4-FinPerf RE'!J20 -> 102001059 | J9: ='A4-FinPerf RE'!K11+'A4-FinPerf RE'!K13+'A4-FinPerf RE'!K14+'A4-FinPerf RE'!K15+'A4-FinPerf RE'!K16+'A4-FinPerf RE'!K17+'A4-FinPerf RE'!K19+'A4-FinPerf RE'!K20 -> 106591106 | K9: ='A4-FinPerf RE'!L11+'A4-FinPerf RE'!L13+'A4-FinPerf RE'!L14+'A4-FinPerf RE'!L15+'A4-FinPerf RE'!L16+'A4-FinPerf RE'!L17+'A4-FinPerf RE'!L19+'A4-FinPerf RE'!L20 -> 111387706
A10: ='A4-FinPerf RE'!A21 -> Total Revenue (excluding capital transfers and contributions) | B10: =SUM(B5:B9) -> 0 | C10: 351996437.1 | D10: 371537845.7 | E10: 405811181 | F10: 390714722 | G10: 390714722 | H10: 356866032 | I10: 417763249 | J10: 415445580 | K10: 429392972
A11: Employee costs | B11: ='A4-FinPerf RE'!C24 -> 0 | C11: ='A4-FinPerf RE'!D24 -> 255327149 | D11: ='A4-FinPerf RE'!E24 -> 264063502.2 | E11: ='A4-FinPerf RE'!F24 -> 276024667 | F11: ='A4-FinPerf RE'!G24 -> 273798414 | G11: ='A4-FinPerf RE'!H24 -> 273798414 | H11: ='A4-FinPerf RE'!I24 -> 272015004.6 | I11: ='A4-FinPerf RE'!J24 -> 274643831 | J11: ='A4-FinPerf RE'!K24 -> 287002800 | K11: ='A4-FinPerf RE'!L24 -> 299917925
A12: Remuneration of councillors | B12: ='A4-FinPerf RE'!C25 -> 0 | C12: ='A4-FinPerf RE'!D25 -> 12898448.55 | D12: ='A4-FinPerf RE'!E25 -> 13431978.87 | E12: ='A4-FinPerf RE'!F25 -> 14030631 | F12: ='A4-FinPerf RE'!G25 -> 13871488 | G12: ='A4-FinPerf RE'!H25 -> 13871488 | H12: ='A4-FinPerf RE'!I25 -> 13379240.4 | I12: ='A4-FinPerf RE'!J25 -> 14017808 | J12: ='A4-FinPerf RE'!K25 -> 14648605 | K12: ='A4-FinPerf RE'!L25 -> 15307796
A13: Depreciation & asset impairment | B13: ='A4-FinPerf RE'!C27 -> 0 | C13: ='A4-FinPerf RE'!D27 -> 25865754.57 | D13: ='A4-FinPerf RE'!E27 -> 15714685.58 | E13: ='A4-FinPerf RE'!F27 -> 11620103 | F13: ='A4-FinPerf RE'!G27 -> 11271875 | G13: ='A4-FinPerf RE'!H27 -> 11271875 | H13: ='A4-FinPerf RE'!I27 -> 3437313.62 | I13: ='A4-FinPerf RE'!J27 -> 11271875 | J13: ='A4-FinPerf RE'!K27 -> 11779115 | K13: ='A4-FinPerf RE'!L27 -> 12309172
A14: Finance charges | B14: ='A4-FinPerf RE'!C28 -> 0 | C14: ='A4-FinPerf RE'!D28 -> 0 | D14: ='A4-FinPerf RE'!E28 -> 0 | E14: ='A4-FinPerf RE'!F28 -> 0 | F14: ='A4-FinPerf RE'!G28 -> 0 | G14: ='A4-FinPerf RE'!H28 -> 0 | H14: ='A4-FinPerf RE'!I28 -> 0 | I14: ='A4-FinPerf RE'!J28 -> 0 | J14: ='A4-FinPerf RE'!K28 -> 0 | K14: ='A4-FinPerf RE'!L28 -> 0
A15: Materials and bulk purchases | B15: ='A4-FinPerf RE'!C29+'A4-FinPerf RE'!C30 -> 0 | C15: ='A4-FinPerf RE'!D29+'A4-FinPerf RE'!D30 -> 7627837.03 | D15: ='A4-FinPerf RE'!E29+'A4-FinPerf RE'!E30 -> 8223594.34 | E15: ='A4-FinPerf RE'!F29+'A4-FinPerf RE'!F30 -> 7826678 | F15: ='A4-FinPerf RE'!G29+'A4-FinPerf RE'!G30 -> 7538308 | G15: ='A4-FinPerf RE'!H29+'A4-FinPerf RE'!H30 -> 7538308 | H15: ='A4-FinPerf RE'!I29+'A4-FinPerf RE'!I30 -> 6867877.62 | I15: ='A4-FinPerf RE'!J29+'A4-FinPerf RE'!J30 -> 6905145 | J15: ='A4-FinPerf RE'!K29+'A4-FinPerf RE'!K30 -> 7215877 | K15: ='A4-FinPerf RE'!L29+'A4-FinPerf RE'!L30 -> 7540593
A16: Transfers and grants | B16: ='A4-FinPerf RE'!C32 -> 0 | C16: ='A4-FinPerf RE'!D32 -> 10625459.87 | D16: ='A4-FinPerf RE'!E32 -> 9560026.09 | E16: ='A4-FinPerf RE'!F32 -> 25140500 | F16: ='A4-FinPerf RE'!G32 -> 9048087 | G16: ='A4-FinPerf RE'!H32 -> 9048087 | H16: ='A4-FinPerf RE'!I32 -> 8198560.86 | I16: ='A4-FinPerf RE'!J32 -> 27973000 | J16: ='A4-FinPerf RE'!K32 -> 11454000 | K16: ='A4-FinPerf RE'!L32 -> 12027000
A17: Other expenditure | B17: ='A4-FinPerf RE'!C26+'A4-FinPerf RE'!C31+'A4-FinPerf RE'!C33+'A4-FinPerf RE'!C34 -> 0 | C17: ='A4-FinPerf RE'!D26+'A4-FinPerf RE'!D31+'A4-FinPerf RE'!D33+'A4-FinPerf RE'!D34 -> 135173487.3 | D17: ='A4-FinPerf RE'!E26+'A4-FinPerf RE'!E31+'A4-FinPerf RE'!E33+'A4-FinPerf RE'!E34 -> 109178053.9 | E17: ='A4-FinPerf RE'!F26+'A4-FinPerf RE'!F31+'A4-FinPerf RE'!F33+'A4-FinPerf RE'!F34 -> 94419762 | F17: ='A4-FinPerf RE'!G26+'A4-FinPerf RE'!G31+'A4-FinPerf RE'!G33+'A4-FinPerf RE'!G34 -> 85722097 | G17: ='A4-FinPerf RE'!H26+'A4-FinPerf RE'!H31+'A4-FinPerf RE'!H33+'A4-FinPerf RE'!H34 -> 85722097 | H17: ='A4-FinPerf RE'!I26+'A4-FinPerf RE'!I31+'A4-FinPerf RE'!I33+'A4-FinPerf RE'!I34 -> 66187398.04 | I17: ='A4-FinPerf RE'!J26+'A4-FinPerf RE'!J31+'A4-FinPerf RE'!J33+'A4-FinPerf RE'!J34 -> 82449512 | J17: ='A4-FinPerf RE'!K26+'A4-FinPerf RE'!K31+'A4-FinPerf RE'!K33+'A4-FinPerf RE'!K34 -> 86183312 | K17: ='A4-FinPerf RE'!L26+'A4-FinPerf RE'!L31+'A4-FinPerf RE'!L33+'A4-FinPerf RE'!L34 -> 90078699
A18: ='A4-FinPerf RE'!A35 -> Total Expenditure | B18: =SUM(B11:B17) -> 0 | C18: =SUM(C11:C17) -> 447518136.3 | D18: 420171841 | E18: 429062341 | F18: 401250269 | G18: 401250269 | H18: 370085395.1 | I18: 417261171 | J18: 418283709 | K18: 437181185
A19: ='A4-FinPerf RE'!A37 -> Surplus/(Deficit) | B19: =B10-B18 -> 0 | C19: -95521699.21 | D19: -48633995.32 | E19: -23251160 | F19: -10535547 | G19: -10535547 | H19: -13219363.11 | I19: 502078 | J19: -2838129 | K19: -7788213
A20: ='A4-FinPerf RE'!A38 -> Transfers and subsidies - capital (monetary allocations) (National / Provincial and District) | B20: ='A4-FinPerf RE'!C38 -> 0 | C20: ='A4-FinPerf RE'!D38 -> 6171000 | D20: ='A4-FinPerf RE'!E38 -> 0 | E20: ='A4-FinPerf RE'!F38 -> 0 | F20: ='A4-FinPerf RE'!G38 -> 788950 | G20: ='A4-FinPerf RE'!H38 -> 788950 | H20: ='A4-FinPerf RE'!I38 -> 38950 | I20: ='A4-FinPerf RE'!J38 -> 0 | J20: ='A4-FinPerf RE'!K38 -> 0 | K20: ='A4-FinPerf RE'!L38 -> 0
A21: ='A4-FinPerf RE'!A39&" & "&'A4-FinPerf RE'!A40 -> Transfers and subsidies - capital (monetary allocations) (National / Provincial Departmental Agencies, Households, Non-profit Institutions, Private Enterprises, Public Corporatons, Higher Educational Institutions) & Transfers and subsidies - capital (in-kind - all) | B21: ='A4-FinPerf RE'!C39+'A4-FinPerf RE'!C40 -> 0 | C21: ='A4-FinPerf RE'!D39+'A4-FinPerf RE'!D40 -> 0 | D21: ='A4-FinPerf RE'!E39+'A4-FinPerf RE'!E40 -> 0 | E21: ='A4-FinPerf RE'!F39+'A4-FinPerf RE'!F40 -> 0 | F21: ='A4-FinPerf RE'!G39+'A4-FinPerf RE'!G40 -> 0 | G21: ='A4-FinPerf RE'!H39+'A4-FinPerf RE'!H40 -> 0 | H21: ='A4-FinPerf RE'!I39+'A4-FinPerf RE'!I40 -> 0 | I21: ='A4-FinPerf RE'!J39+'A4-FinPerf RE'!J40 -> 0 | J21: ='A4-FinPerf RE'!K39+'A4-FinPerf RE'!K40 -> 0 | K21: ='A4-FinPerf RE'!L39+'A4-FinPerf RE'!L40 -> 0
A22: ='A4-FinPerf RE'!A41 -> Surplus/(Deficit) after capital transfers & contributions | B22: =B19+SUM(B20:B21) -> 0 | C22: =C19+SUM(C20:C21) -> -89350699.21 | D22: -48633995.32 | E22: -23251160 | F22: -9746597 | G22: -9746597 | H22: -13180413.11 | I22: 502078 | J22: -2838129 | K22: -7788213
A23: ='A4-FinPerf RE'!A46 -> Share of surplus/ (deficit) of associate | B23: ='A4-FinPerf RE'!C46 -> 0 | C23: ='A4-FinPerf RE'!D46 -> 0 | D23: ='A4-FinPerf RE'!E46 -> 0 | E23: ='A4-FinPerf RE'!F46 -> 0 | F23: ='A4-FinPerf RE'!G46 -> 0 | G23: ='A4-FinPerf RE'!H46 -> 0 | H23: ='A4-FinPerf RE'!I46 -> 0 | I23: ='A4-FinPerf RE'!J46 -> 0 | J23: ='A4-FinPerf RE'!K46 -> 0 | K23: ='A4-FinPerf RE'!L46 -> 0
A24: ='A4-FinPerf RE'!A47 -> Surplus/(Deficit) for the year | B24: =B22+B23 -> 0 | C24: =C22+C23 -> -89350699.21 | D24: -48633995.32 | E24: -23251160 | F24: -9746597 | G24: -9746597 | H24: -13180413.11 | I24: 502078 | J24: -2838129 | K24: -7788213
A26: Capital expenditure & funds sources
A27: Capital expenditure | B27: ='A5-Capex'!C63 -> 0 | C27: ='A5-Capex'!D63 -> 3125962.75 | D27: ='A5-Capex'!E63 -> 3529932.37 | E27: ='A5-Capex'!F63 -> 1750000 | F27: ='A5-Capex'!G63 -> 2282713 | G27: ='A5-Capex'!H63 -> 2282713 | H27: ='A5-Capex'!I63 -> 702412.41 | I27: ='A5-Capex'!J63 -> 2150000 | J27: ='A5-Capex'!K63 -> 2246750 | K27: ='A5-Capex'!L63 -> 2347854
A28: Transfers recognised - capital | B28: ='A5-Capex'!C70 -> 0 | C28: ='A5-Capex'!D70 -> 62271.94 | D28: ='A5-Capex'!E70 -> 0 | E28: ='A5-Capex'!F70 -> 0 | F28: ='A5-Capex'!G70 -> 788950 | G28: ='A5-Capex'!H70 -> 788950 | H28: ='A5-Capex'!I70 -> 38949.56 | I28: ='A5-Capex'!J70 -> 0 | J28: ='A5-Capex'!K70 -> 0 | K28: ='A5-Capex'!L70 -> 0
A30: ='A5-Capex'!A72 -> Borrowing | B30: ='A5-Capex'!C72 -> 0 | C30: ='A5-Capex'!D72 -> 0 | D30: ='A5-Capex'!E72 -> 0 | E30: ='A5-Capex'!F72 -> 0 | F30: ='A5-Capex'!G72 -> 0 | G30: ='A5-Capex'!H72 -> 0 | H30: ='A5-Capex'!I72 -> 0 | I30: ='A5-Capex'!J72 -> 0 | J30: ='A5-Capex'!K72 -> 0 | K30: ='A5-Capex'!L72 -> 0
A31: ='A5-Capex'!A73 -> Internally generated funds | B31: ='A5-Capex'!C73 -> 0 | C31: ='A5-Capex'!D73 -> 0 | D31: ='A5-Capex'!E73 -> 3529932.37 | E31: ='A5-Capex'!F73 -> 1750000 | F31: ='A5-Capex'!G73 -> 1493763 | G31: ='A5-Capex'!H73 -> 1493763 | H31: ='A5-Capex'!I73 -> 663462.85 | I31: ='A5-Capex'!J73 -> 2150000 | J31: ='A5-Capex'!K73 -> 2246750 | K31: ='A5-Capex'!L73 -> 2347854
A32: Total sources of capital funds | B32: =+B28+B30+B31 -> 0 | C32: =+C28+C30+C31 -> 62271.94 | D32: 3529932.37 | E32: 1750000 | F32: 2282713 | G32: 2282713 | H32: 702412.41 | I32: 2150000 | J32: 2246750 | K32: 2347854
A34: Financial position
A35: ='A6-FinPos'!A12 -> Total current assets | B35: ='A6-FinPos'!C12 -> 0 | C35: ='A6-FinPos'!D12 -> 25965820.29 | D35: ='A6-FinPos'!E12 -> 49118509.15 | E35: ='A6-FinPos'!F12 -> 29519960 | F35: ='A6-FinPos'!G12 -> 78076410 | G35: ='A6-FinPos'!H12 -> 78076410 | H35: ='A6-FinPos'!I12 -> 42918653.46 | I35: ='A6-FinPos'!J12 -> 24512454 | J35: ='A6-FinPos'!K12 -> 25615514 | K35: ='A6-FinPos'!L12 -> 26768212
A36: ='A6-FinPos'!A24 -> Total non current assets | B36: ='A6-FinPos'!C24 -> 0 | C36: ='A6-FinPos'!D24 -> 110959130.3 | D36: ='A6-FinPos'!E24 -> 112826866.1 | E36: ='A6-FinPos'!F24 -> 105431747 | F36: ='A6-FinPos'!G24 -> 105964460 | G36: ='A6-FinPos'!H24 -> 105964460 | H36: ='A6-FinPos'!I24 -> 109190621.9 | I36: ='A6-FinPos'!J24 -> 99012585 | J36: ='A6-FinPos'!K24 -> 96226200 | K36: ='A6-FinPos'!L24 -> 100556377
A37: ='A6-FinPos'!A34 -> Total current liabilities | B37: ='A6-FinPos'!C34 -> 0 | C37: ='A6-FinPos'!D34 -> 171488303 | D37: ='A6-FinPos'!E34 -> 252785552.9 | E37: ='A6-FinPos'!F34 -> 125960873 | F37: ='A6-FinPos'!G34 -> 144383948 | G37: ='A6-FinPos'!H34 -> 144383948 | H37: ='A6-FinPos'!I34 -> 258484166.3 | I37: ='A6-FinPos'!J34 -> 128280000 | J37: ='A6-FinPos'!K34 -> 134052600 | K37: ='A6-FinPos'!L34 -> 140084967
A38: ='A6-FinPos'!A39 -> Total non current liabilities | B38: ='A6-FinPos'!C39 -> 0 | C38: ='A6-FinPos'!D39 -> 22852189.58 | D38: ='A6-FinPos'!E39 -> 23732413.72 | E38: ='A6-FinPos'!F39 -> 22852190 | F38: ='A6-FinPos'!G39 -> 22852190 | G38: ='A6-FinPos'!H39 -> 22852190 | H38: ='A6-FinPos'!I39 -> 22134259.82 | I38: ='A6-FinPos'!J39 -> 24000000 | J38: ='A6-FinPos'!K39 -> 25080000 | K38: ='A6-FinPos'!L39 -> 26208600
A39: Community wealth/Equity | B39: ='A6-FinPos'!C48 -> 0 | C39: ='A6-FinPos'!D48 -> -57415541.98 | D39: ='A6-FinPos'!E48 -> -114572591.4 | E39: ='A6-FinPos'!F48 -> -13861356 | F39: ='A6-FinPos'!G48 -> 16804732 | G39: ='A6-FinPos'!H48 -> 16804732 | H39: ='A6-FinPos'!I48 -> -128509150.7 | I39: ='A6-FinPos'!J48 -> -28754961 | J39: ='A6-FinPos'!K48 -> -37290886 | K39: ='A6-FinPos'!L48 -> -38968978
A41: Cash flows
A42: Net cash from (used) operating | B42: ='A7-CFlow'!C17 -> 0 | C42: ='A7-CFlow'!D17 -> -2007478 | D42: ='A7-CFlow'!E17 -> 8140023 | E42: ='A7-CFlow'!F17 -> 5848465 | F42: ='A7-CFlow'!G17 -> 7644795 | G42: ='A7-CFlow'!H17 -> 7644795 | H42: ='A7-CFlow'!I17 -> 7644795 | I42: ='A7-CFlow'!J17 -> -1407870 | J42: ='A7-CFlow'!K17 -> 3292345 | K42: ='A7-CFlow'!L17 -> 3440501
A43: Net cash from (used) investing | B43: ='A7-CFlow'!C27 -> 0 | C43: ='A7-CFlow'!D27 -> -3038221 | D43: ='A7-CFlow'!E27 -> -3463891 | E43: ='A7-CFlow'!F27 -> -1610000 | F43: ='A7-CFlow'!G27 -> -2142713 | G43: ='A7-CFlow'!H27 -> -2142713 | H43: ='A7-CFlow'!I27 -> -2142713 | I43: ='A7-CFlow'!J27 -> -2150000 | J43: ='A7-CFlow'!K27 -> -2246750 | K43: ='A7-CFlow'!L27 -> -2347854
A44: Net cash from (used) financing | B44: ='A7-CFlow'!C36 -> 0 | C44: ='A7-CFlow'!D36 -> 0 | D44: ='A7-CFlow'!E36 -> 0 | E44: ='A7-CFlow'!F36 -> 0 | F44: ='A7-CFlow'!G36 -> 0 | G44: ='A7-CFlow'!H36 -> 0 | H44: ='A7-CFlow'!I36 -> 0 | I44: ='A7-CFlow'!J36 -> -172010 | J44: ='A7-CFlow'!K36 -> 3600 | K44: ='A7-CFlow'!L36 -> 3762
A45: =LEFT('A7-CFlow'!A40,37) -> Cash/cash equivalents at the year end | B45: ='A7-CFlow'!C40 -> 0 | C45: ='A7-CFlow'!D40 -> 16828172 | D45: ='A7-CFlow'!E40 -> 21504304 | E45: ='A7-CFlow'!F40 -> 27045334 | F45: ='A7-CFlow'!G40 -> 27006384 | G45: ='A7-CFlow'!H40 -> 27006384 | H45: ='A7-CFlow'!I40 -> 27006384 | I45: ='A7-CFlow'!J40 -> 23315454 | J45: ='A7-CFlow'!K40 -> 24364649 | K45: ='A7-CFlow'!L40 -> 25461058
A47: Cash backing/surplus reconciliation
A48: ='A8-ResRecon'!A4 -> Cash and investments available | B48: ='A8-ResRecon'!C8 -> 0 | C48: ='A8-ResRecon'!D8 -> 16827972.26 | D48: ='A8-ResRecon'!E8 -> 21504302.22 | E48: ='A8-ResRecon'!F8 -> 27045334 | F48: ='A8-ResRecon'!G8 -> 27045334 | G48: ='A8-ResRecon'!H8 -> 27045334 | H48: ='A8-ResRecon'!I8 -> 18503477.06 | I48: ='A8-ResRecon'!J8 -> 23315454 | J48: ='A8-ResRecon'!K8 -> 24364649 | K48: ='A8-ResRecon'!L8 -> 25461058
A49: ='A8-ResRecon'!A10 -> Application of cash and investments | B49: ='A8-ResRecon'!C18 -> 0 | C49: ='A8-ResRecon'!D18 -> 152349528.2 | D49: ='A8-ResRecon'!E18 -> 198306517.8 | E49: ='A8-ResRecon'!F18 -> 123322030 | F49: ='A8-ResRecon'!G18 -> 86267814 | G49: ='A8-ResRecon'!H18 -> 86267814 | H49: ='A8-ResRecon'!I18 -> 215016786.7 | I49: ='A8-ResRecon'!J18 -> 127159000 | J49: ='A8-ResRecon'!K18 -> 132881000 | K49: ='A8-ResRecon'!L18 -> 138860605
A50: Balance - surplus (shortfall) | B50: =B48-B49 -> 0 | C50: =C48-C49 -> -135521555.9 | D50: -176802215.5 | E50: -96276696 | F50: -59222480 | G50: -59222480 | H50: -196513309.6 | I50: -103843546 | J50: -108516351 | K50: -113399547
A52: Asset management
A53: Asset register summary (WDV) | B53: ='A9-Asset'!C165 -> 0 | C53: ='A9-Asset'!D165 -> 110959130.3 | D53: ='A9-Asset'!E165 -> 112826866.1 | E53: ='A9-Asset'!F165 -> 105431747 | F53: ='A9-Asset'!G165 -> 105964460 | G53: ='A9-Asset'!H165 -> 105964460 | H53: ='A9-Asset'!H165 -> 105964460 | I53: ='A9-Asset'!I165 -> 99012585 | J53: ='A9-Asset'!J165 -> 96226200 | K53: ='A9-Asset'!K165 -> 100556377
A54: ='A9-Asset'!A168 -> Depreciation | B54: ='A9-Asset'!C168 -> 0 | C54: ='A9-Asset'!D168 -> 25865754.57 | D54: ='A9-Asset'!E168 -> 15714685.58 | E54: ='A9-Asset'!F168 -> 11620103 | F54: ='A9-Asset'!G168 -> 11271875 | G54: ='A9-Asset'!H168 -> 11271875 | H54: ='A9-Asset'!H168 -> 11271875 | I54: ='A9-Asset'!I168 -> 11271875 | J54: ='A9-Asset'!J168 -> 11779115 | K54: ='A9-Asset'!K168 -> 12309172
A55: Renewal and Upgrading of Existing Assets | B55: ='A9-Asset'!C37+'A9-Asset'!C69 -> 0 | C55: ='A9-Asset'!D37+'A9-Asset'!D69 -> 2243571.22 | D55: ='A9-Asset'!E37+'A9-Asset'!E69 -> 3529932.37 | E55: ='A9-Asset'!F37+'A9-Asset'!F69 -> 1750000 | F55: ='A9-Asset'!G37+'A9-Asset'!G69 -> 932713 | G55: ='A9-Asset'!H37+'A9-Asset'!H69 -> 932713 | H55: ='A9-Asset'!H37+'A9-Asset'!H69 -> 932713 | I55: ='A9-Asset'!I37+'A9-Asset'!I69 -> 800000 | J55: ='A9-Asset'!J37+'A9-Asset'!J69 -> 836000 | K55: ='A9-Asset'!K37+'A9-Asset'!K69 -> 873620
A56: Repairs and Maintenance | B56: ='A9-Asset'!C169 -> 0 | C56: ='A9-Asset'!D169 -> 8276691.81 | D56: ='A9-Asset'!E169 -> 12194945.74 | E56: ='A9-Asset'!F169 -> 9410497 | F56: ='A9-Asset'!G169 -> 9002908 | G56: ='A9-Asset'!H169 -> 9002908 | H56: ='A9-Asset'!H169 -> 9002908 | I56: ='A9-Asset'!I169 -> 8887908 | J56: ='A9-Asset'!J169 -> 9287864 | K56: ='A9-Asset'!K169 -> 9705819
A58: Free services
A59: Cost of Free Basic Services provided | B59: ='A10-SerDel'!C60 -> 0 | C59: ='A10-SerDel'!D60 -> 0 | D59: ='A10-SerDel'!E60 -> 0 | E59: ='A10-SerDel'!F60 -> 0 | F59: ='A10-SerDel'!G60 -> 0 | G59: ='A10-SerDel'!H60 -> 0 | H59: ='A10-SerDel'!I60 -> 0 | I59: ='A10-SerDel'!I60 -> 0 | J59: ='A10-SerDel'!J60 -> 0 | K59: ='A10-SerDel'!K60 -> 0
A60: Revenue cost of free services provided | B60: ='A10-SerDel'!C79 -> 0 | C60: ='A10-SerDel'!D79 -> 0 | D60: ='A10-SerDel'!E79 -> 0 | E60: ='A10-SerDel'!F79 -> 0 | F60: ='A10-SerDel'!G79 -> 0 | G60: ='A10-SerDel'!H79 -> 0 | H60: ='A10-SerDel'!I79 -> 0 | I60: ='A10-SerDel'!I79 -> 0 | J60: ='A10-SerDel'!J79 -> 0 | K60: ='A10-SerDel'!K79 -> 0
A61: Households below minimum service level
A62: ='A10-SerDel'!A5 -> Water: | B62: ='A10-SerDel'!C14 -> 0 | C62: ='A10-SerDel'!D14 -> 0 | D62: ='A10-SerDel'!E14 -> 0 | E62: ='A10-SerDel'!F14 -> 0 | F62: ='A10-SerDel'!G14 -> 0 | G62: ='A10-SerDel'!H14 -> 0 | H62: ='A10-SerDel'!I14 -> 0 | I62: ='A10-SerDel'!I14 -> 0 | J62: ='A10-SerDel'!J14 -> 0 | K62: ='A10-SerDel'!K14 -> 0
A63: ='A10-SerDel'!A16 -> Sanitation/sewerage: | B63: ='A10-SerDel'!C26 -> 0 | C63: ='A10-SerDel'!D26 -> 0 | D63: ='A10-SerDel'!E26 -> 0 | E63: ='A10-SerDel'!F26 -> 0 | F63: ='A10-SerDel'!G26 -> 0 | G63: ='A10-SerDel'!H26 -> 0 | H63: ='A10-SerDel'!I26 -> 0 | I63: ='A10-SerDel'!I26 -> 0 | J63: ='A10-SerDel'!J26 -> 0 | K63: ='A10-SerDel'!K26 -> 0
A64: ='A10-SerDel'!A28 -> Energy: | B64: ='A10-SerDel'!C35 -> 0 | C64: ='A10-SerDel'!D35 -> 0 | D64: ='A10-SerDel'!E35 -> 0 | E64: ='A10-SerDel'!F35 -> 0 | F64: ='A10-SerDel'!G35 -> 0 | G64: ='A10-SerDel'!H35 -> 0 | H64: ='A10-SerDel'!I35 -> 0 | I64: ='A10-SerDel'!I35 -> 0 | J64: ='A10-SerDel'!J35 -> 0 | K64: ='A10-SerDel'!K35 -> 0
A65: ='A10-SerDel'!A37 -> Refuse: | B65: ='A10-SerDel'!C45 -> 0 | C65: ='A10-SerDel'!D45 -> 0 | D65: ='A10-SerDel'!E45 -> 0 | E65: ='A10-SerDel'!F45 -> 0 | F65: ='A10-SerDel'!G45 -> 0 | G65: ='A10-SerDel'!H45 -> 0 | H65: ='A10-SerDel'!I45 -> 0 | I65: ='A10-SerDel'!I45 -> 0 | J65: ='A10-SerDel'!J45 -> 0 | K65: ='A10-SerDel'!K45 -> 0

Sheet A2-FinPerf SC
A1: =muni&" - "&Approve3 -> DC42 Sedibeng - Table A2 Budgeted Financial Performance (revenue and expenditure by functional classification)
A2: ="Functional Classification "&desc -> Functional Classification Description | B2: =head27 -> Ref | C2: =head1b -> 2016/17 | D2: =head1A -> 2017/18 | E2: =Head1 -> 2018/19 | F2: =Head2 -> Current Year 2019/20 | I2: =Head3 -> 2020/21 Medium Term Revenue & Expenditure Framework
A3: R thousand | B3: 1 | C3: =Head5 -> Audited Outcome | D3: =Head5 -> Audited Outcome | E3: =Head5 -> Audited Outcome | F3: =Head6 -> Original Budget | G3: =Head7 -> Adjusted Budget | H3: =Head8 -> Full Year Forecast | I3: =Head9 -> Budget Year 2020/21 | J3: =Head10 -> Budget Year +1 2021/22 | K3: =Head11 -> Budget Year +2 2022/23
A4: Revenue - Functional
A5: Governance and administration | C5: =SUM(C6:C8) -> 0 | D5: =SUM(D6:D8) -> 281232248.7 | E5: 285859152.1 | F5: 294714345 | G5: 295339579 | H5: 295339579 | I5: 305552851 | J5: 314674789 | K5: 324036954
A6: Executive and council | C6: =A2A!C6 -> 0 | D6: =A2A!D6 -> 0 | E6: =A2A!E6 -> 0 | F6: =A2A!F6 -> 0 | G6: =A2A!G6 -> 0 | H6: =A2A!H6 -> 0 | I6: =A2A!I6 -> 0 | J6: =A2A!J6 -> 0 | K6: =A2A!K6 -> 0
A7: Finance and administration | C7: =A2A!C9 -> 0 | D7: =A2A!D9 -> 281232248.7 | E7: =A2A!E9 -> 285859152.1 | F7: =A2A!F9 -> 294714345 | G7: =A2A!G9 -> 295339579 | H7: =A2A!H9 -> 295339579 | I7: =A2A!I9 -> 305552851 | J7: =A2A!J9 -> 314674789 | K7: =A2A!K9 -> 324036954
A8: Internal audit | C8: =A2A!C23 -> 0 | D8: =A2A!D23 -> 0 | E8: =A2A!E23 -> 0 | F8: =A2A!F23 -> 0 | G8: =A2A!G23 -> 0 | H8: =A2A!H23 -> 0 | I8: =A2A!I23 -> 0 | J8: =A2A!J23 -> 0 | K8: =A2A!K23 -> 0
A9: Community and public safety | C9: =SUM(C10:C14) -> 0 | D9: =SUM(D10:D14) -> 2718057.67 | E9: 4625571.8 | F9: 6599995 | G9: 6667252 | H9: 6667252 | I9: 6818998 | J9: 7149423 | K9: 7488282
A10: Community and social services | C10: =A2A!C26 -> 0 | D10: =A2A!D26 -> 463057.67 | E10: =A2A!E26 -> 4500571.8 | F10: =A2A!F26 -> 5024995 | G10: =A2A!G26 -> 5092252 | H10: =A2A!H26 -> 5092252 | I10: =A2A!I26 -> 5243998 | J10: =A2A!J26 -> 5503548 | K10: =A2A!K26 -> 5768343
A11: Sport and recreation | C11: =A2A!C48 -> 0 | D11: =A2A!D48 -> 0 | E11: =A2A!E48 -> 0 | F11: =A2A!F48 -> 0 | G11: =A2A!G48 -> 0 | H11: =A2A!H48 -> 0 | I11: =A2A!I48 -> 0 | J11: =A2A!J48 -> 0 | K11: =A2A!K48 -> 0
A12: Public safety | C12: =A2A!C54 -> 0 | D12: =A2A!D54 -> 0 | E12: =A2A!E54 -> 0 | F12: =A2A!F54 -> 0 | G12: =A2A!G54 -> 0 | H12: =A2A!H54 -> 0 | I12: =A2A!I54 -> 0 | J12: =A2A!J54 -> 0 | K12: =A2A!K54 -> 0
A13: Housing | C13: =A2A!C63 -> 0 | D13: =A2A!D63 -> 0 | E13: =A2A!E63 -> 0 | F13: =A2A!F63 -> 0 | G13: =A2A!G63 -> 0 | H13: =A2A!H63 -> 0 | I13: =A2A!I63 -> 0 | J13: =A2A!J63 -> 0 | K13: =A2A!K63 -> 0
A14: Health | C14: =A2A!C66 -> 0 | D14: =A2A!D66 -> 2255000 | E14: =A2A!E66 -> 125000 | F14: =A2A!F66 -> 1575000 | G14: =A2A!G66 -> 1575000 | H14: =A2A!H66 -> 1575000 | I14: =A2A!I66 -> 1575000 | J14: =A2A!J66 -> 1645875 | K14: =A2A!K66 -> 1719939
A15: Economic and environmental services | C15: =SUM(C16:C18) -> 0 | D15: =SUM(D16:D18) -> 63872533.42 | E15: 70744179.96 | F15: 93213685 | G15: 78213685 | H15: 78213685 | I15: 93911400 | J15: 81624768 | K15: 85331288
A16: Planning and development | C16: =A2A!C75 -> 0 | D16: =A2A!D75 -> 3145725 | E16: =A2A!E75 -> 4588020.03 | F16: =A2A!F75 -> 17580000 | G16: =A2A!G75 -> 2580000 | H16: =A2A!H75 -> 2580000 | I16: =A2A!I75 -> 18281000 | J16: =A2A!J75 -> 2591000 | K16: =A2A!K75 -> 2741000
A17: Road transport | C17: =A2A!C86 -> 0 | D17: =A2A!D86 -> 60726808.42 | E17: =A2A!E86 -> 66156159.93 | F17: =A2A!F86 -> 75633685 | G17: =A2A!G86 -> 75633685 | H17: =A2A!H86 -> 75633685 | I17: =A2A!I86 -> 75630400 | J17: =A2A!J86 -> 79033768 | K17: =A2A!K86 -> 82590288
A18: Environmental protection | C18: =A2A!C91 -> 0 | D18: =A2A!D91 -> 0 | E18: =A2A!E91 -> 0 | F18: =A2A!F91 -> 0 | G18: =A2A!G91 -> 0 | H18: =A2A!H91 -> 0 | I18: =A2A!I91 -> 0 | J18: =A2A!J91 -> 0 | K18: =A2A!K91 -> 0
A19: Trading services | C19: =SUM(C20:C23) -> 0 | D19: =SUM(D20:D23) -> 0 | E19: 0 | F19: 0 | G19: 0 | H19: 0 | I19: 0 | J19: =SUM(J20:J23) -> 0 | K19: 0
A20: Energy sources | C20: =A2A!C99 -> 0 | D20: =A2A!D99 -> 0 | E20: =A2A!E99 -> 0 | F20: =A2A!F99 -> 0 | G20: =A2A!G99 -> 0 | H20: =A2A!H99 -> 0 | I20: =A2A!I99 -> 0 | J20: =A2A!J99 -> 0 | K20: =A2A!K99 -> 0
A21: Water management | C21: =A2A!C103 -> 0 | D21: =A2A!D103 -> 0 | E21: =A2A!E103 -> 0 | F21: =A2A!F103 -> 0 | G21: =A2A!G103 -> 0 | H21: =A2A!H103 -> 0 | I21: =A2A!I103 -> 0 | J21: =A2A!J103 -> 0 | K21: =A2A!K103 -> 0
A22: Waste water management | C22: =A2A!C107 -> 0 | D22: =A2A!D107 -> 0 | E22: =A2A!E107 -> 0 | F22: =A2A!F107 -> 0 | G22: =A2A!G107 -> 0 | H22: =A2A!H107 -> 0 | I22: =A2A!I107 -> 0 | J22: =A2A!J107 -> 0 | K22: =A2A!K107 -> 0
A23: Waste management | C23: =A2A!C112 -> 0 | D23: =A2A!D112 -> 0 | E23: =A2A!E112 -> 0 | F23: =A2A!F112 -> 0 | G23: =A2A!G112 -> 0 | H23: =A2A!H112 -> 0 | I23: =A2A!I112 -> 0 | J23: =A2A!J112 -> 0 | K23: =A2A!K112 -> 0
A24: Other | B24: 4 | C24: =A2A!C117 -> 0 | D24: =A2A!D117 -> 10344597.24 | E24: =A2A!E117 -> 10308941.79 | F24: =A2A!F117 -> 11283156 | G24: =A2A!G117 -> 11283156 | H24: =A2A!H117 -> 11283156 | I24: =A2A!I117 -> 11480000 | J24: =A2A!J117 -> 11996600 | K24: =A2A!K117 -> 12536448
A25: ="Total "&A4 -> Total Revenue - Functional | B25: 2 | C25: =C5+C9+C15+C19+C24 -> 0 | D25: =D5+D9+D15+D19+D24 -> 358167437.1 | E25: =E5+E9+E15+E19+E24 -> 371537845.7 | F25: 405811181 | G25: 391503672 | H25: 391503672 | I25: =I5+I9+I15+I19+I24 -> 417763249 | J25: 415445580 | K25: 429392972
A27: Expenditure - Functional
A28: Governance and administration | C28: =SUM(C29:C31) -> 0 | D28: =SUM(D29:D31) -> 278107713.2 | E28: 237207035.4 | F28: 228333324 | G28: 218256989 | H28: 218256989 | I28: 217200714 | J28: 225734087 | K28: 235949695
A29: Executive and council | C29: =A2A!C128 -> 0 | D29: =A2A!D128 -> 50090254.92 | E29: =A2A!E128 -> 50534712.15 | F29: =A2A!F128 -> 49643821 | G29: =A2A!G128 -> 49128567 | H29: =A2A!H128 -> 49128567 | I29: =A2A!I128 -> 48601418 | J29: =A2A!J128 -> 50788486 | K29: =A2A!K128 -> 53073966
A30: Finance and administration | C30: =A2A!C131 -> 0 | D30: =A2A!D131 -> 223185221.9 | E30: =A2A!E131 -> 181767770.5 | F30: =A2A!F131 -> 172327200 | G30: =A2A!G131 -> 163777689 | H30: =A2A!H131 -> 163777689 | I30: =A2A!I131 -> 163242649 | J30: =A2A!J131 -> 169347906 | K30: =A2A!K131 -> 177026136
A31: Internal audit | C31: =A2A!C145 -> 0 | D31: =A2A!D145 -> 4832236.33 | E31: =A2A!E145 -> 4904552.74 | F31: =A2A!F145 -> 6362303 | G31: =A2A!G145 -> 5350733 | H31: =A2A!H145 -> 5350733 | I31: =A2A!I145 -> 5356647 | J31: =A2A!J145 -> 5597695 | K31: =A2A!K145 -> 5849593
A32: Community and public safety | C32: =SUM(C33:C37) -> 0 | D32: =SUM(D33:D37) -> 61664941 | E32: 67801433.66 | F32: 65657980 | G32: 67432069 | H32: 67432069 | I32: 67850540 | J32: 70927381 | K32: 74136247
A33: Community and social services | C33: =A2A!C148 -> 0 | D33: =A2A!D148 -> 27691774.43 | E33: =A2A!E148 -> 29106962.47 | F33: =A2A!F148 -> 31422687 | G33: =A2A!G148 -> 33602079 | H33: =A2A!H148 -> 33602079 | I33: =A2A!I148 -> 34008186 | J33: =A2A!J148 -> 35562125 | K33: =A2A!K148 -> 37179554
A34: Sport and recreation | C34: =A2A!C170 -> 0 | D34: =A2A!D170 -> 2794348.2 | E34: =A2A!E170 -> 2550961.82 | F34: =A2A!F170 -> 2704669 | G34: =A2A!G170 -> 2731294 | H34: =A2A!H170 -> 2731294 | I34: =A2A!I170 -> 2778519 | J34: =A2A!J170 -> 2903553 | K34: =A2A!K170 -> 3034214
A35: Public safety | C35: =A2A!C176 -> 0 | D35: =A2A!D176 -> 8219158.2 | E35: =A2A!E176 -> 10500752.29 | F35: =A2A!F176 -> 5550786 | G35: =A2A!G176 -> 4962696 | H35: =A2A!H176 -> 4962696 | I35: =A2A!I176 -> 4766511 | J35: =A2A!J176 -> 4981002 | K35: =A2A!K176 -> 5205147
A36: Housing | C36: =A2A!C185 -> 0 | D36: =A2A!D185 -> 1391247.22 | E36: =A2A!E185 -> 1446889.89 | F36: =A2A!F185 -> 1530002 | G36: =A2A!G185 -> 1527729 | H36: =A2A!H185 -> 1527729 | I36: =A2A!I185 -> 1530296 | J36: =A2A!J185 -> 1599159 | K36: =A2A!K185 -> 1671122
A37: Health | C37: =A2A!C188 -> 0 | D37: =A2A!D188 -> 21568412.95 | E37: =A2A!E188 -> 24195867.19 | F37: =A2A!F188 -> 24449836 | G37: =A2A!G188 -> 24608271 | H37: =A2A!H188 -> 24608271 | I37: =A2A!I188 -> 24767028 | J37: =A2A!J188 -> 25881542 | K37: =A2A!K188 -> 27046210
A38: Economic and environmental services | C38: =SUM(C39:C41) -> 0 | D38: =SUM(D39:D41) -> 88625343.28 | E38: 93391425.98 | F38: 113380334 | G38: 94448715 | H38: 94448715 | I38: 110918173 | J38: 99372367 | K38: 103844125
A39: Planning and development | C39: =A2A!C197 -> 0 | D39: =A2A!D197 -> 24952240.18 | E39: =A2A!E197 -> 28100650.35 | F39: =A2A!F197 -> 43853738 | G39: =A2A!G197 -> 25756944 | H39: =A2A!H197 -> 25756944 | I39: =A2A!I197 -> 42104124 | J39: =A2A!J197 -> 27461688 | K39: =A2A!K197 -> 28697469
A40: Road transport | C40: =A2A!C208 -> 0 | D40: =A2A!D208 -> 59369981.74 | E40: =A2A!E208 -> 61827585.39 | F40: =A2A!F208 -> 65934132 | G40: =A2A!G208 -> 64262155 | H40: =A2A!H208 -> 64262155 | I40: =A2A!I208 -> 64026105 | J40: =A2A!J208 -> 66907276 | K40: =A2A!K208 -> 69918104
A41: Environmental protection | C41: =A2A!C213 -> 0 | D41: =A2A!D213 -> 4303121.36 | E41: =A2A!E213 -> 3463190.24 | F41: =A2A!F213 -> 3592464 | G41: =A2A!G213 -> 4429616 | H41: =A2A!H213 -> 4429616 | I41: =A2A!I213 -> 4787944 | J41: =A2A!J213 -> 5003403 | K41: =A2A!K213 -> 5228552
A42: Trading services | C42: =SUM(C43:C46) -> 0 | D42: =SUM(D43:D46) -> 0 | E42: 0 | F42: =SUM(F43:F46) -> 0 | G42: 0 | H42: 0 | I42: 0 | J42: 0 | K42: =SUM(K43:K46) -> 0
A43: Energy sources | C43: =A2A!C221 -> 0 | D43: =A2A!D221 -> 0 | E43: =A2A!E221 -> 0 | F43: =A2A!F221 -> 0 | G43: =A2A!G221 -> 0 | H43: =A2A!H221 -> 0 | I43: =A2A!I221 -> 0 | J43: =A2A!J221 -> 0 | K43: =A2A!K221 -> 0
A44: Water management | C44: =A2A!C225 -> 0 | D44: =A2A!D225 -> 0 | E44: =A2A!E225 -> 0 | F44: =A2A!F225 -> 0 | G44: =A2A!G225 -> 0 | H44: =A2A!H225 -> 0 | I44: =A2A!I225 -> 0 | J44: =A2A!J225 -> 0 | K44: =A2A!K225 -> 0
A45: Waste water management | C45: =A2A!C229 -> 0 | D45: =A2A!D229 -> 0 | E45: =A2A!E229 -> 0 | F45: =A2A!F229 -> 0 | G45: =A2A!G229 -> 0 | H45: =A2A!H229 -> 0 | I45: =A2A!I229 -> 0 | J45: =A2A!J229 -> 0 | K45: =A2A!K229 -> 0
A46: Waste management | C46: =A2A!C234 -> 0 | D46: =A2A!D234 -> 0 | E46: =A2A!E234 -> 0 | F46: =A2A!F234 -> 0 | G46: =A2A!G234 -> 0 | H46: =A2A!H234 -> 0 | I46: =A2A!I234 -> 0 | J46: =A2A!J234 -> 0 | K46: =A2A!K234 -> 0
A47: Other | B47: 4 | C47: =A2A!C239 -> 0 | D47: =A2A!D239 -> 19120138.85 | E47: =A2A!E239 -> 21771946 | F47: =A2A!F239 -> 21690703 | G47: =A2A!G239 -> 21112496 | H47: =A2A!H239 -> 21112496 | I47: =A2A!I239 -> 21291744 | J47: =A2A!J239 -> 22249874 | K47: =A2A!K239 -> 23251118
A48: ="Total "&A27 -> Total Expenditure - Functional | B48: 3 | C48: =C28+C32+C38+C42+C47 -> 0 | D48: =D28+D32+D38+D42+D47 -> 447518136.3 | E48: =E28+E32+E38+E42+E47 -> 420171841 | F48: =F28+F32+F38+F42+F47 -> 429062341 | G48: 401250269 | H48: 401250269 | I48: 417261171 | J48: 418283709 | K48: 437181185
A49: =result -> Surplus/(Deficit) for the year | C49: =C25-C48 -> 0 | D49: =D25-D48 -> -89350699.21 | E49: -48633995.32 | F49: -23251160 | G49: -9746597 | H49: -9746597 | I49: 502078 | J49: -2838129 | K49: -7788213
A50: =head27a -> References
A51: 1. Government Finance Statistics Functions and Sub-functions are standardised to assist the compilation of national and international accounts for comparison purposes
A52: 2. Total Revenue by functional classification must reconcile to Total Operating Revenue shown in Budgeted Financial Performance (revenue and expenditure)
A53: 3. Total Expenditure by Functional Classification must reconcile to Total Operating Expenditure shown in Budgeted Financial Performance (revenue and expenditure)
A54: 4. All amounts must be classified under a functional classification . The GFS function 'Other' is only for Abbatoirs, Air Transport, Forestry, Licensing and Regulation, Markets and Tourism - and if used must be supported by footnotes. Nothing else may be placed under 'Other'. Assign associate share to relevant classification.
A57: check oprev balance | C57: =C25-'A4-FinPerf RE'!C59 -> 0 | D57: =D25-'A4-FinPerf RE'!D59 -> 0 | E57: =E25-'A4-FinPerf RE'!E59 -> 0 | F57: =F25-'A4-FinPerf RE'!F59 -> 0 | G57: =G25-'A4-FinPerf RE'!G59 -> 0 | H57: =H25-'A4-FinPerf RE'!H59 -> 0 | I57: =I25-'A4-FinPerf RE'!J59 -> 0 | J57: =J25-'A4-FinPerf RE'!K59 -> 0 | K57: =K25-'A4-FinPerf RE'!L59 -> 0
A58: check opexp balance | C58: =C48-'A4-FinPerf RE'!C35 -> 0 | D58: =D48-'A4-FinPerf RE'!D35 -> 0 | E58: =E48-'A4-FinPerf RE'!E35 -> 0 | F58: =F48-'A4-FinPerf RE'!F35 -> 0 | G58: =G48-'A4-FinPerf RE'!G35 -> 0 | H58: =H48-'A4-FinPerf RE'!H35 -> 0 | I58: =I48-'A4-FinPerf RE'!J35 -> 0 | J58: =J48-'A4-FinPerf RE'!K35 -> 0 | K58: =K48-'A4-FinPerf RE'!L35 -> 0

Sheet A2A
A1: =muni&" - "&Approve3 -> DC42 Sedibeng - Table A2 Budgeted Financial Performance (revenue and expenditure by functional classification)
A2: ="Functional Classification "&desc -> Functional Classification Description | B2: =head27 -> Ref | C2: =head1b -> 2016/17 | D2: =head1A -> 2017/18 | E2: =Head1 -> 2018/19 | F2: =Head2 -> Current Year 2019/20 | I2: =Head3 -> 2020/21 Medium Term Revenue & Expenditure Framework
A3: R thousand | B3: 1 | C3: =Head5 -> Audited Outcome | D3: =Head5 -> Audited Outcome | E3: =Head5 -> Audited Outcome | F3: =Head6 -> Original Budget | G3: =Head7 -> Adjusted Budget | H3: =Head8 -> Full Year Forecast | I3: =Head9 -> Budget Year 2020/21 | J3: =Head10 -> Budget Year +1 2021/22 | K3: =Head11 -> Budget Year +2 2022/23
A4: Revenue - Functional
A5: Municipal governance and administration | C5: =C6+C9+C23 -> 0 | D5: 281232248.7 | E5: 285859152.1 | F5: 294714345 | G5: 295339579 | H5: 295339579 | I5: 305552851 | J5: 314674789 | K5: 324036954
A6: Executive and council | C6: =SUM(C7:C8) -> 0 | D6: =SUM(D7:D8) -> 0 | E6: 0 | F6: 0 | G6: 0 | H6: 0 | I6: 0 | J6: 0 | K6: 0
A7: Mayor and Council | C7: 0 | D7: 0 | E7: 0 | F7: 0 | G7: 0 | H7: 0 | I7: 0 | J7: 0 | K7: 0
A8: Municipal Manager, Town Secretary and Chief Executive | C8: 0 | D8: 0 | E8: 0 | F8: 0 | G8: 0 | H8: 0 | I8: 0 | J8: 0 | K8: 0
A9: Finance and administration | C9: =SUM(C10:C22) -> 0 | D9: 281232248.7 | E9: 285859152.1 | F9: 294714345 | G9: 295339579 | H9: 295339579 | I9: 305552851 | J9: 314674789 | K9: 324036954
A10: Administrative and Corporate Support | C10: 0 | D10: 7858549.18 | E10: 8386125.86 | F10: 8909271 | G10: 8909271 | H10: 8909271 | I10: 11288271 | J10: 11600583 | K10: 12180179
A11: Asset Management
A12: Finance | C12: 0 | D12: 262492672 | E12: 266796144.1 | F12: 273320663 | G12: 273945897 | H12: 273945897 | I12: 282215663 | J12: 290483088 | K12: 298699057
A13: Fleet Management | C13: 0 | D13: 0 | E13: 0 | F13: 0 | G13: 0 | H13: 0 | I13: 0 | J13: 0 | K13: 0
A14: Human Resources | C14: 0 | D14: 425295.29 | E14: 442601.95 | F14: 441645 | G14: 441645 | H14: 441645 | I14: 441645 | J14: 461519 | K14: 482287
A15: Information Technology | C15: 0 | D15: 10455732.3 | E15: 10234280.26 | F15: 12042766 | G15: 12042766 | H15: 12042766 | I15: 11607272 | J15: 12129599 | K15: 12675431
A16: Legal Services | C16: 0 | D16: 0 | E16: 0 | F16: 0 | G16: 0 | H16: 0 | I16: 0 | J16: 0 | K16: 0
A17: Marketing, Customer Relations, Publicity and Media Co-ordination | C17: 0 | D17: 0 | E17: 0 | F17: 0 | G17: 0 | H17: 0 | I17: 0 | J17: 0 | K17: 0
A18: Property Services | C18: 0 | D18: 0 | E18: 0 | F18: 0 | G18: 0 | H18: 0 | I18: 0 | J18: 0 | K18: 0
A19: Risk Management
A20: Security Services | C20: 0 | D20: 0 | E20: 0 | F20: 0 | G20: 0 | H20: 0 | I20: 0 | J20: 0 | K20: 0
A21: Supply Chain Management | C21: 0 | D21: 0 | E21: 0 | F21: 0 | G21: 0 | H21: 0 | I21: 0 | J21: 0 | K21: 0
A22: Valuation Service
A23: Internal audit | C23: =SUM(C24:C24) -> 0 | D23: 0 | E23: 0 | F23: 0 | G23: 0 | H23: 0 | I23: 0 | J23: 0 | K23: 0
A24: Governance Function
A25: Community and public safety | C25: =C26+C48+C54+C63+C66 -> 0 | D25: 2718057.67 | E25: 4625571.8 | F25: 6599995 | G25: 6667252 | H25: 6667252 | I25: 6818998 | J25: 7149423 | K25: 7488282
A26: Community and social services | C26: =SUM(C27:C47) -> 0 | D26: =SUM(D27:D47) -> 463057.67 | E26: 4500571.8 | F26: 5024995 | G26: 5092252 | H26: 5092252 | I26: 5243998 | J26: 5503548 | K26: 5768343
A27: Aged Care
A28: Agricultural
A29: Animal Care and Diseases
A30: Cemeteries, Funeral Parlours and Crematoriums
A31: Child Care Facilities
A32: Community Halls and Facilities | C32: 0 | D32: 463057.67 | E32: 4500571.8 | F32: 5024995 | G32: 4973252 | H32: 4973252 | I32: 5243998 | J32: 5503548 | K32: 5768343
A33: Consumer Protection
A34: Cultural Matters
A35: Disaster Management | C35: 0 | D35: 0 | E35: 0 | F35: 0 | G35: 119000 | H35: 119000 | I35: 0 | J35: 0 | K35: 0
A36: Education
A37: Indigenous and Customary Law
A38: Industrial Promotion
A39: Language Policy
A40: Libraries and Archives
A41: Literacy Programmes | C41: 0 | D41: 0 | E41: 0 | F41: 0 | G41: 0 | H41: 0 | I41: 0 | J41: 0 | K41: 0
A42: Media Services
A43: Museums and Art Galleries | C43: 0 | D43: 0 | E43: 0 | F43: 0 | G43: 0 | H43: 0 | I43: 0 | J43: 0 | K43: 0
A44: Population Development
A45: Provincial Cultural Matters
A46: Theatres | C46: 0 | D46: 0 | E46: 0 | F46: 0 | G46: 0 | H46: 0 | I46: 0 | J46: 0 | K46: 0
A47: Zoo's
A48: Sport and recreation | C48: =SUM(C49:C53) -> 0 | D48: =SUM(D49:D53) -> 0 | E48: 0 | F48: 0 | G48: 0 | H48: 0 | I48: 0 | J48: 0 | K48: 0
A49: Beaches and Jetties
A50: Casinos, Racing, Gambling, Wagering
A51: Community Parks (including Nurseries)
A52: Recreational Facilities
A53: Sports Grounds and Stadiums | C53: 0 | D53: 0 | E53: 0 | F53: 0 | G53: 0 | H53: 0 | I53: 0 | J53: 0 | K53: 0
A54: Public safety | C54: =SUM(C55:C62) -> 0 | D54: 0 | E54: 0 | F54: 0 | G54: 0 | H54: 0 | I54: 0 | J54: 0 | K54: 0
A55: Civil Defence | C55: 0 | D55: 0 | E55: 0 | F55: 0 | G55: 0 | H55: 0 | I55: 0 | J55: 0 | K55: 0
A56: Cleansing
A57: Control of Public Nuisances
A58: Fencing and Fences
A59: Fire Fighting and Protection | C59: 0 | D59: 0 | E59: 0 | F59: 0 | G59: 0 | H59: 0 | I59: 0 | J59: 0 | K59: 0
A60: Licensing and Control of Animals
A61: Police Forces, Traffic and Street Parking Control
A62: Pounds
A63: Housing | C63: =SUM(C64:C65) -> 0 | D63: =SUM(D64:D65) -> 0 | E63: 0 | F63: 0 | G63: 0 | H63: 0 | I63: 0 | J63: 0 | K63: 0
A64: Housing | C64: 0 | D64: 0 | E64: 0 | F64: 0 | G64: 0 | H64: 0 | I64: 0 | J64: 0 | K64: 0
A65: Informal Settlements
A66: Health | C66: =SUM(C67:C73) -> 0 | D66: =SUM(D67:D73) -> 2255000 | E66: 125000 | F66: 1575000 | G66: 1575000 | H66: 1575000 | I66: 1575000 | J66: 1645875 | K66: 1719939
A67: Ambulance
A68: Health Services | C68: 0 | D68: 2255000 | E68: 125000 | F68: 1575000 | G68: 1575000 | H68: 1575000 | I68: 1575000 | J68: 1645875 | K68: 1719939
A69: Laboratory Services
A70: Food Control
A71: Health Surveillance and Prevention of Communicable Diseases including immunizations
A72: Vector Control
A73: Chemical Safety
A74: Economic and environmental services | C74: =C75+C86+C91 -> 0 | D74: 63872533.42 | E74: 70744179.96 | F74: 93213685 | G74: 78213685 | H74: 78213685 | I74: 93911400 | J74: 81624768 | K74: 85331288
A75: Planning and development | C75: =SUM(C76:C85) -> 0 | D75: =SUM(D76:D85) -> 3145725 | E75: 4588020.03 | F75: 17580000 | G75: 2580000 | H75: 2580000 | I75: 18281000 | J75: 2591000 | K75: 2741000
A76: Billboards
A77: Corporate Wide Strategic Planning (IDPs, LEDs) | C77: 0 | D77: 714725 | E77: 2208581.34 | F77: 0 | G77: 0 | H77: 0 | I77: 0 | J77: 0 | K77: 0
A78: Central City Improvement District
A79: Development Facilitation | C79: 0 | D79: 2431000 | E79: 2379438.69 | F79: 17580000 | G79: 2580000 | H79: 2580000 | I79: 18281000 | J79: 2591000 | K79: 2741000
A80: Economic Development/Planning
A81: Regional Planning and Development
A82: Town Planning, Building Regulations and Enforcement, and City Engineer | C82: 0 | D82: 0 | E82: 0 | F82: 0 | G82: 0 | H82: 0 | I82: 0 | J82: 0 | K82: 0
A83: Project Management Unit | C83: 0 | D83: 0 | E83: 0 | F83: 0 | G83: 0 | H83: 0 | I83: 0 | J83: 0 | K83: 0
A84: Provincial Planning
A85: Support to Local Municipalities
A86: Road transport | C86: =SUM(C87:C90) -> 0 | D86: 60726808.42 | E86: 66156159.93 | F86: 75633685 | G86: 75633685 | H86: 75633685 | I86: 75630400 | J86: 79033768 | K86: 82590288
A87: Public Transport
A88: Road and Traffic Regulation | C88: 0 | D88: 60726808.42 | E88: 66156159.93 | F88: 75633685 | G88: 75633685 | H88: 75633685 | I88: 75630400 | J88: 79033768 | K88: 82590288
A89: Roads
A90: Taxi Ranks | C90: 0 | D90: 0 | E90: 0 | F90: 0 | G90: 0 | H90: 0 | I90: 0 | J90: 0 | K90: 0
A91: Environmental protection | C91: =SUM(C92:C97) -> 0 | D91: =SUM(D92:D97) -> 0 | E91: 0 | F91: 0 | G91: 0 | H91: 0 | I91: 0 | J91: 0 | K91: 0
A92: Biodiversity and Landscape | C92: 0 | D92: 0 | E92: 0 | F92: 0 | G92: 0 | H92: 0 | I92: 0 | J92: 0 | K92: 0
A93: Coastal Protection
A94: Indigenous Forests
A95: Nature Conservation
A96: Pollution Control | C96: 0 | D96: 0 | E96: 0 | F96: 0 | G96: 0 | H96: 0 | I96: 0 | J96: 0 | K96: 0
A97: Soil Conservation
A98: Trading services | C98: =C99+C103+C107+C112 -> 0 | D98: =D99+D103+D107+D112 -> 0 | E98: 0 | F98: 0 | G98: 0 | H98: 0 | I98: 0 | J98: 0 | K98: =K99+K103+K107+K112 -> 0
A99: Energy sources | C99: =SUM(C100:C102) -> 0 | D99: =SUM(D100:D102) -> 0 | E99: 0 | F99: 0 | G99: 0 | H99: 0 | I99: 0 | J99: 0 | K99: 0
A100: Electricity
A101: Street Lighting and Signal Systems
A102: Nonelectric Energy
A103: Water management | C103: =SUM(C104:C106) -> 0 | D103: =SUM(D104:D106) -> 0 | E103: 0 | F103: 0 | G103: 0 | H103: 0 | I103: 0 | J103: 0 | K103: 0
A104: Water Treatment
A105: Water Distribution
A106: Water Storage
A107: Waste water management | C107: =SUM(C108:C111) -> 0 | D107: =SUM(D108:D111) -> 0 | E107: 0 | F107: 0 | G107: 0 | H107: 0 | I107: 0 | J107: 0 | K107: 0
A108: Public Toilets
A109: Sewerage
A110: Storm Water Management
A111: Waste Water Treatment
A112: Waste management | C112: =SUM(C113:C116) -> 0 | D112: =SUM(D113:D116) -> 0 | E112: 0 | F112: 0 | G112: 0 | H112: 0 | I112: 0 | J112: 0 | K112: 0
A113: Recycling
A114: Solid Waste Disposal (Landfill Sites)
A115: Solid Waste Removal
A116: Street Cleaning
A117: Other | C117: =SUM(C118:C123) -> 0 | D117: =SUM(D118:D123) -> 10344597.24 | E117: 10308941.79 | F117: 11283156 | G117: 11283156 | H117: 11283156 | I117: 11480000 | J117: 11996600 | K117: 12536448
A118: Abattoirs
A119: Air Transport | C119: 0 | D119: 3534162.51 | E119: 4134503.86 | F119: 3780000 | G119: 3780000 | H119: 3780000 | I119: 3780000 | J119: 3950100 | K119: 4127855
A120: Forestry
A121: Licensing and Regulation
A122: Markets | C122: 0 | D122: 6810434.73 | E122: 6174437.93 | F122: 7503156 | G122: 7503156 | H122: 7503156 | I122: 7700000 | J122: 8046500 | K122: 8408593
A123: Tourism | C123: 0 | D123: 0 | E123: 0 | F123: 0 | G123: 0 | H123: 0 | I123: 0 | J123: 0 | K123: 0
A124: ="Total "&A4 -> Total Revenue - Functional | B124: 2 | C124: =C5+C25+C74+C98+C117 -> 0 | D124: 358167437.1 | E124: 371537845.7 | F124: 405811181 | G124: 391503672 | H124: 391503672 | I124: 417763249 | J124: 415445580 | K124: 429392972
A126: Expenditure - Functional
A127: =A5 -> Municipal governance and administration | C127: =C128+C131+C145 -> 0 | D127: 278107713.2 | E127: 237207035.4 | F127: 228333324 | G127: 218256989 | H127: 218256989 | I127: 217200714 | J127: 225734087 | K127: 235949695
A128: Executive and council | C128: =SUM(C129:C130) -> 0 | D128: 50090254.92 | E128: 50534712.15 | F128: 49643821 | G128: 49128567 | H128: 49128567 | I128: 48601418 | J128: 50788486 | K128: 53073966
A129: Mayor and Council | C129: 0 | D129: 34352433.35 | E129: 36745043.25 | F129: 38313324 | G129: 38056641 | H129: 38056641 | I129: 38182006 | J129: 39900200 | K129: 41695708
A130: Municipal Manager, Town Secretary and Chief Executive | C130: 0 | D130: 15737821.57 | E130: 13789668.9 | F130: 11330497 | G130: 11071926 | H130: 11071926 | I130: 10419412 | J130: 10888286 | K130: 11378258
A131: Finance and administration | C131: =SUM(C132:C144) -> 0 | D131: 223185221.9 | E131: 181767770.5 | F131: 172327200 | G131: 163777689 | H131: 163777689 | I131: 163242649 | J131: 169347906 | K131: 177026136
A132: Administrative and Corporate Support | C132: 0 | D132: 45856034.8 | E132: 51178602.65 | F132: 55182024 | G132: 54424398 | H132: 54424398 | I132: 57633813 | J132: 60031672 | K132: 62790667
A133: Asset Management
A134: Finance | C134: 0 | D134: 87565519.02 | E134: 24966446.27 | F134: 11291923 | G134: 12795293 | H134: 12795293 | I134: 12774114 | J134: 12303947 | K134: 12857627
A135: Fleet Management | C135: 0 | D135: 4567241.38 | E135: 4497421.48 | F135: 4437798 | G135: 3844260 | H135: 3844260 | I135: 3005549 | J135: 3140799 | K135: 3282134
A136: Human Resources | C136: 0 | D136: 9736949.18 | E136: 9623770.15 | F136: 10370412 | G136: 9263167 | H136: 9263167 | I136: 9340898 | J136: 9761239 | K136: 10200495
A137: Information Technology | C137: 0 | D137: 24774438.42 | E137: 34049212.56 | F137: 34645109 | G137: 35321916 | H137: 35321916 | I137: 35602334 | J137: 37204441 | K137: 38878642
A138: Legal Services | C138: 0 | D138: 2682787.22 | E138: 2543285.85 | F138: 4138071 | G138: 4830489 | H138: 4830489 | I138: 3933886 | J138: 4110910 | K138: 4295901
A139: Marketing, Customer Relations, Publicity and Media Co-ordination | C139: 0 | D139: 8201592.61 | E139: 7937369.54 | F139: 8258435 | G139: 2176634 | H139: 2176634 | I139: 1470492 | J139: 1536665 | K139: 1605814
A140: Property Services | C140: 0 | D140: 10243263.93 | E140: 14756753.99 | F140: 11751265 | G140: 10001855 | H140: 10001855 | I140: 10041553 | J140: 10493422 | K140: 10965628
A141: Risk Management | C141: 0 | D141: 50694.73 | E141: 0 | F141: 0 | G141: 0 | H141: 0 | I141: 0 | J141: 0 | K141: 0
A142: Security Services | C142: 0 | D142: 26232233.5 | E142: 29678509.44 | F142: 29574783 | G142: 28460934 | H142: 28460934 | I142: 26786589 | J142: 27991986 | K142: 29251626
A143: Supply Chain Management | C143: 0 | D143: 3274467.11 | E143: 2536398.56 | F143: 2677380 | G143: 2658743 | H143: 2658743 | I143: 2653421 | J143: 2772825 | K143: 2897602
A144: Valuation Service
A145: Internal audit | C145: =SUM(C146:C146) -> 0 | D145: 4832236.33 | E145: 4904552.74 | F145: 6362303 | G145: 5350733 | H145: 5350733 | I145: 5356647 | J145: 5597695 | K145: 5849593
A146: Governance Function | C146: 0 | D146: 4832236.33 | E146: 4904552.74 | F146: 6362303 | G146: 5350733 | H146: 5350733 | I146: 5356647 | J146: 5597695 | K146: 5849593
A147: Community and public safety | C147: =C148+C170+C176+C185+C188 -> 0 | D147: 61664941 | E147: 67801433.66 | F147: 65657980 | G147: 67432069 | H147: 67432069 | I147: 67850540 | J147: 70927381 | K147: 74136247
A148: Community and social services | C148: =SUM(C149:C169) -> 0 | D148: =SUM(D149:D169) -> 27691774.43 | E148: 29106962.47 | F148: 31422687 | G148: 33602079 | H148: 33602079 | I148: 34008186 | J148: 35562125 | K148: 37179554
A149: Aged Care
A150: Agricultural
A151: Animal Care and Diseases
A152: Cemeteries, Funeral Parlours and Crematoriums
A153: Child Care Facilities
A154: Community Halls and Facilities | C154: 0 | D154: 7748063.68 | E154: 9894291.33 | F154: 11145590 | G154: 10774979 | H154: 10774979 | I154: 10813616 | J154: 11323798 | K154: 11850503
A155: Consumer Protection
A156: Cultural Matters
A157: Disaster Management | C157: 0 | D157: 3462792.04 | E157: 3567994.84 | F157: 3756013 | G157: 7129400 | H157: 7129400 | I157: 7370639 | J157: 7702318 | K157: 8048923
A158: Education
A159: =A37 -> Indigenous and Customary Law
A160: Industrial Promotion
A161: Language Policy
A162: Libraries and Archives
A163: Literacy Programmes | C163: 0 | D163: 4513530.77 | E163: 3922108.39 | F163: 4026590 | G163: 3907687 | H163: 3907687 | I163: 3962225 | J163: 4140526 | K163: 4326851
A164: Media Services
A165: Museums and Art Galleries | C165: 0 | D165: 8488024.35 | E165: 8414381.99 | F165: 8972692 | G165: 8345072 | H165: 8345072 | I165: 8372686 | J165: 8749458 | K165: 9143182
A166: Population Development
A167: Provincial Cultural Matters
A168: Theatres | C168: 0 | D168: 3479363.59 | E168: 3308185.92 | F168: 3521802 | G168: 3444941 | H168: 3444941 | I168: 3489020 | J168: 3646025 | K168: 3810095
A169: Zoo's
A170: Sport and recreation | C170: =SUM(C171:C175) -> 0 | D170: 2794348.2 | E170: 2550961.82 | F170: 2704669 | G170: 2731294 | H170: 2731294 | I170: 2778519 | J170: 2903553 | K170: 3034214
A171: Beaches and Jetties
A172: Casinos, Racing, Gambling, Wagering
A173: Community Parks (including Nurseries)
A174: Recreational Facilities
A175: Sports Grounds and Stadiums | C175: 0 | D175: 2794348.2 | E175: 2550961.82 | F175: 2704669 | G175: 2731294 | H175: 2731294 | I175: 2778519 | J175: 2903553 | K175: 3034214
A176: Public safety | C176: =SUM(C177:C184) -> 0 | D176: 8219158.2 | E176: 10500752.29 | F176: 5550786 | G176: 4962696 | H176: 4962696 | I176: 4766511 | J176: 4981002 | K176: 5205147
A177: Civil Defence | C177: 0 | D177: 7246917.53 | E177: 10286618.56 | F177: 5321124 | G177: 4962696 | H177: 4962696 | I177: 4766511 | J177: 4981002 | K177: 5205147
A178: Cleansing
A179: =A57 -> Control of Public Nuisances
A180: Fencing and Fences
A181: Fire Fighting and Protection | C181: 0 | D181: 972240.67 | E181: 214133.73 | F181: 229662 | G181: 0 | H181: 0 | I181: 0 | J181: 0 | K181: 0
A182: Licensing and Control of Animals
A183: Police Forces, Traffic and Street Parking Control
A184: Pounds
A185: =A63 -> Housing | C185: =SUM(C186:C187) -> 0 | D185: 1391247.22 | E185: 1446889.89 | F185: 1530002 | G185: 1527729 | H185: 1527729 | I185: 1530296 | J185: 1599159 | K185: 1671122
A186: Housing | C186: 0 | D186: 1391247.22 | E186: 1446889.89 | F186: 1530002 | G186: 1527729 | H186: 1527729 | I186: 1530296 | J186: 1599159 | K186: 1671122
A187: Informal Settlements
A188: Health | C188: =SUM(C189:C195) -> 0 | D188: =SUM(D189:D195) -> 21568412.95 | E188: 24195867.19 | F188: 24449836 | G188: 24608271 | H188: 24608271 | I188: 24767028 | J188: 25881542 | K188: 27046210
A189: Ambulance
A190: Health Services | C190: 0 | D190: 21568412.95 | E190: 24195867.19 | F190: 24449836 | G190: 24608271 | H190: 24608271 | I190: 24767028 | J190: 25881542 | K190: 27046210
A191: Laboratory Services
A192: Food Control
A193: Health Surveillance and Prevention of Communicable Diseases including immunizations
A194: Vector Control
A195: Chemical Safety
A196: Economic and environmental services | C196: =C197+C208+C213 -> 0 | D196: 88625343.28 | E196: 93391425.98 | F196: 113380334 | G196: 94448715 | H196: 94448715 | I196: 110918173 | J196: 99372367 | K196: 103844125
A197: Planning and development | C197: =SUM(C198:C207) -> 0 | D197: =SUM(D198:D207) -> 24952240.18 | E197: 28100650.35 | F197: 43853738 | G197: 25756944 | H197: 25756944 | I197: 42104124 | J197: 27461688 | K197: 28697469
A198: Billboards
A199: Corporate Wide Strategic Planning (IDPs, LEDs) | C199: 0 | D199: 10724096.75 | E199: 13120562.24 | F199: 11858735 | G199: 11880061 | H199: 11880061 | I199: 11906847 | J199: 12442656 | K199: 13002576
A200: Central City Improvement District
A201: Development Facilitation | C201: 0 | D201: 9041770.04 | E201: 9184081.64 | F201: 25400768 | G201: 8790094 | H201: 8790094 | I201: 26130150 | J201: 10768883 | K201: 11253486
... 53 more rows

Sheet A3-FinPerf V
A1: =muni&" - "&Approve2 -> DC42 Sedibeng - Table A3 Budgeted Financial Performance (revenue and expenditure by municipal vote)
A2: =Vdesc -> Vote Description | B2: =head27 -> Ref | C2: =head1b -> 2016/17 | D2: =head1A -> 2017/18 | E2: =Head1 -> 2018/19 | F2: =Head2 -> Current Year 2019/20 | I2: =Head3 -> 2020/21 Medium Term Revenue & Expenditure Framework | L2: =Head4 -> LTFS
A3: R thousand | C3: =Head5 -> Audited Outcome | D3: =Head5 -> Audited Outcome | E3: =Head5 -> Audited Outcome | F3: =Head6 -> Original Budget | G3: =Head7 -> Adjusted Budget | H3: =Head8 -> Full Year Forecast | I3: =Head9 -> Budget Year 2020/21 | J3: =Head10 -> Budget Year +1 2021/22 | K3: =Head11 -> Budget Year +2 2022/23 | L3: =Head12 -> Forecast 2023/24 | M3: =Head13 -> Forecast 2024/25 | N3: =Head14 -> Forecast 2025/26 | O3: =Head15 -> Forecast 2026/27 | P3: =Head16 -> Forecast 2027/28 | Q3: =Head17 -> Forecast 2028/29 | R3: =Head18 -> Forecast 2029/30 | S3: =Head19 -> Forecast 2030/31 | T3: =Head20 -> Forecast 2031/32 | U3: =Head21 -> Forecast 2032/33 | V3: =Head22 -> Forecast 2033/34 | W3: =Head23 -> Forecast 2034/35
A4: Revenue by Vote | B4: 1
A5: =A3A!A5 -> Vote 01 - Executive & Council | C5: =A3A!C5 -> 0 | D5: =A3A!D5 -> 0 | E5: =A3A!E5 -> 0 | F5: =A3A!F5 -> 0 | G5: =A3A!G5 -> 0 | H5: =A3A!H5 -> 0 | I5: =A3A!I5 -> 0 | J5: =A3A!J5 -> 0 | K5: =A3A!K5 -> 0
A6: =A3A!A23 -> Vote 02 - Budget & Treasury Office | C6: =A3A!C23 -> 0 | D6: =A3A!D23 -> 262492672 | E6: =A3A!E23 -> 266796144.1 | F6: =A3A!F23 -> 273320663 | G6: =A3A!G23 -> 273945897 | H6: =A3A!H23 -> 273945897 | I6: =A3A!I23 -> 282215663 | J6: =A3A!J23 -> 290483088 | K6: =A3A!K23 -> 298699057
A7: =A3A!A27 -> Vote 03 - Corporate Services | C7: =A3A!C27 -> 0 | D7: =A3A!D27 -> 11344085.26 | E7: =A3A!E27 -> 17476812.85 | F7: =A3A!F27 -> 20619736 | G7: =A3A!G27 -> 20567993 | H7: =A3A!H27 -> 20567993 | I7: =A3A!I27 -> 20343725 | J7: =A3A!J27 -> 21259192 | K7: =A3A!K27 -> 22215856
A8: =A3A!A43 -> Vote 04 - Roads And Transport | C8: =A3A!C43 -> 0 | D8: =A3A!D43 -> 65412808.42 | E8: =A3A!E43 -> 68660598.62 | F8: =A3A!F43 -> 94788685 | G8: =A3A!G43 -> 79788685 | H8: =A3A!H43 -> 79788685 | I8: =A3A!I43 -> 95486400 | J8: =A3A!J43 -> 83270643 | K8: =A3A!K43 -> 87051227
A9: =A3A!A58 -> Vote 05 - Planning & Development | C9: =A3A!C58 -> 0 | D9: =A3A!D58 -> 714725 | E9: =A3A!E58 -> 2208581.34 | F9: =A3A!F58 -> 0 | G9: =A3A!G58 -> 0 | H9: =A3A!H58 -> 0 | I9: =A3A!I58 -> 0 | J9: =A3A!J58 -> 0 | K9: =A3A!K58 -> 0
A10: =A3A!A67 -> Vote 06 - Community & Social Services | C10: =A3A!C67 -> 0 | D10: =A3A!D67 -> 7858549.18 | E10: =A3A!E67 -> 16395708.81 | F10: =A3A!F67 -> 17082097 | G10: =A3A!G67 -> 17201097 | H10: =A3A!H67 -> 17201097 | I10: =A3A!I67 -> 19717461 | J10: =A3A!J67 -> 20432657 | K10: =A3A!K67 -> 21426832
A11: ='Org structure'!A8 -> Vote 07 - | C11: =A3A!C87 -> 0 | D11: =A3A!D87 -> 0 | E11: =A3A!E87 -> 0 | F11: =A3A!F87 -> 0 | G11: =A3A!G87 -> 0 | H11: =A3A!H87 -> 0 | I11: =A3A!I87 -> 0 | J11: =A3A!J87 -> 0 | K11: =A3A!K87 -> 0
A12: ='Org structure'!A9 -> Vote 08 - | C12: =A3A!C88 -> 0 | D12: =A3A!D88 -> 0 | E12: =A3A!E88 -> 0 | F12: =A3A!F88 -> 0 | G12: =A3A!G88 -> 0 | H12: =A3A!H88 -> 0 | I12: =A3A!I88 -> 0 | J12: =A3A!J88 -> 0 | K12: =A3A!K88 -> 0
A13: ='Org structure'!A10 -> Vote 09 - | C13: =A3A!C89 -> 0 | D13: =A3A!D89 -> 0 | E13: =A3A!E89 -> 0 | F13: =A3A!F89 -> 0 | G13: =A3A!G89 -> 0 | H13: =A3A!H89 -> 0 | I13: =A3A!I89 -> 0 | J13: =A3A!J89 -> 0 | K13: =A3A!K89 -> 0
A14: ='Org structure'!A11 -> Vote 10 - | C14: =A3A!C90 -> 0 | D14: =A3A!D90 -> 0 | E14: =A3A!E90 -> 0 | F14: =A3A!F90 -> 0 | G14: =A3A!G90 -> 0 | H14: =A3A!H90 -> 0 | I14: =A3A!I90 -> 0 | J14: =A3A!J90 -> 0 | K14: =A3A!K90 -> 0
A15: ='Org structure'!A12 -> Vote 11 - | C15: =A3A!C91 -> 0 | D15: =A3A!D91 -> 0 | E15: =A3A!E91 -> 0 | F15: =A3A!F91 -> 0 | G15: =A3A!G91 -> 0 | H15: =A3A!H91 -> 0 | I15: =A3A!I91 -> 0 | J15: =A3A!J91 -> 0 | K15: =A3A!K91 -> 0 | L15: =A5A!#REF! -> 
A16: ='Org structure'!A13 -> Vote 12 - | C16: =A3A!C92 -> 0 | D16: =A3A!D92 -> 0 | E16: =A3A!E92 -> 0 | F16: =A3A!F92 -> 0 | G16: =A3A!G92 -> 0 | H16: =A3A!H92 -> 0 | I16: =A3A!I92 -> 0 | J16: =A3A!J92 -> 0 | K16: =A3A!K92 -> 0 | L16: =A5A!#REF! -> 
A17: ='Org structure'!A14 -> Vote 13 - | C17: =A3A!C93 -> 0 | D17: =A3A!D93 -> 0 | E17: =A3A!E93 -> 0 | F17: =A3A!F93 -> 0 | G17: =A3A!G93 -> 0 | H17: =A3A!H93 -> 0 | I17: =A3A!I93 -> 0 | J17: =A3A!J93 -> 0 | K17: =A3A!K93 -> 0 | L17: =A5A!#REF! -> 
A18: ='Org structure'!A15 -> Vote 14 - | C18: =A3A!C94 -> 0 | D18: =A3A!D94 -> 0 | E18: =A3A!E94 -> 0 | F18: =A3A!F94 -> 0 | G18: =A3A!G94 -> 0 | H18: =A3A!H94 -> 0 | I18: =A3A!I94 -> 0 | J18: =A3A!J94 -> 0 | K18: =A3A!K94 -> 0 | L18: =A5A!#REF! -> 
A19: =A3A!A95 -> Vote 15 - Other | C19: =A3A!C95 -> 0 | D19: =A3A!D95 -> 10344597.24 | E19: =A3A!E95 -> 0 | F19: =A3A!F95 -> 0 | G19: =A3A!G95 -> 0 | H19: =A3A!H95 -> 0 | I19: =A3A!I95 -> 0 | J19: =A3A!J95 -> 0 | K19: =A3A!K95 -> 0 | L19: =A5A!#REF! -> 
A20: Total Revenue by Vote | B20: 2 | C20: =SUM(C5:C19) -> 0 | D20: =SUM(D5:D19) -> 358167437.1 | E20: 371537845.7 | F20: 405811181 | G20: 391503672 | H20: 391503672 | I20: 417763249 | J20: 415445580 | K20: 429392972
A22: Expenditure by Vote to be appropriated | B22: 1
A23: =A3A!A111 -> Vote 01 - Executive & Council | C23: =A3A!C111 -> 0 | D23: =A3A!D111 -> 43944658.96 | E23: =A3A!E111 -> 45733239.51 | F23: =A3A!F111 -> 48425239 | G23: =A3A!G111 -> 48134490 | H23: =A3A!H111 -> 48134490 | I23: =A3A!I111 -> 47607341 | J23: =A3A!J111 -> 49749676 | K23: =A3A!K111 -> 51988410
A24: =A3A!A129 -> Vote 02 - Budget & Treasury Office | C24: =A3A!C129 -> 0 | D24: =A3A!D129 -> 95013308.84 | E24: =A3A!E129 -> 31926046.32 | F24: =A3A!F129 -> 19607570 | G24: =A3A!G129 -> 20286623 | H24: =A3A!H129 -> 20286623 | I24: =A3A!I129 -> 20627491 | J24: =A3A!J129 -> 20510727 | K24: =A3A!K129 -> 21433711
A25: =A3A!A133 -> Vote 03 - Corporate Services | C25: =A3A!C133 -> 0 | D25: =A3A!D133 -> 109155200.3 | E25: =A3A!E133 -> 144778058.6 | F25: =A3A!F133 -> 147256801 | G25: =A3A!G133 -> 142969090 | H25: =A3A!H133 -> 142969090 | I25: =A3A!I133 -> 140605188 | J25: =A3A!J133 -> 146932417 | K25: =A3A!K133 -> 153544379
A26: =A3A!A149 -> Vote 04 - Roads And Transport | C26: =A3A!C149 -> 0 | D26: =A3A!D149 -> 91565246.23 | E26: =A3A!E149 -> 94670389.99 | F26: =A3A!F149 -> 114732233 | G26: =A3A!G149 -> 97893273 | H26: =A3A!H149 -> 97893273 | I26: =A3A!I149 -> 115420498 | J26: =A3A!J149 -> 104077294 | K26: =A3A!K149 -> 108760772
A27: =A3A!A164 -> Vote 05 - Planning & Development | C27: =A3A!C164 -> 0 | D27: =A3A!D164 -> 18986227.7 | E27: =A3A!E164 -> 19891563.93 | F27: =A3A!F164 -> 19480480 | G27: =A3A!G164 -> 18095957 | H27: =A3A!H164 -> 18095957 | I27: =A3A!I164 -> 17094548 | J27: =A3A!J164 -> 17863807 | K27: =A3A!K164 -> 18667682
A28: =A3A!A173 -> Vote 06 - Community & Social Services | C28: =A3A!C173 -> 0 | D28: =A3A!D173 -> 54616793.46 | E28: =A3A!E173 -> 66447239.77 | F28: =A3A!F173 -> 64543641 | G28: =A3A!G173 -> 60578355 | H28: =A3A!H173 -> 60578355 | I28: =A3A!I173 -> 62826805 | J28: =A3A!J173 -> 65481920 | K28: =A3A!K173 -> 68503308
A29: ='Org structure'!A8 -> Vote 07 - | C29: =A3A!C193 -> 0 | D29: =A3A!D193 -> 0 | E29: =A3A!E193 -> 0 | F29: =A3A!F193 -> 0 | G29: =A3A!G193 -> 0 | H29: =A3A!H193 -> 0 | I29: =A3A!I193 -> 0 | J29: =A3A!J193 -> 0 | K29: =A3A!K193 -> 0
A30: ='Org structure'!A9 -> Vote 08 - | C30: =A3A!C194 -> 0 | D30: =A3A!D194 -> 0 | E30: =A3A!E194 -> 0 | F30: =A3A!F194 -> 0 | G30: =A3A!G194 -> 0 | H30: =A3A!H194 -> 0 | I30: =A3A!I194 -> 0 | J30: =A3A!J194 -> 0 | K30: =A3A!K194 -> 0
A31: ='Org structure'!A10 -> Vote 09 - | C31: =A3A!C195 -> 0 | D31: =A3A!D195 -> 0 | E31: =A3A!E195 -> 0 | F31: =A3A!F195 -> 0 | G31: =A3A!G195 -> 0 | H31: =A3A!H195 -> 0 | I31: =A3A!I195 -> 0 | J31: =A3A!J195 -> 0 | K31: =A3A!K195 -> 0
A32: ='Org structure'!A11 -> Vote 10 - | C32: =A3A!C196 -> 0 | D32: =A3A!D196 -> 0 | E32: =A3A!E196 -> 0 | F32: =A3A!F196 -> 0 | G32: =A3A!G196 -> 0 | H32: =A3A!H196 -> 0 | I32: =A3A!I196 -> 0 | J32: =A3A!J196 -> 0 | K32: =A3A!K196 -> 0
A33: ='Org structure'!A12 -> Vote 11 - | C33: =A3A!C197 -> 0 | D33: =A3A!D197 -> 0 | E33: =A3A!E197 -> 0 | F33: =A3A!F197 -> 0 | G33: =A3A!G197 -> 0 | H33: =A3A!H197 -> 0 | I33: =A3A!I197 -> 0 | J33: =A3A!J197 -> 0 | K33: =A3A!K197 -> 0 | L33: =A3A!#REF! -> 
A34: ='Org structure'!A13 -> Vote 12 - | C34: =A3A!C198 -> 0 | D34: =A3A!D198 -> 0 | E34: =A3A!E198 -> 0 | F34: =A3A!F198 -> 0 | G34: =A3A!G198 -> 0 | H34: =A3A!H198 -> 0 | I34: =A3A!I198 -> 0 | J34: =A3A!J198 -> 0 | K34: =A3A!K198 -> 0 | L34: =A3A!#REF! -> 
A35: ='Org structure'!A14 -> Vote 13 - | C35: =A3A!C199 -> 0 | D35: =A3A!D199 -> 0 | E35: =A3A!E199 -> 0 | F35: =A3A!F199 -> 0 | G35: =A3A!G199 -> 0 | H35: =A3A!H199 -> 0 | I35: =A3A!I199 -> 0 | J35: =A3A!J199 -> 0 | K35: =A3A!K199 -> 0 | L35: =A3A!#REF! -> 
A36: ='Org structure'!A15 -> Vote 14 - | C36: =A3A!C200 -> 0 | D36: =A3A!D200 -> 0 | E36: =A3A!E200 -> 0 | F36: =A3A!F200 -> 0 | G36: =A3A!G200 -> 0 | H36: =A3A!H200 -> 0 | I36: =A3A!I200 -> 0 | J36: =A3A!J200 -> 0 | K36: =A3A!K200 -> 0 | L36: =A3A!#REF! -> 
A37: =A3A!A201 -> Vote 15 - Other | C37: =A3A!C201 -> 0 | D37: =A3A!D201 -> 34236700.76 | E37: =A3A!E201 -> 16725302.91 | F37: =A3A!F201 -> 15016377 | G37: =A3A!G201 -> 13292481 | H37: =A3A!H201 -> 13292481 | I37: =A3A!I201 -> 13079300 | J37: =A3A!J201 -> 13667868 | K37: =A3A!K201 -> 14282923 | L37: =A3A!L202 -> 0
A38: Total Expenditure by Vote | B38: 2 | C38: =SUM(C23:C37) -> 0 | D38: =SUM(D23:D37) -> 447518136.3 | E38: 420171841 | F38: 429062341 | G38: 401250269 | H38: 401250269 | I38: 417261171 | J38: 418283709 | K38: 437181185 | L38: =SUM(L23:L29) -> 0 | M38: 0 | N38: 0 | O38: 0 | P38: 0 | Q38: 0 | R38: 0 | S38: 0 | T38: 0 | U38: 0 | V38: 0 | W38: 0
A39: =result -> Surplus/(Deficit) for the year | B39: 2 | C39: =C20-C38 -> 0 | D39: -89350699.21 | E39: -48633995.32 | F39: -23251160 | G39: -9746597 | H39: -9746597 | I39: 502078 | J39: -2838129 | K39: -7788213 | L39: 0 | M39: 0 | N39: 0 | O39: 0 | P39: 0 | Q39: 0 | R39: 0 | S39: 0 | T39: 0 | U39: 0 | V39: 0 | W39: 0
A40: =head27a -> References
A41: 1. Insert 'Vote'; e.g. department, if different to functional classification structure
A42: 2. Must reconcile to Budgeted Financial Performance (revenue and expenditure)
A43: 3. Assign share in 'associate' to relevant Vote
A45: ="check "&A39 -> check Surplus/(Deficit) for the year | C45: =C39-A3A!C216 -> 0 | D45: =D39-A3A!D216 -> 0 | E45: =E39-A3A!E216 -> 0 | F45: =F39-A3A!F216 -> 0 | G45: =G39-A3A!G216 -> 0 | H45: =H39-A3A!H216 -> 0 | I45: =I39-A3A!I216 -> 0 | J45: =J39-A3A!J216 -> 0 | K45: =K39-A3A!K216 -> 0

Sheet A3A
A1: =muni&" - "&Approve2&"A" -> DC42 Sedibeng - Table A3 Budgeted Financial Performance (revenue and expenditure by municipal vote)A
A2: =Vdesc -> Vote Description | B2: =head27 -> Ref | C2: =head1b -> 2016/17 | D2: =head1A -> 2017/18 | E2: =Head1 -> 2018/19 | F2: =Head2 -> Current Year 2019/20 | I2: =Head3 -> 2020/21 Medium Term Revenue & Expenditure Framework | L2: =Head4 -> LTFS
A3: R thousand | C3: =Head5 -> Audited Outcome | D3: =Head5 -> Audited Outcome | E3: =Head5 -> Audited Outcome | F3: =Head6 -> Original Budget | G3: =Head7 -> Adjusted Budget | H3: =Head8 -> Full Year Forecast | I3: =Head9 -> Budget Year 2020/21 | J3: =Head10 -> Budget Year +1 2021/22 | K3: =Head11 -> Budget Year +2 2022/23 | L3: =Head12 -> Forecast 2023/24 | M3: =Head13 -> Forecast 2024/25 | N3: =Head14 -> Forecast 2025/26 | O3: =Head15 -> Forecast 2026/27 | P3: =Head16 -> Forecast 2027/28 | Q3: =Head17 -> Forecast 2028/29 | R3: =Head18 -> Forecast 2029/30 | S3: =Head19 -> Forecast 2030/31 | T3: =Head20 -> Forecast 2031/32 | U3: =Head21 -> Forecast 2032/33 | V3: =Head22 -> Forecast 2033/34 | W3: =Head23 -> Forecast 2034/35
A4: Revenue by Vote | B4: 1
A5: ='Org structure'!A2 -> Vote 01 - Executive & Council | C5: =SUM(C6:C22) -> 0 | D5: 0 | E5: 0 | F5: 0 | G5: 0 | H5: 0 | I5: 0 | J5: 0 | K5: 0
A6: ='Org structure'!E3 -> 01.1 - Mayor Administration | C6: 0 | D6: 0 | E6: 0 | F6: 0 | G6: 0 | H6: 0 | I6: 0 | J6: 0 | K6: 0
A7: ='Org structure'!E4 -> 01.2 - Speaker Administration | C7: 0 | D7: 0 | E7: 0 | F7: 0 | G7: 0 | H7: 0 | I7: 0 | J7: 0 | K7: 0
A8: ='Org structure'!E5 -> 01.3 - Speaker Projects | C8: 0 | D8: 0 | E8: 0 | F8: 0 | G8: 0 | H8: 0 | I8: 0 | J8: 0 | K8: 0
A9: ='Org structure'!E6 -> 01.4 - Mpac Office | C9: 0 | D9: 0 | E9: 0 | F9: 0 | G9: 0 | H9: 0 | I9: 0 | J9: 0 | K9: 0
A10: ='Org structure'!E7 -> 01.5 - Mmc For Finance & Administration | C10: 0 | D10: 0 | E10: 0 | F10: 0 | G10: 0 | H10: 0 | I10: 0 | J10: 0 | K10: 0
A11: ='Org structure'!E8 -> 01.6 - Mmc For Srac & Heritage | C11: 0 | D11: 0 | E11: 0 | F11: 0 | G11: 0 | H11: 0 | I11: 0 | J11: 0 | K11: 0
A12: ='Org structure'!E9 -> 01.7 - Mmc For Infrastructure & Transport | C12: 0 | D12: 0 | E12: 0 | F12: 0 | G12: 0 | H12: 0 | I12: 0 | J12: 0 | K12: 0
A13: ='Org structure'!E10 -> 01.8 - Mmc For Human Settlements | C13: 0 | D13: 0 | E13: 0 | F13: 0 | G13: 0 | H13: 0 | I13: 0 | J13: 0 | K13: 0
A14: ='Org structure'!E11 -> 01.9 - Mmc For Health & Public Safety | C14: 0 | D14: 0 | E14: 0 | F14: 0 | G14: 0 | H14: 0 | I14: 0 | J14: 0 | K14: 0
A15: ='Org structure'!E12 -> 01.10 - Mmc For Corporate Services | C15: 0 | D15: 0 | E15: 0 | F15: 0 | G15: 0 | H15: 0 | I15: 0 | J15: 0 | K15: 0
A16: ='Org structure'!E13 -> 01.11 - Mmc For Environment | C16: 0 | D16: 0 | E16: 0 | F16: 0 | G16: 0 | H16: 0 | I16: 0 | J16: 0 | K16: 0
A17: ='Org structure'!E14 -> 01.12 - Mmc For Strat Planning & Econ. Devel. | C17: 0 | D17: 0 | E17: 0 | F17: 0 | G17: 0 | H17: 0 | I17: 0 | J17: 0 | K17: 0
A18: ='Org structure'!E15 -> 01.13 - Other Councilors | C18: 0 | D18: 0 | E18: 0 | F18: 0 | G18: 0 | H18: 0 | I18: 0 | J18: 0 | K18: 0
A19: ='Org structure'!E16 -> 01.14 - Office Of The Chief Whip Administration | C19: 0 | D19: 0 | E19: 0 | F19: 0 | G19: 0 | H19: 0 | I19: 0 | J19: 0 | K19: 0
A20: ='Org structure'!E17 -> 01.15 - Chief Whip Projects | C20: 0 | D20: 0 | E20: 0 | F20: 0 | G20: 0 | H20: 0 | I20: 0 | J20: 0 | K20: 0
A21: ='Org structure'!E18 -> 01.16 - Municipal Manager Administration | C21: 0 | D21: 0 | E21: 0 | F21: 0 | G21: 0 | H21: 0 | I21: 0 | J21: 0 | K21: 0
A22: ='Org structure'!E19 -> 01.17 - External Communication | C22: 0 | D22: 0 | E22: 0 | F22: 0 | G22: 0 | H22: 0 | I22: 0 | J22: 0 | K22: 0
A23: ='Org structure'!A3 -> Vote 02 - Budget & Treasury Office | C23: =SUM(C24:C26) -> 0 | D23: 262492672 | E23: 266796144.1 | F23: 273320663 | G23: 273945897 | H23: 273945897 | I23: 282215663 | J23: 290483088 | K23: 298699057
A24: ='Org structure'!E21 -> 02.1 - Financial Services Admin | C24: 0 | D24: 0 | E24: 0 | F24: 0 | G24: 0 | H24: 0 | I24: 0 | J24: 0 | K24: 0
A25: ='Org structure'!E22 -> 02.2 - Financial Management | C25: 0 | D25: 262492672 | E25: 266796144.1 | F25: 273320663 | G25: 273945897 | H25: 273945897 | I25: 282215663 | J25: 290483088 | K25: 298699057
A26: ='Org structure'!E23 -> 02.3 - Supply Chain Management | C26: 0 | D26: 0 | E26: 0 | F26: 0 | G26: 0 | H26: 0 | I26: 0 | J26: 0 | K26: 0
A27: ='Org structure'!A4 -> Vote 03 - Corporate Services | C27: =SUM(C28:C42) -> 0 | D27: 11344085.26 | E27: 17476812.85 | F27: 20619736 | G27: 20567993 | H27: 20567993 | I27: 20343725 | J27: 21259192 | K27: 22215856
A28: ='Org structure'!E25 -> 03.1 - Corporate Services - Admin | C28: 0 | D28: 0 | E28: 0 | F28: 0 | G28: 0 | H28: 0 | I28: 0 | J28: 0 | K28: 0
A29: ='Org structure'!E26 -> 03.2 - Human Resources Administration | C29: 0 | D29: 425295.29 | E29: 442601.95 | F29: 441645 | G29: 441645 | H29: 441645 | I29: 441645 | J29: 461519 | K29: 482287
A30: ='Org structure'!E27 -> 03.3 - Corporate And Legal Administartion | C30: 0 | D30: 0 | E30: 0 | F30: 0 | G30: 0 | H30: 0 | I30: 0 | J30: 0 | K30: 0
A31: ='Org structure'!E28 -> 03.4 - Legal | C31: 0 | D31: 0 | E31: 0 | F31: 0 | G31: 0 | H31: 0 | I31: 0 | J31: 0 | K31: 0
A32: ='Org structure'!E29 -> 03.5 - Corporate | C32: 0 | D32: 0 | E32: 0 | F32: 0 | G32: 0 | H32: 0 | I32: 0 | J32: 0 | K32: 0
A33: ='Org structure'!E30 -> 03.6 - Facility Management Admin | C33: 0 | D33: 0 | E33: 0 | F33: 0 | G33: 0 | H33: 0 | I33: 0 | J33: 0 | K33: 0
A34: ='Org structure'!E31 -> 03.7 - Fleet Management | C34: 0 | D34: 0 | E34: 0 | F34: 0 | G34: 0 | H34: 0 | I34: 0 | J34: 0 | K34: 0
A35: ='Org structure'!E32 -> 03.8 - Maintenance & Cleaning | C35: 0 | D35: 0 | E35: 0 | F35: 0 | G35: 0 | H35: 0 | I35: 0 | J35: 0 | K35: 0
A36: ='Org structure'!E33 -> 03.9 - Town Hall | C36: 0 | D36: 463057.67 | E36: 625492.71 | F36: 632169 | G36: 580426 | H36: 580426 | I36: 594808 | J36: 621574 | K36: 649545
A37: ='Org structure'!E34 -> 03.10 - Internal Security | C37: 0 | D37: 0 | E37: 0 | F37: 0 | G37: 0 | H37: 0 | I37: 0 | J37: 0 | K37: 0
A38: ='Org structure'!E35 -> 03.11 - It Emfuleni | C38: 0 | D38: 10455732.3 | E38: 10234280.26 | F38: 12042766 | G38: 12042766 | H38: 12042766 | I38: 11607272 | J38: 12129599 | K38: 12675431
A39: ='Org structure'!E36 -> 03.12 - It Sedibeng | C39: 0 | D39: 0 | E39: 0 | F39: 0 | G39: 0 | H39: 0 | I39: 0 | J39: 0 | K39: 0
A40: ='Org structure'!E37 -> 03.13 - It Midvaal | C40: 0 | D40: 0 | E40: 0 | F40: 0 | G40: 0 | H40: 0 | I40: 0 | J40: 0 | K40: 0
A41: ='Org structure'!E38 -> 03.14 - Idp Function | C41: 0 | D41: 0 | E41: 0 | F41: 0 | G41: 0 | H41: 0 | I41: 0 | J41: 0 | K41: 0
A42: ='Org structure'!E39 -> 03.15 - Fresh Produce Market | C42: 0 | D42: 0 | E42: 6174437.93 | F42: 7503156 | G42: 7503156 | H42: 7503156 | I42: 7700000 | J42: 8046500 | K42: 8408593
A43: ='Org structure'!A5 -> Vote 04 - Roads And Transport | C43: =SUM(C44:C57) -> 0 | D43: 65412808.42 | E43: 68660598.62 | F43: 94788685 | G43: 79788685 | H43: 79788685 | I43: 95486400 | J43: 83270643 | K43: 87051227
A44: ='Org structure'!E41 -> 04.1 - Emfuleni Taxi Rank | C44: 0 | D44: 0 | E44: 0 | F44: 0 | G44: 0 | H44: 0 | I44: 0 | J44: 0 | K44: 0
A45: ='Org structure'!E42 -> 04.2 - Midvaal Taxi Rank | C45: 0 | D45: 0 | E45: 0 | F45: 0 | G45: 0 | H45: 0 | I45: 0 | J45: 0 | K45: 0
A46: ='Org structure'!E43 -> 04.3 - Lesedi Taxi Rank | C46: 0 | D46: 0 | E46: 0 | F46: 0 | G46: 0 | H46: 0 | I46: 0 | J46: 0 | K46: 0
A47: ='Org structure'!E44 -> 04.4 - Basic Services | C47: 0 | D47: 0 | E47: 0 | F47: 15000000 | G47: 0 | H47: 0 | I47: 15825000 | J47: 0 | K47: 0
A48: ='Org structure'!E45 -> 04.5 - Transport;Infrastructure & Environment | C48: 0 | D48: 2431000 | E48: 2379438.69 | F48: 2580000 | G48: 2580000 | H48: 2580000 | I48: 2456000 | J48: 2591000 | K48: 2741000
A49: ='Org structure'!E46 -> 04.6 - Air Quality Management | C49: 0 | D49: 0 | E49: 0 | F49: 0 | G49: 0 | H49: 0 | I49: 0 | J49: 0 | K49: 0
A50: ='Org structure'!E47 -> 04.7 - Environmental Planning And Coordination | C50: 0 | D50: 0 | E50: 0 | F50: 0 | G50: 0 | H50: 0 | I50: 0 | J50: 0 | K50: 0
A51: ='Org structure'!E48 -> 04.8 - Municipal Health Services | C51: 0 | D51: 2255000 | E51: 125000 | F51: 1575000 | G51: 1575000 | H51: 1575000 | I51: 1575000 | J51: 1645875 | K51: 1719939
A52: ='Org structure'!E49 -> 04.9 - Environment | C52: 0 | D52: 0 | E52: 0 | F52: 0 | G52: 0 | H52: 0 | I52: 0 | J52: 0 | K52: 0
A53: ='Org structure'!E50 -> 04.10 - License Service Centre | C53: 0 | D53: 0 | E53: 0 | F53: 0 | G53: 0 | H53: 0 | I53: 0 | J53: 0 | K53: 0
A54: ='Org structure'!E51 -> 04.11 - License Service Centre - Vereeniging | C54: 0 | D54: 14377524.97 | E54: 18658086.93 | F54: 15192295 | G54: 15192295 | H54: 15192295 | I54: 15192000 | J54: 15875640 | K54: 16590044
A55: ='Org structure'!E52 -> 04.12 - License Service Centre - Vanderbijl Park | C55: 0 | D55: 22940601.32 | E55: 24064041.01 | F55: 30792407 | G55: 30792407 | H55: 30792407 | I55: 30792400 | J55: 32178058 | K55: 33626071
A56: ='Org structure'!E53 -> 04.13 - License Service Centre - Meyerton | C56: 0 | D56: 16176526.42 | E56: 15921610.69 | F56: 20966821 | G56: 20966821 | H56: 20966821 | I56: 20966000 | J56: 21909470 | K56: 22895396
A57: ='Org structure'!E54 -> 04.14 - License Service Centre - Heidelberg | C57: 0 | D57: 7232155.71 | E57: 7512421.3 | F57: 8682162 | G57: 8682162 | H57: 8682162 | I57: 8680000 | J57: 9070600 | K57: 9478777
A58: ='Org structure'!A6 -> Vote 05 - Planning & Development | C58: =SUM(C59:C66) -> 0 | D58: 714725 | E58: 2208581.34 | F58: 0 | G58: 0 | H58: 0 | I58: 0 | J58: 0 | K58: 0
A59: ='Org structure'!E56 -> 05.1 - Idp Function | C59: 0 | D59: 0 | E59: 0 | F59: 0 | G59: 0 | H59: 0 | I59: 0 | J59: 0 | K59: 0
A60: ='Org structure'!E57 -> 05.2 - Sped Admin | C60: 0 | D60: 0 | E60: 0 | F60: 0 | G60: 0 | H60: 0 | I60: 0 | J60: 0 | K60: 0
A61: ='Org structure'!E58 -> 05.3 - Development Planning - Spec. Proj. | C61: 0 | D61: 0 | E61: 0 | F61: 0 | G61: 0 | H61: 0 | I61: 0 | J61: 0 | K61: 0
A62: ='Org structure'!E59 -> 05.4 - Development Planning Land Use Management | C62: 0 | D62: 0 | E62: 0 | F62: 0 | G62: 0 | H62: 0 | I62: 0 | J62: 0 | K62: 0
A63: ='Org structure'!E60 -> 05.5 - Tourism | C63: 0 | D63: 0 | E63: 0 | F63: 0 | G63: 0 | H63: 0 | I63: 0 | J63: 0 | K63: 0
A64: ='Org structure'!E61 -> 05.6 - Housing | C64: 0 | D64: 0 | E64: 0 | F64: 0 | G64: 0 | H64: 0 | I64: 0 | J64: 0 | K64: 0
A65: ='Org structure'!E62 -> 05.7 - Led & Sgds | C65: 0 | D65: 714725 | E65: 2208581.34 | F65: 0 | G65: 0 | H65: 0 | I65: 0 | J65: 0 | K65: 0
A66: ='Org structure'!E63 -> 05.8 - Ndpg Unit | C66: 0 | D66: 0 | E66: 0 | F66: 0 | G66: 0 | H66: 0 | I66: 0 | J66: 0 | K66: 0
A67: ='Org structure'!A7 -> Vote 06 - Community & Social Services | C67: =SUM(C68:C86) -> 0 | D67: 7858549.18 | E67: 16395708.81 | F67: 17082097 | G67: 17201097 | H67: 17201097 | I67: 19717461 | J67: 20432657 | K67: 21426832
A68: ='Org structure'!E65 -> 06.1 - Vereeniging Airport | C68: 0 | D68: 0 | E68: 4134503.86 | F68: 3780000 | G68: 3780000 | H68: 3780000 | I68: 3780000 | J68: 3950100 | K68: 4127855
A69: ='Org structure'!E66 -> 06.2 - Vanderbijl Airport | C69: 0 | D69: 0 | E69: 0 | F69: 0 | G69: 0 | H69: 0 | I69: 0 | J69: 0 | K69: 0
A70: ='Org structure'!E67 -> 06.3 - Emfuleni Taxi Rank | C70: 0 | D70: 0 | E70: 0 | F70: 0 | G70: 0 | H70: 0 | I70: 0 | J70: 0 | K70: 0
A71: ='Org structure'!E68 -> 06.4 - Midvaal Taxi Rank | C71: 0 | D71: 0 | E71: 0 | F71: 0 | G71: 0 | H71: 0 | I71: 0 | J71: 0 | K71: 0
A72: ='Org structure'!E69 -> 06.5 - Lesedi Taxi Rank | C72: 0 | D72: 0 | E72: 0 | F72: 0 | G72: 0 | H72: 0 | I72: 0 | J72: 0 | K72: 0
A73: ='Org structure'!E70 -> 06.6 - Community Services Admin | C73: 0 | D73: 7858549.18 | E73: 8386125.86 | F73: 8909271 | G73: 8909271 | H73: 8909271 | I73: 11288271 | J73: 11600583 | K73: 12180179
A74: ='Org structure'!E71 -> 06.7 - Public Safety | C74: 0 | D74: 0 | E74: 0 | F74: 0 | G74: 0 | H74: 0 | I74: 0 | J74: 0 | K74: 0
A75: ='Org structure'!E72 -> 06.8 - Vereeniging Theatre | C75: 0 | D75: 0 | E75: 0 | F75: 0 | G75: 0 | H75: 0 | I75: 0 | J75: 0 | K75: 0
A76: ='Org structure'!E73 -> 06.9 - Mphatlalatsane Theatre | C76: 0 | D76: 0 | E76: 0 | F76: 0 | G76: 0 | H76: 0 | I76: 0 | J76: 0 | K76: 0
A77: ='Org structure'!E74 -> 06.10 - Sports & Recreation | C77: 0 | D77: 0 | E77: 0 | F77: 0 | G77: 0 | H77: 0 | I77: 0 | J77: 0 | K77: 0
A78: ='Org structure'!E75 -> 06.11 - Heritage | C78: 0 | D78: 0 | E78: 0 | F78: 0 | G78: 0 | H78: 0 | I78: 0 | J78: 0 | K78: 0
A79: ='Org structure'!E76 -> 06.12 - Srach Admin | C79: 0 | D79: 0 | E79: 0 | F79: 0 | G79: 0 | H79: 0 | I79: 0 | J79: 0 | K79: 0
A80: ='Org structure'!E77 -> 06.13 - Hiv & Aids | C80: 0 | D80: 0 | E80: 0 | F80: 0 | G80: 0 | H80: 0 | I80: 0 | J80: 0 | K80: 0
A81: ='Org structure'!E78 -> 06.14 - Primary Health Care Services | C81: 0 | D81: 0 | E81: 0 | F81: 0 | G81: 0 | H81: 0 | I81: 0 | J81: 0 | K81: 0
A82: ='Org structure'!E79 -> 06.15 - Youth Centre | C82: 0 | D82: 0 | E82: 3875079.09 | F82: 4392826 | G82: 4392826 | H82: 4392826 | I82: 4649190 | J82: 4881974 | K82: 5118798
A83: ='Org structure'!E80 -> 06.16 - Social Development | C83: 0 | D83: 0 | E83: 0 | F83: 0 | G83: 0 | H83: 0 | I83: 0 | J83: 0 | K83: 0
A84: ='Org structure'!E81 -> 06.17 - Fire & Rescue Services | C84: 0 | D84: 0 | E84: 0 | F84: 0 | G84: 0 | H84: 0 | I84: 0 | J84: 0 | K84: 0
A85: ='Org structure'!E82 -> 06.18 - Disaster Man - Operation & Co-Ord | C85: 0 | D85: 0 | E85: 0 | F85: 0 | G85: 119000 | H85: 119000 | I85: 0 | J85: 0 | K85: 0
A86: ='Org structure'!E83 -> 06.19 - Cimm - Co-Ordination Centre | C86: 0 | D86: 0 | E86: 0 | F86: 0 | G86: 0 | H86: 0 | I86: 0 | J86: 0 | K86: 0
A87: ='Org structure'!A8 -> Vote 07 - | C87: 0 | D87: 0 | E87: 0 | F87: 0 | G87: 0 | H87: 0 | I87: 0 | J87: 0 | K87: 0
A88: ='Org structure'!A9 -> Vote 08 - | C88: 0 | D88: 0 | E88: 0 | F88: 0 | G88: 0 | H88: 0 | I88: 0 | J88: 0 | K88: 0
A89: ='Org structure'!A10 -> Vote 09 - | C89: 0 | D89: 0 | E89: 0 | F89: 0 | G89: 0 | H89: 0 | I89: 0 | J89: 0 | K89: 0
A90: ='Org structure'!A11 -> Vote 10 - | C90: 0 | D90: 0 | E90: 0 | F90: 0 | G90: 0 | H90: 0 | I90: 0 | J90: 0 | K90: 0
A91: ='Org structure'!A12 -> Vote 11 - | C91: 0 | D91: 0 | E91: 0 | F91: 0 | G91: 0 | H91: 0 | I91: 0 | J91: 0 | K91: 0
A92: ='Org structure'!A13 -> Vote 12 - | C92: 0 | D92: 0 | E92: 0 | F92: 0 | G92: 0 | H92: 0 | I92: 0 | J92: 0 | K92: 0
A93: ='Org structure'!A14 -> Vote 13 - | C93: 0 | D93: 0 | E93: 0 | F93: 0 | G93: 0 | H93: 0 | I93: 0 | J93: 0 | K93: 0
A94: ='Org structure'!A15 -> Vote 14 - | C94: 0 | D94: 0 | E94: 0 | F94: 0 | G94: 0 | H94: 0 | I94: 0 | J94: 0 | K94: 0
A95: ='Org structure'!A16 -> Vote 15 - Other | C95: =SUM(C96:C107) -> 0 | D95: 10344597.24 | E95: 0 | F95: 0 | G95: 0 | H95: 0 | I95: 0 | J95: 0 | K95: 0
A96: ='Org structure'!E93 -> 15.1 - Coo's Office | C96: 0 | D96: 0 | E96: 0 | F96: 0 | G96: 0 | H96: 0 | I96: 0 | J96: 0 | K96: 0
A97: ='Org structure'!E94 -> 15.2 - Igr Unit Administration | C97: 0 | D97: 0 | E97: 0 | F97: 0 | G97: 0 | H97: 0 | I97: 0 | J97: 0 | K97: 0
A98: ='Org structure'!E95 -> 15.3 - Audit Function | C98: 0 | D98: 0 | E98: 0 | F98: 0 | G98: 0 | H98: 0 | I98: 0 | J98: 0 | K98: 0
A99: ='Org structure'!E96 -> 15.4 - Risk Function | C99: 0 | D99: 0 | E99: 0 | F99: 0 | G99: 0 | H99: 0 | I99: 0 | J99: 0 | K99: 0
A100: ='Org structure'!E97 -> 15.5 - Performance Function | C100: 0 | D100: 0 | E100: 0 | F100: 0 | G100: 0 | H100: 0 | I100: 0 | J100: 0 | K100: 0
A101: ='Org structure'!E98 -> 15.6 - Utilities Admin | C101: 0 | D101: 0 | E101: 0 | F101: 0 | G101: 0 | H101: 0 | I101: 0 | J101: 0 | K101: 0
A102: ='Org structure'!E99 -> 15.7 - Fresh Produce Market | C102: 0 | D102: 6810434.73 | E102: 0 | F102: 0 | G102: 0 | H102: 0 | I102: 0 | J102: 0 | K102: 0
A103: ='Org structure'!E100 -> 15.8 - Vereeniging Airport | C103: 0 | D103: 3534162.51 | E103: 0 | F103: 0 | G103: 0 | H103: 0 | I103: 0 | J103: 0 | K103: 0
A104: ='Org structure'!E101 -> 15.9 - Vanderbijl Airport | C104: 0 | D104: 0 | E104: 0 | F104: 0 | G104: 0 | H104: 0 | I104: 0 | J104: 0 | K104: 0
A105: ='Org structure'!E102 -> 15.10 - Heidelberg Airport | C105: 0 | D105: 0 | E105: 0 | F105: 0 | G105: 0 | H105: 0 | I105: 0 | J105: 0 | K105: 0
A106: ='Org structure'!E103 -> 15.11 - Special Projects | C106: 0 | D106: 0 | E106: 0 | F106: 0 | G106: 0 | H106: 0 | I106: 0 | J106: 0 | K106: 0
A107: ='Org structure'!E104 -> 15.12 - Heidelberg Airport | C107: 0 | D107: 0 | E107: 0 | F107: 0 | G107: 0 | H107: 0 | I107: 0 | J107: 0 | K107: 0
A108: Total Revenue by Vote | B108: 2 | C108: =C5+C23+C27+C43+C58+C67+C87+C88+C89+C90+C91+C92+C93+C94+C95 -> 0 | D108: 358167437.1 | E108: 371537845.7 | F108: 405811181 | G108: 391503672 | H108: 391503672 | I108: 417763249 | J108: 415445580 | K108: 429392972 | L108: =SUM(#REF!) ->  | M108: =SUM(#REF!) ->  | N108: =SUM(#REF!) ->  | O108: =SUM(#REF!) ->  | P108: =SUM(#REF!) ->  | Q108: =SUM(#REF!) ->  | R108: =SUM(#REF!) ->  | S108: =SUM(#REF!) ->  | T108: =SUM(#REF!) ->  | U108: =SUM(#REF!) ->  | V108: =SUM(#REF!) ->  | W108: =SUM(#REF!) -> 
A110: Expenditure by Vote | B110: 1
A111: ='Org structure'!A2 -> Vote 01 - Executive & Council | C111: =SUM(C112:C128) -> 0 | D111: 43944658.96 | E111: 45733239.51 | F111: 48425239 | G111: 48134490 | H111: 48134490 | I111: 47607341 | J111: 49749676 | K111: 51988410
A112: ='Org structure'!E3 -> 01.1 - Mayor Administration | C112: 0 | D112: 10893413.74 | E112: 11881849.79 | F112: 12269851 | G112: 11965387 | H112: 11965387 | I112: 11609572 | J112: 12132003 | K112: 12677944
A113: ='Org structure'!E4 -> 01.2 - Speaker Administration | C113: 0 | D113: 6580935.28 | E113: 6847150.24 | F113: 7361025 | G113: 8304638 | H113: 8304638 | I113: 8634793 | J113: 9023360 | K113: 9429412
A114: ='Org structure'!E5 -> 01.3 - Speaker Projects | C114: 0 | D114: 478639.7 | E114: 650027.05 | F114: 458300 | G114: 342550 | H114: 342550 | I114: 342550 | J114: 357966 | K114: 374074
A115: ='Org structure'!E6 -> 01.4 - Mpac Office | C115: 0 | D115: 1471690.68 | E115: 1563849.06 | F115: 1661019 | G115: 1696113 | H115: 1696113 | I115: 1712882 | J115: 1789960 | K115: 1870507
A116: ='Org structure'!E7 -> 01.5 - Mmc For Finance & Administration | C116: 0 | D116: 791685.81 | E116: 849061.85 | F116: 891985 | G116: 845071 | H116: 845071 | I116: 801714 | J116: 837791 | K116: 875492
A117: ='Org structure'!E8 -> 01.6 - Mmc For Srac & Heritage | C117: 0 | D117: 777490.28 | E117: 841297.99 | F117: 879237 | G117: 845085 | H117: 845085 | I117: 842872 | J117: 880802 | K117: 920438
A118: ='Org structure'!E9 -> 01.7 - Mmc For Infrastructure & Transport | C118: 0 | D118: 494560.71 | E118: 516639.67 | F118: 552406 | G118: 532309 | H118: 532309 | I118: 531939 | J118: 555877 | K118: 580890
A119: ='Org structure'!E10 -> 01.8 - Mmc For Human Settlements | C119: 0 | D119: 768716.76 | E119: 830436.47 | F119: 882388 | G119: 852892 | H119: 852892 | I119: 850787 | J119: 889073 | K119: 929081
A120: ='Org structure'!E11 -> 01.9 - Mmc For Health & Public Safety | C120: 0 | D120: 788676.54 | E120: 810529.99 | F120: 861374 | G120: 846946 | H120: 846946 | I120: 844280 | J120: 882273 | K120: 921975
A121: ='Org structure'!E12 -> 01.10 - Mmc For Corporate Services | C121: 0 | D121: 779103.23 | E121: 845861.96 | F121: 911536 | G121: 856674 | H121: 856674 | I121: 853928 | J121: 892354 | K121: 932509
A122: ='Org structure'!E13 -> 01.11 - Mmc For Environment | C122: 0 | D122: 495553.76 | E122: 523318.42 | F122: 554108 | G122: 533748 | H122: 533748 | I122: 532685 | J122: 556656 | K122: 581706
A123: ='Org structure'!E14 -> 01.12 - Mmc For Strat Planning & Econ. Devel. | C123: 0 | D123: 796558.76 | E123: 812072.02 | F123: 903613 | G123: 847841 | H123: 847841 | I123: 845000 | J123: 883025 | K123: 922762
A124: ='Org structure'!E15 -> 01.13 - Other Councilors | C124: 0 | D124: 4026268.83 | E124: 4267248.08 | F124: 4261959 | G124: 4254244 | H124: 4254244 | I124: 4404650 | J124: 4602859 | K124: 4809987
A125: ='Org structure'!E16 -> 01.14 - Office Of The Chief Whip Administration | C125: 0 | D125: 4710705.7 | E125: 5022033.23 | F125: 5286523 | G125: 5283543 | H125: 5283543 | I125: 5324754 | J125: 5564369 | K125: 5814767
A126: ='Org structure'!E17 -> 01.15 - Chief Whip Projects | C126: 0 | D126: 498433.57 | E126: 483667.43 | F126: 578000 | G126: 49600 | H126: 49600 | I126: 49600 | J126: 51832 | K126: 54164
A127: ='Org structure'!E18 -> 01.16 - Municipal Manager Administration | C127: 0 | D127: 9196309.65 | E127: 8981520.53 | F127: 10105592 | G127: 10073136 | H127: 10073136 | I127: 9420622 | J127: 9844551 | K127: 10287556
A128: ='Org structure'!E19 -> 01.17 - External Communication | C128: 0 | D128: 395915.96 | E128: 6675.73 | F128: 6323 | G128: 4713 | H128: 4713 | I128: 4713 | J128: 4925 | K128: 5146
A129: ='Org structure'!A3 -> Vote 02 - Budget & Treasury Office | C129: =SUM(C130:C132) -> 0 | D129: 95013308.84 | E129: 31926046.32 | F129: 19607570 | G129: 20286623 | H129: 20286623 | I129: 20627491 | J129: 20510727 | K129: 21433711
A130: ='Org structure'!E21 -> 02.1 - Financial Services Admin | C130: 0 | D130: 4173322.71 | E130: 4423201.49 | F130: 5638267 | G130: 4832587 | H130: 4832587 | I130: 5199956 | J130: 5433955 | K130: 5678482
A131: ='Org structure'!E22 -> 02.2 - Financial Management | C131: 0 | D131: 87565519.02 | E131: 24966446.27 | F131: 11291923 | G131: 12795293 | H131: 12795293 | I131: 12774114 | J131: 12303947 | K131: 12857627
A132: ='Org structure'!E23 -> 02.3 - Supply Chain Management | C132: 0 | D132: 3274467.11 | E132: 2536398.56 | F132: 2677380 | G132: 2658743 | H132: 2658743 | I132: 2653421 | J132: 2772825 | K132: 2897602
A133: ='Org structure'!A4 -> Vote 03 - Corporate Services | C133: =SUM(C134:C148) -> 0 | D133: 109155200.3 | E133: 144778058.6 | F133: 147256801 | G133: 142969090 | H133: 142969090 | I133: 140605188 | J133: 146932417 | K133: 153544379
A134: ='Org structure'!E25 -> 03.1 - Corporate Services - Admin | C134: 0 | D134: 3729015.11 | E134: 3931321.45 | F134: 4423200 | G134: 4431104 | H134: 4431104 | I134: 4435694 | J134: 4635299 | K134: 4843886
A135: ='Org structure'!E26 -> 03.2 - Human Resources Administration | C135: 0 | D135: 8140550.61 | E135: 8636513.61 | F135: 9371168 | G135: 8263588 | H135: 8263588 | I135: 8337348 | J135: 8712528 | K135: 9104591
A136: ='Org structure'!E27 -> 03.3 - Corporate And Legal Administartion | C136: 0 | D136: 2464733.65 | E136: 2617516.26 | F136: 2755999 | G136: 2745716 | H136: 2745716 | I136: 2757489 | J136: 2881573 | K136: 3011245
A137: ='Org structure'!E28 -> 03.4 - Legal | C137: 0 | D137: 2682787.22 | E137: 2543285.85 | F137: 4138071 | G137: 4830489 | H137: 4830489 | I137: 3933886 | J137: 4110910 | K137: 4295901
A138: ='Org structure'!E29 -> 03.5 - Corporate | C138: 0 | D138: 9098346.78 | E138: 9685598.75 | F138: 9883961 | G138: 9375497 | H138: 9375497 | I138: 9394817 | J138: 9817584 | K138: 10259377
A139: ='Org structure'!E30 -> 03.6 - Facility Management Admin | C139: 0 | D139: 12370042.59 | E139: 15138504.37 | F139: 16259174 | G139: 17075714 | H139: 17075714 | I139: 17492938 | J139: 18280121 | K139: 19102726
A140: ='Org structure'!E31 -> 03.7 - Fleet Management | C140: 0 | D140: 4567241.38 | E140: 4497421.48 | F140: 4437798 | G140: 3844260 | H140: 3844260 | I140: 3005549 | J140: 3140799 | K140: 3282134
A141: ='Org structure'!E32 -> 03.8 - Maintenance & Cleaning | C141: 0 | D141: 10243263.93 | E141: 14756753.99 | F141: 11751265 | G141: 10001855 | H141: 10001855 | I141: 10041553 | J141: 10493422 | K141: 10965628
A142: ='Org structure'!E33 -> 03.9 - Town Hall | C142: 0 | D142: 4852547.14 | E142: 5250713.04 | F142: 5546542 | G142: 4757313 | H142: 4757313 | I142: 4822254 | J142: 5039255 | K142: 5266022
A143: ='Org structure'!E34 -> 03.10 - Internal Security | C143: 0 | D143: 26232233.5 | E143: 29678509.44 | F143: 29574783 | G143: 28460934 | H143: 28460934 | I143: 26786589 | J143: 27991986 | K143: 29251626
A144: ='Org structure'!E35 -> 03.11 - It Emfuleni | C144: 0 | D144: 11250406.15 | E144: 11292676.79 | F144: 12042766 | G144: 11494238 | H144: 11494238 | I144: 11607272 | J144: 12129600 | K144: 12675433
A145: ='Org structure'!E36 -> 03.12 - It Sedibeng | C145: 0 | D145: 13524032.27 | E145: 22756535.77 | F145: 22602343 | G145: 23827678 | H145: 23827678 | I145: 23995062 | J145: 25074841 | K145: 26203209
A146: ='Org structure'!E37 -> 03.13 - It Midvaal | C146: 0 | D146: 0 | E146: 0 | F146: 0 | G146: 0 | H146: 0 | I146: 0 | J146: 0 | K146: 0
A147: ='Org structure'!E38 -> 03.14 - Idp Function | C147: 0 | D147: 0 | E147: 2087000.5 | F147: 2379105 | G147: 1909815 | H147: 1909815 | I147: 1926861 | J147: 2013569 | K147: 2104180
A148: ='Org structure'!E39 -> 03.15 - Fresh Produce Market | C148: 0 | D148: 0 | E148: 11905707.29 | F148: 12090626 | G148: 11950889 | H148: 11950889 | I148: 12067876 | J148: 12610930 | K148: 13178421
A149: ='Org structure'!A5 -> Vote 04 - Roads And Transport | C149: =SUM(C150:C163) -> 0 | D149: 91565246.23 | E149: 94670389.99 | F149: 114732233 | G149: 97893273 | H149: 97893273 | I149: 115420498 | J149: 104077294 | K149: 108760772
A150: ='Org structure'!E41 -> 04.1 - Emfuleni Taxi Rank | C150: 0 | D150: 0 | E150: 0 | F150: 0 | G150: 0 | H150: 0 | I150: 0 | J150: 0 | K150: 0
A151: ='Org structure'!E42 -> 04.2 - Midvaal Taxi Rank | C151: 0 | D151: 0 | E151: 0 | F151: 0 | G151: 0 | H151: 0 | I151: 0 | J151: 0 | K151: 0
A152: ='Org structure'!E43 -> 04.3 - Lesedi Taxi Rank | C152: 0 | D152: 24459 | E152: 0 | F152: 0 | G152: 0 | H152: 0 | I152: 0 | J152: 0 | K152: 0
A153: ='Org structure'!E44 -> 04.4 - Basic Services | C153: 0 | D153: 4451995.02 | E153: 4814585.29 | F153: 20067952 | G153: 5095295 | H153: 5095295 | I153: 20969185 | J153: 5375674 | K153: 5617582
A154: ='Org structure'!E45 -> 04.5 - Transport;Infrastructure & Environment | C154: 0 | D154: 4589775.02 | E154: 4369496.35 | F154: 5332816 | G154: 3694799 | H154: 3694799 | I154: 5160965 | J154: 5393209 | K154: 5635904
A155: ='Org structure'!E46 -> 04.6 - Air Quality Management | C155: 0 | D155: 1175407.45 | E155: 1274392.79 | F155: 1355540 | G155: 2204319 | H155: 2204319 | I155: 2543750 | J155: 2658219 | K155: 2777839
A156: ='Org structure'!E47 -> 04.7 - Environmental Planning And Coordination | C156: 0 | D156: 2149130.45 | E156: 970731.04 | F156: 949692 | G156: 945938 | H156: 945938 | I156: 961203 | J156: 1004456 | K156: 1049655
A157: ='Org structure'!E48 -> 04.8 - Municipal Health Services | C157: 0 | D157: 18850373.09 | E157: 20568316.77 | F157: 20897654 | G157: 20784193 | H157: 20784193 | I157: 20849084 | J157: 21787292 | K157: 22767720
A158: ='Org structure'!E49 -> 04.9 - Environment | C158: 0 | D158: 978583.46 | E158: 1218066.41 | F158: 1287232 | G158: 1279359 | H158: 1279359 | I158: 1282991 | J158: 1340728 | K158: 1401058
A159: ='Org structure'!E50 -> 04.10 - License Service Centre | C159: 0 | D159: 3725176.68 | E159: 4167640.91 | F159: 6494908 | G159: 6559875 | H159: 6559875 | I159: 6669649 | J159: 6969782 | K159: 7283422
A160: ='Org structure'!E51 -> 04.11 - License Service Centre - Vereeniging | C160: 0 | D160: 17426522.75 | E160: 14792324.36 | F160: 14974938 | G160: 15242453 | H160: 15242453 | I160: 14922249 | J160: 15593749 | K160: 16295468
A161: ='Org structure'!E52 -> 04.12 - License Service Centre - Vanderbijl Park | C161: 0 | D161: 18095452.17 | E161: 19966511.43 | F161: 20185179 | G161: 19972184 | H161: 19972184 | I161: 19878566 | J161: 20773101 | K161: 21707892
A162: ='Org structure'!E53 -> 04.13 - License Service Centre - Meyerton | C162: 0 | D162: 10863889.5 | E162: 13576682.34 | F162: 14211143 | G162: 13074745 | H162: 13074745 | I162: 13117116 | J162: 13707387 | K162: 14324220
A163: ='Org structure'!E54 -> 04.14 - License Service Centre - Heidelberg | C163: 0 | D163: 9234481.64 | E163: 8951642.3 | F163: 8975179 | G163: 9040113 | H163: 9040113 | I163: 9065740 | J163: 9473697 | K163: 9900012
A164: ='Org structure'!A6 -> Vote 05 - Planning & Development | C164: =SUM(C165:C172) -> 0 | D164: 18986227.7 | E164: 19891563.93 | F164: 19480480 | G164: 18095957 | H164: 18095957 | I164: 17094548 | J164: 17863807 | K164: 18667682
A165: ='Org structure'!E56 -> 05.1 - Idp Function | C165: 0 | D165: 2079605.58 | E165: 0 | F165: 0 | G165: 0 | H165: 0 | I165: 0 | J165: 0 | K165: 0
A166: ='Org structure'!E57 -> 05.2 - Sped Admin | C166: 0 | D166: 3631237.04 | E166: 4397052.47 | F166: 4540220 | G166: 4760108 | H166: 4760108 | I166: 4747413 | J166: 4961048 | K166: 5184296
A167: ='Org structure'!E58 -> 05.3 - Development Planning - Spec. Proj. | C167: 0 | D167: 1203886.48 | E167: 1779486.36 | F167: 2324551 | G167: 1381901 | H167: 1381901 | I167: 1389521 | J167: 1452050 | K167: 1517394
A168: ='Org structure'!E59 -> 05.4 - Development Planning Land Use Management | C168: 0 | D168: 892978.73 | E168: 927075.1 | F168: 1002603 | G168: 987521 | H168: 987521 | I168: 992113 | J168: 1036758 | K168: 1083411
A169: ='Org structure'!E60 -> 05.5 - Tourism | C169: 0 | D169: 2618429.28 | E169: 2904854.23 | F169: 3276664 | G169: 2912888 | H169: 2912888 | I169: 2925974 | J169: 3057644 | K169: 3195239
A170: ='Org structure'!E61 -> 05.6 - Housing | C170: 0 | D170: 1391247.22 | E170: 1446889.89 | F170: 1530002 | G170: 1527729 | H170: 1527729 | I170: 1530296 | J170: 1599159 | K170: 1671122
A171: ='Org structure'!E62 -> 05.7 - Led & Sgds | C171: 0 | D171: 4079335.19 | E171: 5346760.87 | F171: 3539359 | G171: 3808443 | H171: 3808443 | I171: 3823738 | J171: 3995807 | K171: 4175618
A172: ='Org structure'!E63 -> 05.8 - Ndpg Unit | C172: 0 | D172: 3089508.18 | E172: 3089445.01 | F172: 3267081 | G172: 2717367 | H172: 2717367 | I172: 1685493 | J172: 1761341 | K172: 1840602
A173: ='Org structure'!A7 -> Vote 06 - Community & Social Services | C173: =SUM(C174:C192) -> 0 | D173: 54616793.46 | E173: 66447239.77 | F173: 64543641 | G173: 60578355 | H173: 60578355 | I173: 62826805 | J173: 65481920 | K173: 68503308
A174: ='Org structure'!E65 -> 06.1 - Vereeniging Airport | C174: 0 | D174: 0 | E174: 6961384.48 | F174: 6319413 | G174: 6244719 | H174: 6244719 | I174: 6293894 | J174: 6577120 | K174: 6873090
A175: ='Org structure'!E66 -> 06.2 - Vanderbijl Airport | C175: 0 | D175: 0 | E175: 0 | F175: 0 | G175: 0 | H175: 0 | I175: 0 | J175: 0 | K175: 0
A176: ='Org structure'!E67 -> 06.3 - Emfuleni Taxi Rank | C176: 0 | D176: 0 | E176: 372784.05 | F176: 432785 | G176: 372785 | H176: 372785 | I176: 372785 | J176: 389560 | K176: 407090
A177: ='Org structure'!E68 -> 06.4 - Midvaal Taxi Rank | C177: 0 | D177: 0 | E177: 0 | F177: 0 | G177: 0 | H177: 0 | I177: 0 | J177: 0 | K177: 0
A178: ='Org structure'!E69 -> 06.5 - Lesedi Taxi Rank | C178: 0 | D178: 0 | E178: 0 | F178: 660000 | G178: 0 | H178: 0 | I178: 0 | J178: 0 | K178: 0
A179: ='Org structure'!E70 -> 06.6 - Community Services Admin | C179: 0 | D179: 11241748.17 | E179: 11696457.15 | F179: 12303009 | G179: 11686503 | H179: 11686503 | I179: 14047071 | J179: 14483528 | K179: 15192857
A180: ='Org structure'!E71 -> 06.7 - Public Safety | C180: 0 | D180: 7246917.53 | E180: 10286618.56 | F180: 5321124 | G180: 4962696 | H180: 4962696 | I180: 4766511 | J180: 4981002 | K180: 5205147
A181: ='Org structure'!E72 -> 06.8 - Vereeniging Theatre | C181: 0 | D181: 2529990.7 | E181: 2339556.03 | F181: 2503446 | G181: 2432219 | H181: 2432219 | I181: 2468574 | J181: 2579659 | K181: 2695742
A182: ='Org structure'!E73 -> 06.9 - Mphatlalatsane Theatre | C182: 0 | D182: 949372.89 | E182: 968629.89 | F182: 1018356 | G182: 1012722 | H182: 1012722 | I182: 1020446 | J182: 1066366 | K182: 1114353
A183: ='Org structure'!E74 -> 06.10 - Sports & Recreation | C183: 0 | D183: 1660620.74 | E183: 1337473.6 | F183: 1435589 | G183: 1431726 | H183: 1431726 | I183: 1463843 | J183: 1529716 | K183: 1598554
A184: ='Org structure'!E75 -> 06.11 - Heritage | C184: 0 | D184: 8488024.35 | E184: 8414381.99 | F184: 8972692 | G184: 8345072 | H184: 8345072 | I184: 8372686 | J184: 8749458 | K184: 9143182
A185: ='Org structure'!E76 -> 06.12 - Srach Admin | C185: 0 | D185: 1133727.46 | E185: 1213488.22 | F185: 1269080 | G185: 1299568 | H185: 1299568 | I185: 1314676 | J185: 1373837 | K185: 1435660
A186: ='Org structure'!E77 -> 06.13 - Hiv & Aids | C186: 0 | D186: 1805008.64 | E186: 2672413.46 | F186: 2649201 | G186: 2756754 | H186: 2756754 | I186: 2820940 | J186: 2947881 | K186: 3080535
A187: ='Org structure'!E78 -> 06.14 - Primary Health Care Services | C187: 0 | D187: 913031.22 | E187: 955136.96 | F187: 902981 | G187: 1067324 | H187: 1067324 | I187: 1097004 | J187: 1146369 | K187: 1197955
A188: ='Org structure'!E79 -> 06.15 - Youth Centre | C188: 0 | D188: 2895516.54 | E188: 4643578.29 | F188: 5599048 | G188: 6017666 | H188: 6017666 | I188: 5991362 | J188: 6284543 | K188: 6584481
A189: ='Org structure'!E80 -> 06.16 - Social Development | C189: 0 | D189: 4513530.77 | E189: 3922108.39 | F189: 4026590 | G189: 3907687 | H189: 3907687 | I189: 3962225 | J189: 4140526 | K189: 4326851
A190: ='Org structure'!E81 -> 06.17 - Fire & Rescue Services | C190: 0 | D190: 972240.67 | E190: 214133.73 | F190: 229662 | G190: 0 | H190: 0 | I190: 0 | J190: 0 | K190: 0
A191: ='Org structure'!E82 -> 06.18 - Disaster Man - Operation & Co-Ord | C191: 0 | D191: 3462792.04 | E191: 3567994.84 | F191: 3756013 | G191: 7129400 | H191: 7129400 | I191: 7370639 | J191: 7702318 | K191: 8048923
A192: ='Org structure'!E83 -> 06.19 - Cimm - Co-Ordination Centre | C192: 0 | D192: 6804271.74 | E192: 6881100.13 | F192: 7144652 | G192: 1911514 | H192: 1911514 | I192: 1464149 | J192: 1530037 | K192: 1598888
A193: ='Org structure'!A8 -> Vote 07 - | C193: 0 | D193: 0 | E193: 0 | F193: 0 | G193: 0 | H193: 0 | I193: 0 | J193: 0 | K193: 0
A194: ='Org structure'!A9 -> Vote 08 - | C194: 0 | D194: 0 | E194: 0 | F194: 0 | G194: 0 | H194: 0 | I194: 0 | J194: 0 | K194: 0
A195: ='Org structure'!A10 -> Vote 09 - | C195: 0 | D195: 0 | E195: 0 | F195: 0 | G195: 0 | H195: 0 | I195: 0 | J195: 0 | K195: 0
A196: ='Org structure'!A11 -> Vote 10 - | C196: 0 | D196: 0 | E196: 0 | F196: 0 | G196: 0 | H196: 0 | I196: 0 | J196: 0 | K196: 0
A197: ='Org structure'!A12 -> Vote 11 - | C197: 0 | D197: 0 | E197: 0 | F197: 0 | G197: 0 | H197: 0 | I197: 0 | J197: 0 | K197: 0
A198: ='Org structure'!A13 -> Vote 12 - | C198: 0 | D198: 0 | E198: 0 | F198: 0 | G198: 0 | H198: 0 | I198: 0 | J198: 0 | K198: 0
A199: ='Org structure'!A14 -> Vote 13 - | C199: 0 | D199: 0 | E199: 0 | F199: 0 | G199: 0 | H199: 0 | I199: 0 | J199: 0 | K199: 0
A200: ='Org structure'!A15 -> Vote 14 - | C200: 0 | D200: 0 | E200: 0 | F200: 0 | G200: 0 | H200: 0 | I200: 0 | J200: 0 | K200: 0
A201: ='Org structure'!A16 -> Vote 15 - Other | C201: =SUM(C202:C213) -> 0 | D201: 34236700.76 | E201: 16725302.91 | F201: 15016377 | G201: 13292481 | H201: 13292481 | I201: 13079300 | J201: 13667868 | K201: 14282923
... 20 more rows

Sheet A4-FinPerf RE
A1: =muni&" - "&Approve4 -> DC42 Sedibeng - Table A4 Budgeted Financial Performance (revenue and expenditure)
A2: =desc -> Description | B2: =head27 -> Ref | C2: =head1b -> 2016/17 | D2: =head1A -> 2017/18 | E2: =Head1 -> 2018/19 | F2: =Head2 -> Current Year 2019/20 | J2: =Head3 -> 2020/21 Medium Term Revenue & Expenditure Framework | M2: =Head4 -> LTFS
A3: R thousand | B3: 1 | C3: =Head5 -> Audited Outcome | D3: =Head5 -> Audited Outcome | E3: =Head5 -> Audited Outcome | F3: =Head6 -> Original Budget | G3: =Head7 -> Adjusted Budget | H3: =Head8 -> Full Year Forecast | I3: =Head5b -> Pre-audit outcome | J3: =Head9 -> Budget Year 2020/21 | K3: =Head10 -> Budget Year +1 2021/22 | L3: =Head11 -> Budget Year +2 2022/23 | M3: =Head12 -> Forecast 2023/24 | N3: =Head13 -> Forecast 2024/25 | O3: =Head14 -> Forecast 2025/26 | P3: =Head15 -> Forecast 2026/27 | Q3: =Head16 -> Forecast 2027/28 | R3: =Head17 -> Forecast 2028/29 | S3: =Head18 -> Forecast 2029/30 | T3: =Head19 -> Forecast 2030/31 | U3: =Head20 -> Forecast 2031/32 | V3: =Head21 -> Forecast 2032/33 | W3: =Head22 -> Forecast 2033/34 | X3: =Head23 -> Forecast 2034/35
A4: Revenue By Source
A5: Property rates | B5: 2 | C5: ='SA1'!C9 -> 0 | D5: ='SA1'!D9 -> 0 | E5: ='SA1'!E9 -> 0 | F5: ='SA1'!F9 -> 0 | G5: ='SA1'!G9 -> 0 | H5: ='SA1'!H9 -> 0 | I5: ='SA1'!I9 -> 0 | J5: ='SA1'!J9 -> 0 | K5: ='SA1'!K9 -> 0 | L5: ='SA1'!L9 -> 0
A6: Service charges - electricity revenue | B6: 2 | C6: ='SA1'!C15 -> 0 | D6: ='SA1'!D15 -> 0 | E6: ='SA1'!E15 -> 0 | F6: ='SA1'!F15 -> 0 | G6: ='SA1'!G15 -> 0 | H6: ='SA1'!H15 -> 0 | I6: ='SA1'!I15 -> 0 | J6: ='SA1'!J15 -> 0 | K6: ='SA1'!K15 -> 0 | L6: ='SA1'!L15 -> 0
A7: Service charges - water revenue | B7: 2 | C7: ='SA1'!C21 -> 0 | D7: ='SA1'!D21 -> 0 | E7: ='SA1'!E21 -> 0 | F7: ='SA1'!F21 -> 0 | G7: ='SA1'!G21 -> 0 | H7: ='SA1'!H21 -> 0 | I7: ='SA1'!I21 -> 0 | J7: ='SA1'!J21 -> 0 | K7: ='SA1'!K21 -> 0 | L7: ='SA1'!L21 -> 0
A8: Service charges - sanitation revenue | B8: 2 | C8: ='SA1'!C27 -> 0 | D8: ='SA1'!D27 -> 0 | E8: ='SA1'!E27 -> 0 | F8: ='SA1'!F27 -> 0 | G8: ='SA1'!G27 -> 0 | H8: ='SA1'!H27 -> 0 | I8: ='SA1'!I27 -> 0 | J8: ='SA1'!J27 -> 0 | K8: ='SA1'!K27 -> 0 | L8: ='SA1'!L27 -> 0
A9: Service charges - refuse revenue | B9: 2 | C9: ='SA1'!C34 -> 0 | D9: ='SA1'!D34 -> 0 | E9: ='SA1'!E34 -> 0 | F9: ='SA1'!F34 -> 0 | G9: ='SA1'!G34 -> 0 | H9: ='SA1'!H34 -> 0 | I9: ='SA1'!I34 -> 0 | J9: ='SA1'!J34 -> 0 | K9: ='SA1'!K34 -> 0 | L9: ='SA1'!L34 -> 0
A11: Rental of facilities and equipment | C11: 0 | D11: 358206.84 | E11: 513929.36 | F11: 514268 | G11: 514268 | H11: 514268 | I11: 222851.99 | J11: 516491 | K11: 539733 | L11: 564021
A12: Interest earned - external investments | C12: 0 | D12: 2835809.34 | E12: 2944161.96 | F12: 1995000 | G12: 2615234 | H12: 2615234 | I12: 3115610.04 | J12: 2700000 | K12: 2821500 | L12: 2948468
A13: Interest earned - outstanding debtors | C13: 0 | D13: 0 | E13: 0 | F13: 0 | G13: 0 | H13: 0 | I13: 4444636.66 | J13: 0 | K13: 0 | L13: 0
A14: Dividends received
A15: Fines, penalties and forfeits
A16: Licences and permits | C16: 0 | D16: 2255000 | E16: 125000 | F16: 1575000 | G16: 1575000 | H16: 1575000 | I16: 1344999.98 | J16: 1575000 | K16: 1645875 | L16: 1719939
A17: Agency services | C17: 0 | D17: 60726808.42 | E17: 66156159.93 | F17: 75633685 | G17: 75633685 | H17: 75633685 | I17: 47962311.99 | J17: 75630400 | K17: 79033768 | L17: 82590288
A18: Transfers and subsidies | C18: 0 | D18: 263244374.1 | E18: 277892098.9 | F18: 301540826 | G18: 285870876 | H18: 285870876 | I18: 283790202 | J18: 313062190 | K18: 306032974 | L18: 315056798
A19: Other revenue | B19: 2 | C19: ='SA1'!C49 -> 0 | D19: ='SA1'!D49 -> 22488497.52 | E19: ='SA1'!E49 -> 23838999.58 | F19: ='SA1'!F49 -> 24412402 | G19: ='SA1'!G49 -> 24365659 | H19: ='SA1'!H49 -> 24365659 | I19: ='SA1'!I49 -> 15957841.66 | J19: ='SA1'!J49 -> 24139168 | K19: ='SA1'!K49 -> 25225430 | L19: ='SA1'!L49 -> 26360574
A20: Gains | C20: 0 | D20: 87740.86 | E20: 67495.94 | F20: 140000 | G20: 140000 | H20: 140000 | I20: 27577.67 | J20: 140000 | K20: 146300 | L20: 152884
A21: Total Revenue (excluding capital transfers and contributions) | C21: =SUM(C5:C9)+SUM(C11:C20) -> 0 | D21: =SUM(D5:D9)+SUM(D11:D20) -> 351996437.1 | E21: 371537845.7 | F21: 405811181 | G21: 390714722 | H21: 390714722 | I21: 356866032 | J21: 417763249 | K21: 415445580 | L21: 429392972 | M21: =SUM(M5:M20) -> 0 | N21: 0 | O21: 0 | P21: 0 | Q21: 0 | R21: 0 | S21: 0 | T21: 0 | U21: 0 | V21: 0 | W21: 0 | X21: 0
A23: Expenditure By Type
A24: Employee related costs | B24: 2 | C24: ='SA1'!C67 -> 0 | D24: ='SA1'!D67 -> 255327149 | E24: ='SA1'!E67 -> 264063502.2 | F24: ='SA1'!F67 -> 276024667 | G24: ='SA1'!G67 -> 273798414 | H24: ='SA1'!H67 -> 273798414 | I24: ='SA1'!I67 -> 272015004.6 | J24: ='SA1'!J67 -> 274643831 | K24: ='SA1'!K67 -> 287002800 | L24: ='SA1'!L67 -> 299917925
A25: Remuneration of councillors | C25: 0 | D25: 12898448.55 | E25: 13431978.87 | F25: 14030631 | G25: 13871488 | H25: 13871488 | I25: 13379240.4 | J25: 14017808 | K25: 14648605 | L25: 15307796
A26: Debt impairment | B26: 3 | C26: 0 | D26: 44584161.72 | E26: 8777064.38 | F26: 0 | G26: 0 | H26: 0 | I26: 0 | J26: 0 | K26: 0 | L26: 0
A27: Depreciation & asset impairment | B27: 2 | C27: ='SA1'!C83 -> 0 | D27: ='SA1'!D83 -> 25865754.57 | E27: ='SA1'!E83 -> 15714685.58 | F27: ='SA1'!F83 -> 11620103 | G27: ='SA1'!G83 -> 11271875 | H27: ='SA1'!H83 -> 11271875 | I27: ='SA1'!I83 -> 3437313.62 | J27: ='SA1'!J83 -> 11271875 | K27: ='SA1'!K83 -> 11779115 | L27: ='SA1'!L83 -> 12309172
A28: Finance charges
A29: Bulk purchases | B29: 2 | C29: ='SA1'!C88 -> 0 | D29: ='SA1'!D88 -> 0 | E29: ='SA1'!E88 -> 0 | F29: ='SA1'!F88 -> 0 | G29: ='SA1'!G88 -> 0 | H29: ='SA1'!H88 -> 0 | I29: ='SA1'!I88 -> 0 | J29: ='SA1'!J88 -> 0 | K29: ='SA1'!K88 -> 0 | L29: ='SA1'!L88 -> 0
A30: Other materials | B30: 8 | C30: 0 | D30: 7627837.03 | E30: 8223594.34 | F30: 7826678 | G30: 7538308 | H30: 7538308 | I30: 6867877.62 | J30: 6905145 | K30: 7215877 | L30: 7540593
A31: Contracted services | C31: ='SA1'!C127 -> 0 | D31: ='SA1'!D127 -> 52004313.39 | E31: ='SA1'!E127 -> 56736313.7 | F31: ='SA1'!F127 -> 53936724 | G31: ='SA1'!G127 -> 48074701 | H31: ='SA1'!H127 -> 48074701 | I31: ='SA1'!I127 -> 30996409.05 | J31: ='SA1'!J127 -> 46534353 | K31: ='SA1'!K127 -> 48651971 | L31: ='SA1'!L127 -> 50858446
A32: Transfers and subsidies | C32: ='SA1'!C93 -> 0 | D32: ='SA1'!D93 -> 10625459.87 | E32: ='SA1'!E93 -> 9560026.09 | F32: ='SA1'!F93 -> 25140500 | G32: ='SA1'!G93 -> 9048087 | H32: ='SA1'!H93 -> 9048087 | I32: ='SA1'!I93 -> 8198560.86 | J32: ='SA1'!J93 -> 27973000 | K32: ='SA1'!K93 -> 11454000 | L32: ='SA1'!L93 -> 12027000
A33: Other expenditure | B33: 4, 5 | C33: ='SA1'!C157 -> 0 | D33: ='SA1'!D157 -> 38511128.68 | E33: ='SA1'!E157 -> 43498726.89 | F33: ='SA1'!F157 -> 40443038 | G33: ='SA1'!G157 -> 37607396 | H33: ='SA1'!H157 -> 37607396 | I33: ='SA1'!I157 -> 34289646 | J33: ='SA1'!J157 -> 35875159 | K33: ='SA1'!K157 -> 37489541 | L33: ='SA1'!L157 -> 39176572
A34: Losses | C34: 0 | D34: 73883.51 | E34: 165948.97 | F34: 40000 | G34: 40000 | H34: 40000 | I34: 901342.99 | J34: 40000 | K34: 41800 | L34: 43681
A35: Total Expenditure | C35: =SUM(C24:C34) -> 0 | D35: =SUM(D24:D34) -> 447518136.3 | E35: 420171841 | F35: 429062341 | G35: 401250269 | H35: 401250269 | I35: 370085395.1 | J35: 417261171 | K35: 418283709 | L35: 437181185 | M35: =SUM(M24:M34) -> 0 | N35: 0 | O35: 0 | P35: 0 | Q35: 0 | R35: 0 | S35: 0 | T35: 0 | U35: 0 | V35: 0 | W35: 0 | X35: 0
A37: Surplus/(Deficit) | C37: =C21-C35 -> 0 | D37: -95521699.21 | E37: -48633995.32 | F37: -23251160 | G37: -10535547 | H37: -10535547 | I37: -13219363.11 | J37: 502078 | K37: -2838129 | L37: -7788213 | M37: =M21+M35 -> 0 | N37: 0 | O37: 0 | P37: 0 | Q37: 0 | R37: 0 | S37: 0 | T37: 0 | U37: 0 | V37: 0 | W37: 0 | X37: 0
A38: Transfers and subsidies - capital (monetary allocations) (National / Provincial and District) | C38: 0 | D38: 6171000 | E38: 0 | F38: 0 | G38: 788950 | H38: 788950 | I38: 38950 | J38: 0 | K38: 0 | L38: 0
A39: Transfers and subsidies - capital (monetary allocations) (National / Provincial Departmental Agencies, Households, Non-profit Institutions, Private Enterprises, Public Corporatons, Higher Educational Institutions) | B39: 6 | C39: ='SA1'!C76 -> 0
A40: Transfers and subsidies - capital (in-kind - all)
A41: Surplus/(Deficit) after capital transfers & contributions | C41: =SUM(C37:C40) -> 0 | D41: -89350699.21 | E41: -48633995.32 | F41: -23251160 | G41: -9746597 | H41: -9746597 | I41: -13180413.11 | J41: 502078 | K41: -2838129 | L41: -7788213
A42: Taxation
A43: Surplus/(Deficit) after taxation | C43: =C41-C42 -> 0 | D43: -89350699.21 | E43: -48633995.32 | F43: -23251160 | G43: -9746597 | H43: -9746597 | I43: -13180413.11 | J43: 502078 | K43: -2838129 | L43: -7788213
A44: Attributable to minorities
A45: Surplus/(Deficit) attributable to municipality | C45: =SUM(C43:C44) -> 0 | D45: -89350699.21 | E45: -48633995.32 | F45: -23251160 | G45: -9746597 | H45: -9746597 | I45: -13180413.11 | J45: 502078 | K45: -2838129 | L45: -7788213
A46: Share of surplus/ (deficit) of associate | B46: 7
A47: =result -> Surplus/(Deficit) for the year | C47: =SUM(C45:C46) -> 0 | D47: -89350699.21 | E47: -48633995.32 | F47: -23251160 | G47: -9746597 | H47: -9746597 | I47: -13180413.11 | J47: 502078 | K47: -2838129 | L47: -7788213 | M47: =M25+M46 -> 0 | N47: 0 | O47: 0 | P47: 0 | Q47: 0 | R47: 0 | S47: 0 | T47: 0 | U47: 0 | V47: 0 | W47: 0 | X47: 0
A48: =head27a -> References
A49: 1. Classifications are revenue sources and expenditure type
A50: 2. Detail to be provided in Table SA1
A51: 3. Previously described as 'bad or doubtful debts' - amounts shown should reflect the change in the provision for debt impairment
A52: 4. Expenditure type components previously shown under repairs and maintenance should be allocated back to the originating expenditure group/item; e.g. employee costs
A53: 5. Repairs & maintenance detailed in Table A9 and Table SA34c
A54: 6. Contributions are funds provided by external organisations to assist with infrastructure development; e.g. developer contributions (detail to be provided in Table SA1)
A55: 7. Equity method ( Includes Joint Ventures)
A56: 8. All materials not part of 'bulk' e.g road making materials, pipe, cable etc.
A57: check balance | C57: =C45-'A3-FinPerf V'!C39 -> 0 | D57: =D45-'A3-FinPerf V'!D39 -> 0 | E57: =E45-'A3-FinPerf V'!E39 -> 1.788139343e-07 | F57: =F45-'A3-FinPerf V'!F39 -> 0 | G57: =G45-'A3-FinPerf V'!G39 -> 0 | H57: =H45-'A3-FinPerf V'!H39 -> 0 | J57: =J45-'A3-FinPerf V'!I39 -> 0 | K57: =K45-'A3-FinPerf V'!J39 -> 0 | L57: =L45-'A3-FinPerf V'!K39 -> 0
A59: Total revenue | C59: =C21+SUM(C38:C40) -> 0 | D59: 358167437.1 | E59: 371537845.7 | F59: 405811181 | G59: 391503672 | H59: 391503672 | I59: 356904982 | J59: 417763249 | K59: 415445580 | L59: 429392972

Sheet A5-Capex
A2: =Vdesc -> Vote Description | B2: =head27 -> Ref | C2: =head1b -> 2016/17 | D2: =head1A -> 2017/18 | E2: =Head1 -> 2018/19 | F2: =Head2 -> Current Year 2019/20 | J2: =Head3 -> 2020/21 Medium Term Revenue & Expenditure Framework
A3: R thousand | B3: 1 | C3: =Head5 -> Audited Outcome | D3: =Head5 -> Audited Outcome | E3: =Head5 -> Audited Outcome | F3: =Head6 -> Original Budget | G3: =Head7 -> Adjusted Budget | H3: =Head8 -> Full Year Forecast | I3: =Head5b -> Pre-audit outcome | J3: =Head9 -> Budget Year 2020/21 | K3: =Head10 -> Budget Year +1 2021/22 | L3: =Head11 -> Budget Year +2 2022/23
A4: Capital expenditure - Vote
A5: Multi-year expenditure to be appropriated | B5: 2
A6: =A5A!A6 -> Vote 01 - Executive & Council | C6: =A5A!C6 -> 0 | D6: =A5A!D6 -> 0 | E6: =A5A!E6 -> 0 | F6: =A5A!F6 -> 0 | G6: =A5A!G6 -> 0 | H6: =A5A!H6 -> 0 | I6: =A5A!I6 -> 0 | J6: =A5A!J6 -> 0 | K6: =A5A!K6 -> 0 | L6: =A5A!L6 -> 0
A7: =A5A!A24 -> Vote 02 - Budget & Treasury Office | C7: =A5A!C24 -> 0 | D7: =A5A!D24 -> 0 | E7: =A5A!E24 -> 0 | F7: =A5A!F24 -> 0 | G7: =A5A!G24 -> 0 | H7: =A5A!H24 -> 0 | I7: =A5A!I24 -> 0 | J7: =A5A!J24 -> 0 | K7: =A5A!K24 -> 0 | L7: =A5A!L24 -> 0
A8: =A5A!A28 -> Vote 03 - Corporate Services | C8: =A5A!C28 -> 0 | D8: =A5A!D28 -> 0 | E8: =A5A!E28 -> 0 | F8: =A5A!F28 -> 0 | G8: =A5A!G28 -> 0 | H8: =A5A!H28 -> 0 | I8: =A5A!I28 -> 0 | J8: =A5A!J28 -> 0 | K8: =A5A!K28 -> 0 | L8: =A5A!L28 -> 0
A9: =A5A!A44 -> Vote 04 - Roads And Transport | C9: =A5A!C44 -> 0 | D9: =A5A!D44 -> 0 | E9: =A5A!E44 -> 0 | F9: =A5A!F44 -> 0 | G9: =A5A!G44 -> 0 | H9: =A5A!H44 -> 0 | I9: =A5A!I44 -> 0 | J9: =A5A!J44 -> 0 | K9: =A5A!K44 -> 0 | L9: =A5A!L44 -> 0
A10: =A5A!A59 -> Vote 05 - Planning & Development | C10: =A5A!C59 -> 0 | D10: =A5A!D59 -> 0 | E10: =A5A!E59 -> 0 | F10: =A5A!F59 -> 0 | G10: =A5A!G59 -> 0 | H10: =A5A!H59 -> 0 | I10: =A5A!I59 -> 0 | J10: =A5A!J59 -> 0 | K10: =A5A!K59 -> 0 | L10: =A5A!L59 -> 0
A11: =A5A!A68 -> Vote 06 - Community & Social Services | C11: =A5A!C68 -> 0 | D11: =A5A!D68 -> 0 | E11: =A5A!E68 -> 0 | F11: =A5A!F68 -> 0 | G11: =A5A!G68 -> 0 | H11: =A5A!H68 -> 0 | I11: =A5A!I68 -> 0 | J11: =A5A!J68 -> 0 | K11: =A5A!K68 -> 0 | L11: =A5A!L68 -> 0
A12: ='Org structure'!A8 -> Vote 07 - | C12: =A5A!C88 -> 0 | D12: =A5A!D88 -> 0 | E12: =A5A!E88 -> 0 | F12: =A5A!F88 -> 0 | G12: =A5A!G88 -> 0 | H12: =A5A!H88 -> 0 | I12: =A5A!I88 -> 0 | J12: =A5A!J88 -> 0 | K12: =A5A!K88 -> 0 | L12: =A5A!L88 -> 0
A13: ='Org structure'!A9 -> Vote 08 - | C13: =A5A!C89 -> 0 | D13: =A5A!D89 -> 0 | E13: =A5A!E89 -> 0 | F13: =A5A!F89 -> 0 | G13: =A5A!G89 -> 0 | H13: =A5A!H89 -> 0 | I13: =A5A!I89 -> 0 | J13: =A5A!J89 -> 0 | K13: =A5A!K89 -> 0 | L13: =A5A!L89 -> 0
A14: ='Org structure'!A10 -> Vote 09 - | C14: =A5A!C90 -> 0 | D14: =A5A!D90 -> 0 | E14: =A5A!E90 -> 0 | F14: =A5A!F90 -> 0 | G14: =A5A!G90 -> 0 | H14: =A5A!H90 -> 0 | I14: =A5A!I90 -> 0 | J14: =A5A!J90 -> 0 | K14: =A5A!K90 -> 0 | L14: =A5A!L90 -> 0
A15: ='Org structure'!A11 -> Vote 10 - | C15: =A5A!C91 -> 0 | D15: =A5A!D91 -> 0 | E15: =A5A!E91 -> 0 | F15: =A5A!F91 -> 0 | G15: =A5A!G91 -> 0 | H15: =A5A!H91 -> 0 | I15: =A5A!I91 -> 0 | J15: =A5A!J91 -> 0 | K15: =A5A!K91 -> 0 | L15: =A5A!L91 -> 0
A16: ='Org structure'!A12 -> Vote 11 - | C16: =A5A!C92 -> 0 | D16: =A5A!D92 -> 0 | E16: =A5A!E92 -> 0 | F16: =A5A!F92 -> 0 | G16: =A5A!G92 -> 0 | H16: =A5A!H92 -> 0 | I16: =A5A!I92 -> 0 | J16: =A5A!J92 -> 0 | K16: =A5A!K92 -> 0 | L16: =A5A!L92 -> 0
A17: ='Org structure'!A13 -> Vote 12 - | C17: =A5A!C93 -> 0 | D17: =A5A!D93 -> 0 | E17: =A5A!E93 -> 0 | F17: =A5A!F93 -> 0 | G17: =A5A!G93 -> 0 | H17: =A5A!H93 -> 0 | I17: =A5A!I93 -> 0 | J17: =A5A!J93 -> 0 | K17: =A5A!K93 -> 0 | L17: =A5A!L93 -> 0
A18: ='Org structure'!A14 -> Vote 13 - | C18: =A5A!C94 -> 0 | D18: =A5A!D94 -> 0 | E18: =A5A!E94 -> 0 | F18: =A5A!F94 -> 0 | G18: =A5A!G94 -> 0 | H18: =A5A!H94 -> 0 | I18: =A5A!I94 -> 0 | J18: =A5A!J94 -> 0 | K18: =A5A!K94 -> 0 | L18: =A5A!L94 -> 0
A19: ='Org structure'!A15 -> Vote 14 - | C19: =A5A!C95 -> 0 | D19: =A5A!D95 -> 0 | E19: =A5A!E95 -> 0 | F19: =A5A!F95 -> 0 | G19: =A5A!G95 -> 0 | H19: =A5A!H95 -> 0 | I19: =A5A!I95 -> 0 | J19: =A5A!J95 -> 0 | K19: =A5A!K95 -> 0 | L19: =A5A!L95 -> 0
A20: =A5A!A96 -> Vote 15 - Other | C20: =A5A!C96 -> 0 | D20: =A5A!D96 -> 0 | E20: =A5A!E96 -> 0 | F20: =A5A!F96 -> 0 | G20: =A5A!G96 -> 0 | H20: =A5A!H96 -> 0 | I20: =A5A!I96 -> 0 | J20: =A5A!J96 -> 0 | K20: =A5A!K96 -> 0 | L20: =A5A!L96 -> 0
A21: Capital multi-year expenditure sub-total | B21: 7 | C21: =SUM(C6:C20) -> 0 | D21: =SUM(D6:D20) -> 0 | E21: 0 | F21: 0 | G21: 0 | H21: =SUM(H6:H20) -> 0 | I21: 0 | J21: 0 | K21: 0 | L21: 0
A23: Single-year expenditure to be appropriated | B23: 2
A24: =A5A!A113 -> Vote 01 - Executive & Council | C24: =A5A!C113 -> 0 | D24: =A5A!D113 -> 0 | E24: =A5A!E113 -> 0 | F24: =A5A!F113 -> 0 | G24: =A5A!G113 -> 0 | H24: =A5A!H113 -> 0 | I24: =A5A!I113 -> 0 | J24: =A5A!J113 -> 0 | K24: =A5A!K113 -> 0 | L24: =A5A!L113 -> 0
A25: =A5A!A131 -> Vote 02 - Budget & Treasury Office | C25: =A5A!C131 -> 0 | D25: =A5A!D131 -> 934147.32 | E25: =A5A!E131 -> 2000425.26 | F25: =A5A!F131 -> 0 | G25: =A5A!G131 -> 0 | H25: =A5A!H131 -> 0 | I25: =A5A!I131 -> 0 | J25: =A5A!J131 -> 0 | K25: =A5A!K131 -> 0 | L25: =A5A!L131 -> 0
A26: =A5A!A135 -> Vote 03 - Corporate Services | C26: =A5A!C135 -> 0 | D26: =A5A!D135 -> 2191815.43 | E26: =A5A!E135 -> 1529507.11 | F26: =A5A!F135 -> 1750000 | G26: =A5A!G135 -> 1493763 | H26: =A5A!H135 -> 1493763 | I26: =A5A!I135 -> 663462.85 | J26: =A5A!J135 -> 2150000 | K26: =A5A!K135 -> 2246750 | L26: =A5A!L135 -> 2347854
A27: =A5A!A151 -> Vote 04 - Roads And Transport | C27: =A5A!C151 -> 0 | D27: =A5A!D151 -> 0 | E27: =A5A!E151 -> 0 | F27: =A5A!F151 -> 0 | G27: =A5A!G151 -> 750000 | H27: =A5A!H151 -> 750000 | I27: =A5A!I151 -> 0 | J27: =A5A!J151 -> 0 | K27: =A5A!K151 -> 0 | L27: =A5A!L151 -> 0
A28: =A5A!A166 -> Vote 05 - Planning & Development | C28: =A5A!C166 -> 0 | D28: =A5A!D166 -> 0 | E28: =A5A!E166 -> 0 | F28: =A5A!F166 -> 0 | G28: =A5A!G166 -> 0 | H28: =A5A!H166 -> 0 | I28: =A5A!I166 -> 0 | J28: =A5A!J166 -> 0 | K28: =A5A!K166 -> 0 | L28: =A5A!L166 -> 0
A29: =A5A!A175 -> Vote 06 - Community & Social Services | C29: =A5A!C175 -> 0 | D29: =A5A!D175 -> 0 | E29: =A5A!E175 -> 0 | F29: =A5A!F175 -> 0 | G29: =A5A!G175 -> 38950 | H29: =A5A!H175 -> 38950 | I29: =A5A!I175 -> 38949.56 | J29: =A5A!J175 -> 0 | K29: =A5A!K175 -> 0 | L29: =A5A!L175 -> 0
A30: ='Org structure'!A8 -> Vote 07 - | C30: =A5A!C195 -> 0 | D30: =A5A!D195 -> 0 | E30: =A5A!E195 -> 0 | F30: =A5A!F195 -> 0 | G30: =A5A!G195 -> 0 | H30: =A5A!H195 -> 0 | I30: =A5A!I195 -> 0 | J30: =A5A!J195 -> 0 | K30: =A5A!K195 -> 0 | L30: =A5A!L195 -> 0
A31: ='Org structure'!A9 -> Vote 08 - | C31: =A5A!C196 -> 0 | D31: =A5A!D196 -> 0 | E31: =A5A!E196 -> 0 | F31: =A5A!F196 -> 0 | G31: =A5A!G196 -> 0 | H31: =A5A!H196 -> 0 | I31: =A5A!I196 -> 0 | J31: =A5A!J196 -> 0 | K31: =A5A!K196 -> 0 | L31: =A5A!L196 -> 0
A32: ='Org structure'!A10 -> Vote 09 - | C32: =A5A!C197 -> 0 | D32: =A5A!D197 -> 0 | E32: =A5A!E197 -> 0 | F32: =A5A!F197 -> 0 | G32: =A5A!G197 -> 0 | H32: =A5A!H197 -> 0 | I32: =A5A!I197 -> 0 | J32: =A5A!J197 -> 0 | K32: =A5A!K197 -> 0 | L32: =A5A!L197 -> 0
A33: ='Org structure'!A11 -> Vote 10 - | C33: =A5A!C198 -> 0 | D33: =A5A!D198 -> 0 | E33: =A5A!E198 -> 0 | F33: =A5A!F198 -> 0 | G33: =A5A!G198 -> 0 | H33: =A5A!H198 -> 0 | I33: =A5A!I198 -> 0 | J33: =A5A!J198 -> 0 | K33: =A5A!K198 -> 0 | L33: =A5A!L198 -> 0
A34: ='Org structure'!A12 -> Vote 11 - | C34: =A5A!C199 -> 0 | D34: =A5A!D199 -> 0 | E34: =A5A!E199 -> 0 | F34: =A5A!F199 -> 0 | G34: =A5A!G199 -> 0 | H34: =A5A!H199 -> 0 | I34: =A5A!I199 -> 0 | J34: =A5A!J199 -> 0 | K34: =A5A!K199 -> 0 | L34: =A5A!L199 -> 0
A35: ='Org structure'!A13 -> Vote 12 - | C35: =A5A!C200 -> 0 | D35: =A5A!D200 -> 0 | E35: =A5A!E200 -> 0 | F35: =A5A!F200 -> 0 | G35: =A5A!G200 -> 0 | H35: =A5A!H200 -> 0 | I35: =A5A!I200 -> 0 | J35: =A5A!J200 -> 0 | K35: =A5A!K200 -> 0 | L35: =A5A!L200 -> 0
A36: ='Org structure'!A14 -> Vote 13 - | C36: =A5A!C201 -> 0 | D36: =A5A!D201 -> 0 | E36: =A5A!E201 -> 0 | F36: =A5A!F201 -> 0 | G36: =A5A!G201 -> 0 | H36: =A5A!H201 -> 0 | I36: =A5A!I201 -> 0 | J36: =A5A!J201 -> 0 | K36: =A5A!K201 -> 0 | L36: =A5A!L201 -> 0
A37: ='Org structure'!A15 -> Vote 14 - | C37: =A5A!C202 -> 0 | D37: =A5A!D202 -> 0 | E37: =A5A!E202 -> 0 | F37: =A5A!F202 -> 0 | G37: =A5A!G202 -> 0 | H37: =A5A!H202 -> 0 | I37: =A5A!I202 -> 0 | J37: =A5A!J202 -> 0 | K37: =A5A!K202 -> 0 | L37: =A5A!L202 -> 0
A38: =A5A!A203 -> Vote 15 - Other | C38: =A5A!C203 -> 0 | D38: =A5A!D203 -> 0 | E38: =A5A!E203 -> 0 | F38: =A5A!F203 -> 0 | G38: =A5A!G203 -> 0 | H38: =A5A!H203 -> 0 | I38: =A5A!I203 -> 0 | J38: =A5A!J203 -> 0 | K38: =A5A!K203 -> 0 | L38: =A5A!L203 -> 0
A39: Capital single-year expenditure sub-total | C39: =SUM(C24:C38) -> 0 | D39: =SUM(D24:D38) -> 3125962.75 | E39: 3529932.37 | F39: 1750000 | G39: 2282713 | H39: 2282713 | I39: 702412.41 | J39: 2150000 | K39: 2246750 | L39: 2347854
A40: Total Capital Expenditure - Vote | C40: =C39+C21 -> 0 | D40: =D39+D21 -> 3125962.75 | E40: 3529932.37 | F40: 1750000 | G40: 2282713 | H40: 2282713 | I40: 702412.41 | J40: 2150000 | K40: 2246750 | L40: 2347854
A42: Capital Expenditure - Functional
A43: Governance and administration | C43: =SUM(C44:C46) -> 0 | D43: =SUM(D44:D46) -> 3125962.75 | E43: 3529932.37 | F43: 1750000 | G43: 1493763 | H43: 1493763 | I43: 663462.85 | J43: 2150000 | K43: 2246750 | L43: 2347854
A44: Executive and council | C44: 0 | D44: 0 | E44: 0 | F44: 0 | G44: 0 | H44: 0 | I44: 0 | J44: 0 | K44: 0 | L44: 0
A45: Finance and administration | C45: 0 | D45: 3125962.75 | E45: 3529932.37 | F45: 1750000 | G45: 1493763 | H45: 1493763 | I45: 663462.85 | J45: 2150000 | K45: 2246750 | L45: 2347854
A46: Internal audit
A47: Community and public safety | C47: =SUM(C48:C52) -> 0 | D47: =SUM(D48:D52) -> 0 | E47: 0 | F47: 0 | G47: 38950 | H47: 38950 | I47: 38949.56 | J47: 0 | K47: 0 | L47: 0
A48: Community and social services | C48: 0 | D48: 0 | E48: 0 | F48: 0 | G48: 38950 | H48: 38950 | I48: 38949.56 | J48: 0 | K48: 0 | L48: 0
A49: Sport and recreation
A50: Public safety
A51: Housing
A52: Health
A53: Economic and environmental services | C53: =SUM(C54:C56) -> 0 | D53: =SUM(D54:D56) -> 0 | E53: 0 | F53: 0 | G53: 750000 | H53: 750000 | I53: 0 | J53: 0 | K53: 0 | L53: 0
A54: Planning and development | C54: 0 | D54: 0 | E54: 0 | F54: 0 | G54: 750000 | H54: 750000 | I54: 0 | J54: 0 | K54: 0 | L54: 0
A55: Road transport
A56: Environmental protection
A57: Trading services | C57: =SUM(C58:C61) -> 0 | D57: =SUM(D58:D61) -> 0 | E57: 0 | F57: 0 | G57: 0 | H57: 0 | I57: 0 | J57: 0 | K57: 0 | L57: 0
A58: Energy sources
A59: Water management
A60: Waste water management
A61: Waste management
A62: Other
A63: Total Capital Expenditure - Functional | B63: 3 | C63: =C43+C47+C53+C57+C62 -> 0 | D63: =D43+D47+D53+D57+D62 -> 3125962.75 | E63: 3529932.37 | F63: 1750000 | G63: 2282713 | H63: 2282713 | I63: 702412.41 | J63: 2150000 | K63: 2246750 | L63: =L43+L47+L53+L57+L62 -> 2347854
A65: Funded by:
A66: National Government | C66: 0 | D66: 62271.94 | E66: 0 | F66: 0 | G66: 788950 | H66: 788950 | I66: 38949.56 | J66: 0 | K66: 0 | L66: 0
A67: Provincial Government
A68: District Municipality
A69: ='A4-FinPerf RE'!A39 -> Transfers and subsidies - capital (monetary allocations) (National / Provincial Departmental Agencies, Households, Non-profit Institutions, Private Enterprises, Public Corporatons, Higher Educational Institutions)
A70: Transfers recognised - capital | B70: 4 | C70: =SUM(C66:C69) -> 0 | D70: 62271.94 | E70: 0 | F70: 0 | G70: 788950 | H70: 788950 | I70: 38949.56 | J70: 0 | K70: 0 | L70: 0
A72: Borrowing | B72: 6
A73: Internally generated funds | C73: 0 | D73: 0 | E73: 3529932.37 | F73: 1750000 | G73: 1493763 | H73: 1493763 | I73: 663462.85 | J73: 2150000 | K73: 2246750 | L73: 2347854
A74: Total Capital Funding | B74: 7 | C74: =+C70+C72+C73 -> 0 | D74: =+D70+D72+D73 -> 62271.94 | E74: 3529932.37 | F74: 1750000 | G74: 2282713 | H74: 2282713 | I74: 702412.41 | J74: 2150000 | K74: 2246750 | L74: 2347854
A75: =head27a -> References
A76: 1. Municipalities may choose to appropriate for capital expenditure for three years or for one year (if one year appropriation projected expenditure required for yr2 and yr3).
A77: 2. Include capital component of PPP unitary payment. Note that capital transfers are only appropriated to municipalities for the budget year
A78: 3. Capital expenditure by functional classification must reconcile to the appropriations by vote
A79: 4. Must reconcile to supporting table SA20 and to Budgeted Financial Performance (revenue and expenditure)
A81: 6. Include finance leases and PPP capital funding component of unitary payment - total borrowing/repayments to reconcile to changes in Table SA17
A82: 7. Total Capital Funding must balance with Total Capital Expenditure
A83: 8. Include any capitalised interest (MFMA section 46) as part of relevant capital budget
A85: check balance | C85: =IF((C63-C74)=0,0,"Unbalanced") -> 0 | D85: =IF((D63-D74)=0,0,"Unbalanced") -> Unbalanced | E85: 0 | F85: 0 | G85: 0 | H85: 0 | I85: 0 | J85: 0 | K85: 0 | L85: 0

Sheet A5A
A1: =muni&" - "&Approve5 -> DC42 Sedibeng - Table A5 Budgeted Capital Expenditure by vote, functional classification and funding
A2: =Vdesc -> Vote Description | B2: =head27 -> Ref | C2: =head1b -> 2016/17 | D2: =head1A -> 2017/18 | E2: =Head1 -> 2018/19 | F2: =Head2 -> Current Year 2019/20 | J2: =Head3 -> 2020/21 Medium Term Revenue & Expenditure Framework | N2: ="Multi-year appropriation for "&Head9& " in the "&Head2A&" Annual Budget" -> Multi-year appropriation for Budget Year 2020/21 in the 2019/20 Annual Budget | R2: ="Multi-year appropriation for "&RIGHT(Head10,7)& " in the "&Head2A&" Annual Budget" -> Multi-year appropriation for 2021/22 in the 2019/20 Annual Budget | V2: New multi-year appropriations (funds for new and existing projects)
A3: R thousand | B3: 1 | C3: =Head5 -> Audited Outcome | D3: =Head5 -> Audited Outcome | E3: =Head5 -> Audited Outcome | F3: =Head6 -> Original Budget | G3: =Head7 -> Adjusted Budget | H3: =Head8 -> Full Year Forecast | I3: =Head5b -> Pre-audit outcome | J3: =Head9 -> Budget Year 2020/21 | K3: =Head10 -> Budget Year +1 2021/22 | L3: =Head11 -> Budget Year +2 2022/23 | N3: ="Appropriation for "&RIGHT(Head9,7) -> Appropriation for 2020/21 | O3: ="Adjustments in "&Head2A -> Adjustments in 2019/20 | P3: ="Downward adjustments for "&RIGHT(Head9,7) -> Downward adjustments for 2020/21 | Q3: Appropriation carried forward | R3: ="Appropriation for "&RIGHT(Head9,7) -> Appropriation for 2020/21 | S3: ="Adjustments in "&Head2A -> Adjustments in 2019/20 | T3: ="Downward adjustments for "&RIGHT(Head9,7) -> Downward adjustments for 2020/21 | U3: Appropriation carried forward | V3: =Head9 -> Budget Year 2020/21 | W3: =Head10 -> Budget Year +1 2021/22 | X3: =Head11 -> Budget Year +2 2022/23
A4: Capital expenditure - Municipal Vote
A5: Multi-year expenditure appropriation | B5: 2
A6: ='Org structure'!A2 -> Vote 01 - Executive & Council | C6: =SUM(C7:C23) -> 0 | D6: 0 | E6: 0 | F6: 0 | G6: 0 | H6: 0 | I6: 0 | J6: 0 | K6: 0 | L6: 0 | N6: =SUM(N7:N23) -> 0 | O6: 0 | P6: 0 | Q6: 0 | R6: 0 | S6: 0 | T6: 0 | U6: 0 | V6: 0 | W6: 0 | X6: 0
A7: ='Org structure'!E3 -> 01.1 - Mayor Administration | C7: 0 | D7: 0 | E7: 0 | F7: 0 | G7: 0 | H7: 0 | I7: 0 | J7: =Q7+V7 -> 0 | K7: =U7+W7 -> 0 | L7: =X7 -> 0 | N7: 0 | O7: 0 | P7: 0 | Q7: =SUM(N7:P7) -> 0 | R7: 0 | S7: 0 | T7: 0 | U7: =SUM(R7:T7) -> 0 | V7: 0 | W7: 0 | X7: 0
A8: ='Org structure'!E4 -> 01.2 - Speaker Administration | C8: 0 | D8: 0 | E8: 0 | F8: 0 | G8: 0 | H8: 0 | I8: 0 | J8: 0 | K8: 0 | L8: 0 | N8: 0 | O8: 0 | P8: 0 | Q8: 0 | R8: 0 | S8: 0 | T8: 0 | U8: 0 | V8: 0 | W8: 0 | X8: 0
A9: ='Org structure'!E5 -> 01.3 - Speaker Projects | C9: 0 | D9: 0 | E9: 0 | F9: 0 | G9: 0 | H9: 0 | I9: 0 | J9: 0 | K9: 0 | L9: 0 | N9: 0 | O9: 0 | P9: 0 | Q9: 0 | R9: 0 | S9: 0 | T9: 0 | U9: 0 | V9: 0 | W9: 0 | X9: 0
A10: ='Org structure'!E6 -> 01.4 - Mpac Office | C10: 0 | D10: 0 | E10: 0 | F10: 0 | G10: 0 | H10: 0 | I10: 0 | J10: 0 | K10: 0 | L10: 0 | N10: 0 | O10: 0 | P10: 0 | Q10: 0 | R10: 0 | S10: 0 | T10: 0 | U10: 0 | V10: 0 | W10: 0 | X10: 0
A11: ='Org structure'!E7 -> 01.5 - Mmc For Finance & Administration | C11: 0 | D11: 0 | E11: 0 | F11: 0 | G11: 0 | H11: 0 | I11: 0 | J11: 0 | K11: 0 | L11: 0 | N11: 0 | O11: 0 | P11: 0 | Q11: 0 | R11: 0 | S11: 0 | T11: 0 | U11: 0 | V11: 0 | W11: 0 | X11: 0
A12: ='Org structure'!E8 -> 01.6 - Mmc For Srac & Heritage | C12: 0 | D12: 0 | E12: 0 | F12: 0 | G12: 0 | H12: 0 | I12: 0 | J12: 0 | K12: 0 | L12: 0 | N12: 0 | O12: 0 | P12: 0 | Q12: 0 | R12: 0 | S12: 0 | T12: 0 | U12: 0 | V12: 0 | W12: 0 | X12: 0
A13: ='Org structure'!E9 -> 01.7 - Mmc For Infrastructure & Transport | C13: 0 | D13: 0 | E13: 0 | F13: 0 | G13: 0 | H13: 0 | I13: 0 | J13: 0 | K13: 0 | L13: 0 | N13: 0 | O13: 0 | P13: 0 | Q13: 0 | R13: 0 | S13: 0 | T13: 0 | U13: 0 | V13: 0 | W13: 0 | X13: 0
A14: ='Org structure'!E10 -> 01.8 - Mmc For Human Settlements | C14: 0 | D14: 0 | E14: 0 | F14: 0 | G14: 0 | H14: 0 | I14: 0 | J14: 0 | K14: 0 | L14: 0 | N14: 0 | O14: 0 | P14: 0 | Q14: 0 | R14: 0 | S14: 0 | T14: 0 | U14: 0 | V14: 0 | W14: 0 | X14: 0
A15: ='Org structure'!E11 -> 01.9 - Mmc For Health & Public Safety | C15: 0 | D15: 0 | E15: 0 | F15: 0 | G15: 0 | H15: 0 | I15: 0 | J15: 0 | K15: 0 | L15: 0 | N15: 0 | O15: 0 | P15: 0 | Q15: 0 | R15: 0 | S15: 0 | T15: 0 | U15: 0 | V15: 0 | W15: 0 | X15: 0
A16: ='Org structure'!E12 -> 01.10 - Mmc For Corporate Services | C16: 0 | D16: 0 | E16: 0 | F16: 0 | G16: 0 | H16: 0 | I16: 0 | J16: 0 | K16: 0 | L16: 0 | N16: 0 | O16: 0 | P16: 0 | Q16: 0 | R16: 0 | S16: 0 | T16: 0 | U16: 0 | V16: 0 | W16: 0 | X16: 0
A17: ='Org structure'!E13 -> 01.11 - Mmc For Environment | C17: 0 | D17: 0 | E17: 0 | F17: 0 | G17: 0 | H17: 0 | I17: 0 | J17: 0 | K17: 0 | L17: 0 | N17: 0 | O17: 0 | P17: 0 | Q17: 0 | R17: 0 | S17: 0 | T17: 0 | U17: 0 | V17: 0 | W17: 0 | X17: 0
A18: ='Org structure'!E14 -> 01.12 - Mmc For Strat Planning & Econ. Devel. | C18: 0 | D18: 0 | E18: 0 | F18: 0 | G18: 0 | H18: 0 | I18: 0 | J18: 0 | K18: 0 | L18: 0 | N18: 0 | O18: 0 | P18: 0 | Q18: 0 | R18: 0 | S18: 0 | T18: 0 | U18: 0 | V18: 0 | W18: 0 | X18: 0
A19: ='Org structure'!E15 -> 01.13 - Other Councilors | C19: 0 | D19: 0 | E19: 0 | F19: 0 | G19: 0 | H19: 0 | I19: 0 | J19: 0 | K19: 0 | L19: 0 | N19: 0 | O19: 0 | P19: 0 | Q19: 0 | R19: 0 | S19: 0 | T19: 0 | U19: 0 | V19: 0 | W19: 0 | X19: 0
A20: ='Org structure'!E16 -> 01.14 - Office Of The Chief Whip Administration | C20: 0 | D20: 0 | E20: 0 | F20: 0 | G20: 0 | H20: 0 | I20: 0 | J20: 0 | K20: 0 | L20: 0 | N20: 0 | O20: 0 | P20: 0 | Q20: 0 | R20: 0 | S20: 0 | T20: 0 | U20: 0 | V20: 0 | W20: 0 | X20: 0
A21: ='Org structure'!E17 -> 01.15 - Chief Whip Projects | C21: 0 | D21: 0 | E21: 0 | F21: 0 | G21: 0 | H21: 0 | I21: 0 | J21: 0 | K21: 0 | L21: 0 | N21: 0 | O21: 0 | P21: 0 | Q21: 0 | R21: 0 | S21: 0 | T21: 0 | U21: 0 | V21: 0 | W21: 0 | X21: 0
A22: ='Org structure'!E18 -> 01.16 - Municipal Manager Administration | C22: 0 | D22: 0 | E22: 0 | F22: 0 | G22: 0 | H22: 0 | I22: 0 | J22: 0 | K22: 0 | L22: 0 | N22: 0 | O22: 0 | P22: 0 | Q22: 0 | R22: 0 | S22: 0 | T22: 0 | U22: 0 | V22: 0 | W22: 0 | X22: 0
A23: ='Org structure'!E19 -> 01.17 - External Communication | C23: 0 | D23: 0 | E23: 0 | F23: 0 | G23: 0 | H23: 0 | I23: 0 | J23: 0 | K23: 0 | L23: 0 | N23: 0 | O23: 0 | P23: 0 | Q23: 0 | R23: 0 | S23: 0 | T23: 0 | U23: 0 | V23: 0 | W23: 0 | X23: 0
A24: ='Org structure'!A3 -> Vote 02 - Budget & Treasury Office | C24: =SUM(C25:C27) -> 0 | D24: 0 | E24: 0 | F24: 0 | G24: 0 | H24: 0 | I24: 0 | J24: 0 | K24: 0 | L24: 0 | N24: =SUM(N25:N27) -> 0 | O24: 0 | P24: 0 | Q24: 0 | R24: 0 | S24: 0 | T24: 0 | U24: 0 | V24: 0 | W24: 0 | X24: 0
A25: ='Org structure'!E21 -> 02.1 - Financial Services Admin | C25: 0 | D25: 0 | E25: 0 | F25: 0 | G25: 0 | H25: 0 | I25: 0 | J25: =Q25+V25 -> 0 | K25: =U25+W25 -> 0 | L25: =X25 -> 0 | N25: 0 | O25: 0 | P25: 0 | Q25: =SUM(N25:P25) -> 0 | R25: 0 | S25: 0 | T25: 0 | U25: =SUM(R25:T25) -> 0 | V25: 0 | W25: 0 | X25: 0
A26: ='Org structure'!E22 -> 02.2 - Financial Management | C26: 0 | D26: 0 | E26: 0 | F26: 0 | G26: 0 | H26: 0 | I26: 0 | J26: =Q26+V26 -> 0 | K26: =U26+W26 -> 0 | L26: =X26 -> 0 | N26: 0 | O26: 0 | P26: 0 | Q26: =SUM(N26:P26) -> 0 | R26: 0 | S26: 0 | T26: 0 | U26: =SUM(R26:T26) -> 0 | V26: 0 | W26: 0 | X26: 0
A27: ='Org structure'!E23 -> 02.3 - Supply Chain Management | C27: 0 | D27: 0 | E27: 0 | F27: 0 | G27: 0 | H27: 0 | I27: 0 | J27: =Q27+V27 -> 0 | K27: =U27+W27 -> 0 | L27: =X27 -> 0 | N27: 0 | O27: 0 | P27: 0 | Q27: =SUM(N27:P27) -> 0 | R27: 0 | S27: 0 | T27: 0 | U27: =SUM(R27:T27) -> 0 | V27: 0 | W27: 0 | X27: 0
A28: ='Org structure'!A4 -> Vote 03 - Corporate Services | C28: =SUM(C29:C43) -> 0 | D28: 0 | E28: 0 | F28: 0 | G28: 0 | H28: 0 | I28: 0 | J28: 0 | K28: 0 | L28: 0 | N28: =SUM(N29:N43) -> 0 | O28: 0 | P28: 0 | Q28: 0 | R28: 0 | S28: 0 | T28: 0 | U28: 0 | V28: 0 | W28: 0 | X28: 0
A29: ='Org structure'!E25 -> 03.1 - Corporate Services - Admin | C29: 0 | D29: 0 | E29: 0 | F29: 0 | G29: 0 | H29: 0 | I29: 0 | J29: =Q29+V29 -> 0 | K29: =U29+W29 -> 0 | L29: =X29 -> 0 | N29: 0 | O29: 0 | P29: 0 | Q29: =SUM(N29:P29) -> 0 | R29: 0 | S29: 0 | T29: 0 | U29: =SUM(R29:T29) -> 0 | V29: 0 | W29: 0 | X29: 0
A30: ='Org structure'!E26 -> 03.2 - Human Resources Administration | C30: 0 | D30: 0 | E30: 0 | F30: 0 | G30: 0 | H30: 0 | I30: 0 | J30: 0 | K30: 0 | L30: 0 | N30: 0 | O30: 0 | P30: 0 | Q30: 0 | R30: 0 | S30: 0 | T30: 0 | U30: 0 | V30: 0 | W30: 0 | X30: 0
A31: ='Org structure'!E27 -> 03.3 - Corporate And Legal Administartion | C31: 0 | D31: 0 | E31: 0 | F31: 0 | G31: 0 | H31: 0 | I31: 0 | J31: 0 | K31: 0 | L31: 0 | N31: 0 | O31: 0 | P31: 0 | Q31: 0 | R31: 0 | S31: 0 | T31: 0 | U31: 0 | V31: 0 | W31: 0 | X31: 0
A32: ='Org structure'!E28 -> 03.4 - Legal | C32: 0 | D32: 0 | E32: 0 | F32: 0 | G32: 0 | H32: 0 | I32: 0 | J32: 0 | K32: 0 | L32: 0 | N32: 0 | O32: 0 | P32: 0 | Q32: 0 | R32: 0 | S32: 0 | T32: 0 | U32: 0 | V32: 0 | W32: 0 | X32: 0
A33: ='Org structure'!E29 -> 03.5 - Corporate | C33: 0 | D33: 0 | E33: 0 | F33: 0 | G33: 0 | H33: 0 | I33: 0 | J33: 0 | K33: 0 | L33: 0 | N33: 0 | O33: 0 | P33: 0 | Q33: 0 | R33: 0 | S33: 0 | T33: 0 | U33: 0 | V33: 0 | W33: 0 | X33: 0
A34: ='Org structure'!E30 -> 03.6 - Facility Management Admin | C34: 0 | D34: 0 | E34: 0 | F34: 0 | G34: 0 | H34: 0 | I34: 0 | J34: 0 | K34: 0 | L34: 0 | N34: 0 | O34: 0 | P34: 0 | Q34: 0 | R34: 0 | S34: 0 | T34: 0 | U34: 0 | V34: 0 | W34: 0 | X34: 0
A35: ='Org structure'!E31 -> 03.7 - Fleet Management | C35: 0 | D35: 0 | E35: 0 | F35: 0 | G35: 0 | H35: 0 | I35: 0 | J35: 0 | K35: 0 | L35: 0 | N35: 0 | O35: 0 | P35: 0 | Q35: 0 | R35: 0 | S35: 0 | T35: 0 | U35: 0 | V35: 0 | W35: 0 | X35: 0
A36: ='Org structure'!E32 -> 03.8 - Maintenance & Cleaning | C36: 0 | D36: 0 | E36: 0 | F36: 0 | G36: 0 | H36: 0 | I36: 0 | J36: 0 | K36: 0 | L36: 0 | N36: 0 | O36: 0 | P36: 0 | Q36: 0 | R36: 0 | S36: 0 | T36: 0 | U36: 0 | V36: 0 | W36: 0 | X36: 0
A37: ='Org structure'!E33 -> 03.9 - Town Hall | C37: 0 | D37: 0 | E37: 0 | F37: 0 | G37: 0 | H37: 0 | I37: 0 | J37: 0 | K37: 0 | L37: 0 | N37: 0 | O37: 0 | P37: 0 | Q37: 0 | R37: 0 | S37: 0 | T37: 0 | U37: 0 | V37: 0 | W37: 0 | X37: 0
A38: ='Org structure'!E34 -> 03.10 - Internal Security | C38: 0 | D38: 0 | E38: 0 | F38: 0 | G38: 0 | H38: 0 | I38: 0 | J38: 0 | K38: 0 | L38: 0 | N38: 0 | O38: 0 | P38: 0 | Q38: 0 | R38: 0 | S38: 0 | T38: 0 | U38: 0 | V38: 0 | W38: 0 | X38: 0
A39: ='Org structure'!E35 -> 03.11 - It Emfuleni | C39: 0 | D39: 0 | E39: 0 | F39: 0 | G39: 0 | H39: 0 | I39: 0 | J39: 0 | K39: 0 | L39: 0 | N39: 0 | O39: 0 | P39: 0 | Q39: 0 | R39: 0 | S39: 0 | T39: 0 | U39: 0 | V39: 0 | W39: 0 | X39: 0
A40: ='Org structure'!E36 -> 03.12 - It Sedibeng | C40: 0 | D40: 0 | E40: 0 | F40: 0 | G40: 0 | H40: 0 | I40: 0 | J40: 0 | K40: 0 | L40: 0 | N40: 0 | O40: 0 | P40: 0 | Q40: 0 | R40: 0 | S40: 0 | T40: 0 | U40: 0 | V40: 0 | W40: 0 | X40: 0
A41: ='Org structure'!E37 -> 03.13 - It Midvaal | C41: 0 | D41: 0 | E41: 0 | F41: 0 | G41: 0 | H41: 0 | I41: 0 | J41: 0 | K41: 0 | L41: 0 | N41: 0 | O41: 0 | P41: 0 | Q41: 0 | R41: 0 | S41: 0 | T41: 0 | U41: 0 | V41: 0 | W41: 0 | X41: 0
A42: ='Org structure'!E38 -> 03.14 - Idp Function | C42: 0 | D42: 0 | E42: 0 | F42: 0 | G42: 0 | H42: 0 | I42: 0 | J42: 0 | K42: 0 | L42: 0 | N42: 0 | O42: 0 | P42: 0 | Q42: 0 | R42: 0 | S42: 0 | T42: 0 | U42: 0 | V42: 0 | W42: 0 | X42: 0
A43: ='Org structure'!E39 -> 03.15 - Fresh Produce Market | C43: 0 | D43: 0 | E43: 0 | F43: 0 | G43: 0 | H43: 0 | I43: 0 | J43: 0 | K43: 0 | L43: 0 | N43: 0 | O43: 0 | P43: 0 | Q43: 0 | R43: 0 | S43: 0 | T43: 0 | U43: 0 | V43: 0 | W43: 0 | X43: 0
A44: ='Org structure'!A5 -> Vote 04 - Roads And Transport | C44: =SUM(C45:C58) -> 0 | D44: 0 | E44: 0 | F44: 0 | G44: 0 | H44: 0 | I44: 0 | J44: 0 | K44: 0 | L44: 0 | N44: =SUM(N45:N58) -> 0 | O44: 0 | P44: 0 | Q44: 0 | R44: 0 | S44: 0 | T44: 0 | U44: 0 | V44: 0 | W44: 0 | X44: 0
A45: ='Org structure'!E41 -> 04.1 - Emfuleni Taxi Rank | C45: 0 | D45: 0 | E45: 0 | F45: 0 | G45: 0 | H45: 0 | I45: 0 | J45: =Q45+V45 -> 0 | K45: =U45+W45 -> 0 | L45: =X45 -> 0 | N45: 0 | O45: 0 | P45: 0 | Q45: =SUM(N45:P45) -> 0 | R45: 0 | S45: 0 | T45: 0 | U45: =SUM(R45:T45) -> 0 | V45: 0 | W45: 0 | X45: 0
A46: ='Org structure'!E42 -> 04.2 - Midvaal Taxi Rank | C46: 0 | D46: 0 | E46: 0 | F46: 0 | G46: 0 | H46: 0 | I46: 0 | J46: 0 | K46: 0 | L46: 0 | N46: 0 | O46: 0 | P46: 0 | Q46: 0 | R46: 0 | S46: 0 | T46: 0 | U46: 0 | V46: 0 | W46: 0 | X46: 0
A47: ='Org structure'!E43 -> 04.3 - Lesedi Taxi Rank | C47: 0 | D47: 0 | E47: 0 | F47: 0 | G47: 0 | H47: 0 | I47: 0 | J47: 0 | K47: 0 | L47: 0 | N47: 0 | O47: 0 | P47: 0 | Q47: 0 | R47: 0 | S47: 0 | T47: 0 | U47: 0 | V47: 0 | W47: 0 | X47: 0
A48: ='Org structure'!E44 -> 04.4 - Basic Services | C48: 0 | D48: 0 | E48: 0 | F48: 0 | G48: 0 | H48: 0 | I48: 0 | J48: 0 | K48: 0 | L48: 0 | N48: 0 | O48: 0 | P48: 0 | Q48: 0 | R48: 0 | S48: 0 | T48: 0 | U48: 0 | V48: 0 | W48: 0 | X48: 0
A49: ='Org structure'!E45 -> 04.5 - Transport;Infrastructure & Environment | C49: 0 | D49: 0 | E49: 0 | F49: 0 | G49: 0 | H49: 0 | I49: 0 | J49: 0 | K49: 0 | L49: 0 | N49: 0 | O49: 0 | P49: 0 | Q49: 0 | R49: 0 | S49: 0 | T49: 0 | U49: 0 | V49: 0 | W49: 0 | X49: 0
A50: ='Org structure'!E46 -> 04.6 - Air Quality Management | C50: 0 | D50: 0 | E50: 0 | F50: 0 | G50: 0 | H50: 0 | I50: 0 | J50: 0 | K50: 0 | L50: 0 | N50: 0 | O50: 0 | P50: 0 | Q50: 0 | R50: 0 | S50: 0 | T50: 0 | U50: 0 | V50: 0 | W50: 0 | X50: 0
A51: ='Org structure'!E47 -> 04.7 - Environmental Planning And Coordination | C51: 0 | D51: 0 | E51: 0 | F51: 0 | G51: 0 | H51: 0 | I51: 0 | J51: 0 | K51: 0 | L51: 0 | N51: 0 | O51: 0 | P51: 0 | Q51: 0 | R51: 0 | S51: 0 | T51: 0 | U51: 0 | V51: 0 | W51: 0 | X51: 0
A52: ='Org structure'!E48 -> 04.8 - Municipal Health Services | C52: 0 | D52: 0 | E52: 0 | F52: 0 | G52: 0 | H52: 0 | I52: 0 | J52: 0 | K52: 0 | L52: 0 | N52: 0 | O52: 0 | P52: 0 | Q52: 0 | R52: 0 | S52: 0 | T52: 0 | U52: 0 | V52: 0 | W52: 0 | X52: 0
A53: ='Org structure'!E49 -> 04.9 - Environment | C53: 0 | D53: 0 | E53: 0 | F53: 0 | G53: 0 | H53: 0 | I53: 0 | J53: 0 | K53: 0 | L53: 0 | N53: 0 | O53: 0 | P53: 0 | Q53: 0 | R53: 0 | S53: 0 | T53: 0 | U53: 0 | V53: 0 | W53: 0 | X53: 0
A54: ='Org structure'!E50 -> 04.10 - License Service Centre | C54: 0 | D54: 0 | E54: 0 | F54: 0 | G54: 0 | H54: 0 | I54: 0 | J54: 0 | K54: 0 | L54: 0 | N54: 0 | O54: 0 | P54: 0 | Q54: 0 | R54: 0 | S54: 0 | T54: 0 | U54: 0 | V54: 0 | W54: 0 | X54: 0
A55: ='Org structure'!E51 -> 04.11 - License Service Centre - Vereeniging | C55: 0 | D55: 0 | E55: 0 | F55: 0 | G55: 0 | H55: 0 | I55: 0 | J55: 0 | K55: 0 | L55: 0 | N55: 0 | O55: 0 | P55: 0 | Q55: 0 | R55: 0 | S55: 0 | T55: 0 | U55: 0 | V55: 0 | W55: 0 | X55: 0
A56: ='Org structure'!E52 -> 04.12 - License Service Centre - Vanderbijl Park | C56: 0 | D56: 0 | E56: 0 | F56: 0 | G56: 0 | H56: 0 | I56: 0 | J56: 0 | K56: 0 | L56: 0 | N56: 0 | O56: 0 | P56: 0 | Q56: 0 | R56: 0 | S56: 0 | T56: 0 | U56: 0 | V56: 0 | W56: 0 | X56: 0
A57: ='Org structure'!E53 -> 04.13 - License Service Centre - Meyerton | C57: 0 | D57: 0 | E57: 0 | F57: 0 | G57: 0 | H57: 0 | I57: 0 | J57: 0 | K57: 0 | L57: 0 | N57: 0 | O57: 0 | P57: 0 | Q57: 0 | R57: 0 | S57: 0 | T57: 0 | U57: 0 | V57: 0 | W57: 0 | X57: 0
A58: ='Org structure'!E54 -> 04.14 - License Service Centre - Heidelberg | C58: 0 | D58: 0 | E58: 0 | F58: 0 | G58: 0 | H58: 0 | I58: 0 | J58: 0 | K58: 0 | L58: 0 | N58: 0 | O58: 0 | P58: 0 | Q58: 0 | R58: 0 | S58: 0 | T58: 0 | U58: 0 | V58: 0 | W58: 0 | X58: 0
A59: ='Org structure'!A6 -> Vote 05 - Planning & Development | C59: =SUM(C60:C67) -> 0 | D59: 0 | E59: 0 | F59: 0 | G59: 0 | H59: 0 | I59: 0 | J59: 0 | K59: 0 | L59: 0 | N59: =SUM(N60:N67) -> 0 | O59: 0 | P59: 0 | Q59: 0 | R59: 0 | S59: 0 | T59: 0 | U59: 0 | V59: 0 | W59: 0 | X59: 0
A60: ='Org structure'!E56 -> 05.1 - Idp Function | C60: 0 | D60: 0 | E60: 0 | F60: 0 | G60: 0 | H60: 0 | I60: 0 | J60: =Q60+V60 -> 0 | K60: =U60+W60 -> 0 | L60: =X60 -> 0 | N60: 0 | O60: 0 | P60: 0 | Q60: =SUM(N60:P60) -> 0 | R60: 0 | S60: 0 | T60: 0 | U60: =SUM(R60:T60) -> 0 | V60: 0 | W60: 0 | X60: 0
A61: ='Org structure'!E57 -> 05.2 - Sped Admin | C61: 0 | D61: 0 | E61: 0 | F61: 0 | G61: 0 | H61: 0 | I61: 0 | J61: 0 | K61: 0 | L61: 0 | N61: 0 | O61: 0 | P61: 0 | Q61: 0 | R61: 0 | S61: 0 | T61: 0 | U61: 0 | V61: 0 | W61: 0 | X61: 0
A62: ='Org structure'!E58 -> 05.3 - Development Planning - Spec. Proj. | C62: 0 | D62: 0 | E62: 0 | F62: 0 | G62: 0 | H62: 0 | I62: 0 | J62: 0 | K62: 0 | L62: 0 | N62: 0 | O62: 0 | P62: 0 | Q62: 0 | R62: 0 | S62: 0 | T62: 0 | U62: 0 | V62: 0 | W62: 0 | X62: 0
A63: ='Org structure'!E59 -> 05.4 - Development Planning Land Use Management | C63: 0 | D63: 0 | E63: 0 | F63: 0 | G63: 0 | H63: 0 | I63: 0 | J63: 0 | K63: 0 | L63: 0 | N63: 0 | O63: 0 | P63: 0 | Q63: 0 | R63: 0 | S63: 0 | T63: 0 | U63: 0 | V63: 0 | W63: 0 | X63: 0
A64: ='Org structure'!E60 -> 05.5 - Tourism | C64: 0 | D64: 0 | E64: 0 | F64: 0 | G64: 0 | H64: 0 | I64: 0 | J64: 0 | K64: 0 | L64: 0 | N64: 0 | O64: 0 | P64: 0 | Q64: 0 | R64: 0 | S64: 0 | T64: 0 | U64: 0 | V64: 0 | W64: 0 | X64: 0
A65: ='Org structure'!E61 -> 05.6 - Housing | C65: 0 | D65: 0 | E65: 0 | F65: 0 | G65: 0 | H65: 0 | I65: 0 | J65: 0 | K65: 0 | L65: 0 | N65: 0 | O65: 0 | P65: 0 | Q65: 0 | R65: 0 | S65: 0 | T65: 0 | U65: 0 | V65: 0 | W65: 0 | X65: 0
A66: ='Org structure'!E62 -> 05.7 - Led & Sgds | C66: 0 | D66: 0 | E66: 0 | F66: 0 | G66: 0 | H66: 0 | I66: 0 | J66: 0 | K66: 0 | L66: 0 | N66: 0 | O66: 0 | P66: 0 | Q66: 0 | R66: 0 | S66: 0 | T66: 0 | U66: 0 | V66: 0 | W66: 0 | X66: 0
A67: ='Org structure'!E63 -> 05.8 - Ndpg Unit | C67: 0 | D67: 0 | E67: 0 | F67: 0 | G67: 0 | H67: 0 | I67: 0 | J67: 0 | K67: 0 | L67: 0 | N67: 0 | O67: 0 | P67: 0 | Q67: 0 | R67: 0 | S67: 0 | T67: 0 | U67: 0 | V67: 0 | W67: 0 | X67: 0
A68: ='Org structure'!A7 -> Vote 06 - Community & Social Services | C68: =SUM(C69:C87) -> 0 | D68: 0 | E68: 0 | F68: 0 | G68: 0 | H68: 0 | I68: 0 | J68: 0 | K68: 0 | L68: 0 | N68: =SUM(N69:N87) -> 0 | O68: 0 | P68: 0 | Q68: 0 | R68: 0 | S68: 0 | T68: 0 | U68: 0 | V68: 0 | W68: 0 | X68: 0
A69: ='Org structure'!E65 -> 06.1 - Vereeniging Airport | C69: 0 | D69: 0 | E69: 0 | F69: 0 | G69: 0 | H69: 0 | I69: 0 | J69: =Q69+V69 -> 0 | K69: =U69+W69 -> 0 | L69: =X69 -> 0 | N69: 0 | O69: 0 | P69: 0 | Q69: =SUM(N69:P69) -> 0 | R69: 0 | S69: 0 | T69: 0 | U69: =SUM(R69:T69) -> 0 | V69: 0 | W69: 0 | X69: 0
A70: ='Org structure'!E66 -> 06.2 - Vanderbijl Airport | C70: 0 | D70: 0 | E70: 0 | F70: 0 | G70: 0 | H70: 0 | I70: 0 | J70: 0 | K70: 0 | L70: 0 | N70: 0 | O70: 0 | P70: 0 | Q70: 0 | R70: 0 | S70: 0 | T70: 0 | U70: 0 | V70: 0 | W70: 0 | X70: 0
A71: ='Org structure'!E67 -> 06.3 - Emfuleni Taxi Rank | C71: 0 | D71: 0 | E71: 0 | F71: 0 | G71: 0 | H71: 0 | I71: 0 | J71: 0 | K71: 0 | L71: 0 | N71: 0 | O71: 0 | P71: 0 | Q71: 0 | R71: 0 | S71: 0 | T71: 0 | U71: 0 | V71: 0 | W71: 0 | X71: 0
A72: ='Org structure'!E68 -> 06.4 - Midvaal Taxi Rank | C72: 0 | D72: 0 | E72: 0 | F72: 0 | G72: 0 | H72: 0 | I72: 0 | J72: 0 | K72: 0 | L72: 0 | N72: 0 | O72: 0 | P72: 0 | Q72: 0 | R72: 0 | S72: 0 | T72: 0 | U72: 0 | V72: 0 | W72: 0 | X72: 0
A73: ='Org structure'!E69 -> 06.5 - Lesedi Taxi Rank | C73: 0 | D73: 0 | E73: 0 | F73: 0 | G73: 0 | H73: 0 | I73: 0 | J73: 0 | K73: 0 | L73: 0 | N73: 0 | O73: 0 | P73: 0 | Q73: 0 | R73: 0 | S73: 0 | T73: 0 | U73: 0 | V73: 0 | W73: 0 | X73: 0
A74: ='Org structure'!E70 -> 06.6 - Community Services Admin | C74: 0 | D74: 0 | E74: 0 | F74: 0 | G74: 0 | H74: 0 | I74: 0 | J74: 0 | K74: 0 | L74: 0 | N74: 0 | O74: 0 | P74: 0 | Q74: 0 | R74: 0 | S74: 0 | T74: 0 | U74: 0 | V74: 0 | W74: 0 | X74: 0
A75: ='Org structure'!E71 -> 06.7 - Public Safety | C75: 0 | D75: 0 | E75: 0 | F75: 0 | G75: 0 | H75: 0 | I75: 0 | J75: 0 | K75: 0 | L75: 0 | N75: 0 | O75: 0 | P75: 0 | Q75: 0 | R75: 0 | S75: 0 | T75: 0 | U75: 0 | V75: 0 | W75: 0 | X75: 0
A76: ='Org structure'!E72 -> 06.8 - Vereeniging Theatre | C76: 0 | D76: 0 | E76: 0 | F76: 0 | G76: 0 | H76: 0 | I76: 0 | J76: 0 | K76: 0 | L76: 0 | N76: 0 | O76: 0 | P76: 0 | Q76: 0 | R76: 0 | S76: 0 | T76: 0 | U76: 0 | V76: 0 | W76: 0 | X76: 0
A77: ='Org structure'!E73 -> 06.9 - Mphatlalatsane Theatre | C77: 0 | D77: 0 | E77: 0 | F77: 0 | G77: 0 | H77: 0 | I77: 0 | J77: 0 | K77: 0 | L77: 0 | N77: 0 | O77: 0 | P77: 0 | Q77: 0 | R77: 0 | S77: 0 | T77: 0 | U77: 0 | V77: 0 | W77: 0 | X77: 0
A78: ='Org structure'!E74 -> 06.10 - Sports & Recreation | C78: 0 | D78: 0 | E78: 0 | F78: 0 | G78: 0 | H78: 0 | I78: 0 | J78: 0 | K78: 0 | L78: 0 | N78: 0 | O78: 0 | P78: 0 | Q78: 0 | R78: 0 | S78: 0 | T78: 0 | U78: 0 | V78: 0 | W78: 0 | X78: 0
A79: ='Org structure'!E75 -> 06.11 - Heritage | C79: 0 | D79: 0 | E79: 0 | F79: 0 | G79: 0 | H79: 0 | I79: 0 | J79: 0 | K79: 0 | L79: 0 | N79: 0 | O79: 0 | P79: 0 | Q79: 0 | R79: 0 | S79: 0 | T79: 0 | U79: 0 | V79: 0 | W79: 0 | X79: 0
A80: ='Org structure'!E76 -> 06.12 - Srach Admin | C80: 0 | D80: 0 | E80: 0 | F80: 0 | G80: 0 | H80: 0 | I80: 0 | J80: 0 | K80: 0 | L80: 0 | N80: 0 | O80: 0 | P80: 0 | Q80: 0 | R80: 0 | S80: 0 | T80: 0 | U80: 0 | V80: 0 | W80: 0 | X80: 0
A81: ='Org structure'!E77 -> 06.13 - Hiv & Aids | C81: 0 | D81: 0 | E81: 0 | F81: 0 | G81: 0 | H81: 0 | I81: 0 | J81: 0 | K81: 0 | L81: 0 | N81: 0 | O81: 0 | P81: 0 | Q81: 0 | R81: 0 | S81: 0 | T81: 0 | U81: 0 | V81: 0 | W81: 0 | X81: 0
A82: ='Org structure'!E78 -> 06.14 - Primary Health Care Services | C82: 0 | D82: 0 | E82: 0 | F82: 0 | G82: 0 | H82: 0 | I82: 0 | J82: 0 | K82: 0 | L82: 0 | N82: 0 | O82: 0 | P82: 0 | Q82: 0 | R82: 0 | S82: 0 | T82: 0 | U82: 0 | V82: 0 | W82: 0 | X82: 0
A83: ='Org structure'!E79 -> 06.15 - Youth Centre | C83: 0 | D83: 0 | E83: 0 | F83: 0 | G83: 0 | H83: 0 | I83: 0 | J83: 0 | K83: 0 | L83: 0 | N83: 0 | O83: 0 | P83: 0 | Q83: 0 | R83: 0 | S83: 0 | T83: 0 | U83: 0 | V83: 0 | W83: 0 | X83: 0
A84: ='Org structure'!E80 -> 06.16 - Social Development | C84: 0 | D84: 0 | E84: 0 | F84: 0 | G84: 0 | H84: 0 | I84: 0 | J84: 0 | K84: 0 | L84: 0 | N84: 0 | O84: 0 | P84: 0 | Q84: 0 | R84: 0 | S84: 0 | T84: 0 | U84: 0 | V84: 0 | W84: 0 | X84: 0
A85: ='Org structure'!E81 -> 06.17 - Fire & Rescue Services | C85: 0 | D85: 0 | E85: 0 | F85: 0 | G85: 0 | H85: 0 | I85: 0 | J85: 0 | K85: 0 | L85: 0 | N85: 0 | O85: 0 | P85: 0 | Q85: 0 | R85: 0 | S85: 0 | T85: 0 | U85: 0 | V85: 0 | W85: 0 | X85: 0
A86: ='Org structure'!E82 -> 06.18 - Disaster Man - Operation & Co-Ord | C86: 0 | D86: 0 | E86: 0 | F86: 0 | G86: 0 | H86: 0 | I86: 0 | J86: 0 | K86: 0 | L86: 0 | N86: 0 | O86: 0 | P86: 0 | Q86: 0 | R86: 0 | S86: 0 | T86: 0 | U86: 0 | V86: 0 | W86: 0 | X86: 0
A87: ='Org structure'!E83 -> 06.19 - Cimm - Co-Ordination Centre | C87: 0 | D87: 0 | E87: 0 | F87: 0 | G87: 0 | H87: 0 | I87: 0 | J87: 0 | K87: 0 | L87: 0 | N87: 0 | O87: 0 | P87: 0 | Q87: 0 | R87: 0 | S87: 0 | T87: 0 | U87: 0 | V87: 0 | W87: 0 | X87: 0
A88: ='Org structure'!A8 -> Vote 07 - | C88: 0 | D88: 0 | E88: 0 | F88: 0 | G88: 0 | H88: 0 | I88: 0 | J88: 0 | K88: 0 | L88: 0 | N88: 0 | O88: 0 | P88: 0 | Q88: 0 | R88: 0 | S88: 0 | T88: 0 | U88: 0 | V88: 0 | W88: 0
A89: ='Org structure'!A9 -> Vote 08 - | C89: 0 | D89: 0 | E89: 0 | F89: 0 | G89: 0 | H89: 0 | I89: 0 | J89: 0 | K89: 0 | L89: 0 | N89: 0 | O89: 0 | P89: 0 | Q89: 0 | R89: 0 | S89: 0 | T89: 0 | U89: 0 | V89: 0 | W89: 0
A90: ='Org structure'!A10 -> Vote 09 - | C90: 0 | D90: 0 | E90: 0 | F90: 0 | G90: 0 | H90: 0 | I90: 0 | J90: 0 | K90: 0 | L90: 0 | N90: 0 | O90: 0 | P90: 0 | Q90: 0 | R90: 0 | S90: 0 | T90: 0 | U90: 0 | V90: 0 | W90: 0
A91: ='Org structure'!A11 -> Vote 10 - | C91: 0 | D91: 0 | E91: 0 | F91: 0 | G91: 0 | H91: 0 | I91: 0 | J91: 0 | K91: 0 | L91: 0 | N91: 0 | O91: 0 | P91: 0 | Q91: 0 | R91: 0 | S91: 0 | T91: 0 | U91: 0 | V91: 0 | W91: 0
A92: ='Org structure'!A12 -> Vote 11 - | C92: 0 | D92: 0 | E92: 0 | F92: 0 | G92: 0 | H92: 0 | I92: 0 | J92: 0 | K92: 0 | L92: 0 | N92: 0 | O92: 0 | P92: 0 | Q92: 0 | R92: 0 | S92: 0 | T92: 0 | U92: 0 | V92: 0 | W92: 0
A93: ='Org structure'!A13 -> Vote 12 - | C93: 0 | D93: 0 | E93: 0 | F93: 0 | G93: 0 | H93: 0 | I93: 0 | J93: 0 | K93: 0 | L93: 0 | N93: 0 | O93: 0 | P93: 0 | Q93: 0 | R93: 0 | S93: 0 | T93: 0 | U93: 0 | V93: 0 | W93: 0
A94: ='Org structure'!A14 -> Vote 13 - | C94: 0 | D94: 0 | E94: 0 | F94: 0 | G94: 0 | H94: 0 | I94: 0 | J94: 0 | K94: 0 | L94: 0 | N94: 0 | O94: 0 | P94: 0 | Q94: 0 | R94: 0 | S94: 0 | T94: 0 | U94: 0 | V94: 0 | W94: 0
A95: ='Org structure'!A15 -> Vote 14 - | C95: 0 | D95: 0 | E95: 0 | F95: 0 | G95: 0 | H95: 0 | I95: 0 | J95: 0 | K95: 0 | L95: 0 | N95: 0 | O95: 0 | P95: 0 | Q95: 0 | R95: 0 | S95: 0 | T95: 0 | U95: 0 | V95: 0 | W95: 0
A96: ='Org structure'!A16 -> Vote 15 - Other | C96: =SUM(C97:C108) -> 0 | D96: 0 | E96: 0 | F96: 0 | G96: 0 | H96: 0 | I96: 0 | J96: 0 | K96: 0 | L96: 0 | N96: =SUM(N97:N108) -> 0 | O96: 0 | P96: 0 | Q96: 0 | R96: 0 | S96: 0 | T96: 0 | U96: 0 | V96: 0 | W96: 0 | X96: 0
A97: ='Org structure'!E93 -> 15.1 - Coo's Office | C97: 0 | D97: 0 | E97: 0 | F97: 0 | G97: 0 | H97: 0 | I97: 0 | J97: =Q97+V97 -> 0 | K97: =U97+W97 -> 0 | L97: =X97 -> 0 | N97: 0 | O97: 0 | P97: 0 | Q97: =SUM(N97:P97) -> 0 | R97: 0 | S97: 0 | T97: 0 | U97: =SUM(R97:T97) -> 0 | V97: 0 | W97: 0 | X97: 0
A98: ='Org structure'!E94 -> 15.2 - Igr Unit Administration | C98: 0 | D98: 0 | E98: 0 | F98: 0 | G98: 0 | H98: 0 | I98: 0 | J98: 0 | K98: 0 | L98: 0 | N98: 0 | O98: 0 | P98: 0 | Q98: 0 | R98: 0 | S98: 0 | T98: 0 | U98: 0 | V98: 0 | W98: 0 | X98: 0
A99: ='Org structure'!E95 -> 15.3 - Audit Function | C99: 0 | D99: 0 | E99: 0 | F99: 0 | G99: 0 | H99: 0 | I99: 0 | J99: 0 | K99: 0 | L99: 0 | N99: 0 | O99: 0 | P99: 0 | Q99: 0 | R99: 0 | S99: 0 | T99: 0 | U99: 0 | V99: 0 | W99: 0 | X99: 0
A100: ='Org structure'!E96 -> 15.4 - Risk Function | C100: 0 | D100: 0 | E100: 0 | F100: 0 | G100: 0 | H100: 0 | I100: 0 | J100: 0 | K100: 0 | L100: 0 | N100: 0 | O100: 0 | P100: 0 | Q100: 0 | R100: 0 | S100: 0 | T100: 0 | U100: 0 | V100: 0 | W100: 0 | X100: 0
A101: ='Org structure'!E97 -> 15.5 - Performance Function | C101: 0 | D101: 0 | E101: 0 | F101: 0 | G101: 0 | H101: 0 | I101: 0 | J101: 0 | K101: 0 | L101: 0 | N101: 0 | O101: 0 | P101: 0 | Q101: 0 | R101: 0 | S101: 0 | T101: 0 | U101: 0 | V101: 0 | W101: 0 | X101: 0
A102: ='Org structure'!E98 -> 15.6 - Utilities Admin | C102: 0 | D102: 0 | E102: 0 | F102: 0 | G102: 0 | H102: 0 | I102: 0 | J102: 0 | K102: 0 | L102: 0 | N102: 0 | O102: 0 | P102: 0 | Q102: 0 | R102: 0 | S102: 0 | T102: 0 | U102: 0 | V102: 0 | W102: 0 | X102: 0
A103: ='Org structure'!E99 -> 15.7 - Fresh Produce Market | C103: 0 | D103: 0 | E103: 0 | F103: 0 | G103: 0 | H103: 0 | I103: 0 | J103: 0 | K103: 0 | L103: 0 | N103: 0 | O103: 0 | P103: 0 | Q103: 0 | R103: 0 | S103: 0 | T103: 0 | U103: 0 | V103: 0 | W103: 0 | X103: 0
A104: ='Org structure'!E100 -> 15.8 - Vereeniging Airport | C104: 0 | D104: 0 | E104: 0 | F104: 0 | G104: 0 | H104: 0 | I104: 0 | J104: 0 | K104: 0 | L104: 0 | N104: 0 | O104: 0 | P104: 0 | Q104: 0 | R104: 0 | S104: 0 | T104: 0 | U104: 0 | V104: 0 | W104: 0 | X104: 0
A105: ='Org structure'!E101 -> 15.9 - Vanderbijl Airport | C105: 0 | D105: 0 | E105: 0 | F105: 0 | G105: 0 | H105: 0 | I105: 0 | J105: 0 | K105: 0 | L105: 0 | N105: 0 | O105: 0 | P105: 0 | Q105: 0 | R105: 0 | S105: 0 | T105: 0 | U105: 0 | V105: 0 | W105: 0 | X105: 0
A106: ='Org structure'!E102 -> 15.10 - Heidelberg Airport | C106: 0 | D106: 0 | E106: 0 | F106: 0 | G106: 0 | H106: 0 | I106: 0 | J106: 0 | K106: 0 | L106: 0 | N106: 0 | O106: 0 | P106: 0 | Q106: 0 | R106: 0 | S106: 0 | T106: 0 | U106: 0 | V106: 0 | W106: 0 | X106: 0
A107: ='Org structure'!E103 -> 15.11 - Special Projects | C107: 0 | D107: 0 | E107: 0 | F107: 0 | G107: 0 | H107: 0 | I107: 0 | J107: 0 | K107: 0 | L107: 0 | N107: 0 | O107: 0 | P107: 0 | Q107: 0 | R107: 0 | S107: 0 | T107: 0 | U107: 0 | V107: 0 | W107: 0 | X107: 0
A108: ='Org structure'!E104 -> 15.12 - Heidelberg Airport | C108: 0 | D108: 0 | E108: 0 | F108: 0 | G108: 0 | H108: 0 | I108: 0 | J108: 0 | K108: 0 | L108: 0 | N108: 0 | O108: 0 | P108: 0 | Q108: 0 | R108: 0 | S108: 0 | T108: 0 | U108: 0 | V108: 0 | W108: 0 | X108: 0
A109: Capital multi-year expenditure sub-total | C109: =C6+C24+C28+C44+C59+C68+C88+C89+C90+C91+C92+C93+C94+C95+C96 -> 0 | D109: 0 | E109: 0 | F109: 0 | G109: 0 | H109: 0 | I109: 0 | J109: 0 | K109: 0 | L109: 0 | N109: =N6+N24+N28+N44+N59+N68+N88+N89+N90+N91+N92+N93+N94+N95+N96 -> 0 | O109: 0 | P109: 0 | Q109: 0 | R109: 0 | S109: 0 | T109: 0 | U109: 0 | V109: 0 | W109: 0
A111: Capital expenditure - Municipal Vote
A112: Single-year expenditure appropriation | B112: 2
A113: ='Org structure'!A2 -> Vote 01 - Executive & Council | C113: =SUM(C114:C130) -> 0 | D113: 0 | E113: 0 | F113: 0 | G113: 0 | H113: 0 | I113: 0 | J113: 0 | K113: 0 | L113: 0
A114: ='Org structure'!E3 -> 01.1 - Mayor Administration | C114: 0 | D114: 0 | E114: 0 | F114: 0 | G114: 0 | H114: 0 | I114: 0 | J114: 0 | K114: 0 | L114: 0
A115: ='Org structure'!E4 -> 01.2 - Speaker Administration | C115: 0 | D115: 0 | E115: 0 | F115: 0 | G115: 0 | H115: 0 | I115: 0 | J115: 0 | K115: 0 | L115: 0
A116: ='Org structure'!E5 -> 01.3 - Speaker Projects | C116: 0 | D116: 0 | E116: 0 | F116: 0 | G116: 0 | H116: 0 | I116: 0 | J116: 0 | K116: 0 | L116: 0
A117: ='Org structure'!E6 -> 01.4 - Mpac Office | C117: 0 | D117: 0 | E117: 0 | F117: 0 | G117: 0 | H117: 0 | I117: 0 | J117: 0 | K117: 0 | L117: 0
A118: ='Org structure'!E7 -> 01.5 - Mmc For Finance & Administration | C118: 0 | D118: 0 | E118: 0 | F118: 0 | G118: 0 | H118: 0 | I118: 0 | J118: 0 | K118: 0 | L118: 0
A119: ='Org structure'!E8 -> 01.6 - Mmc For Srac & Heritage | C119: 0 | D119: 0 | E119: 0 | F119: 0 | G119: 0 | H119: 0 | I119: 0 | J119: 0 | K119: 0 | L119: 0
A120: ='Org structure'!E9 -> 01.7 - Mmc For Infrastructure & Transport | C120: 0 | D120: 0 | E120: 0 | F120: 0 | G120: 0 | H120: 0 | I120: 0 | J120: 0 | K120: 0 | L120: 0
A121: ='Org structure'!E10 -> 01.8 - Mmc For Human Settlements | C121: 0 | D121: 0 | E121: 0 | F121: 0 | G121: 0 | H121: 0 | I121: 0 | J121: 0 | K121: 0 | L121: 0
A122: ='Org structure'!E11 -> 01.9 - Mmc For Health & Public Safety | C122: 0 | D122: 0 | E122: 0 | F122: 0 | G122: 0 | H122: 0 | I122: 0 | J122: 0 | K122: 0 | L122: 0
A123: ='Org structure'!E12 -> 01.10 - Mmc For Corporate Services | C123: 0 | D123: 0 | E123: 0 | F123: 0 | G123: 0 | H123: 0 | I123: 0 | J123: 0 | K123: 0 | L123: 0
A124: ='Org structure'!E13 -> 01.11 - Mmc For Environment | C124: 0 | D124: 0 | E124: 0 | F124: 0 | G124: 0 | H124: 0 | I124: 0 | J124: 0 | K124: 0 | L124: 0
A125: ='Org structure'!E14 -> 01.12 - Mmc For Strat Planning & Econ. Devel. | C125: 0 | D125: 0 | E125: 0 | F125: 0 | G125: 0 | H125: 0 | I125: 0 | J125: 0 | K125: 0 | L125: 0
A126: ='Org structure'!E15 -> 01.13 - Other Councilors | C126: 0 | D126: 0 | E126: 0 | F126: 0 | G126: 0 | H126: 0 | I126: 0 | J126: 0 | K126: 0 | L126: 0
A127: ='Org structure'!E16 -> 01.14 - Office Of The Chief Whip Administration | C127: 0 | D127: 0 | E127: 0 | F127: 0 | G127: 0 | H127: 0 | I127: 0 | J127: 0 | K127: 0 | L127: 0
A128: ='Org structure'!E17 -> 01.15 - Chief Whip Projects | C128: 0 | D128: 0 | E128: 0 | F128: 0 | G128: 0 | H128: 0 | I128: 0 | J128: 0 | K128: 0 | L128: 0
A129: ='Org structure'!E18 -> 01.16 - Municipal Manager Administration | C129: 0 | D129: 0 | E129: 0 | F129: 0 | G129: 0 | H129: 0 | I129: 0 | J129: 0 | K129: 0 | L129: 0
A130: ='Org structure'!E19 -> 01.17 - External Communication | C130: 0 | D130: 0 | E130: 0 | F130: 0 | G130: 0 | H130: 0 | I130: 0 | J130: 0 | K130: 0 | L130: 0
A131: ='Org structure'!A3 -> Vote 02 - Budget & Treasury Office | C131: =SUM(C132:C134) -> 0 | D131: 934147.32 | E131: 2000425.26 | F131: 0 | G131: 0 | H131: 0 | I131: 0 | J131: 0 | K131: 0 | L131: 0
A132: ='Org structure'!E21 -> 02.1 - Financial Services Admin | C132: 0 | D132: 62271.94 | E132: 0 | F132: 0 | G132: 0 | H132: 0 | I132: 0 | J132: 0 | K132: 0 | L132: 0
A133: ='Org structure'!E22 -> 02.2 - Financial Management | C133: 0 | D133: 871875.38 | E133: 2000425.26 | F133: 0 | G133: 0 | H133: 0 | I133: 0 | J133: 0 | K133: 0 | L133: 0
A134: ='Org structure'!E23 -> 02.3 - Supply Chain Management | C134: 0 | D134: 0 | E134: 0 | F134: 0 | G134: 0 | H134: 0 | I134: 0 | J134: 0 | K134: 0 | L134: 0
A135: ='Org structure'!A4 -> Vote 03 - Corporate Services | C135: =SUM(C136:C150) -> 0 | D135: 2191815.43 | E135: 1529507.11 | F135: 1750000 | G135: 1493763 | H135: 1493763 | I135: 663462.85 | J135: 2150000 | K135: 2246750 | L135: 2347854
A136: ='Org structure'!E25 -> 03.1 - Corporate Services - Admin | C136: 0 | D136: 0 | E136: 0 | F136: 0 | G136: 0 | H136: 0 | I136: 0 | J136: 0 | K136: 0 | L136: 0
A137: ='Org structure'!E26 -> 03.2 - Human Resources Administration | C137: 0 | D137: 0 | E137: 0 | F137: 0 | G137: 0 | H137: 0 | I137: 0 | J137: 0 | K137: 0 | L137: 0
A138: ='Org structure'!E27 -> 03.3 - Corporate And Legal Administartion | C138: 0 | D138: 0 | E138: 0 | F138: 0 | G138: 0 | H138: 0 | I138: 0 | J138: 0 | K138: 0 | L138: 0
A139: ='Org structure'!E28 -> 03.4 - Legal | C139: 0 | D139: 0 | E139: 0 | F139: 0 | G139: 0 | H139: 0 | I139: 0 | J139: 0 | K139: 0 | L139: 0
A140: ='Org structure'!E29 -> 03.5 - Corporate | C140: 0 | D140: 0 | E140: 0 | F140: 0 | G140: 0 | H140: 0 | I140: 0 | J140: 0 | K140: 0 | L140: 0
A141: ='Org structure'!E30 -> 03.6 - Facility Management Admin | C141: 0 | D141: 0 | E141: 0 | F141: 0 | G141: 0 | H141: 0 | I141: 0 | J141: 0 | K141: 0 | L141: 0
A142: ='Org structure'!E31 -> 03.7 - Fleet Management | C142: 0 | D142: 0 | E142: 0 | F142: 0 | G142: 700000 | H142: 700000 | I142: 0 | J142: 1350000 | K142: 1410750 | L142: 1474234
A143: ='Org structure'!E32 -> 03.8 - Maintenance & Cleaning | C143: 0 | D143: 882391.53 | E143: 357244.24 | F143: 250000 | G143: 241495 | H143: 241495 | I143: 240444.59 | J143: 200000 | K143: 209000 | L143: 218405
A144: ='Org structure'!E33 -> 03.9 - Town Hall | C144: 0 | D144: 0 | E144: 0 | F144: 0 | G144: 0 | H144: 0 | I144: 0 | J144: 0 | K144: 0 | L144: 0
A145: ='Org structure'!E34 -> 03.10 - Internal Security | C145: 0 | D145: 0 | E145: 0 | F145: 0 | G145: 0 | H145: 0 | I145: 0 | J145: 0 | K145: 0 | L145: 0
A146: ='Org structure'!E35 -> 03.11 - It Emfuleni | C146: 0 | D146: 0 | E146: 0 | F146: 0 | G146: 0 | H146: 0 | I146: 0 | J146: 0 | K146: 0 | L146: 0
A147: ='Org structure'!E36 -> 03.12 - It Sedibeng | C147: 0 | D147: 1309423.9 | E147: 1172262.87 | F147: 1500000 | G147: 552268 | H147: 552268 | I147: 423018.26 | J147: 600000 | K147: 627000 | L147: 655215
A148: ='Org structure'!E37 -> 03.13 - It Midvaal | C148: 0 | D148: 0 | E148: 0 | F148: 0 | G148: 0 | H148: 0 | I148: 0 | J148: 0 | K148: 0 | L148: 0
A149: ='Org structure'!E38 -> 03.14 - Idp Function | C149: 0 | D149: 0 | E149: 0 | F149: 0 | G149: 0 | H149: 0 | I149: 0 | J149: 0 | K149: 0 | L149: 0
A150: ='Org structure'!E39 -> 03.15 - Fresh Produce Market | C150: 0 | D150: 0 | E150: 0 | F150: 0 | G150: 0 | H150: 0 | I150: 0 | J150: 0 | K150: 0 | L150: 0
A151: ='Org structure'!A5 -> Vote 04 - Roads And Transport | C151: =SUM(C152:C165) -> 0 | D151: 0 | E151: 0 | F151: 0 | G151: 750000 | H151: 750000 | I151: 0 | J151: 0 | K151: 0 | L151: 0
A152: ='Org structure'!E41 -> 04.1 - Emfuleni Taxi Rank | C152: 0 | D152: 0 | E152: 0 | F152: 0 | G152: 0 | H152: 0 | I152: 0 | J152: 0 | K152: 0 | L152: 0
A153: ='Org structure'!E42 -> 04.2 - Midvaal Taxi Rank | C153: 0 | D153: 0 | E153: 0 | F153: 0 | G153: 0 | H153: 0 | I153: 0 | J153: 0 | K153: 0 | L153: 0
A154: ='Org structure'!E43 -> 04.3 - Lesedi Taxi Rank | C154: 0 | D154: 0 | E154: 0 | F154: 0 | G154: 0 | H154: 0 | I154: 0 | J154: 0 | K154: 0 | L154: 0
A155: ='Org structure'!E44 -> 04.4 - Basic Services | C155: 0 | D155: 0 | E155: 0 | F155: 0 | G155: 0 | H155: 0 | I155: 0 | J155: 0 | K155: 0 | L155: 0
A156: ='Org structure'!E45 -> 04.5 - Transport;Infrastructure & Environment | C156: 0 | D156: 0 | E156: 0 | F156: 0 | G156: 750000 | H156: 750000 | I156: 0 | J156: 0 | K156: 0 | L156: 0
A157: ='Org structure'!E46 -> 04.6 - Air Quality Management | C157: 0 | D157: 0 | E157: 0 | F157: 0 | G157: 0 | H157: 0 | I157: 0 | J157: 0 | K157: 0 | L157: 0
A158: ='Org structure'!E47 -> 04.7 - Environmental Planning And Coordination | C158: 0 | D158: 0 | E158: 0 | F158: 0 | G158: 0 | H158: 0 | I158: 0 | J158: 0 | K158: 0 | L158: 0
A159: ='Org structure'!E48 -> 04.8 - Municipal Health Services | C159: 0 | D159: 0 | E159: 0 | F159: 0 | G159: 0 | H159: 0 | I159: 0 | J159: 0 | K159: 0 | L159: 0
A160: ='Org structure'!E49 -> 04.9 - Environment | C160: 0 | D160: 0 | E160: 0 | F160: 0 | G160: 0 | H160: 0 | I160: 0 | J160: 0 | K160: 0 | L160: 0
A161: ='Org structure'!E50 -> 04.10 - License Service Centre | C161: 0 | D161: 0 | E161: 0 | F161: 0 | G161: 0 | H161: 0 | I161: 0 | J161: 0 | K161: 0 | L161: 0
A162: ='Org structure'!E51 -> 04.11 - License Service Centre - Vereeniging | C162: 0 | D162: 0 | E162: 0 | F162: 0 | G162: 0 | H162: 0 | I162: 0 | J162: 0 | K162: 0 | L162: 0
A163: ='Org structure'!E52 -> 04.12 - License Service Centre - Vanderbijl Park | C163: 0 | D163: 0 | E163: 0 | F163: 0 | G163: 0 | H163: 0 | I163: 0 | J163: 0 | K163: 0 | L163: 0
A164: ='Org structure'!E53 -> 04.13 - License Service Centre - Meyerton | C164: 0 | D164: 0 | E164: 0 | F164: 0 | G164: 0 | H164: 0 | I164: 0 | J164: 0 | K164: 0 | L164: 0
A165: ='Org structure'!E54 -> 04.14 - License Service Centre - Heidelberg | C165: 0 | D165: 0 | E165: 0 | F165: 0 | G165: 0 | H165: 0 | I165: 0 | J165: 0 | K165: 0 | L165: 0
A166: ='Org structure'!A6 -> Vote 05 - Planning & Development | C166: =SUM(C167:C174) -> 0 | D166: 0 | E166: 0 | F166: 0 | G166: 0 | H166: 0 | I166: 0 | J166: 0 | K166: 0 | L166: 0
A167: ='Org structure'!E56 -> 05.1 - Idp Function | C167: 0 | D167: 0 | E167: 0 | F167: 0 | G167: 0 | H167: 0 | I167: 0 | J167: 0 | K167: 0 | L167: 0
A168: ='Org structure'!E57 -> 05.2 - Sped Admin | C168: 0 | D168: 0 | E168: 0 | F168: 0 | G168: 0 | H168: 0 | I168: 0 | J168: 0 | K168: 0 | L168: 0
A169: ='Org structure'!E58 -> 05.3 - Development Planning - Spec. Proj. | C169: 0 | D169: 0 | E169: 0 | F169: 0 | G169: 0 | H169: 0 | I169: 0 | J169: 0 | K169: 0 | L169: 0
A170: ='Org structure'!E59 -> 05.4 - Development Planning Land Use Management | C170: 0 | D170: 0 | E170: 0 | F170: 0 | G170: 0 | H170: 0 | I170: 0 | J170: 0 | K170: 0 | L170: 0
A171: ='Org structure'!E60 -> 05.5 - Tourism | C171: 0 | D171: 0 | E171: 0 | F171: 0 | G171: 0 | H171: 0 | I171: 0 | J171: 0 | K171: 0 | L171: 0
A172: ='Org structure'!E61 -> 05.6 - Housing | C172: 0 | D172: 0 | E172: 0 | F172: 0 | G172: 0 | H172: 0 | I172: 0 | J172: 0 | K172: 0 | L172: 0
A173: ='Org structure'!E62 -> 05.7 - Led & Sgds | C173: 0 | D173: 0 | E173: 0 | F173: 0 | G173: 0 | H173: 0 | I173: 0 | J173: 0 | K173: 0 | L173: 0
A174: ='Org structure'!E63 -> 05.8 - Ndpg Unit | C174: 0 | D174: 0 | E174: 0 | F174: 0 | G174: 0 | H174: 0 | I174: 0 | J174: 0 | K174: 0 | L174: 0
A175: ='Org structure'!A7 -> Vote 06 - Community & Social Services | C175: =SUM(C176:C194) -> 0 | D175: 0 | E175: 0 | F175: 0 | G175: 38950 | H175: 38950 | I175: 38949.56 | J175: 0 | K175: 0 | L175: 0
A176: ='Org structure'!E65 -> 06.1 - Vereeniging Airport | C176: 0 | D176: 0 | E176: 0 | F176: 0 | G176: 0 | H176: 0 | I176: 0 | J176: 0 | K176: 0 | L176: 0
A177: ='Org structure'!E66 -> 06.2 - Vanderbijl Airport | C177: 0 | D177: 0 | E177: 0 | F177: 0 | G177: 0 | H177: 0 | I177: 0 | J177: 0 | K177: 0 | L177: 0
A178: ='Org structure'!E67 -> 06.3 - Emfuleni Taxi Rank | C178: 0 | D178: 0 | E178: 0 | F178: 0 | G178: 0 | H178: 0 | I178: 0 | J178: 0 | K178: 0 | L178: 0
A179: ='Org structure'!E68 -> 06.4 - Midvaal Taxi Rank | C179: 0 | D179: 0 | E179: 0 | F179: 0 | G179: 0 | H179: 0 | I179: 0 | J179: 0 | K179: 0 | L179: 0
A180: ='Org structure'!E69 -> 06.5 - Lesedi Taxi Rank | C180: 0 | D180: 0 | E180: 0 | F180: 0 | G180: 0 | H180: 0 | I180: 0 | J180: 0 | K180: 0 | L180: 0
A181: ='Org structure'!E70 -> 06.6 - Community Services Admin | C181: 0 | D181: 0 | E181: 0 | F181: 0 | G181: 0 | H181: 0 | I181: 0 | J181: 0 | K181: 0 | L181: 0
A182: ='Org structure'!E71 -> 06.7 - Public Safety | C182: 0 | D182: 0 | E182: 0 | F182: 0 | G182: 0 | H182: 0 | I182: 0 | J182: 0 | K182: 0 | L182: 0
A183: ='Org structure'!E72 -> 06.8 - Vereeniging Theatre | C183: 0 | D183: 0 | E183: 0 | F183: 0 | G183: 0 | H183: 0 | I183: 0 | J183: 0 | K183: 0 | L183: 0
A184: ='Org structure'!E73 -> 06.9 - Mphatlalatsane Theatre | C184: 0 | D184: 0 | E184: 0 | F184: 0 | G184: 0 | H184: 0 | I184: 0 | J184: 0 | K184: 0 | L184: 0
A185: ='Org structure'!E74 -> 06.10 - Sports & Recreation | C185: 0 | D185: 0 | E185: 0 | F185: 0 | G185: 0 | H185: 0 | I185: 0 | J185: 0 | K185: 0 | L185: 0
A186: ='Org structure'!E75 -> 06.11 - Heritage | C186: 0 | D186: 0 | E186: 0 | F186: 0 | G186: 0 | H186: 0 | I186: 0 | J186: 0 | K186: 0 | L186: 0
A187: ='Org structure'!E76 -> 06.12 - Srach Admin | C187: 0 | D187: 0 | E187: 0 | F187: 0 | G187: 0 | H187: 0 | I187: 0 | J187: 0 | K187: 0 | L187: 0
A188: ='Org structure'!E77 -> 06.13 - Hiv & Aids | C188: 0 | D188: 0 | E188: 0 | F188: 0 | G188: 0 | H188: 0 | I188: 0 | J188: 0 | K188: 0 | L188: 0
A189: ='Org structure'!E78 -> 06.14 - Primary Health Care Services | C189: 0 | D189: 0 | E189: 0 | F189: 0 | G189: 0 | H189: 0 | I189: 0 | J189: 0 | K189: 0 | L189: 0
A190: ='Org structure'!E79 -> 06.15 - Youth Centre | C190: 0 | D190: 0 | E190: 0 | F190: 0 | G190: 0 | H190: 0 | I190: 0 | J190: 0 | K190: 0 | L190: 0
A191: ='Org structure'!E80 -> 06.16 - Social Development | C191: 0 | D191: 0 | E191: 0 | F191: 0 | G191: 0 | H191: 0 | I191: 0 | J191: 0 | K191: 0 | L191: 0
A192: ='Org structure'!E81 -> 06.17 - Fire & Rescue Services | C192: 0 | D192: 0 | E192: 0 | F192: 0 | G192: 0 | H192: 0 | I192: 0 | J192: 0 | K192: 0 | L192: 0
A193: ='Org structure'!E82 -> 06.18 - Disaster Man - Operation & Co-Ord | C193: 0 | D193: 0 | E193: 0 | F193: 0 | G193: 38950 | H193: 38950 | I193: 38949.56 | J193: 0 | K193: 0 | L193: 0
A194: ='Org structure'!E83 -> 06.19 - Cimm - Co-Ordination Centre | C194: 0 | D194: 0 | E194: 0 | F194: 0 | G194: 0 | H194: 0 | I194: 0 | J194: 0 | K194: 0 | L194: 0
A195: ='Org structure'!A8 -> Vote 07 - | C195: 0 | D195: 0 | E195: 0 | F195: 0 | G195: 0 | H195: 0 | I195: 0 | J195: 0 | K195: 0 | L195: 0
A196: ='Org structure'!A9 -> Vote 08 - | C196: 0 | D196: 0 | E196: 0 | F196: 0 | G196: 0 | H196: 0 | I196: 0 | J196: 0 | K196: 0 | L196: 0
A197: ='Org structure'!A10 -> Vote 09 - | C197: 0 | D197: 0 | E197: 0 | F197: 0 | G197: 0 | H197: 0 | I197: 0 | J197: 0 | K197: 0 | L197: 0
A198: ='Org structure'!A11 -> Vote 10 - | C198: 0 | D198: 0 | E198: 0 | F198: 0 | G198: 0 | H198: 0 | I198: 0 | J198: 0 | K198: 0 | L198: 0
A199: ='Org structure'!A12 -> Vote 11 - | C199: 0 | D199: 0 | E199: 0 | F199: 0 | G199: 0 | H199: 0 | I199: 0 | J199: 0 | K199: 0 | L199: 0
A200: ='Org structure'!A13 -> Vote 12 - | C200: 0 | D200: 0 | E200: 0 | F200: 0 | G200: 0 | H200: 0 | I200: 0 | J200: 0 | K200: 0 | L200: 0
A201: ='Org structure'!A14 -> Vote 13 - | C201: 0 | D201: 0 | E201: 0 | F201: 0 | G201: 0 | H201: 0 | I201: 0 | J201: 0 | K201: 0 | L201: 0
... 16 more rows

Sheet A6-FinPos
A1: =muni&" - "&Approve6 -> DC42 Sedibeng - Table A6 Budgeted Financial Position
A2: =desc -> Description | B2: =head27 -> Ref | C2: =head1b -> 2016/17 | D2: =head1A -> 2017/18 | E2: =Head1 -> 2018/19 | F2: =Head2 -> Current Year 2019/20 | J2: =Head3 -> 2020/21 Medium Term Revenue & Expenditure Framework
A3: R thousand | C3: =Head5 -> Audited Outcome | D3: =Head5 -> Audited Outcome | E3: =Head5 -> Audited Outcome | F3: =Head6 -> Original Budget | G3: =Head7 -> Adjusted Budget | H3: =Head8 -> Full Year Forecast | I3: =Head5b -> Pre-audit outcome | J3: =Head9 -> Budget Year 2020/21 | K3: =Head10 -> Budget Year +1 2021/22 | L3: =Head11 -> Budget Year +2 2022/23
A4: ASSETS
A5: Current assets
A6: Cash | C6: 0 | D6: 16827972.26 | E6: 21504302.22 | F6: 27045334 | G6: 27045334 | H6: 27045334 | I6: 18503477.06 | J6: 23315454 | K6: 24364649 | L6: 25461058
A7: Call investment deposits | B7: 1 | C7: 0 | D7: 0 | E7: 0 | F7: 0 | G7: 0 | H7: 0 | I7: 0 | J7: 0 | K7: 0 | L7: 0
A8: Consumer debtors | B8: 1 | C8: ='SA3'!C14 -> 0 | D8: ='SA3'!D14 -> 89391.42 | E8: ='SA3'!E14 -> 7048022.66 | F8: ='SA3'!F14 -> 304802 | G8: ='SA3'!G14 -> 6991124 | H8: ='SA3'!H14 -> 6991124 | I8: ='SA3'!I14 -> 8692556.48 | J8: ='SA3'!J14 -> 0 | K8: ='SA3'!K14 -> 0 | L8: ='SA3'!L14 -> 0
A9: Other debtors | C9: 0 | D9: 8890645.81 | E9: 20062401.91 | F9: 2012013 | G9: 43882141 | H9: 43882141 | I9: 14965610.42 | J9: 1040000 | K9: 1086800 | L9: 1135706
A10: Current portion of long-term receivables
A11: Inventory | B11: 2 | C11: 0 | D11: 157810.8 | E11: 503782.36 | F11: 157811 | G11: 157811 | H11: 157811 | I11: 757009.5 | J11: 157000 | K11: 164065 | L11: 171448
A12: Total current assets | C12: =SUM(C6:C11) -> 0 | D12: 25965820.29 | E12: 49118509.15 | F12: 29519960 | G12: 78076410 | H12: 78076410 | I12: 42918653.46 | J12: 24512454 | K12: 25615514 | L12: 26768212
A14: Non current assets
A15: Long-term receivables
A16: Investments
A17: Investment property
A18: Investment in Associate
A19: Property, plant and equipment | B19: 3 | C19: ='SA3'!C26 -> 0 | D19: ='SA3'!D26 -> 103671407.1 | E19: ='SA3'!E26 -> 104197587.4 | F19: ='SA3'!F26 -> 98473808 | G19: ='SA3'!G26 -> 99006521 | H19: ='SA3'!H26 -> 99006521 | I19: ='SA3'!I26 -> 101013985.5 | J19: ='SA3'!J26 -> 92814315 | K19: ='SA3'!K26 -> 90847199 | L19: ='SA3'!L26 -> 94935320
A21: Biological
A22: Intangible | C22: 0 | D22: 2392782.13 | E22: 3734337.71 | F22: 2062998 | G22: 2062998 | H22: 2062998 | I22: 3281695.47 | J22: 1303329 | K22: 263788 | L22: 275658
A23: Other non-current assets | C23: 0 | D23: 4894941 | E23: 4894941 | F23: 4894941 | G23: 4894941 | H23: 4894941 | I23: 4894941 | J23: 4894941 | K23: 5115213 | L23: 5345399
A24: Total non current assets | C24: =SUM(C15:C19)+SUM(C21:C23) -> 0 | D24: =SUM(D15:D19)+SUM(D21:D23) -> 110959130.3 | E24: 112826866.1 | F24: 105431747 | G24: 105964460 | H24: 105964460 | I24: 109190621.9 | J24: 99012585 | K24: 96226200 | L24: 100556377
A25: TOTAL ASSETS | C25: =C12+C24 -> 0 | D25: =D12+D24 -> 136924950.6 | E25: =E12+E24 -> 161945375.3 | F25: =F12+F24 -> 134951707 | G25: 184040870 | H25: 184040870 | I25: 152109275.4 | J25: 123525039 | K25: 121841714 | L25: 127324589
A27: LIABILITIES
A28: Current liabilities
A29: Bank overdraft | B29: 1
A30: Borrowing | B30: 4 | C30: ='SA3'!C32 -> 0 | D30: ='SA3'!D32 -> 0 | E30: ='SA3'!E32 -> 0 | F30: ='SA3'!F32 -> 0 | G30: ='SA3'!G32 -> 0 | H30: ='SA3'!H32 -> 0 | I30: ='SA3'!I32 -> 0 | J30: ='SA3'!J32 -> 0 | K30: ='SA3'!K32 -> 0 | L30: ='SA3'!L32 -> 0
A31: Consumer deposits | C31: 0 | D31: 293169.48 | E31: 252010.32 | F31: 257410 | G31: 252010 | H31: 252010 | I31: 291705.87 | J31: 80000 | K31: 83600 | L31: 87362
A32: Trade and other payables | B32: 4 | C32: ='SA3'!C39 -> 0 | D32: ='SA3'!D39 -> 171195133.5 | E32: ='SA3'!E39 -> 252533542.6 | F32: ='SA3'!F39 -> 125703463 | G32: ='SA3'!G39 -> 144131938 | H32: ='SA3'!H39 -> 144131938 | I32: ='SA3'!I39 -> 258192460.4 | J32: ='SA3'!J39 -> 128200000 | K32: ='SA3'!K39 -> 133969000 | L32: ='SA3'!L39 -> 139997605
A33: Provisions | C33: 0 | D33: 0 | E33: 0 | F33: 0 | G33: 0 | H33: 0 | I33: 0 | J33: 0 | K33: 0 | L33: 0
A34: Total current liabilities | C34: =SUM(C29:C33) -> 0 | D34: 171488303 | E34: 252785552.9 | F34: 125960873 | G34: 144383948 | H34: 144383948 | I34: 258484166.3 | J34: 128280000 | K34: 134052600 | L34: 140084967
A36: Non current liabilities
A37: Borrowing | C37: ='SA3'!C44 -> 0 | D37: ='SA3'!D44 -> 0 | E37: ='SA3'!E44 -> 0 | F37: ='SA3'!F44 -> 0 | G37: ='SA3'!G44 -> 0 | H37: ='SA3'!H44 -> 0 | I37: ='SA3'!I44 -> 0 | J37: ='SA3'!J44 -> 0 | K37: ='SA3'!K44 -> 0 | L37: ='SA3'!L44 -> 0
A38: Provisions | C38: ='SA3'!C51 -> 0 | D38: ='SA3'!D51 -> 22852189.58 | E38: ='SA3'!E51 -> 23732413.72 | F38: ='SA3'!F51 -> 22852190 | G38: ='SA3'!G51 -> 22852190 | H38: ='SA3'!H51 -> 22852190 | I38: ='SA3'!I51 -> 22134259.82 | J38: ='SA3'!J51 -> 24000000 | K38: ='SA3'!K51 -> 25080000 | L38: ='SA3'!L51 -> 26208600
A39: Total non current liabilities | C39: =SUM(C37:C38) -> 0 | D39: =SUM(D37:D38) -> 22852189.58 | E39: =SUM(E37:E38) -> 23732413.72 | F39: =SUM(F37:F38) -> 22852190 | G39: 22852190 | H39: 22852190 | I39: 22134259.82 | J39: 24000000 | K39: =SUM(K37:K38) -> 25080000 | L39: 26208600
A40: TOTAL LIABILITIES | C40: =C34+C39 -> 0 | D40: =D34+D39 -> 194340492.5 | E40: =E34+E39 -> 276517966.6 | F40: =F34+F39 -> 148813063 | G40: 167236138 | H40: 167236138 | I40: 280618426.1 | J40: 152280000 | K40: =K34+K39 -> 159132600 | L40: 166293567
A42: NET ASSETS | B42: 5 | C42: =C25-C40 -> 0 | D42: -57415541.98 | E42: -114572591.4 | F42: -13861356 | G42: 16804732 | H42: 16804732 | I42: -128509150.7 | J42: -28754961 | K42: -37290886 | L42: -38968978
A44: COMMUNITY WEALTH/EQUITY
A45: Accumulated Surplus/(Deficit) | C45: ='SA3'!C63 -> 0 | D45: ='SA3'!D63 -> -57415541.98 | E45: ='SA3'!E63 -> -114572591.4 | F45: ='SA3'!F63 -> -13861356 | G45: ='SA3'!G63 -> 16804732 | H45: ='SA3'!H63 -> 16804732 | I45: ='SA3'!I63 -> -128509150.7 | J45: ='SA3'!J63 -> -28754961 | K45: ='SA3'!K63 -> -37290886 | L45: ='SA3'!L63 -> -38968978
A46: Reserves | B46: 4 | C46: ='SA3'!C70 -> 0 | D46: ='SA3'!D70 -> 0 | E46: ='SA3'!E70 -> 0 | F46: ='SA3'!F70 -> 0 | G46: ='SA3'!G70 -> 0 | H46: ='SA3'!H70 -> 0 | I46: ='SA3'!I70 -> 0 | J46: ='SA3'!J70 -> 0 | K46: ='SA3'!K70 -> 0 | L46: ='SA3'!L70 -> 0
A48: TOTAL COMMUNITY WEALTH/EQUITY | B48: 5 | C48: =SUM(C45:C46) -> 0 | D48: =SUM(D45:D46) -> -57415541.98 | E48: -114572591.4 | F48: -13861356 | G48: 16804732 | H48: 16804732 | I48: -128509150.7 | J48: -28754961 | K48: -37290886 | L48: -38968978
A49: =head27a -> References
A50: 1. Detail to be provided in Table SA3
A51: 2. Include completed low cost housing to be transferred to beneficiaries within 12 months
A52: 3. Include 'Construction-work-in-progress' (disclosed separately in annual financial statements)
A53: 4. Detail to be provided in Table SA3. Includes reserves to be funded by statute.
A54: 5. Net assets must balance with Total Community Wealth/Equity
A55: check balance | C55: =IF((C42-C48)=0,0,"Unbalanced") -> 0 | D55: =IF((D42-D48)=0,0,"Unbalanced") -> Unbalanced | E55: Unbalanced | F55: 0 | G55: 0 | H55: 0 | I55: Unbalanced | J55: 0 | K55: 0 | L55: 0

Sheet A7-CFlow
A1: =muni&" - "&Approve7 -> DC42 Sedibeng - Table A7 Budgeted Cash Flows
A2: =desc -> Description | B2: =head27 -> Ref | C2: =head1b -> 2016/17 | D2: =head1A -> 2017/18 | E2: =Head1 -> 2018/19 | F2: =Head2 -> Current Year 2019/20 | J2: =Head3 -> 2020/21 Medium Term Revenue & Expenditure Framework
A3: R thousand | C3: =Head5 -> Audited Outcome | D3: =Head5 -> Audited Outcome | E3: =Head5 -> Audited Outcome | F3: =Head6 -> Original Budget | G3: =Head7 -> Adjusted Budget | H3: =Head8 -> Full Year Forecast | I3: =Head5b -> Pre-audit outcome | J3: =Head9 -> Budget Year 2020/21 | K3: =Head10 -> Budget Year +1 2021/22 | L3: =Head11 -> Budget Year +2 2022/23
A4: CASH FLOW FROM OPERATING ACTIVITIES
A5: Receipts
A6: Property rates | G6: 0 | H6: 0 | I6: 0 | J6: ='SA30'!N5 -> 0 | K6: ='SA30'!O5 -> 0 | L6: ='SA30'!P5 -> 0
A7: Service charges | G7: 0 | H7: 0 | I7: 0 | J7: ='SA30'!N6+'SA30'!N7+'SA30'!N8+'SA30'!N9 -> 0 | K7: ='SA30'!O6+'SA30'!O7+'SA30'!O8+'SA30'!O9 -> 0 | L7: ='SA30'!P6+'SA30'!P7+'SA30'!P8+'SA30'!P9 -> 0
A8: Other revenue | C8: 0 | D8: =85934104+489076-2835809 -> 83587371 | E8: =93456396-2944162+125000 -> 90637234 | F8: 102135355 | G8: 102088612 | H8: 102088612 | I8: 102088612 | J8: ='SA30'!N11+'SA30'!N15+'SA30'!N16+'SA30'!N17+'SA30'!N19 -> 102001059 | K8: ='SA30'!O11+'SA30'!O15+'SA30'!O16+'SA30'!O17+'SA30'!O19 -> 106591106 | L8: ='SA30'!P11+'SA30'!P15+'SA30'!P16+'SA30'!P17+'SA30'!P19 -> 111387706
A9: Transfers and Subsidies - Operational | B9: 1 | C9: 0 | D9: 269415374 | E9: 277892099 | F9: 301540826 | G9: 285870876 | H9: 285870876 | I9: 285870876 | J9: ='SA30'!N18 -> 313062190 | K9: ='SA30'!O18 -> 306032974 | L9: ='SA30'!P18 -> 315056798
A10: Transfers and Subsidies - Capital | B10: 1 | F10: 0 | G10: 750000 | H10: 750000 | I10: 750000 | J10: ='SA30'!N23 -> 0 | K10: ='SA30'!O23 -> 0 | L10: ='SA30'!P23 -> 0
A11: Interest | C11: 0 | D11: 2835809 | E11: 2944162 | F11: 1995000 | G11: 2615234 | H11: 2615234 | I11: 2615234 | J11: ='SA30'!N12+'SA30'!N13 -> 2700000 | K11: ='SA30'!O12+'SA30'!O13 -> 2821500 | L11: ='SA30'!P12+'SA30'!P13 -> 2948468
A12: Dividends | G12: 0 | H12: 0 | I12: 0 | J12: ='SA30'!N14 -> 0 | K12: ='SA30'!O14 -> 0 | L12: ='SA30'!P14 -> 0
A13: Payments
A14: Suppliers and employees | C14: 0 | D14: -347607317 | E14: =-363333472+9461526 -> -353871946 | F14: -374682216 | G14: -374631840 | H14: -374631840 | I14: -374631840 | J14: =-('SA30'!N35+'SA30'!N36+'SA30'!N38+'SA30'!N39+'SA30'!N40+'SA30'!N41+'SA30'!N44+'SA30'!N50) -> -419171119 | K14: =-('SA30'!O35+'SA30'!O36+'SA30'!O38+'SA30'!O39+'SA30'!O40+'SA30'!O41+'SA30'!O44+'SA30'!O50) -> -412153235 | L14: =-('SA30'!P35+'SA30'!P36+'SA30'!P38+'SA30'!P39+'SA30'!P40+'SA30'!P41+'SA30'!P44+'SA30'!P50) -> -425952471
A15: Finance charges | G15: 0 | H15: 0 | I15: 0 | J15: =-('SA30'!N37) -> 0 | K15: =-('SA30'!O37) -> 0 | L15: =-('SA30'!P37) -> 0
A16: Transfers and Grants | B16: 1 | D16: -10238715 | E16: -9461526 | F16: -25140500 | G16: -9048087 | H16: -9048087 | I16: -9048087 | J16: =-('SA30'!N42+'SA30'!N43) -> 0 | K16: =-('SA30'!O42+'SA30'!O43) -> 0 | L16: =-('SA30'!P42+'SA30'!P43) -> 0
A17: NET CASH FROM/(USED) OPERATING ACTIVITIES | C17: =SUM(C6:C12)+SUM(C14:C16) -> 0 | D17: -2007478 | E17: 8140023 | F17: 5848465 | G17: 7644795 | H17: 7644795 | I17: 7644795 | J17: -1407870 | K17: 3292345 | L17: 3440501
A19: CASH FLOWS FROM INVESTING ACTIVITIES
A20: Receipts
A21: Proceeds on disposal of PPE | D21: 87741 | E21: 66041 | F21: 140000 | G21: 140000 | H21: 140000 | I21: 140000 | J21: ='SA30'!N24+'SA30'!N25 -> 0 | K21: ='SA30'!O24+'SA30'!O25 -> 0 | L21: ='SA30'!P24+'SA30'!P25 -> 0
A23: Decrease (increase) in non-current receivables | G23: 0 | H23: 0 | I23: 0 | J23: ='SA30'!N30 -> 0 | K23: ='SA30'!O30 -> 0 | L23: ='SA30'!P30 -> 0
A24: Decrease (increase) in non-current investments | G24: 0 | H24: 0 | I24: 0 | J24: ='SA30'!N31 -> 0 | K24: ='SA30'!O31 -> 0 | L24: ='SA30'!P31 -> 0
A25: Payments
A26: Capital assets | C26: 0 | D26: -3125962 | E26: -3529932 | F26: -1750000 | G26: -2282713 | H26: -2282713 | I26: -2282713 | J26: =-('SA30'!N48) -> -2150000 | K26: =-('SA30'!O48) -> -2246750 | L26: =-('SA30'!P48) -> -2347854
A27: NET CASH FROM/(USED) INVESTING ACTIVITIES | C27: =+C21+C23+C24+C26 -> 0 | D27: =+D21+D23+D24+D26 -> -3038221 | E27: -3463891 | F27: -1610000 | G27: -2142713 | H27: -2142713 | I27: -2142713 | J27: -2150000 | K27: -2246750 | L27: -2347854
A29: CASH FLOWS FROM FINANCING ACTIVITIES
A30: Receipts
A31: Short term loans | J31: ='SA30'!N26 -> 0 | K31: ='SA30'!O26 -> 0 | L31: ='SA30'!P26 -> 0
A32: Borrowing long term/refinancing | J32: ='SA30'!N27 -> 0 | K32: ='SA30'!O27 -> 0 | L32: ='SA30'!P27 -> 0
A33: Increase (decrease) in consumer deposits | C33: 0 | D33: 0 | E33: 0 | J33: ='SA30'!N28 -> -172010 | K33: ='SA30'!O28 -> 3600 | L33: ='SA30'!P28 -> 3762
A34: Payments
A35: Repayment of borrowing | J35: =-('SA30'!N49) -> 0 | K35: =-('SA30'!O49) -> 0 | L35: =-('SA30'!P49) -> 0
A36: NET CASH FROM/(USED) FINANCING ACTIVITIES | C36: =SUM(C31:C33)+C35 -> 0 | D36: =SUM(D31:D33)+D35 -> 0 | E36: 0 | F36: 0 | G36: 0 | H36: 0 | I36: 0 | J36: -172010 | K36: 3600 | L36: 3762
A38: NET INCREASE/ (DECREASE) IN CASH HELD | C38: =C17+C27+C36 -> 0 | D38: =D17+D27+D36 -> -5045699 | E38: 4676132 | F38: 4238465 | G38: 5502082 | H38: 5502082 | I38: 5502082 | J38: -3729880 | K38: 1049195 | L38: 1096409
A39: Cash/cash equivalents at the year begin: | B39: 2 | C39: 0 | D39: 21873871 | E39: 16828172 | F39: 22806869 | G39: 21504302 | H39: 21504302 | I39: 21504302 | J39: ='SA30'!N54 -> 27045334 | K39: =J40 -> 23315454 | L39: =K40 -> 24364649
A40: Cash/cash equivalents at the year end: | B40: 2 | C40: =C38+C39 -> 0 | D40: =D38+D39 -> 16828172 | E40: =E38+E39 -> 21504304 | F40: =F38+F39 -> 27045334 | G40: 27006384 | H40: 27006384 | I40: 27006384 | J40: 23315454 | K40: 24364649 | L40: 25461058
A41: =head27a -> References
A42: 1. Local/District municipalities to include transfers from/to District/Local Municipalities
A43: 2. Cash equivalents includes investments with maturities of 3 months or less
A44: 3. The MTREF is populated directly from SA30.
A45: Total receipts | C45: =SUM(C6:C12)+SUM(C21:C23) -> 0 | D45: 355926295 | E45: 371539536 | F45: 405811181 | G45: 391464722 | H45: 391464722 | I45: 391464722 | J45: 417763249 | K45: 415445580 | L45: 429392972
A46: Total payments | C46: =SUM(C14:C16)+C26 -> 0 | D46: =SUM(D14:D16)+D26 -> -360971994 | E46: -366863404 | F46: -401572716 | G46: -385962640 | H46: -385962640 | I46: -385962640 | J46: -421321119 | K46: -414399985 | L46: -428300325
C47: =C45+C46 -> 0 | D47: =D45+D46 -> -5045699 | E47: 4676132 | F47: 4238465 | G47: 5502082 | H47: 5502082 | I47: 5502082 | J47: -3557870 | K47: 1045595 | L47: 1092647
A48: Borrowings & investments & c.deposits | C48: =C24+C32+C33 -> 0 | D48: =D24+D32+D33 -> 0 | E48: 0 | F48: 0 | G48: 0 | H48: 0 | I48: 0 | J48: -172010 | K48: 3600 | L48: 3762
A49: =A35 -> Repayment of borrowing | C49: =C35 -> 0 | D49: =D35 -> 0 | E49: 0 | F49: 0 | G49: 0 | H49: 0 | I49: =I35 -> 0 | J49: 0 | K49: 0 | L49: 0
C50: =C47+C48+C49 -> 0 | D50: =D47+D48+D49 -> -5045699 | E50: 4676132 | F50: 4238465 | G50: 5502082 | H50: 5502082 | I50: 5502082 | J50: -3729880 | K50: 1049195 | L50: 1096409
C51: =C38-C50 -> 0 | D51: 0 | E51: 0 | F51: 0 | G51: 0 | H51: 0 | I51: 0 | J51: 0 | K51: 0 | L51: 0

Sheet A8-ResRecon
A1: =muni&" - "&Approve8 -> DC42 Sedibeng - Table A8 Cash backed reserves/accumulated surplus reconciliation
A2: =desc -> Description | B2: =head27 -> Ref | C2: =head1b -> 2016/17 | D2: =head1A -> 2017/18 | E2: =Head1 -> 2018/19 | F2: =Head2 -> Current Year 2019/20 | J2: =Head3 -> 2020/21 Medium Term Revenue & Expenditure Framework
A3: R thousand | C3: =Head5 -> Audited Outcome | D3: =Head5 -> Audited Outcome | E3: =Head5 -> Audited Outcome | F3: =Head6 -> Original Budget | G3: =Head7 -> Adjusted Budget | H3: =Head8 -> Full Year Forecast | I3: =Head5b -> Pre-audit outcome | J3: =Head9 -> Budget Year 2020/21 | K3: =Head10 -> Budget Year +1 2021/22 | L3: =Head11 -> Budget Year +2 2022/23
A4: Cash and investments available
A5: =LEFT('A7-CFlow'!A40,37) -> Cash/cash equivalents at the year end | B5: 1 | C5: ='A7-CFlow'!C40 -> 0 | D5: ='A7-CFlow'!D40 -> 16828172 | E5: ='A7-CFlow'!E40 -> 21504304 | F5: ='A7-CFlow'!F40 -> 27045334 | G5: ='A7-CFlow'!G40 -> 27006384 | H5: ='A7-CFlow'!H40 -> 27006384 | I5: ='A7-CFlow'!I40 -> 27006384 | J5: ='A7-CFlow'!J40 -> 23315454 | K5: ='A7-CFlow'!K40 -> 24364649 | L5: ='A7-CFlow'!L40 -> 25461058
A6: Other current investments > 90 days | C6: ='A6-FinPos'!C6+'A6-FinPos'!C7-'A6-FinPos'!C29-'A8-ResRecon'!C5 -> 0 | D6: ='A6-FinPos'!D6+'A6-FinPos'!D7-'A6-FinPos'!D29-'A8-ResRecon'!D5 -> -199.74 | E6: ='A6-FinPos'!E6+'A6-FinPos'!E7-'A6-FinPos'!E29-'A8-ResRecon'!E5 -> -1.780000001 | F6: ='A6-FinPos'!F6+'A6-FinPos'!F7-'A6-FinPos'!F29-'A8-ResRecon'!F5 -> 0 | G6: ='A6-FinPos'!G6+'A6-FinPos'!G7-'A6-FinPos'!G29-'A8-ResRecon'!G5 -> 38950 | H6: ='A6-FinPos'!H6+'A6-FinPos'!H7-'A6-FinPos'!H29-'A8-ResRecon'!H5 -> 38950 | I6: ='A6-FinPos'!I6+'A6-FinPos'!I7-'A6-FinPos'!I29-'A8-ResRecon'!I5 -> -8502906.94 | J6: ='A6-FinPos'!J6+'A6-FinPos'!J7-'A6-FinPos'!J29-'A8-ResRecon'!J5 -> 0 | K6: ='A6-FinPos'!K6+'A6-FinPos'!K7-'A6-FinPos'!K29-'A8-ResRecon'!K5 -> 0 | L6: ='A6-FinPos'!L6+'A6-FinPos'!L7-'A6-FinPos'!L29-'A8-ResRecon'!L5 -> 0
A7: ='A6-FinPos'!A14&" - "&'A6-FinPos'!A16 -> Non current assets - Investments | B7: 1 | C7: ='A6-FinPos'!C16 -> 0 | D7: ='A6-FinPos'!D16 -> 0 | E7: ='A6-FinPos'!E16 -> 0 | F7: ='A6-FinPos'!F16 -> 0 | G7: ='A6-FinPos'!G16 -> 0 | H7: ='A6-FinPos'!H16 -> 0 | I7: ='A6-FinPos'!I16 -> 0 | J7: ='A6-FinPos'!J16 -> 0 | K7: ='A6-FinPos'!K16 -> 0 | L7: ='A6-FinPos'!L16 -> 0
A8: Cash and investments available: | C8: =SUM(C5:C7) -> 0 | D8: =SUM(D5:D7) -> 16827972.26 | E8: 21504302.22 | F8: 27045334 | G8: 27045334 | H8: 27045334 | I8: 18503477.06 | J8: 23315454 | K8: 24364649 | L8: 25461058
A10: Application of cash and investments
A11: ='SA3'!A37 -> Unspent conditional transfers | C11: ='SA3'!C37 -> 0 | D11: ='SA3'!D37 -> 15364264.38 | E11: ='SA3'!E37 -> 12526313.06 | F11: ='SA3'!F37 -> 15154780 | G11: ='SA3'!G37 -> 15154780 | H11: ='SA3'!H37 -> 15154780 | I11: ='SA3'!I37 -> 12526313.06 | J11: ='SA3'!J37 -> 0 | K11: ='SA3'!K37 -> 0 | L11: ='SA3'!L37 -> 0
A12: Unspent borrowing | C12: ='SA17'!C67 -> 0 | D12: ='SA17'!D67 -> 0 | E12: ='SA17'!E67 -> 0 | F12: ='SA17'!F67 -> 0 | G12: ='SA17'!G67 -> 0 | H12: ='SA17'!H67 -> 0 | J12: ='SA17'!I67 -> 0 | K12: ='SA17'!J67 -> 0 | L12: ='SA17'!K67 -> 0
A13: Statutory requirements | B13: 2
A14: Other working capital requirements | B14: 3 | C14: =-C32 -> 0 | D14: =-D32 -> 136985263.8 | E14: 185780204.7 | F14: =-F32 -> 108167250 | G14: 71113034 | H14: 71113034 | I14: 202490473.6 | J14: 127159000 | K14: 132881000 | L14: 138860605
A15: Other provisions
A16: Long term investments committed | B16: 4 | C16: =C42 -> 0 | D16: =D42 -> 0 | E16: 0 | F16: 0 | G16: 0 | H16: 0 | I16: 0 | J16: 0 | K16: 0 | L16: 0
A17: Reserves to be backed by cash/investments | B17: 5 | C17: =SUM(C44:C48) -> 0 | D17: 0 | E17: 0 | F17: 0 | G17: 0 | H17: 0 | I17: 0 | J17: 0 | K17: 0 | L17: 0
A18: ="Total "&A10&":" -> Total Application of cash and investments: | C18: =SUM(C11:C17) -> 0 | D18: =SUM(D11:D17) -> 152349528.2 | E18: 198306517.8 | F18: 123322030 | G18: 86267814 | H18: 86267814 | I18: 215016786.7 | J18: 127159000 | K18: 132881000 | L18: 138860605
A19: Surplus(shortfall) | C19: =C8-C18 -> 0 | D19: =D8-D18 -> -135521555.9 | E19: -176802215.5 | F19: -96276696 | G19: -59222480 | H19: -59222480 | I19: -196513309.6 | J19: -103843546 | K19: -108516351 | L19: -113399547
A20: =head27a -> References
A21: 1. Must reconcile with Budgeted Cash Flows
A22: 2. For example: VAT, taxation
A23: 3. Council approval for policy required - include sufficient working capital (e.g. allowing for a % of current debtors > 90 days as uncollectable)
A24: 4. For example: sinking fund requirements for borrowing
A25: 5. Council approval required for each reserve created and basis of cash backing of reserves
A28: Other working capital requirements
A29: Debtors | C29: =IF(ISERROR(ROUND(C35*C36,-3)),0,(ROUND(C35*C36,-3))) -> 0 | D29: =IF(ISERROR(ROUND(D35*D36,-3)),0,(ROUND(D35*D36,-3))) -> 8746000 | E29: 27111000 | F29: 2317000 | G29: 50873000 | H29: 50873000 | I29: 34537000 | J29: 1041000 | K29: 1088000 | L29: 1137000
A31: Creditors due | C31: ='SA3'!C35+'SA3'!C36 -> 0 | D31: ='SA3'!D35+'SA3'!D36 -> 145731263.8 | E31: ='SA3'!E35+'SA3'!E36 -> 212891204.7 | F31: ='SA3'!F35+'SA3'!F36 -> 110484250 | G31: ='SA3'!G35+'SA3'!G36 -> 121986034 | H31: ='SA3'!H35+'SA3'!H36 -> 121986034 | I31: ='SA3'!I35+'SA3'!I36 -> 237027473.6 | J31: ='SA3'!J35+'SA3'!J36 -> 128200000 | K31: ='SA3'!K35+'SA3'!K36 -> 133969000 | L31: ='SA3'!L35+'SA3'!L36 -> 139997605
A32: Total | C32: =C29-C31 -> 0 | D32: =D29-D31 -> -136985263.8 | E32: -185780204.7 | F32: -108167250 | G32: -71113034 | H32: -71113034 | I32: -202490473.6 | J32: -127159000 | K32: -132881000 | L32: -138860605
A34: Debtors collection assumptions
A35: Balance outstanding - debtors | C35: ='A6-FinPos'!C8+'A6-FinPos'!C9+'A6-FinPos'!C15 -> 0 | D35: ='A6-FinPos'!D8+'A6-FinPos'!D9+'A6-FinPos'!D15 -> 8980037.23 | E35: ='A6-FinPos'!E8+'A6-FinPos'!E9+'A6-FinPos'!E15 -> 27110424.57 | F35: ='A6-FinPos'!F8+'A6-FinPos'!F9+'A6-FinPos'!F15 -> 2316815 | G35: ='A6-FinPos'!G8+'A6-FinPos'!G9+'A6-FinPos'!G15 -> 50873265 | H35: ='A6-FinPos'!H8+'A6-FinPos'!H9+'A6-FinPos'!H15 -> 50873265 | I35: ='A6-FinPos'!I8+'A6-FinPos'!I9+'A6-FinPos'!I15 -> 23658166.9 | J35: ='A6-FinPos'!J8+'A6-FinPos'!J9+'A6-FinPos'!J15 -> 1040000 | K35: ='A6-FinPos'!K8+'A6-FinPos'!K9+'A6-FinPos'!K15 -> 1086800 | L35: ='A6-FinPos'!L8+'A6-FinPos'!L9+'A6-FinPos'!L15 -> 1135706
A36: Estimate of debtors collection rate | C36: =IF(ISERROR('SA10'!D10),0,('SA10'!D10)) -> 0 | D36: =IF(ISERROR('SA10'!E10),0,('SA10'!E10)) -> 0.9738881438 | E36: =IF(ISERROR('SA10'!F10),0,('SA10'!F10)) -> 1.000034701 | F36: =IF(ISERROR('SA10'!G10),0,('SA10'!G10)) -> 1 | G36: =IF(ISERROR('SA10'!H10),0,('SA10'!H10)) -> 1 | H36: =IF(ISERROR('SA10'!I10),0,('SA10'!I10)) -> 1 | I36: =IF(ISERROR('SA10'!J10),0,('SA10'!J10)) -> 1.459813453 | J36: =IF(ISERROR('SA10'!K10),0,('SA10'!K10)) -> 1.001374421 | K36: =IF(ISERROR('SA10'!L10),0,('SA10'!L10)) -> 1.001374421 | L36: =IF(ISERROR('SA10'!M10),0,('SA10'!M10)) -> 1.001374426
K39: `
A40: =A16 -> Long term investments committed
A41: Balance (Insert description; eg sinking fund)
C42: =SUM(C41:C41) -> 0 | D42: 0 | E42: 0 | F42: 0 | G42: 0 | H42: 0 | I42: 0 | J42: 0 | K42: 0 | L42: 0
A43: =A17 -> Reserves to be backed by cash/investments
A44: ='SA3'!A65 -> Housing Development Fund | C44: ='SA3'!C65 -> 0 | D44: ='SA3'!D65 -> 0 | E44: ='SA3'!E65 -> 0 | F44: ='SA3'!F65 -> 0 | G44: ='SA3'!G65 -> 0 | H44: ='SA3'!H65 -> 0 | I44: ='SA3'!I65 -> 0 | J44: ='SA3'!J65 -> 0 | K44: ='SA3'!K65 -> 0 | L44: ='SA3'!L65 -> 0
A45: ='SA3'!A66 -> Capital replacement | C45: ='SA3'!C66 -> 0 | D45: ='SA3'!D66 -> 0 | E45: ='SA3'!E66 -> 0 | F45: ='SA3'!F66 -> 0 | G45: ='SA3'!G66 -> 0 | H45: ='SA3'!H66 -> 0 | I45: ='SA3'!I66 -> 0 | J45: ='SA3'!J66 -> 0 | K45: ='SA3'!K66 -> 0 | L45: ='SA3'!L66 -> 0
A46: ='SA3'!A67 -> Self-insurance | C46: ='SA3'!C67 -> 0 | D46: ='SA3'!D67 -> 0 | E46: ='SA3'!E67 -> 0 | F46: ='SA3'!F67 -> 0 | G46: ='SA3'!G67 -> 0 | H46: ='SA3'!H67 -> 0 | I46: ='SA3'!I67 -> 0 | J46: ='SA3'!J67 -> 0 | K46: ='SA3'!K67 -> 0 | L46: ='SA3'!L67 -> 0
A47: ='SA3'!A68 -> Other reserves | C47: ='SA3'!C68 -> 0 | D47: ='SA3'!D68 -> 0 | E47: ='SA3'!E68 -> 0 | F47: ='SA3'!F68 -> 0 | G47: ='SA3'!G68 -> 0 | H47: ='SA3'!H68 -> 0 | I47: ='SA3'!I68 -> 0 | J47: ='SA3'!J68 -> 0 | K47: ='SA3'!K68 -> 0 | L47: ='SA3'!L68 -> 0
A48: ='SA3'!A69 -> Revaluation | C48: ='SA3'!C69 -> 0 | D48: ='SA3'!D69 -> 0 | E48: ='SA3'!E69 -> 0 | F48: ='SA3'!F69 -> 0 | G48: ='SA3'!G69 -> 0 | H48: ='SA3'!H69 -> 0 | I48: ='SA3'!I69 -> 0 | J48: ='SA3'!J69 -> 0 | K48: ='SA3'!K69 -> 0 | L48: ='SA3'!L69 -> 0
C49: =SUM(C44:C48) -> 0 | D49: 0 | E49: 0 | F49: 0 | G49: 0 | H49: 0 | I49: 0 | J49: 0 | K49: 0 | L49: 0

Sheet A9-Asset
A1: =muni&" - "&Approve9 -> DC42 Sedibeng - Table A9 Asset Management
A2: =desc -> Description | B2: =head27 -> Ref | C2: =head1b -> 2016/17 | D2: =head1A -> 2017/18 | E2: =Head1 -> 2018/19 | F2: =Head2 -> Current Year 2019/20 | I2: =Head3 -> 2020/21 Medium Term Revenue & Expenditure Framework
A3: R thousand | C3: =Head5 -> Audited Outcome | D3: =Head5 -> Audited Outcome | E3: =Head5 -> Audited Outcome | F3: =Head6 -> Original Budget | G3: =Head7 -> Adjusted Budget | H3: =Head8 -> Full Year Forecast | I3: =Head9 -> Budget Year 2020/21 | J3: =Head10 -> Budget Year +1 2021/22 | K3: =Head11 -> Budget Year +2 2022/23
A4: CAPITAL EXPENDITURE
A5: Total New Assets | B5: 1 | C5: =C15+C18+C19+C22+C25+C26+SUM(C29:C35) -> 0 | D5: =D15+D18+D19+D22+D25+D26+SUM(D29:D35) -> 882391.53 | E5: 0 | F5: 0 | G5: 1350000 | H5: 1350000 | I5: 1350000 | J5: 1410750 | K5: 1474234
A6: Roads Infrastructure | C6: =SA34a!C7 -> 0 | D6: =SA34a!D7 -> 0 | E6: =SA34a!E7 -> 0 | F6: =SA34a!F7 -> 0 | G6: =SA34a!G7 -> 0 | H6: =SA34a!H7 -> 0 | I6: =SA34a!I7 -> 0 | J6: =SA34a!J7 -> 0 | K6: =SA34a!K7 -> 0
A7: Storm water Infrastructure | C7: =SA34a!C12 -> 0 | D7: =SA34a!D12 -> 0 | E7: =SA34a!E12 -> 0 | F7: =SA34a!F12 -> 0 | G7: =SA34a!G12 -> 0 | H7: =SA34a!H12 -> 0 | I7: =SA34a!I12 -> 0 | J7: =SA34a!J12 -> 0 | K7: =SA34a!K12 -> 0
A8: Electrical Infrastructure | C8: =SA34a!C16 -> 0 | D8: =SA34a!D16 -> 0 | E8: =SA34a!E16 -> 0 | F8: =SA34a!F16 -> 0 | G8: =SA34a!G16 -> 0 | H8: =SA34a!H16 -> 0 | I8: =SA34a!I16 -> 0 | J8: =SA34a!J16 -> 0 | K8: =SA34a!K16 -> 0
A9: Water Supply Infrastructure | C9: =SA34a!C26 -> 0 | D9: =SA34a!D26 -> 0 | E9: =SA34a!E26 -> 0 | F9: =SA34a!F26 -> 0 | G9: =SA34a!G26 -> 0 | H9: =SA34a!H26 -> 0 | I9: =SA34a!I26 -> 0 | J9: =SA34a!J26 -> 0 | K9: =SA34a!K26 -> 0
A10: Sanitation Infrastructure | C10: =SA34a!C37 -> 0 | D10: =SA34a!D37 -> 0 | E10: =SA34a!E37 -> 0 | F10: =SA34a!F37 -> 0 | G10: =SA34a!G37 -> 0 | H10: =SA34a!H37 -> 0 | I10: =SA34a!I37 -> 0 | J10: =SA34a!J37 -> 0 | K10: =SA34a!K37 -> 0
A11: Solid Waste Infrastructure | C11: =SA34a!C44 -> 0 | D11: =SA34a!D44 -> 0 | E11: =SA34a!E44 -> 0 | F11: =SA34a!F44 -> 0 | G11: =SA34a!G44 -> 0 | H11: =SA34a!H44 -> 0 | I11: =SA34a!I44 -> 0 | J11: =SA34a!J44 -> 0 | K11: =SA34a!K44 -> 0
A12: Rail Infrastructure | C12: =SA34a!C52 -> 0 | D12: =SA34a!D52 -> 0 | E12: =SA34a!E52 -> 0 | F12: =SA34a!F52 -> 0 | G12: =SA34a!G52 -> 0 | H12: =SA34a!H52 -> 0 | I12: =SA34a!I52 -> 0 | J12: =SA34a!J52 -> 0 | K12: =SA34a!K52 -> 0
A13: Coastal Infrastructure | C13: =SA34a!C62 -> 0 | D13: =SA34a!D62 -> 0 | E13: =SA34a!E62 -> 0 | F13: =SA34a!F62 -> 0 | G13: =SA34a!G62 -> 0 | H13: =SA34a!H62 -> 0 | I13: =SA34a!I62 -> 0 | J13: =SA34a!J62 -> 0 | K13: =SA34a!K62 -> 0
A14: Information and Communication Infrastructure | C14: =SA34a!C68 -> 0 | D14: =SA34a!D68 -> 0 | E14: =SA34a!E68 -> 0 | F14: =SA34a!F68 -> 0 | G14: =SA34a!G68 -> 0 | H14: =SA34a!H68 -> 0 | I14: =SA34a!I68 -> 0 | J14: =SA34a!J68 -> 0 | K14: =SA34a!K68 -> 0
A15: Infrastructure | C15: =SUM(C6:C14) -> 0 | D15: =SUM(D6:D14) -> 0 | E15: 0 | F15: 0 | G15: 0 | H15: 0 | I15: 0 | J15: 0 | K15: 0
A16: Community Facilities | C16: =SA34a!C75 -> 0 | D16: =SA34a!D75 -> 0 | E16: =SA34a!E75 -> 0 | F16: =SA34a!F75 -> 0 | G16: =SA34a!G75 -> 0 | H16: =SA34a!H75 -> 0 | I16: =SA34a!I75 -> 0 | J16: =SA34a!J75 -> 0 | K16: =SA34a!K75 -> 0
A17: Sport and Recreation Facilities | C17: =SA34a!C98 -> 0 | D17: =SA34a!D98 -> 0 | E17: =SA34a!E98 -> 0 | F17: =SA34a!F98 -> 0 | G17: =SA34a!G98 -> 0 | H17: =SA34a!H98 -> 0 | I17: =SA34a!I98 -> 0 | J17: =SA34a!J98 -> 0 | K17: =SA34a!K98 -> 0
A18: Community Assets | C18: =SUM(C16:C17) -> 0 | D18: =SUM(D16:D17) -> 0 | E18: 0 | F18: 0 | G18: 0 | H18: 0 | I18: 0 | J18: 0 | K18: 0
A19: Heritage Assets | C19: =SA34a!C103 -> 0 | D19: =SA34a!D103 -> 0 | E19: =SA34a!E103 -> 0 | F19: =SA34a!F103 -> 0 | G19: =SA34a!G103 -> 0 | H19: =SA34a!H103 -> 0 | I19: =SA34a!I103 -> 0 | J19: =SA34a!J103 -> 0 | K19: =SA34a!K103 -> 0
A20: Revenue Generating | C20: =SA34a!C111 -> 0 | D20: =SA34a!D111 -> 0 | E20: =SA34a!E111 -> 0 | F20: =SA34a!F111 -> 0 | G20: =SA34a!G111 -> 0 | H20: =SA34a!H111 -> 0 | I20: =SA34a!I111 -> 0 | J20: =SA34a!J111 -> 0 | K20: =SA34a!K111 -> 0
A21: Non-revenue Generating | C21: =SA34a!C114 -> 0 | D21: =SA34a!D114 -> 0 | E21: =SA34a!E114 -> 0 | F21: =SA34a!F114 -> 0 | G21: =SA34a!G114 -> 0 | H21: =SA34a!H114 -> 0 | I21: =SA34a!I114 -> 0 | J21: =SA34a!J114 -> 0 | K21: =SA34a!K114 -> 0
A22: Investment properties | C22: =SUM(C20:C21) -> 0 | D22: =SUM(D20:D21) -> 0 | E22: 0 | F22: 0 | G22: 0 | H22: 0 | I22: 0 | J22: 0 | K22: 0
A23: Operational Buildings | C23: =SA34a!C119 -> 0 | D23: =SA34a!D119 -> 882391.53 | E23: =SA34a!E119 -> 0 | F23: =SA34a!F119 -> 0 | G23: =SA34a!G119 -> 0 | H23: =SA34a!H119 -> 0 | I23: =SA34a!I119 -> 0 | J23: =SA34a!J119 -> 0 | K23: =SA34a!K119 -> 0
A24: Housing | C24: =SA34a!C131 -> 0 | D24: =SA34a!D131 -> 0 | E24: =SA34a!E131 -> 0 | F24: =SA34a!F131 -> 0 | G24: =SA34a!G131 -> 0 | H24: =SA34a!H131 -> 0 | I24: =SA34a!I131 -> 0 | J24: =SA34a!J131 -> 0 | K24: =SA34a!K131 -> 0
A25: Other Assets | C25: =SUM(C23:C24) -> 0 | D25: =SUM(D23:D24) -> 882391.53 | E25: 0 | F25: 0 | G25: 0 | H25: 0 | I25: 0 | J25: 0 | K25: 0
A26: Biological or Cultivated Assets | C26: =SA34a!C136 -> 0 | D26: =SA34a!D136 -> 0 | E26: =SA34a!E136 -> 0 | F26: =SA34a!F136 -> 0 | G26: =SA34a!G136 -> 0 | H26: =SA34a!H136 -> 0 | I26: =SA34a!I136 -> 0 | J26: =SA34a!J136 -> 0 | K26: =SA34a!K136 -> 0
A27: Servitudes | C27: =SA34a!C140 -> 0 | D27: =SA34a!D140 -> 0 | E27: =SA34a!E140 -> 0 | F27: =SA34a!F140 -> 0 | G27: =SA34a!G140 -> 0 | H27: =SA34a!H140 -> 0 | I27: =SA34a!I140 -> 0 | J27: =SA34a!J140 -> 0 | K27: =SA34a!K140 -> 0
A28: Licences and Rights | C28: =SA34a!C141 -> 0 | D28: =SA34a!D141 -> 0 | E28: =SA34a!E141 -> 0 | F28: =SA34a!F141 -> 0 | G28: =SA34a!G141 -> 0 | H28: =SA34a!H141 -> 0 | I28: =SA34a!I141 -> 0 | J28: =SA34a!J141 -> 0 | K28: =SA34a!K141 -> 0
A29: Intangible Assets | C29: =SUM(C27:C28) -> 0 | D29: =SUM(D27:D28) -> 0 | E29: 0 | F29: 0 | G29: 0 | H29: 0 | I29: 0 | J29: 0 | K29: 0
A30: Computer Equipment | C30: =SA34a!C149 -> 0 | D30: =SA34a!D149 -> 0 | E30: =SA34a!E149 -> 0 | F30: =SA34a!F149 -> 0 | G30: =SA34a!G149 -> 0 | H30: =SA34a!H149 -> 0 | I30: =SA34a!I149 -> 0 | J30: =SA34a!J149 -> 0 | K30: =SA34a!K149 -> 0
A31: Furniture and Office Equipment | C31: =SA34a!C152 -> 0 | D31: =SA34a!D152 -> 0 | E31: =SA34a!E152 -> 0 | F31: =SA34a!F152 -> 0 | G31: =SA34a!G152 -> 0 | H31: =SA34a!H152 -> 0 | I31: =SA34a!I152 -> 0 | J31: =SA34a!J152 -> 0 | K31: =SA34a!K152 -> 0
A32: Machinery and Equipment | C32: =SA34a!C155 -> 0 | D32: =SA34a!D155 -> 0 | E32: =SA34a!E155 -> 0 | F32: =SA34a!F155 -> 0 | G32: =SA34a!G155 -> 50000 | H32: =SA34a!H155 -> 50000 | I32: =SA34a!I155 -> 0 | J32: =SA34a!J155 -> 0 | K32: =SA34a!K155 -> 0
A33: Transport Assets | C33: =SA34a!C158 -> 0 | D33: =SA34a!D158 -> 0 | E33: =SA34a!E158 -> 0 | F33: =SA34a!F158 -> 0 | G33: =SA34a!G158 -> 1300000 | H33: =SA34a!H158 -> 1300000 | I33: =SA34a!I158 -> 1350000 | J33: =SA34a!J158 -> 1410750 | K33: =SA34a!K158 -> 1474234
A34: Land | C34: =SA34a!C161 -> 0 | D34: =SA34a!D161 -> 0 | E34: =SA34a!E161 -> 0 | F34: =SA34a!F161 -> 0 | G34: =SA34a!G161 -> 0 | H34: =SA34a!H161 -> 0 | I34: =SA34a!I161 -> 0 | J34: =SA34a!J161 -> 0 | K34: =SA34a!K161 -> 0
A35: Zoo's, Marine and Non-biological Animals | C35: =SA34a!C164 -> 0 | D35: =SA34a!D164 -> 0 | E35: =SA34a!E164 -> 0 | F35: =SA34a!F164 -> 0 | G35: =SA34a!G164 -> 0 | H35: =SA34a!H164 -> 0 | I35: =SA34a!I164 -> 0 | J35: =SA34a!J164 -> 0 | K35: =SA34a!K164 -> 0
A37: Total Renewal of Existing Assets | B37: 2 | C37: =C47+C50+C51+C54+C57+C58+SUM(C61:C67) -> 0 | D37: =D47+D50+D51+D54+D57+D58+SUM(D61:D67) -> 2243571.22 | E37: 3005603.23 | F37: 1050000 | G37: 754183 | H37: 754183 | I37: 600000 | J37: 627000 | K37: 655215
A38: Roads Infrastructure | C38: =SA34b!C7 -> 0 | D38: =SA34b!D7 -> 728895.7 | E38: =SA34b!E7 -> 0 | F38: =SA34b!F7 -> 0 | G38: =SA34b!G7 -> 0 | H38: =SA34b!H7 -> 0 | I38: =SA34b!I7 -> 0 | J38: =SA34b!J7 -> 0 | K38: =SA34b!K7 -> 0
A39: Storm water Infrastructure | C39: =SA34b!C12 -> 0 | D39: =SA34b!D12 -> 0 | E39: =SA34b!E12 -> 0 | F39: =SA34b!F12 -> 0 | G39: =SA34b!G12 -> 0 | H39: =SA34b!H12 -> 0 | I39: =SA34b!I12 -> 0 | J39: =SA34b!J12 -> 0 | K39: =SA34b!K12 -> 0
A40: Electrical Infrastructure | C40: =SA34b!C16 -> 0 | D40: =SA34b!D16 -> 0 | E40: =SA34b!E16 -> 0 | F40: =SA34b!F16 -> 0 | G40: =SA34b!G16 -> 0 | H40: =SA34b!H16 -> 0 | I40: =SA34b!I16 -> 0 | J40: =SA34b!J16 -> 0 | K40: =SA34b!K16 -> 0
A41: Water Supply Infrastructure | C41: =SA34b!C26 -> 0 | D41: =SA34b!D26 -> 0 | E41: =SA34b!E26 -> 0 | F41: =SA34b!F26 -> 0 | G41: =SA34b!G26 -> 0 | H41: =SA34b!H26 -> 0 | I41: =SA34b!I26 -> 0 | J41: =SA34b!J26 -> 0 | K41: =SA34b!K26 -> 0
A42: Sanitation Infrastructure | C42: =SA34b!C37 -> 0 | D42: =SA34b!D37 -> 0 | E42: =SA34b!E37 -> 0 | F42: =SA34b!F37 -> 0 | G42: =SA34b!G37 -> 0 | H42: =SA34b!H37 -> 0 | I42: =SA34b!I37 -> 0 | J42: =SA34b!J37 -> 0 | K42: =SA34b!K37 -> 0
A43: Solid Waste Infrastructure | C43: =SA34b!C44 -> 0 | D43: =SA34b!D44 -> 0 | E43: =SA34b!E44 -> 0 | F43: =SA34b!F44 -> 0 | G43: =SA34b!G44 -> 0 | H43: =SA34b!H44 -> 0 | I43: =SA34b!I44 -> 0 | J43: =SA34b!J44 -> 0 | K43: =SA34b!K44 -> 0
A44: Rail Infrastructure | C44: =SA34b!C52 -> 0 | D44: =SA34b!D52 -> 0 | E44: =SA34b!E52 -> 0 | F44: =SA34b!F52 -> 0 | G44: =SA34b!G52 -> 0 | H44: =SA34b!H52 -> 0 | I44: =SA34b!I52 -> 0 | J44: =SA34b!J52 -> 0 | K44: =SA34b!K52 -> 0
A45: Coastal Infrastructure | C45: =SA34b!C62 -> 0 | D45: =SA34b!D62 -> 0 | E45: =SA34b!E62 -> 0 | F45: =SA34b!F62 -> 0 | G45: =SA34b!G62 -> 0 | H45: =SA34b!H62 -> 0 | I45: =SA34b!I62 -> 0 | J45: =SA34b!J62 -> 0 | K45: =SA34b!K62 -> 0
A46: Information and Communication Infrastructure | C46: =SA34b!C68 -> 0 | D46: =SA34b!D68 -> 0 | E46: =SA34b!E68 -> 0 | F46: =SA34b!F68 -> 0 | G46: =SA34b!G68 -> 0 | H46: =SA34b!H68 -> 0 | I46: =SA34b!I68 -> 0 | J46: =SA34b!J68 -> 0 | K46: =SA34b!K68 -> 0
A47: Infrastructure | C47: =SUM(C38:C46) -> 0 | D47: =SUM(D38:D46) -> 728895.7 | E47: 0 | F47: 0 | G47: 0 | H47: 0 | I47: 0 | J47: 0 | K47: 0
A48: Community Facilities | C48: =SA34b!C75 -> 0 | D48: =SA34b!D75 -> 0 | E48: =SA34b!E75 -> 0 | F48: =SA34b!F75 -> 0 | G48: =SA34b!G75 -> 0 | H48: =SA34b!H75 -> 0 | I48: =SA34b!I75 -> 0 | J48: =SA34b!J75 -> 0 | K48: =SA34b!K75 -> 0
A49: Sport and Recreation Facilities | C49: =SA34b!C98 -> 0 | D49: =SA34b!D98 -> 0 | E49: =SA34b!E98 -> 0 | F49: =SA34b!F98 -> 0 | G49: =SA34b!G98 -> 0 | H49: =SA34b!H98 -> 0 | I49: =SA34b!I98 -> 0 | J49: =SA34b!J98 -> 0 | K49: =SA34b!K98 -> 0
A50: Community Assets | C50: =SUM(C48:C49) -> 0 | D50: =SUM(D48:D49) -> 0 | E50: 0 | F50: 0 | G50: 0 | H50: 0 | I50: 0 | J50: 0 | K50: 0
A51: Heritage Assets | C51: =SA34b!C103 -> 0 | D51: =SA34b!D103 -> 0 | E51: =SA34b!E103 -> 0 | F51: =SA34b!F103 -> 0 | G51: =SA34b!G103 -> 0 | H51: =SA34b!H103 -> 0 | I51: =SA34b!I103 -> 0 | J51: =SA34b!J103 -> 0 | K51: =SA34b!K103 -> 0
A52: Revenue Generating | C52: =SA34b!C111 -> 0 | D52: =SA34b!D111 -> 0 | E52: =SA34b!E111 -> 0 | F52: =SA34b!F111 -> 0 | G52: =SA34b!G111 -> 0 | H52: =SA34b!H111 -> 0 | I52: =SA34b!I111 -> 0 | J52: =SA34b!J111 -> 0 | K52: =SA34b!K111 -> 0
A53: Non-revenue Generating | C53: =SA34b!C114 -> 0 | D53: =SA34b!D114 -> 0 | E53: =SA34b!E114 -> 0 | F53: =SA34b!F114 -> 0 | G53: =SA34b!G114 -> 0 | H53: =SA34b!H114 -> 0 | I53: =SA34b!I114 -> 0 | J53: =SA34b!J114 -> 0 | K53: =SA34b!K114 -> 0
A54: Investment properties | C54: =SUM(C52:C53) -> 0 | D54: =SUM(D52:D53) -> 0 | E54: 0 | F54: 0 | G54: 0 | H54: 0 | I54: 0 | J54: 0 | K54: 0
A55: Operational Buildings | C55: =SA34b!C119 -> 0 | D55: =SA34b!D119 -> 0 | E55: =SA34b!E119 -> 0 | F55: =SA34b!F119 -> 0 | G55: =SA34b!G119 -> 0 | H55: =SA34b!H119 -> 0 | I55: =SA34b!I119 -> 0 | J55: =SA34b!J119 -> 0 | K55: =SA34b!K119 -> 0
A56: Housing | C56: =SA34b!C131 -> 0 | D56: =SA34b!D131 -> 0 | E56: =SA34b!E131 -> 0 | F56: =SA34b!F131 -> 0 | G56: =SA34b!G131 -> 0 | H56: =SA34b!H131 -> 0 | I56: =SA34b!I131 -> 0 | J56: =SA34b!J131 -> 0 | K56: =SA34b!K131 -> 0
A57: Other Assets | C57: =SUM(C55:C56) -> 0 | D57: =SUM(D55:D56) -> 0 | E57: 0 | F57: 0 | G57: 0 | H57: 0 | I57: 0 | J57: 0 | K57: 0
A58: Biological or Cultivated Assets | C58: =SA34b!C136 -> 0 | D58: =SA34b!D136 -> 0 | E58: =SA34b!E136 -> 0 | F58: =SA34b!F136 -> 0 | G58: =SA34b!G136 -> 0 | H58: =SA34b!H136 -> 0 | I58: =SA34b!I136 -> 0 | J58: =SA34b!J136 -> 0 | K58: =SA34b!K136 -> 0
A59: Servitudes | C59: =SA34b!C140 -> 0 | D59: =SA34b!D140 -> 0 | E59: =SA34b!E140 -> 0 | F59: =SA34b!F140 -> 0 | G59: =SA34b!G140 -> 0 | H59: =SA34b!H140 -> 0 | I59: =SA34b!I140 -> 0 | J59: =SA34b!J140 -> 0 | K59: =SA34b!K140 -> 0
A60: Licences and Rights | C60: =SA34b!C141 -> 0 | D60: =SA34b!D141 -> 0 | E60: =SA34b!E141 -> 0 | F60: =SA34b!F141 -> 0 | G60: =SA34b!G141 -> 0 | H60: =SA34b!H141 -> 0 | I60: =SA34b!I141 -> 0 | J60: =SA34b!J141 -> 0 | K60: =SA34b!K141 -> 0
A61: Intangible Assets | C61: =SUM(C59:C60) -> 0 | D61: =SUM(D59:D60) -> 0 | E61: 0 | F61: 0 | G61: 0 | H61: 0 | I61: 0 | J61: 0 | K61: 0
A62: Computer Equipment | C62: =SA34b!C149 -> 0 | D62: =SA34b!D149 -> 1514675.52 | E62: =SA34b!E149 -> 2648358.99 | F62: =SA34b!F149 -> 800000 | G62: =SA34b!G149 -> 512688 | H62: =SA34b!H149 -> 512688 | I62: =SA34b!I149 -> 400000 | J62: =SA34b!J149 -> 418000 | K62: =SA34b!K149 -> 436810
A63: Furniture and Office Equipment | C63: =SA34b!C152 -> 0 | D63: =SA34b!D152 -> 0 | E63: =SA34b!E152 -> 357244.24 | F63: =SA34b!F152 -> 250000 | G63: =SA34b!G152 -> 241495 | H63: =SA34b!H152 -> 241495 | I63: =SA34b!I152 -> 200000 | J63: =SA34b!J152 -> 209000 | K63: =SA34b!K152 -> 218405
A64: Machinery and Equipment | C64: =SA34b!C155 -> 0 | D64: =SA34b!D155 -> 0 | E64: =SA34b!E155 -> 0 | F64: =SA34b!F155 -> 0 | G64: =SA34b!G155 -> 0 | H64: =SA34b!H155 -> 0 | I64: =SA34b!I155 -> 0 | J64: =SA34b!J155 -> 0 | K64: =SA34b!K155 -> 0
A65: Transport Assets | C65: =SA34b!C158 -> 0 | D65: =SA34b!D158 -> 0 | E65: =SA34b!E158 -> 0 | F65: =SA34b!F158 -> 0 | G65: =SA34b!G158 -> 0 | H65: =SA34b!H158 -> 0 | I65: =SA34b!I158 -> 0 | J65: =SA34b!J158 -> 0 | K65: =SA34b!K158 -> 0
A66: Land | C66: =SA34b!C161 -> 0 | D66: =SA34b!D161 -> 0 | E66: =SA34b!E161 -> 0 | F66: =SA34b!F161 -> 0 | G66: =SA34b!G161 -> 0 | H66: =SA34b!H161 -> 0 | I66: =SA34b!I161 -> 0 | J66: =SA34b!J161 -> 0 | K66: =SA34b!K161 -> 0
A67: Zoo's, Marine and Non-biological Animals | C67: =SA34b!C164 -> 0 | D67: =SA34b!D164 -> 0 | E67: =SA34b!E164 -> 0 | F67: =SA34b!F164 -> 0 | G67: =SA34b!G164 -> 0 | H67: =SA34b!H164 -> 0 | I67: =SA34b!I164 -> 0 | J67: =SA34b!J164 -> 0 | K67: =SA34b!K164 -> 0
A69: Total Upgrading of Existing Assets | B69: 6 | C69: =C79+C82+C83+C86+C89+C90+SUM(C93:C99) -> 0 | D69: =D79+D82+D83+D86+D89+D90+SUM(D93:D99) -> 0 | E69: 524329.14 | F69: 700000 | G69: 178530 | H69: 178530 | I69: 200000 | J69: 209000 | K69: 218405
A70: Roads Infrastructure | C70: =SA34e!C7 -> 0 | D70: =SA34e!D7 -> 0 | E70: =SA34e!E7 -> 0 | F70: =SA34e!F7 -> 0 | G70: =SA34e!G7 -> 0 | H70: =SA34e!H7 -> 0 | I70: =SA34e!I7 -> 0 | J70: =SA34e!J7 -> 0 | K70: =SA34e!K7 -> 0
A71: Storm water Infrastructure | C71: =SA34e!C12 -> 0 | D71: =SA34e!D12 -> 0 | E71: =SA34e!E12 -> 0 | F71: =SA34e!F12 -> 0 | G71: =SA34e!G12 -> 0 | H71: =SA34e!H12 -> 0 | I71: =SA34e!I12 -> 0 | J71: =SA34e!J12 -> 0 | K71: =SA34e!K12 -> 0
A72: Electrical Infrastructure | C72: =SA34e!C16 -> 0 | D72: =SA34e!D16 -> 0 | E72: =SA34e!E16 -> 0 | F72: =SA34e!F16 -> 0 | G72: =SA34e!G16 -> 0 | H72: =SA34e!H16 -> 0 | I72: =SA34e!I16 -> 0 | J72: =SA34e!J16 -> 0 | K72: =SA34e!K16 -> 0
A73: Water Supply Infrastructure | C73: =SA34e!C26 -> 0 | D73: =SA34e!D26 -> 0 | E73: =SA34e!E26 -> 0 | F73: =SA34e!F26 -> 0 | G73: =SA34e!G26 -> 0 | H73: =SA34e!H26 -> 0 | I73: =SA34e!I26 -> 0 | J73: =SA34e!J26 -> 0 | K73: =SA34e!K26 -> 0
A74: Sanitation Infrastructure | C74: =SA34e!C37 -> 0 | D74: =SA34e!D37 -> 0 | E74: =SA34e!E37 -> 0 | F74: =SA34e!F37 -> 0 | G74: =SA34e!G37 -> 0 | H74: =SA34e!H37 -> 0 | I74: =SA34e!I37 -> 0 | J74: =SA34e!J37 -> 0 | K74: =SA34e!K37 -> 0
A75: Solid Waste Infrastructure | C75: =SA34e!C44 -> 0 | D75: =SA34e!D44 -> 0 | E75: =SA34e!E44 -> 0 | F75: =SA34e!F44 -> 0 | G75: =SA34e!G44 -> 0 | H75: =SA34e!H44 -> 0 | I75: =SA34e!I44 -> 0 | J75: =SA34e!J44 -> 0 | K75: =SA34e!K44 -> 0
A76: Rail Infrastructure | C76: =SA34e!C52 -> 0 | D76: =SA34e!D52 -> 0 | E76: =SA34e!E52 -> 0 | F76: =SA34e!F52 -> 0 | G76: =SA34e!G52 -> 0 | H76: =SA34e!H52 -> 0 | I76: =SA34e!I52 -> 0 | J76: =SA34e!J52 -> 0 | K76: =SA34e!K52 -> 0
A77: Coastal Infrastructure | C77: =SA34e!C62 -> 0 | D77: =SA34e!D62 -> 0 | E77: =SA34e!E62 -> 0 | F77: =SA34e!F62 -> 0 | G77: =SA34e!G62 -> 0 | H77: =SA34e!H62 -> 0 | I77: =SA34e!I62 -> 0 | J77: =SA34e!J62 -> 0 | K77: =SA34e!K62 -> 0
A78: Information and Communication Infrastructure | C78: =SA34e!C68 -> 0 | D78: =SA34e!D68 -> 0 | E78: =SA34e!E68 -> 524329.14 | F78: =SA34e!F68 -> 700000 | G78: =SA34e!G68 -> 178530 | H78: =SA34e!H68 -> 178530 | I78: =SA34e!I68 -> 200000 | J78: =SA34e!J68 -> 209000 | K78: =SA34e!K68 -> 218405
A79: Infrastructure | C79: =SUM(C70:C78) -> 0 | D79: 0 | E79: 524329.14 | F79: 700000 | G79: 178530 | H79: 178530 | I79: 200000 | J79: 209000 | K79: 218405
A80: Community Facilities | C80: =SA34e!C75 -> 0 | D80: =SA34e!D75 -> 0 | E80: =SA34e!E75 -> 0 | F80: =SA34e!F75 -> 0 | G80: =SA34e!G75 -> 0 | H80: =SA34e!H75 -> 0 | I80: =SA34e!I75 -> 0 | J80: =SA34e!J75 -> 0 | K80: =SA34e!K75 -> 0
A81: Sport and Recreation Facilities | C81: =SA34e!C98 -> 0 | D81: =SA34e!D98 -> 0 | E81: =SA34e!E98 -> 0 | F81: =SA34e!F98 -> 0 | G81: =SA34e!G98 -> 0 | H81: =SA34e!H98 -> 0 | I81: =SA34e!I98 -> 0 | J81: =SA34e!J98 -> 0 | K81: =SA34e!K98 -> 0
A82: Community Assets | C82: =SUM(C80:C81) -> 0 | D82: 0 | E82: 0 | F82: 0 | G82: 0 | H82: 0 | I82: 0 | J82: 0 | K82: 0
A83: Heritage Assets | C83: =SA34e!C103 -> 0 | D83: =SA34e!D103 -> 0 | E83: =SA34e!E103 -> 0 | F83: =SA34e!F103 -> 0 | G83: =SA34e!G103 -> 0 | H83: =SA34e!H103 -> 0 | I83: =SA34e!I103 -> 0 | J83: =SA34e!J103 -> 0 | K83: =SA34e!K103 -> 0
A84: Revenue Generating | C84: =SA34e!C111 -> 0 | D84: =SA34e!D111 -> 0 | E84: =SA34e!E111 -> 0 | F84: =SA34e!F111 -> 0 | G84: =SA34e!G111 -> 0 | H84: =SA34e!H111 -> 0 | I84: =SA34e!I111 -> 0 | J84: =SA34e!J111 -> 0 | K84: =SA34e!K111 -> 0
A85: Non-revenue Generating | C85: =SA34e!C114 -> 0 | D85: =SA34e!D114 -> 0 | E85: =SA34e!E114 -> 0 | F85: =SA34e!F114 -> 0 | G85: =SA34e!G114 -> 0 | H85: =SA34e!H114 -> 0 | I85: =SA34e!I114 -> 0 | J85: =SA34e!J114 -> 0 | K85: =SA34e!K114 -> 0
A86: Investment properties | C86: =SUM(C84:C85) -> 0 | D86: 0 | E86: 0 | F86: 0 | G86: 0 | H86: 0 | I86: 0 | J86: 0 | K86: 0
A87: Operational Buildings | C87: =SA34e!C119 -> 0 | D87: =SA34e!D119 -> 0 | E87: =SA34e!E119 -> 0 | F87: =SA34e!F119 -> 0 | G87: =SA34e!G119 -> 0 | H87: =SA34e!H119 -> 0 | I87: =SA34e!I119 -> 0 | J87: =SA34e!J119 -> 0 | K87: =SA34e!K119 -> 0
A88: Housing | C88: =SA34e!C131 -> 0 | D88: =SA34e!D131 -> 0 | E88: =SA34e!E131 -> 0 | F88: =SA34e!F131 -> 0 | G88: =SA34e!G131 -> 0 | H88: =SA34e!H131 -> 0 | I88: =SA34e!I131 -> 0 | J88: =SA34e!J131 -> 0 | K88: =SA34e!K131 -> 0
A89: Other Assets | C89: =SUM(C87:C88) -> 0 | D89: 0 | E89: 0 | F89: 0 | G89: 0 | H89: 0 | I89: 0 | J89: 0 | K89: 0
A90: Biological or Cultivated Assets | C90: =SA34e!C136 -> 0 | D90: =SA34e!D136 -> 0 | E90: =SA34e!E136 -> 0 | F90: =SA34e!F136 -> 0 | G90: =SA34e!G136 -> 0 | H90: =SA34e!H136 -> 0 | I90: =SA34e!I136 -> 0 | J90: =SA34e!J136 -> 0 | K90: =SA34e!K136 -> 0
A91: Servitudes | C91: =SA34e!C140 -> 0 | D91: =SA34e!D140 -> 0 | E91: =SA34e!E140 -> 0 | F91: =SA34e!F140 -> 0 | G91: =SA34e!G140 -> 0 | H91: =SA34e!H140 -> 0 | I91: =SA34e!I140 -> 0 | J91: =SA34e!J140 -> 0 | K91: =SA34e!K140 -> 0
A92: Licences and Rights | C92: =SA34e!C141 -> 0 | D92: =SA34e!D141 -> 0 | E92: =SA34e!E141 -> 0 | F92: =SA34e!F141 -> 0 | G92: =SA34e!G141 -> 0 | H92: =SA34e!H141 -> 0 | I92: =SA34e!I141 -> 0 | J92: =SA34e!J141 -> 0 | K92: =SA34e!K141 -> 0
A93: Intangible Assets | C93: =SUM(C91:C92) -> 0 | D93: 0 | E93: 0 | F93: 0 | G93: 0 | H93: 0 | I93: 0 | J93: 0 | K93: 0
A94: Computer Equipment | C94: =SA34e!C149 -> 0 | D94: =SA34e!D149 -> 0 | E94: =SA34e!E149 -> 0 | F94: =SA34e!F149 -> 0 | G94: =SA34e!G149 -> 0 | H94: =SA34e!H149 -> 0 | I94: =SA34e!I149 -> 0 | J94: =SA34e!J149 -> 0 | K94: =SA34e!K149 -> 0
A95: Furniture and Office Equipment | C95: =SA34e!C152 -> 0 | D95: =SA34e!D152 -> 0 | E95: =SA34e!E152 -> 0 | F95: =SA34e!F152 -> 0 | G95: =SA34e!G152 -> 0 | H95: =SA34e!H152 -> 0 | I95: =SA34e!I152 -> 0 | J95: =SA34e!J152 -> 0 | K95: =SA34e!K152 -> 0
A96: Machinery and Equipment | C96: =SA34e!C155 -> 0 | D96: =SA34e!D155 -> 0 | E96: =SA34e!E155 -> 0 | F96: =SA34e!F155 -> 0 | G96: =SA34e!G155 -> 0 | H96: =SA34e!H155 -> 0 | I96: =SA34e!I155 -> 0 | J96: =SA34e!J155 -> 0 | K96: =SA34e!K155 -> 0
A97: Transport Assets | C97: =SA34e!C158 -> 0 | D97: =SA34e!D158 -> 0 | E97: =SA34e!E158 -> 0 | F97: =SA34e!F158 -> 0 | G97: =SA34e!G158 -> 0 | H97: =SA34e!H158 -> 0 | I97: =SA34e!I158 -> 0 | J97: =SA34e!J158 -> 0 | K97: =SA34e!K158 -> 0
A98: Land | C98: =SA34e!C161 -> 0 | D98: =SA34e!D161 -> 0 | E98: =SA34e!E161 -> 0 | F98: =SA34e!F161 -> 0 | G98: =SA34e!G161 -> 0 | H98: =SA34e!H161 -> 0 | I98: =SA34e!I161 -> 0 | J98: =SA34e!J161 -> 0 | K98: =SA34e!K161 -> 0
A99: Zoo's, Marine and Non-biological Animals | C99: =SA34e!C164 -> 0 | D99: =SA34e!D164 -> 0 | E99: =SA34e!E164 -> 0 | F99: =SA34e!F164 -> 0 | G99: =SA34e!G164 -> 0 | H99: =SA34e!H164 -> 0 | I99: =SA34e!I164 -> 0 | J99: =SA34e!J164 -> 0 | K99: =SA34e!K164 -> 0
A101: Total Capital Expenditure | B101: 4 | C101: =+C5+C37+C69 -> 0 | D101: =+D5+D37+D69 -> 3125962.75 | E101: 3529932.37 | F101: 1750000 | G101: 2282713 | H101: 2282713 | I101: 2150000 | J101: 2246750 | K101: 2347854
A102: Roads Infrastructure | C102: =+C6+C38+C70 -> 0 | D102: =+D6+D38+D70 -> 728895.7 | E102: 0 | F102: 0 | G102: 0 | H102: 0 | I102: 0 | J102: 0 | K102: 0
A103: Storm water Infrastructure | C103: =+C7+C39+C71 -> 0 | D103: 0 | E103: 0 | F103: 0 | G103: 0 | H103: 0 | I103: 0 | J103: 0 | K103: 0
A104: Electrical Infrastructure | C104: 0 | D104: 0 | E104: 0 | F104: 0 | G104: 0 | H104: 0 | I104: 0 | J104: 0 | K104: 0
A105: Water Supply Infrastructure | C105: 0 | D105: 0 | E105: 0 | F105: 0 | G105: 0 | H105: 0 | I105: 0 | J105: 0 | K105: 0
A106: Sanitation Infrastructure | C106: 0 | D106: 0 | E106: 0 | F106: 0 | G106: 0 | H106: 0 | I106: 0 | J106: 0 | K106: 0
A107: Solid Waste Infrastructure | C107: 0 | D107: 0 | E107: 0 | F107: 0 | G107: 0 | H107: 0 | I107: 0 | J107: 0 | K107: 0
A108: Rail Infrastructure | C108: 0 | D108: 0 | E108: 0 | F108: 0 | G108: 0 | H108: 0 | I108: 0 | J108: 0 | K108: 0
A109: Coastal Infrastructure | C109: 0 | D109: 0 | E109: 0 | F109: 0 | G109: 0 | H109: 0 | I109: 0 | J109: 0 | K109: 0
A110: Information and Communication Infrastructure | C110: 0 | D110: 0 | E110: 524329.14 | F110: 700000 | G110: 178530 | H110: 178530 | I110: 200000 | J110: 209000 | K110: 218405
A111: Infrastructure | C111: =SUM(C102:C110) -> 0 | D111: =SUM(D102:D110) -> 728895.7 | E111: 524329.14 | F111: 700000 | G111: 178530 | H111: 178530 | I111: 200000 | J111: 209000 | K111: 218405
A112: Community Facilities | C112: =+C16+C48+C80 -> 0 | D112: =+D16+D48+D80 -> 0 | E112: 0 | F112: 0 | G112: 0 | H112: 0 | I112: 0 | J112: 0 | K112: 0
A113: Sport and Recreation Facilities | C113: =+C17+C49+C81 -> 0 | D113: =+D17+D49+D81 -> 0 | E113: 0 | F113: 0 | G113: 0 | H113: 0 | I113: 0 | J113: 0 | K113: 0
A114: Community Assets | C114: =SUM(C112:C113) -> 0 | D114: =SUM(D112:D113) -> 0 | E114: 0 | F114: 0 | G114: 0 | H114: 0 | I114: 0 | J114: 0 | K114: 0
A115: Heritage Assets | C115: =+C19+C51+C83 -> 0 | D115: =+D19+D51+D83 -> 0 | E115: 0 | F115: 0 | G115: 0 | H115: 0 | I115: 0 | J115: 0 | K115: 0
A116: Revenue Generating | C116: =+C20+C52+C84 -> 0 | D116: =+D20+D52+D84 -> 0 | E116: 0 | F116: 0 | G116: 0 | H116: 0 | I116: 0 | J116: 0 | K116: 0
A117: Non-revenue Generating | C117: =+C21+C53+C85 -> 0 | D117: =+D21+D53+D85 -> 0 | E117: 0 | F117: 0 | G117: 0 | H117: 0 | I117: 0 | J117: 0 | K117: 0
A118: Investment properties | C118: =SUM(C116:C117) -> 0 | D118: =SUM(D116:D117) -> 0 | E118: 0 | F118: 0 | G118: 0 | H118: 0 | I118: 0 | J118: 0 | K118: 0
A119: Operational Buildings | C119: =+C23+C55+C87 -> 0 | D119: =+D23+D55+D87 -> 882391.53 | E119: 0 | F119: 0 | G119: 0 | H119: 0 | I119: 0 | J119: 0 | K119: 0
A120: Housing | C120: =+C24+C56+C88 -> 0 | D120: =+D24+D56+D88 -> 0 | E120: 0 | F120: 0 | G120: 0 | H120: 0 | I120: 0 | J120: 0 | K120: 0
A121: Other Assets | C121: =SUM(C119:C120) -> 0 | D121: 882391.53 | E121: 0 | F121: 0 | G121: 0 | H121: 0 | I121: 0 | J121: 0 | K121: 0
A122: Biological or Cultivated Assets | C122: =+C26+C58+C90 -> 0 | D122: =+D26+D58+D90 -> 0 | E122: 0 | F122: 0 | G122: 0 | H122: 0 | I122: 0 | J122: 0 | K122: 0
A123: Servitudes | C123: =+C27+C59+C91 -> 0 | D123: =+D27+D59+D91 -> 0 | E123: 0 | F123: 0 | G123: 0 | H123: 0 | I123: 0 | J123: 0 | K123: 0
A124: Licences and Rights | C124: =+C28+C60+C92 -> 0 | D124: =+D28+D60+D92 -> 0 | E124: 0 | F124: 0 | G124: 0 | H124: 0 | I124: 0 | J124: 0 | K124: 0
A125: Intangible Assets | C125: =SUM(C123:C124) -> 0 | D125: =SUM(D123:D124) -> 0 | E125: 0 | F125: 0 | G125: 0 | H125: 0 | I125: 0 | J125: 0 | K125: 0
A126: Computer Equipment | C126: =+C30+C62+C94 -> 0 | D126: =+D30+D62+D94 -> 1514675.52 | E126: 2648358.99 | F126: 800000 | G126: 512688 | H126: 512688 | I126: 400000 | J126: 418000 | K126: 436810
A127: Furniture and Office Equipment | C127: =+C31+C63+C95 -> 0 | D127: 0 | E127: 357244.24 | F127: 250000 | G127: 241495 | H127: 241495 | I127: 200000 | J127: 209000 | K127: 218405
A128: Machinery and Equipment | C128: 0 | D128: 0 | E128: 0 | F128: 0 | G128: 50000 | H128: 50000 | I128: 0 | J128: 0 | K128: 0
A129: Transport Assets | C129: 0 | D129: 0 | E129: 0 | F129: 0 | G129: 1300000 | H129: 1300000 | I129: 1350000 | J129: 1410750 | K129: 1474234
A130: Land | C130: 0 | D130: 0 | E130: 0 | F130: 0 | G130: 0 | H130: 0 | I130: 0 | J130: 0 | K130: 0
A131: Zoo's, Marine and Non-biological Animals | C131: 0 | D131: 0 | E131: 0 | F131: 0 | G131: 0 | H131: 0 | I131: 0 | J131: 0 | K131: 0
A132: TOTAL CAPITAL EXPENDITURE - Asset class | C132: =+C5+C37+C69 -> 0 | D132: =+D5+D37+D69 -> 3125962.75 | E132: 3529932.37 | F132: 1750000 | G132: 2282713 | H132: 2282713 | I132: 2150000 | J132: 2246750 | K132: 2347854
A134: ASSET REGISTER SUMMARY - PPE (WDV) | B134: 5 | C134: =C144+C147+C148+C151+C154+C155+C158+C159+C160+C161+C162+C163+C164 -> 0 | D134: =D144+D147+D148+D151+D154+D155+D158+D159+D160+D161+D162+D163+D164 -> 110959130.3 | E134: 112826866.1 | F134: 105431747 | G134: 105964460 | H134: 105964460 | I134: 99012585 | J134: 96226200 | K134: 100556377
A135: Roads Infrastructure | C135: 0 | D135: 5181230.64 | E135: 4615846.77 | F135: 4824659 | G135: 4824659 | H135: 4824659 | I135: 4156459 | J135: 4343500 | K135: 4538958
A136: Storm water Infrastructure
A137: Electrical Infrastructure | C137: 0 | D137: 55124.91 | E137: 50075.3 | F137: 52179 | G137: 52179 | H137: 52179 | I137: 45446 | J137: 47491 | K137: 49627
A138: Water Supply Infrastructure
A139: Sanitation Infrastructure
A140: Solid Waste Infrastructure
A141: Rail Infrastructure
A142: Coastal Infrastructure
A143: Information and Communication Infrastructure | C143: 0 | D143: 350225.51 | E143: 5388656.32 | F143: 889968 | G143: 368498 | H143: 368498 | I143: 199823 | J143: 208814 | K143: 218211
A144: Infrastructure | C144: =SUM(C135:C143) -> 0 | D144: =SUM(D135:D143) -> 5586581.06 | E144: 10054578.39 | F144: 5766806 | G144: 5245336 | H144: 5245336 | I144: 4401728 | J144: 4599805 | K144: 4806796
A147: Community Assets | C147: 0 | D147: 51534416.77 | E147: 49973035.75 | F147: 50550287 | G147: 50550287 | H147: 50550287 | I147: 46802584 | J147: 50445960 | K147: 52716027
A148: Heritage Assets | C148: 0 | D148: 4894941 | E148: 4894941 | F148: 4894941 | G148: 4894941 | H148: 4894941 | I148: 4894941 | J148: 5115213 | K148: 5345399
A151: Investment properties
A154: Other Assets | C154: 0 | D154: 0 | E154: -926420.61 | F154: 0 | G154: 0 | H154: 0 | I154: 0 | J154: -1295270 | K154: -1353557
A155: Biological or Cultivated Assets
A158: Intangible Assets | C158: 0 | D158: 2392782.13 | E158: 3734337.71 | F158: 2062998 | G158: 2062998 | H158: 2062998 | I158: 1303329 | J158: 263788 | K158: 275658
A159: Computer Equipment | C159: 0 | D159: 11528617.86 | E159: 10417726.09 | F159: 7597889 | G159: 7310577 | H159: 7310577 | I159: 4399949 | J159: 1246638 | K159: 1302736
A160: Furniture and Office Equipment | C160: 0 | D160: 2209862.47 | E160: 2323499.62 | F160: 2168610 | G160: 2160105 | H160: 2160105 | I160: 1732176 | J160: 1597183 | K160: 1669053
A161: Machinery and Equipment | C161: 0 | D161: 2191008.43 | E161: 1778487.26 | F161: 1785943 | G161: 1835943 | H161: 1835943 | I161: 882990 | J161: 922725 | K161: 964249
A162: Transport Assets | C162: 0 | D162: 1601136.31 | E162: 1556896.69 | F162: 1584489 | G162: 2884489 | H162: 2884489 | I162: 5575104 | J162: 3004483 | K162: 3139686
A163: Land | C163: 0 | D163: 29019784.24 | E163: 29019784.24 | F163: 29019784 | G163: 29019784 | H163: 29019784 | I163: 29019784 | J163: 30325675 | K163: 31690330
A164: Zoo's, Marine and Non-biological Animals
A165: TOTAL ASSET REGISTER SUMMARY - PPE (WDV) | B165: 5 | C165: =C144+C147+C148+C151+C154+C155+C158+C159+C160+C161+C162+C163+C164 -> 0 | D165: =D144+D147+D148+D151+D154+D155+D158+D159+D160+D161+D162+D163+D164 -> 110959130.3 | E165: 112826866.1 | F165: 105431747 | G165: 105964460 | H165: 105964460 | I165: 99012585 | J165: 96226200 | K165: 100556377
A167: EXPENDITURE OTHER ITEMS | C167: =SUM(C168:C169) -> 0 | D167: =SUM(D168:D169) -> 34142446.38 | E167: 27909631.32 | F167: 21030600 | G167: 20274783 | H167: 20274783 | I167: 20159783 | J167: 21066979 | K167: 22014991
A168: Depreciation | B168: 7 | C168: =SA34d!C167 -> 0 | D168: =SA34d!D167 -> 25865754.57 | E168: =SA34d!E167 -> 15714685.58 | F168: =SA34d!F167 -> 11620103 | G168: =SA34d!G167 -> 11271875 | H168: =SA34d!H167 -> 11271875 | I168: =SA34d!I167 -> 11271875 | J168: =SA34d!J167 -> 11779115 | K168: =SA34d!K167 -> 12309172
A169: Repairs and Maintenance by Asset Class | B169: 3 | C169: =C179+C182+C183+C186+C189+C190+SUM(C193:C199) -> 0 | D169: =D179+D182+D183+D186+D189+D190+SUM(D193:D199) -> 8276691.81 | E169: 12194945.74 | F169: 9410497 | G169: 9002908 | H169: 9002908 | I169: 8887908 | J169: 9287864 | K169: 9705819
A170: Roads Infrastructure | C170: =SA34c!C7 -> 0 | D170: =SA34c!D7 -> 0 | E170: =SA34c!E7 -> 0 | F170: =SA34c!F7 -> 0 | G170: =SA34c!G7 -> 0 | H170: =SA34c!H7 -> 0 | I170: =SA34c!I7 -> 0 | J170: =SA34c!J7 -> 0 | K170: =SA34c!K7 -> 0
A171: Storm water Infrastructure | C171: =SA34c!C12 -> 0 | D171: =SA34c!D12 -> 0 | E171: =SA34c!E12 -> 0 | F171: =SA34c!F12 -> 0 | G171: =SA34c!G12 -> 0 | H171: =SA34c!H12 -> 0 | I171: =SA34c!I12 -> 0 | J171: =SA34c!J12 -> 0 | K171: =SA34c!K12 -> 0
A172: Electrical Infrastructure | C172: =SA34c!C16 -> 0 | D172: =SA34c!D16 -> 0 | E172: =SA34c!E16 -> 0 | F172: =SA34c!F16 -> 0 | G172: =SA34c!G16 -> 0 | H172: =SA34c!H16 -> 0 | I172: =SA34c!I16 -> 0 | J172: =SA34c!J16 -> 0 | K172: =SA34c!K16 -> 0
A173: Water Supply Infrastructure | C173: =SA34c!C26 -> 0 | D173: =SA34c!D26 -> 0 | E173: =SA34c!E26 -> 0 | F173: =SA34c!F26 -> 0 | G173: =SA34c!G26 -> 0 | H173: =SA34c!H26 -> 0 | I173: =SA34c!I26 -> 0 | J173: =SA34c!J26 -> 0 | K173: =SA34c!K26 -> 0
A174: Sanitation Infrastructure | C174: =SA34c!C37 -> 0 | D174: =SA34c!D37 -> 0 | E174: =SA34c!E37 -> 0 | F174: =SA34c!F37 -> 0 | G174: =SA34c!G37 -> 0 | H174: =SA34c!H37 -> 0 | I174: =SA34c!I37 -> 0 | J174: =SA34c!J37 -> 0 | K174: =SA34c!K37 -> 0
A175: Solid Waste Infrastructure | C175: =SA34c!C44 -> 0 | D175: =SA34c!D44 -> 0 | E175: =SA34c!E44 -> 0 | F175: =SA34c!F44 -> 0 | G175: =SA34c!G44 -> 0 | H175: =SA34c!H44 -> 0 | I175: =SA34c!I44 -> 0 | J175: =SA34c!J44 -> 0 | K175: =SA34c!K44 -> 0
A176: Rail Infrastructure | C176: =SA34c!C52 -> 0 | D176: =SA34c!D52 -> 0 | E176: =SA34c!E52 -> 0 | F176: =SA34c!F52 -> 0 | G176: =SA34c!G52 -> 0 | H176: =SA34c!H52 -> 0 | I176: =SA34c!I52 -> 0 | J176: =SA34c!J52 -> 0 | K176: =SA34c!K52 -> 0
A177: Coastal Infrastructure | C177: =SA34c!C62 -> 0 | D177: =SA34c!D62 -> 0 | E177: =SA34c!E62 -> 0 | F177: =SA34c!F62 -> 0 | G177: =SA34c!G62 -> 0 | H177: =SA34c!H62 -> 0 | I177: =SA34c!I62 -> 0 | J177: =SA34c!J62 -> 0 | K177: =SA34c!K62 -> 0
A178: Information and Communication Infrastructure | C178: =SA34c!C68 -> 0 | D178: =SA34c!D68 -> 4245492.45 | E178: =SA34c!E68 -> 5052814.34 | F178: =SA34c!F68 -> 3717228 | G178: =SA34c!G68 -> 4071635 | H178: =SA34c!H68 -> 4071635 | I178: =SA34c!I68 -> 4071635 | J178: =SA34c!J68 -> 4254858 | K178: =SA34c!K68 -> 4446327
A179: Infrastructure | C179: =SUM(C170:C178) -> 0 | D179: =SUM(D170:D178) -> 4245492.45 | E179: 5052814.34 | F179: 3717228 | G179: 4071635 | H179: 4071635 | I179: 4071635 | J179: 4254858 | K179: 4446327
A180: Community Facilities | C180: =SA34c!C75 -> 0 | D180: =SA34c!D75 -> 173409.03 | E180: =SA34c!E75 -> 119572.76 | F180: =SA34c!F75 -> 129000 | G180: =SA34c!G75 -> 83004 | H180: =SA34c!H75 -> 83004 | I180: =SA34c!I75 -> 106004 | J180: =SA34c!J75 -> 110774 | K180: =SA34c!K75 -> 115759
A181: Sport and Recreation Facilities | C181: =SA34c!C98 -> 0 | D181: =SA34c!D98 -> 0 | E181: =SA34c!E98 -> 0 | F181: =SA34c!F98 -> 0 | G181: =SA34c!G98 -> 0 | H181: =SA34c!H98 -> 0 | I181: =SA34c!I98 -> 0 | J181: =SA34c!J98 -> 0 | K181: =SA34c!K98 -> 0
A182: Community Assets | C182: =SUM(C180:C181) -> 0 | D182: 173409.03 | E182: 119572.76 | F182: 129000 | G182: 83004 | H182: 83004 | I182: 106004 | J182: 110774 | K182: 115759
A183: Heritage Assets | C183: =SA34c!C103 -> 0 | D183: =SA34c!D103 -> 0 | E183: =SA34c!E103 -> 0 | F183: =SA34c!F103 -> 0 | G183: =SA34c!G103 -> 0 | H183: =SA34c!H103 -> 0 | I183: =SA34c!I103 -> 0 | J183: =SA34c!J103 -> 0 | K183: =SA34c!K103 -> 0
A184: Revenue Generating | C184: =SA34c!C111 -> 0 | D184: =SA34c!D111 -> 0 | E184: =SA34c!E111 -> 0 | F184: =SA34c!F111 -> 0 | G184: =SA34c!G111 -> 0 | H184: =SA34c!H111 -> 0 | I184: =SA34c!I111 -> 0 | J184: =SA34c!J111 -> 0 | K184: =SA34c!K111 -> 0
A185: Non-revenue Generating | C185: =SA34c!C114 -> 0 | D185: =SA34c!D114 -> 0 | E185: =SA34c!E114 -> 0 | F185: =SA34c!F114 -> 0 | G185: =SA34c!G114 -> 0 | H185: =SA34c!H114 -> 0 | I185: =SA34c!I114 -> 0 | J185: =SA34c!J114 -> 0 | K185: =SA34c!K114 -> 0
A186: Investment properties | C186: =SUM(C184:C185) -> 0 | D186: 0 | E186: 0 | F186: 0 | G186: 0 | H186: 0 | I186: 0 | J186: 0 | K186: 0
A187: Operational Buildings | C187: =SA34c!C119 -> 0 | D187: =SA34c!D119 -> 0 | E187: =SA34c!E119 -> 1985987.78 | F187: =SA34c!F119 -> 1700000 | G187: =SA34c!G119 -> 1017302 | H187: =SA34c!H119 -> 1017302 | I187: =SA34c!I119 -> 961000 | J187: =SA34c!J119 -> 1004245 | K187: =SA34c!K119 -> 1049436
A188: Housing | C188: =SA34c!C131 -> 0 | D188: =SA34c!D131 -> 0 | E188: =SA34c!E131 -> 0 | F188: =SA34c!F131 -> 0 | G188: =SA34c!G131 -> 0 | H188: =SA34c!H131 -> 0 | I188: =SA34c!I131 -> 0 | J188: =SA34c!J131 -> 0 | K188: =SA34c!K131 -> 0
A189: Other Assets | C189: =SUM(C187:C188) -> 0 | D189: 0 | E189: 1985987.78 | F189: 1700000 | G189: 1017302 | H189: 1017302 | I189: 961000 | J189: 1004245 | K189: 1049436
A190: Biological or Cultivated Assets | C190: =SA34c!C136 -> 0 | D190: =SA34c!D136 -> 0 | E190: =SA34c!E136 -> 0 | F190: =SA34c!F136 -> 0 | G190: =SA34c!G136 -> 0 | H190: =SA34c!H136 -> 0 | I190: =SA34c!I136 -> 0 | J190: =SA34c!J136 -> 0 | K190: =SA34c!K136 -> 0
A191: Servitudes | C191: =SA34c!C140 -> 0 | D191: =SA34c!D140 -> 0 | E191: =SA34c!E140 -> 0 | F191: =SA34c!F140 -> 0 | G191: =SA34c!G140 -> 0 | H191: =SA34c!H140 -> 0 | I191: =SA34c!I140 -> 0 | J191: =SA34c!J140 -> 0 | K191: =SA34c!K140 -> 0
A192: Licences and Rights | C192: =SA34c!C141 -> 0 | D192: =SA34c!D141 -> 0 | E192: =SA34c!E141 -> 0 | F192: =SA34c!F141 -> 0 | G192: =SA34c!G141 -> 0 | H192: =SA34c!H141 -> 0 | I192: =SA34c!I141 -> 0 | J192: =SA34c!J141 -> 0 | K192: =SA34c!K141 -> 0
A193: Intangible Assets | C193: =SUM(C191:C192) -> 0 | D193: 0 | E193: 0 | F193: 0 | G193: 0 | H193: 0 | I193: 0 | J193: 0 | K193: 0
A194: Computer Equipment | C194: =SA34c!C149 -> 0 | D194: =SA34c!D149 -> 0 | E194: =SA34c!E149 -> 0 | F194: =SA34c!F149 -> 0 | G194: =SA34c!G149 -> 0 | H194: =SA34c!H149 -> 0 | I194: =SA34c!I149 -> 0 | J194: =SA34c!J149 -> 0 | K194: =SA34c!K149 -> 0
A195: Furniture and Office Equipment | C195: =SA34c!C152 -> 0 | D195: =SA34c!D152 -> 109176.17 | E195: =SA34c!E152 -> 647748.99 | F195: =SA34c!F152 -> 200000 | G195: =SA34c!G152 -> 200000 | H195: =SA34c!H152 -> 200000 | I195: =SA34c!I152 -> 200000 | J195: =SA34c!J152 -> 209000 | K195: =SA34c!K152 -> 218406
A196: Machinery and Equipment | C196: =SA34c!C155 -> 0 | D196: =SA34c!D155 -> 0 | E196: =SA34c!E155 -> 372115.03 | F196: =SA34c!F155 -> 430000 | G196: =SA34c!G155 -> 287000 | H196: =SA34c!H155 -> 287000 | I196: =SA34c!I155 -> 300000 | J196: =SA34c!J155 -> 313500 | K196: =SA34c!K155 -> 327608
A197: Transport Assets | C197: =SA34c!C158 -> 0 | D197: =SA34c!D158 -> 3748614.16 | E197: =SA34c!E158 -> 4016706.84 | F197: =SA34c!F158 -> 3234269 | G197: =SA34c!G158 -> 3343967 | H197: =SA34c!H158 -> 3343967 | I197: =SA34c!I158 -> 3249269 | J197: =SA34c!J158 -> 3395487 | K197: =SA34c!K158 -> 3548283
A198: Land | C198: =SA34c!C161 -> 0 | D198: =SA34c!D161 -> 0 | E198: =SA34c!E161 -> 0 | F198: =SA34c!F161 -> 0 | G198: =SA34c!G161 -> 0 | H198: =SA34c!H161 -> 0 | I198: =SA34c!I161 -> 0 | J198: =SA34c!J161 -> 0 | K198: =SA34c!K161 -> 0
A199: Zoo's, Marine and Non-biological Animals | C199: =SA34c!C164 -> 0 | D199: =SA34c!D164 -> 0 | E199: =SA34c!E164 -> 0 | F199: =SA34c!F164 -> 0 | G199: =SA34c!G164 -> 0 | H199: =SA34c!H164 -> 0 | I199: =SA34c!I164 -> 0 | J199: =SA34c!J164 -> 0 | K199: =SA34c!K164 -> 0
A201: TOTAL EXPENDITURE OTHER ITEMS | C201: =SUM(C168:C169) -> 0 | D201: 34142446.38 | E201: 27909631.32 | F201: 21030600 | G201: 20274783 | H201: 20274783 | I201: 20159783 | J201: 21066979 | K201: 22014991
A203: Renewal and upgrading of Existing Assets as % of total capex | C203: =IF(ISERROR((C37+C69)/C132),0,((C37+C69)/C132)) -> 0 | D203: =IF(ISERROR((D37+D69)/D132),0,((D37+D69)/D132)) -> 0.7177216747 | E203: 1 | F203: 1 | G203: 0.4085984528 | H203: 0.4085984528 | I203: 0.3720930233 | J203: 0.3720930233 | K203: 0.3720929836
A204: Renewal and upgrading of Existing Assets as % of deprecn | C204: =IF(ISERROR((C37+C69)/C168),0,((C37+C69)/C168)) -> 0 | D204: =IF(ISERROR((D37+D69)/D168),0,((D37+D69)/D168)) -> 0.08673905932 | E204: 0.2246263441 | F204: 0.1506010747 | G204: 0.08274692542 | H204: 0.08274692542 | I204: 0.07097310785 | J204: 0.07097307395 | K204: 0.07097309226
A205: R&M as a % of PPE | C205: =IF(ISERROR(ROUND(C169/'A6-FinPos'!C19,3)),0,(ROUND(C169/'A6-FinPos'!C19,3))) -> 0 | D205: =IF(ISERROR(ROUND(D169/'A6-FinPos'!D19,3)),0,(ROUND(D169/'A6-FinPos'!D19,3))) -> 0.08 | E205: =IF(ISERROR(ROUND(E169/'A6-FinPos'!E19,3)),0,(ROUND(E169/'A6-FinPos'!E19,3))) -> 0.117 | F205: =IF(ISERROR(ROUND(F169/'A6-FinPos'!F19,3)),0,(ROUND(F169/'A6-FinPos'!F19,3))) -> 0.096 | G205: =IF(ISERROR(ROUND(G169/'A6-FinPos'!G19,3)),0,(ROUND(G169/'A6-FinPos'!G19,3))) -> 0.091 | H205: =IF(ISERROR(ROUND(H169/'A6-FinPos'!H19,3)),0,(ROUND(H169/'A6-FinPos'!H19,3))) -> 0.091 | I205: =IF(ISERROR(ROUND(I169/'A6-FinPos'!J19,3)),0,(ROUND(I169/'A6-FinPos'!J19,3))) -> 0.096 | J205: =IF(ISERROR(ROUND(J169/'A6-FinPos'!K19,3)),0,(ROUND(J169/'A6-FinPos'!K19,3))) -> 0.102 | K205: =IF(ISERROR(ROUND(K169/'A6-FinPos'!L19,3)),0,(ROUND(K169/'A6-FinPos'!L19,3))) -> 0.102
A206: Renewal and upgrading and R&M as a % of PPE | C206: =IF(ISERROR(ROUND((C37+C69+C169)/C165,2)),0,(ROUND((C37+C69+C169)/C165,2))) -> 0 | D206: =IF(ISERROR(ROUND((D37+D69+D169)/D165,2)),0,(ROUND((D37+D69+D169)/D165,2))) -> 0.09 | E206: 0.14 | F206: 0.11 | G206: 0.09 | H206: 0.09 | I206: 0.1 | J206: 0.11 | K206: 0.11
A208: =head27a -> References
A209: 1. Detail of new assets provided in Table SA34a
A210: 2. Detail of renewal of existing assets provided in Table SA34b
A211: 3. Detail of Repairs and Maintenance by Asset Class provided in Table SA34c
A212: 4. Must reconcile to total capital expenditure on Budgeted Capital Expenditure
A213: 5. Must reconcile to 'Budgeted Financial Position' (written down value)
A214: 6. Detail of upgrading of existing assets provided in Table SA34e
A215: 7. Detail of depreciation provided in Table SA34d
A217: Check balance to A6 | C217: =C165-'A6-FinPos'!D17-'A6-FinPos'!D19-'A6-FinPos'!D20-'A6-FinPos'!D21-'A6-FinPos'!D22-C148 -> -106064189.3 | D217: =D165-'A6-FinPos'!E17-'A6-FinPos'!E19-'A6-FinPos'!E20-'A6-FinPos'!E21-'A6-FinPos'!E22-D148 -> -1867735.87 | E217: =E165-'A6-FinPos'!F17-'A6-FinPos'!F19-'A6-FinPos'!F20-'A6-FinPos'!F21-'A6-FinPos'!F22-E148 -> 7395119.14 | F217: =F165-'A6-FinPos'!G17-'A6-FinPos'!G19-'A6-FinPos'!G20-'A6-FinPos'!G21-'A6-FinPos'!G22-F148 -> -532713 | G217: =G165-'A6-FinPos'!H17-'A6-FinPos'!H19-'A6-FinPos'!H20-'A6-FinPos'!H21-'A6-FinPos'!H22-G148 -> 0 | H217: =H165-'A6-FinPos'!I17-'A6-FinPos'!I19-'A6-FinPos'!I20-'A6-FinPos'!I21-'A6-FinPos'!I22-H148 -> -3226161.94 | I217: =I165-'A6-FinPos'!J17-'A6-FinPos'!J19-'A6-FinPos'!J20-'A6-FinPos'!J21-'A6-FinPos'!J22-I148 -> 0 | J217: =J165-'A6-FinPos'!K17-'A6-FinPos'!K19-'A6-FinPos'!K20-'A6-FinPos'!K21-'A6-FinPos'!K22-J148 -> 0 | K217: =K165-'A6-FinPos'!L17-'A6-FinPos'!L19-'A6-FinPos'!L20-'A6-FinPos'!L21-'A6-FinPos'!L22-K148 -> 0

Sheet A10-SerDel
A1: =muni&" - "&Approve10 -> DC42 Sedibeng - Table A10 Basic service delivery measurement
A2: =desc -> Description | B2: =head27 -> Ref | C2: =head1b -> 2016/17 | D2: =head1A -> 2017/18 | E2: =Head1 -> 2018/19 | F2: =Head2 -> Current Year 2019/20 | I2: =Head3 -> 2020/21 Medium Term Revenue & Expenditure Framework
C3: =Head5A -> Outcome | D3: =Head5A -> Outcome | E3: =Head5A -> Outcome | F3: =Head6 -> Original Budget | G3: =Head7 -> Adjusted Budget | H3: =Head8 -> Full Year Forecast | I3: =Head9 -> Budget Year 2020/21 | J3: =Head10 -> Budget Year +1 2021/22 | K3: =Head11 -> Budget Year +2 2022/23
A4: Household service targets | B4: 1
A5: Water:
A6: Piped water inside dwelling | C6: ='SA9'!E67 -> 0 | D6: ='SA9'!F67 -> 0 | E6: ='SA9'!G67 -> 0 | F6: ='SA9'!H67 -> 0 | G6: ='SA9'!I67 -> 0 | H6: ='SA9'!J67 -> 0 | I6: ='SA9'!K67 -> 0 | J6: ='SA9'!L67 -> 0 | K6: ='SA9'!M67 -> 0
A7: Piped water inside yard (but not in dwelling) | C7: ='SA9'!E68 -> 0 | D7: ='SA9'!F68 -> 0 | E7: ='SA9'!G68 -> 0 | F7: ='SA9'!H68 -> 0 | G7: ='SA9'!I68 -> 0 | H7: ='SA9'!J68 -> 0 | I7: ='SA9'!K68 -> 0 | J7: ='SA9'!L68 -> 0 | K7: ='SA9'!M68 -> 0
A8: Using public tap (at least min.service level) | B8: 2 | C8: ='SA9'!E69 -> 0 | D8: ='SA9'!F69 -> 0 | E8: ='SA9'!G69 -> 0 | F8: ='SA9'!H69 -> 0 | G8: ='SA9'!I69 -> 0 | H8: ='SA9'!J69 -> 0 | I8: ='SA9'!K69 -> 0 | J8: ='SA9'!L69 -> 0 | K8: ='SA9'!M69 -> 0
A9: Other water supply (at least min.service level) | B9: 4 | C9: ='SA9'!E70 -> 0 | D9: ='SA9'!F70 -> 0 | E9: ='SA9'!G70 -> 0 | F9: ='SA9'!H70 -> 0 | G9: ='SA9'!I70 -> 0 | H9: ='SA9'!J70 -> 0 | I9: ='SA9'!K70 -> 0 | J9: ='SA9'!L70 -> 0 | K9: ='SA9'!M70 -> 0
A10: Minimum Service Level and Above sub-total | C10: =SUM(C6:C9) -> 0 | D10: =SUM(D6:D9) -> 0 | E10: 0 | F10: 0 | G10: 0 | H10: 0 | I10: 0 | J10: 0 | K10: 0
A11: Using public tap (< min.service level) | B11: 3 | C11: ='SA9'!E72 -> 0 | D11: ='SA9'!F72 -> 0 | E11: ='SA9'!G72 -> 0 | F11: ='SA9'!H72 -> 0 | G11: ='SA9'!I72 -> 0 | H11: ='SA9'!J72 -> 0 | I11: ='SA9'!K72 -> 0 | J11: ='SA9'!L72 -> 0 | K11: ='SA9'!M72 -> 0
A12: Other water supply (< min.service level) | B12: =B9 -> 4 | C12: ='SA9'!E73 -> 0 | D12: ='SA9'!F73 -> 0 | E12: ='SA9'!G73 -> 0 | F12: ='SA9'!H73 -> 0 | G12: ='SA9'!I73 -> 0 | H12: ='SA9'!J73 -> 0 | I12: ='SA9'!K73 -> 0 | J12: ='SA9'!L73 -> 0 | K12: ='SA9'!M73 -> 0
A13: No water supply | C13: ='SA9'!E74 -> 0 | D13: ='SA9'!F74 -> 0 | E13: ='SA9'!G74 -> 0 | F13: ='SA9'!H74 -> 0 | G13: ='SA9'!I74 -> 0 | H13: ='SA9'!J74 -> 0 | I13: ='SA9'!K74 -> 0 | J13: ='SA9'!L74 -> 0 | K13: ='SA9'!M74 -> 0
A14: Below Minimum Service Level sub-total | C14: =SUM(C11:C13) -> 0 | D14: =SUM(D11:D13) -> 0 | E14: 0 | F14: 0 | G14: 0 | H14: 0 | I14: 0 | J14: 0 | K14: 0
A15: Total number of households | B15: 5 | C15: =C10+C14 -> 0 | D15: =D10+D14 -> 0 | E15: 0 | F15: 0 | G15: 0 | H15: 0 | I15: 0 | J15: 0 | K15: 0
A16: Sanitation/sewerage:
A17: Flush toilet (connected to sewerage) | C17: ='SA9'!E78 -> 0 | D17: ='SA9'!F78 -> 0 | E17: ='SA9'!G78 -> 0 | F17: ='SA9'!H78 -> 0 | G17: ='SA9'!I78 -> 0 | H17: ='SA9'!J78 -> 0 | I17: ='SA9'!K78 -> 0 | J17: ='SA9'!L78 -> 0 | K17: ='SA9'!M78 -> 0
A18: Flush toilet (with septic tank) | C18: ='SA9'!E79 -> 0 | D18: ='SA9'!F79 -> 0 | E18: ='SA9'!G79 -> 0 | F18: ='SA9'!H79 -> 0 | G18: ='SA9'!I79 -> 0 | H18: ='SA9'!J79 -> 0 | I18: ='SA9'!K79 -> 0 | J18: ='SA9'!L79 -> 0 | K18: ='SA9'!M79 -> 0
A19: Chemical toilet | C19: ='SA9'!E80 -> 0 | D19: ='SA9'!F80 -> 0 | E19: ='SA9'!G80 -> 0 | F19: ='SA9'!H80 -> 0 | G19: ='SA9'!I80 -> 0 | H19: ='SA9'!J80 -> 0 | I19: ='SA9'!K80 -> 0 | J19: ='SA9'!L80 -> 0 | K19: ='SA9'!M80 -> 0
A20: Pit toilet (ventilated) | C20: ='SA9'!E81 -> 0 | D20: ='SA9'!F81 -> 0 | E20: ='SA9'!G81 -> 0 | F20: ='SA9'!H81 -> 0 | G20: ='SA9'!I81 -> 0 | H20: ='SA9'!J81 -> 0 | I20: ='SA9'!K81 -> 0 | J20: ='SA9'!L81 -> 0 | K20: ='SA9'!M81 -> 0
A21: Other toilet provisions (> min.service level) | C21: ='SA9'!E82 -> 0 | D21: ='SA9'!F82 -> 0 | E21: ='SA9'!G82 -> 0 | F21: ='SA9'!H82 -> 0 | G21: ='SA9'!I82 -> 0 | H21: ='SA9'!J82 -> 0 | I21: ='SA9'!K82 -> 0 | J21: ='SA9'!L82 -> 0 | K21: ='SA9'!M82 -> 0
